Workbook

Sheet Brassage
A1: IRA vers l'heure d'hiver | H1: =A1 -> IRA vers l'heure d'hiver | O1: =A1 -> IRA vers l'heure d'hiver
A3: Style | B3: 15A - Irish Red Ale | E3: Brassin | F3: BJCCP 2015 min/max | H3: Profil Materiel | I3: Température du malt | K3: 16 | L3: Température cuve d'empatage | N3: 70.3 | O3: Sels de brassage
A4: Volume | B4: 26 | D4: DI | E4: =K27 -> 1.039535803 | F4: =IF($B$3="","",VLOOKUP($B$3,BJCCP!$A$1:$AH$119,2,FALSE)) -> 1.036 | G4: =IF($B$3="","",VLOOKUP($B$3,BJCCP!$A$1:$AH$119,3,FALSE)) -> 1.046 | I4: Ratio d'empatage | K4: 2.8 | L4: c*m cuve empatage | N4: =5.83*500 -> 2915 | O4: Nom générique | P4: Nomenclature UICPA | Q4: Formule chimique | R4: Ajout en g/L | S4: Ajout Empatage | T4: Ajout Rinçage | U4: Ajout Total
A5: Date | B5: 2587-04-07 | D5: DF | E5: =K27-((K27-1)*MAX(F55,F57)) -> 1.010156748 | F5: =IF($B$3="","",VLOOKUP($B$3,BJCCP!$A$1:$AH$119,4,FALSE)) -> 1.01 | G5: =IF($B$3="","",VLOOKUP($B$3,BJCCP!$A$1:$AH$119,5,FALSE)) -> 1.014 | I5: Rétention grains | K5: 1 | L5: Facteur correctif T°empatage | N5: =-((232.2934*(K8*100)^2 -7471.1515*(K8*100)+63999.0441)*0.5*F33/1000)/((F33/1000)*(23.9246*K8*100+1585.0029)+M9*4185) -> -1.411746245
A6: Rendement d'empatage | C6: 0.78 | D6: Couleur | E6: =2.9396*((4.23*(C24*F24+C25*F25+C26*F26+C27*F27+C28*F28+C29*F29+C30*F30+C31*F31+C32*F32)/1000)/ K28 )^0.6859 -> 26.20268419 | F6: =IF($B$3="","",VLOOKUP($B$3,BJCCP!$A$1:$AH$119,6,FALSE)) -> 17.73 | G6: =IF($B$3="","",VLOOKUP($B$3,BJCCP!$A$1:$AH$119,7,FALSE)) -> 27.58 | I6: Durée d'ébulition | K6: 60 | L6: Perte cuve ébu | N6: 1 | O6: Gypse | P6: Sulfate de Calcium | Q6: CaSO4 | R6: 0.08741480513 | S6: 1.381153921 | T6: 1.835710908 | U6: 3.216864829
A7: Palier 1 | B7: 67 | C7: 60 | D7: Amertume | E7: =G52 -> 79.83439418 | F7: =IF($B$3="","",VLOOKUP($B$3,BJCCP!$A$1:$AH$119,8,FALSE)) -> 18 | G7: =IF($B$3="","",VLOOKUP($B$3,BJCCP!$A$1:$AH$119,9,FALSE)) -> 28 | I7: % d'évaporation/h | K7: 0.1 | L7: Perte cuve tampon | N7: 1 | O7: Sel de table | P7: Chlorure de Sodium | Q7: NaCl | R7: 0.1457750079 | S7: 2.303245125 | T7: 3.061275166 | U7: 5.364520291
A8: Palier 2 | D8: ABV | E8: =1000*(E4-E5)/7.6 -> 3.865665111 | F8: =IF($B$3="","",VLOOKUP($B$3,BJCCP!$A$1:$AH$119,10,FALSE)) -> 3.8 | G8: =IF($B$3="","",VLOOKUP($B$3,BJCCP!$A$1:$AH$119,11,FALSE)) -> 5 | I8: Humidité du malt | K8: 0.04 | L8: Perte fermenteur | N8: 1.5 | O8: Sel d'Epsom | P8: Sulfate de Magnésium | Q8: MgSO4 | R8: 0.1342115486 | S8: 2.120542468 | T8: 2.81844252 | U8: 4.938984988
A9: Palier 3 | D9: vol CO2 | E9: 2 | F9: =IF($B$3="","",VLOOKUP($B$3,BJCCP!$A$1:$AH$119,20,FALSE)) -> 1.5 | G9: =IF($B$3="","",VLOOKUP($B$3,BJCCP!$A$1:$AH$119,21,FALSE)) -> 2.3 | H9: Chauffe Directe | I9: 100 | J9: ="Eau d'empatage "&"(ph visé "&ROUND(G16,2)&")" -> Eau d'empatage (ph visé 5,59) | M9: =F33*K4/1000 -> 13.58 | N9: =B7+N5+(((F33/1000)*(23.9246*K8*100+1585.0029))*(B7 - K3)+(N4*(B7-N3)))/(M9 *4185) -> 72.73387282 | O9: E509 | P9: Chlorure de Calcium | Q9: CaCl2 | R9: 0.02175210721 | S9: 0.3436832939 | T9: 0.4567942514 | U9: 0.8004775452
A10: Mash-Out | B10: 78 | C10: 10 | D10: IBU/DI | E10: =E7/((E4-1)*1000) -> 2.01929363 | F10: =F7/((G4-1)*1000) -> 0.3913043478 | G10: =G7/((F4-1)*1000) -> 0.7777777778 | H10: Empatage | J10: Volume de la maische à l'empatage | M10: =IF(H9="Infusion",F34/1000*1.65+(N15-F34/1000),F34/1000*1.65+(M9-F34/1000)) -> 16.7325 | O10: Bicarbonate de soude | P10: Hydrogénocarbonate de Sodium | Q10: NaHCO3 | R10: 0 | S10: 0 | T10: 0 | U10: 0
A11: Total hors MO | B11: =B7*C7/C11+B8*C8/C11+B9*C9/C11 -> 67 | C11: =SUM(C7:C9) -> 60 | D11: RBR : IBU/RE | E11: =E7/(0.1808*(259-(259/E4))+(0.8192*(259-(259/E5)))) -> 20.39579226 | F11: =F7/(0.1808*(259-(259/G4))+(0.8192*(259-(259/F5)))) -> 4.326878182 | G11: =G7/(0.1808*(259-(259/F4))+(0.8192*(259-(259/G5)))) -> 6.144922518 | J11: Profil | K11: =A7 -> Palier 1 | L11: =B7 -> 67 | M11: =IF(C7=0,"",C7) -> 60 | N11: =IF($H$9="Chauffe Directe","",IF($H$9="Infusion",M9,"")) ->  | O11: Craie/Desacid/Blanc de Medon | P11: Carbonate de Calcium | Q11: CaCO3 | R11: 0.02461699673 | S11: 0.3889485484 | T11: 0.5169569314 | U11: 0.9059054798
K12: =A8 -> Palier 2 | L12: =IF($H$9="Chauffe Directe",IF(B8=0,"",B8),IF(B8=0,L11,B8)) ->  | N12: =IF($H$9="Chauffe Directe","",IF($H$9="Infusion",((L12-L11)*(0.41*$F$33/1000+($M$9))/($I$9-L12)),(L12-L11)/($I$9-L11)*$M$10)) -> 
A13: BJCCP | B13: =IF($B$3="","",VLOOKUP($B$3,BJCCP!$A$1:$AH$119,22,FALSE)) -> 50-150 | C13: =IF($B$3="","",VLOOKUP($B$3,BJCCP!$A$1:$AH$119,23,FALSE)) -> 0-30 | D13: =IF($B$3="","",VLOOKUP($B$3,BJCCP!$A$1:$AH$119,24,FALSE)) -> 40-120 | E13: =IF($B$3="","",VLOOKUP($B$3,BJCCP!$A$1:$AH$119,25,FALSE)) -> 100-300 | F13: =IF($B$3="","",VLOOKUP($B$3,BJCCP!$A$1:$AH$119,26,FALSE)) -> 50-100 | K13: =A9 -> Palier 3 | L13: =IF($H$9="Chauffe Directe",IF(B9=0,"",B9),IF(B9=0,L12,B9)) ->  | N13: =IF($H$9="Chauffe Directe","",IF($H$9="Infusion",((L13-L12)*(0.41*$F$33/1000+($M$9+N12))/(I9-L13)),(L13-L12)/($I$9-L12)*$M$10)) -> 
A14: Eau | B14: Ca (50-150) | C14: Mg (10-40) | D14: Na (0-150) | E14: SO4 (50-250) | F14: Cl (0-250) | G14: HCO3 (0-250) | K14: =A10 -> Mash-Out | L14: =IF($H$9="Chauffe Directe",IF(B10=0,"",B10),IF(B10=0,L13,B10)) -> 78 | M14: 10 | N14: =IF($H$9="Chauffe Directe","",IF($H$9="Infusion",((L14-L13)*(0.41*$F$33/1000+($M$9+N12+N13))/(I9-L14)),(L14-L13)/($I$9-L13)*$M$10)) -> 
B15: 75 | C15: 20 | D15: 80 | E15: 100 | F15: 100 | G15: 111 | K15: Total hors MO | L15: =IF(B11=0,"",B11) -> 67 | M15: =C11 -> 60 | N15: =IF(H9="Infusion",SUM(N11:N14),"") -> 
B16: ratio SO4/Cl | C16: =INDEX({"Extrêmement maltée";"Très maltée";"Maltée";"Equilibrée";"Légèrement amère";"Amère";"Très amère";"Extrêmement amère";"Hors-Limites"},MATCH(B17,{0;0.4;0.6;0.8;1.5;2;6;8;18},1)) -> Equilibrée | D16: A. Totale | E16: A. Résiduelle | F16: pH estimé | G16: =(D24*F24+D25*F25+D26*F26+D27*F27+D28*F28+D29*F29+D30*F30)/F33+(0.1085*(M9/3.785412)/(F33*2.20462/1000)+0.013)*F20/50 -> 5.589735748
B17: =E15/F15 -> 1 | D17: =G15/1.22 -> 90.98360656 | E17: =D17-(B15/1.4+C15/1.7) -> 25.6474721 | H17: Rinçage | J17: Eau de rinçage | L17: =IF($H$9="Infusion",K22-N15+F33*K5/1000,K22-M9+F33*K5/1000) -> 23.62555556 | M17: Densité fin de rinçage
L18: 78
A19: Acide Lactique | B19: Concentration | C19: Quantié | D19: Alcalinité totale corrigée | F19: A. Résiduelle corrigée
B20: 0.8 | C20: 0.5 | D20: =D17-(176.1*B20*C20*2)/(M9*0.264172) -> 51.71343588 | F20: =D20-(B15/1.4+C15/1.7) -> -13.62269858 | H20: Pré-ébullition | K20: Théorique | M20: Réel
B21: recommandation BJCCP => | D21: =IF($B$3="","",VLOOKUP($B$3,BJCCP!$A$1:$AH$119,27,FALSE)) -> <100 | F21: =IF($B$3="","",VLOOKUP($B$3,BJCCP!$A$1:$AH$119,28,FALSE)) -> 0-60 | J21: Densité | K21: =1+(((E33*C6*F33))/(2.57452*K22)/1000) -> 1.035582222
J22: Volume | K22: =((B4+N6+N7)/(1-K7*K6/60))*(1+0.04) -> 32.35555556
A23: Grains | B23: Type | C23: EBC | D23: pH | E23: Rmax théo | F23: Poids | G23: Pourcentage | J23: Rendement d'empatage | K23: =C6 -> 0.78 | M23: =(2.57452*(M21-1)*M22*1000)/(F33*E33) -> 0
B24: Pale ale Swaen | C24: =IF(B24="",0,VLOOKUP(B24,Paramètres!$A$1:$E$60,3,FALSE)) -> 7.1 | D24: =IF(B24="",0,VLOOKUP(B24,Paramètres!$A$1:$E$60,5,FALSE)) -> 5.7 | E24: =IF(B24="",0,VLOOKUP(B24,Paramètres!$A$1:$E$60,2,FALSE)) -> 0.8 | F24: 4000 | G24: =F24/$F$34 -> 0.824742268
B25: Munich light Swaen | C25: =IF(B25="",0,VLOOKUP(B25,Paramètres!$A$1:$E$60,3,FALSE)) -> 13 | D25: =IF(B25="",0,VLOOKUP(B25,Paramètres!$A$1:$E$60,5,FALSE)) -> 5.43 | E25: =IF(B25="",0,VLOOKUP(B25,Paramètres!$A$1:$E$60,2,FALSE)) -> 0.75 | F25: 400 | G25: 0.0824742268
B26: Cara Gold - Vieux Silo | C26: =IF(B26="",0,VLOOKUP(B26,Paramètres!$A$1:$E$60,3,FALSE)) -> 120 | D26: =IF(B26="",0,VLOOKUP(B26,Paramètres!$A$1:$E$60,5,FALSE)) -> 4.99 | E26: =IF(B26="",0,VLOOKUP(B26,Paramètres!$A$1:$E$60,2,FALSE)) -> 0.7 | F26: 300 | G26: 0.0618556701 | H26: Post-ébullition | K26: Théorique | M26: Réel
B27: Seigle Chocolat | C27: =IF(B27="",0,VLOOKUP(B27,Paramètres!$A$1:$E$60,3,FALSE)) -> 650 | D27: =IF(B27="",0,VLOOKUP(B27,Paramètres!$A$1:$E$60,5,FALSE)) -> 4.71 | E27: =IF(B27="",0,VLOOKUP(B27,Paramètres!$A$1:$E$60,2,FALSE)) -> 0.6 | F27: 150 | G27: 0.03092783505 | J27: Densité | K27: =1+(((E33*C6*F33)+(E31*F31+E32*F32))/(2.57452*K28)/1000) -> 1.039535803
C28: =IF(B28="",0,VLOOKUP(B28,Paramètres!$A$1:$E$60,3,FALSE)) -> 0 | D28: =IF(B28="",0,VLOOKUP(B28,Paramètres!$A$1:$E$60,5,FALSE)) -> 0 | E28: =IF(B28="",0,VLOOKUP(B28,Paramètres!$A$1:$E$60,2,FALSE)) -> 0 | G28: 0 | J28: Volume | K28: =K22*(1-K7*K6/60) -> 29.12
C29: =IF(B29="",0,VLOOKUP(B29,Paramètres!$A$1:$E$60,3,FALSE)) -> 0 | D29: =IF(B29="",0,VLOOKUP(B29,Paramètres!$A$1:$E$60,5,FALSE)) -> 0 | E29: =IF(B29="",0,VLOOKUP(B29,Paramètres!$A$1:$E$60,2,FALSE)) -> 0 | G29: 0 | J29: Evaporation | K29: =K7*100 -> 10 | L29: =K7*K22 -> 3.235555556 | M29: =((M22-M28)/M22)*100*60/K6 ->  | N29: =M29/100*M22 -> 
C30: =IF(B30="",0,VLOOKUP(B30,Paramètres!$A$1:$E$60,3,FALSE)) -> 0 | D30: =IF(B30="",0,VLOOKUP(B30,Paramètres!$A$1:$E$60,5,FALSE)) -> 0 | E30: =IF(B30="",0,VLOOKUP(B30,Paramètres!$A$1:$E$60,2,FALSE)) -> 0 | G30: 0 | J30: Vérif' : Différence quantité de sucre pré et post-ébu | N30: =((M21-1)*1000)*M22*2.57452-((M27-1)*1000)*M28*2.57452 -> 0
A31: Sucres | C31: =IF(B31="",0,VLOOKUP(B31,Paramètres!$F$18:$I$31,3,FALSE)) -> 0 | E31: =IF(B31="",0,VLOOKUP(B31,Paramètres!$F$18:$I$31,2,FALSE)) -> 0 | G31: 0
C32: =IF(B32="",0,VLOOKUP(B32,Paramètres!$F$18:$I$31,3,FALSE)) -> 0 | E32: =IF(B32="",0,VLOOKUP(B32,Paramètres!$F$18:$I$31,2,FALSE)) -> 0 | G32: 0 | H32: En fermenteur | K32: Théorique | M32: Réel
A33: Total | B33: grains | C33: =2.9396*((4.23*(C24*F24+C25*F25+C26*F26+C27*F27+C28*F28+C29*F29+C30*F30)/1000)/ K28 )^0.6859 -> 26.20268419 | D33: =(D24*F24+D25*F25+D26*F26+D27*F27+D28*F28+D29*F29+D30*F30)/F33 -> 5.603195876 | E33: =(E24*F24+E25*F25+E26*F26+E27*F27+E28*F28+E29*F29+E30*F30)/F33 -> 0.7835051546 | F33: =SUM(F24:F30) -> 4850 | G33: =SUM(G24:G30) -> 1 | J33: DI | K33: =K27 -> 1.039535803 | M33: 1.046
A34: Total | B34: général | C34: =E6 -> 26.20268419 | D34: =D33 -> 5.603195876 | E34: =E24*G24+E25*G25+E26*G26+E27*G27+E28*G28+E29*G29+E30*G30+E31*G31+E32*G32 -> 0.7835051546 | F34: =SUM(F24:F30)+F31+F32 -> 4850 | G34: =SUM(G24:G30)+G31+G32 -> 1 | J34: Volume | K34: =K28*(1-0.04)-N7-N6 -> 25.9552 | M34: 27
J35: Efficacité du brassage | K35: =(2.57452*K34*(K33-1)*1000)/(E34*F34) -> 0.6952285714 | M35: =(2.57452*M34*(M33-1)*1000)/(E34*F34) -> 0.8414615368
A36: Autre | B36: Type | D36: Utilisation | E36: Durée | F36: Quantité
H38: Fermentation | J38: Profil | K38: T°C | L38: Durée | M38: Fin théorique | N38: Fin réelle
K39: 20 | L39: 21 | M39: =B5+L39 -> 2587-04-28
K40: 2 | L40: 2 | M40: =IF(L40="","",M39+L40) -> 2587-04-30
M41: =IF(L41="","",M40+L41) -> 
A42: Houblons | B42: Type | C42: Acide Alpha | D42: Utilisation | E42: Durée | F42: Poids | G42: IBUs | J42: Suivi de la fermentation
B43: Magnum | C43: 0.139 | D43: FWH | E43: 60 | F43: 30 | G43: =IFERROR(IF(D43="Ebullition",((1.65*(0.000125^($K$27-1))*((1-EXP(-0.04*E43))/4.15))*C43*F43*1000)/($K$28)*Paramètres!$H$2,IF(D43="DH",((1.65*(0.000125^($K$27-1))*((1-EXP(-0.04*E43))/4.15))*C43*F43*1000)/($K$28)*Paramètres!$H$3,IF(D43="Hop-stand",((1.65*(0.000125^($K$27-1))*((1-EXP(-0.04*E43))/4.15))*C43*F43*1000)/($K$28)*Paramètres!$H$4,IF(D43="FWH",((1.65*(0.000125^($K$27-1))*((1-EXP(-0.04*E43))/4.15))*C43*F43*1000)/($K$28)*Paramètres!$H$5,IF(D43="Mash-hop",((1.65*(0.000125^($K$27-1))*((1-EXP(-0.04*E43))/4.15))*C43*F43*1000)/($K$28)*Paramètres!$H$6,IF(D43="Flame-out",((1.65*(0.000125^($K$27-1))*((1-EXP(-0.04*E43))/4.15))*C43*F43*1000)/($K$28)*Paramètres!$H$7,"")))))),0) -> 39.91719709 | J43: Date | K43: Brix | L43: Densité | M43: Atténuation | N43: Progression
B44: Golding | C44: 0.139 | D44: FWH | E44: 60 | F44: 30 | G44: =IFERROR(IF(D44="Ebullition",((1.65*(0.000125^($K$27-1))*((1-EXP(-0.04*E44))/4.15))*C44*F44*1000)/($K$28)*Paramètres!$H$2,IF(D44="DH",((1.65*(0.000125^($K$27-1))*((1-EXP(-0.04*E44))/4.15))*C44*F44*1000)/($K$28)*Paramètres!$H$3,IF(D44="Hop-stand",((1.65*(0.000125^($K$27-1))*((1-EXP(-0.04*E44))/4.15))*C44*F44*1000)/($K$28)*Paramètres!$H$4,IF(D44="FWH",((1.65*(0.000125^($K$27-1))*((1-EXP(-0.04*E44))/4.15))*C44*F44*1000)/($K$28)*Paramètres!$H$5,IF(D44="Mash-hop",((1.65*(0.000125^($K$27-1))*((1-EXP(-0.04*E44))/4.15))*C44*F44*1000)/($K$28)*Paramètres!$H$6,IF(D44="Flame-out",((1.65*(0.000125^($K$27-1))*((1-EXP(-0.04*E44))/4.15))*C44*F44*1000)/($K$28)*Paramètres!$H$7,"")))))),0) -> 39.91719709 | L44: =IF(K44=0,"",1-0.000856829*(-616.868 + 1111.14 * $M$33- 630.272 * $M$33^ 2+135.997 *$M$33^3)+0.00349412*(K44/1.04)) ->  | M44: =IF(L44="","",($M$33-L44)/($M$33-1)) ->  | N44: =IF(M44="","",M44/$K$53) -> 
G45: =IFERROR(IF(D45="Ebullition",((1.65*(0.000125^($K$27-1))*((1-EXP(-0.04*E45))/4.15))*C45*F45*1000)/($K$28)*Paramètres!$H$2,IF(D45="DH",((1.65*(0.000125^($K$27-1))*((1-EXP(-0.04*E45))/4.15))*C45*F45*1000)/($K$28)*Paramètres!$H$3,IF(D45="Hop-stand",((1.65*(0.000125^($K$27-1))*((1-EXP(-0.04*E45))/4.15))*C45*F45*1000)/($K$28)*Paramètres!$H$4,IF(D45="FWH",((1.65*(0.000125^($K$27-1))*((1-EXP(-0.04*E45))/4.15))*C45*F45*1000)/($K$28)*Paramètres!$H$5,IF(D45="Mash-hop",((1.65*(0.000125^($K$27-1))*((1-EXP(-0.04*E45))/4.15))*C45*F45*1000)/($K$28)*Paramètres!$H$6,IF(D45="Flame-out",((1.65*(0.000125^($K$27-1))*((1-EXP(-0.04*E45))/4.15))*C45*F45*1000)/($K$28)*Paramètres!$H$7,"")))))),0) ->  | L45: =IF(K45=0,"",1-0.000856829*(-616.868 + 1111.14 * $M$33- 630.272 * $M$33^ 2+135.997 *$M$33^3)+0.00349412*(K45/1.04)) ->  | M45: =IF(L45="","",($M$33-L45)/($M$33-1)) ->  | N45: =IF(M45="","",M45/$K$53) -> 
G46: =IFERROR(IF(D46="Ebullition",((1.65*(0.000125^($K$27-1))*((1-EXP(-0.04*E46))/4.15))*C46*F46*1000)/($K$28)*Paramètres!$H$2,IF(D46="DH",((1.65*(0.000125^($K$27-1))*((1-EXP(-0.04*E46))/4.15))*C46*F46*1000)/($K$28)*Paramètres!$H$3,IF(D46="Hop-stand",((1.65*(0.000125^($K$27-1))*((1-EXP(-0.04*E46))/4.15))*C46*F46*1000)/($K$28)*Paramètres!$H$4,IF(D46="FWH",((1.65*(0.000125^($K$27-1))*((1-EXP(-0.04*E46))/4.15))*C46*F46*1000)/($K$28)*Paramètres!$H$5,IF(D46="Mash-hop",((1.65*(0.000125^($K$27-1))*((1-EXP(-0.04*E46))/4.15))*C46*F46*1000)/($K$28)*Paramètres!$H$6,IF(D46="Flame-out",((1.65*(0.000125^($K$27-1))*((1-EXP(-0.04*E46))/4.15))*C46*F46*1000)/($K$28)*Paramètres!$H$7,"")))))),0) ->  | L46: =IF(K46=0,"",1-0.000856829*(-616.868 + 1111.14 * $M$33- 630.272 * $M$33^ 2+135.997 *$M$33^3)+0.00349412*(K46/1.04)) ->  | M46: =IF(L46="","",($M$33-L46)/($M$33-1)) ->  | N46: =IF(M46="","",M46/$K$53) -> 
G47: =IFERROR(IF(D47="Ebullition",((1.65*(0.000125^($K$27-1))*((1-EXP(-0.04*E47))/4.15))*C47*F47*1000)/($K$28)*Paramètres!$H$2,IF(D47="DH",((1.65*(0.000125^($K$27-1))*((1-EXP(-0.04*E47))/4.15))*C47*F47*1000)/($K$28)*Paramètres!$H$3,IF(D47="Hop-stand",((1.65*(0.000125^($K$27-1))*((1-EXP(-0.04*E47))/4.15))*C47*F47*1000)/($K$28)*Paramètres!$H$4,IF(D47="FWH",((1.65*(0.000125^($K$27-1))*((1-EXP(-0.04*E47))/4.15))*C47*F47*1000)/($K$28)*Paramètres!$H$5,IF(D47="Mash-hop",((1.65*(0.000125^($K$27-1))*((1-EXP(-0.04*E47))/4.15))*C47*F47*1000)/($K$28)*Paramètres!$H$6,IF(D47="Flame-out",((1.65*(0.000125^($K$27-1))*((1-EXP(-0.04*E47))/4.15))*C47*F47*1000)/($K$28)*Paramètres!$H$7,"")))))),0) ->  | L47: =IF(K47=0,"",1-0.000856829*(-616.868 + 1111.14 * $M$33- 630.272 * $M$33^ 2+135.997 *$M$33^3)+0.00349412*(K47/1.04)) ->  | M47: =IF(L47="","",($M$33-L47)/($M$33-1)) ->  | N47: =IF(M47="","",M47/$K$53) -> 
G48: =IFERROR(IF(D48="Ebullition",((1.65*(0.000125^($K$27-1))*((1-EXP(-0.04*E48))/4.15))*C48*F48*1000)/($K$28)*Paramètres!$H$2,IF(D48="DH",((1.65*(0.000125^($K$27-1))*((1-EXP(-0.04*E48))/4.15))*C48*F48*1000)/($K$28)*Paramètres!$H$3,IF(D48="Hop-stand",((1.65*(0.000125^($K$27-1))*((1-EXP(-0.04*E48))/4.15))*C48*F48*1000)/($K$28)*Paramètres!$H$4,IF(D48="FWH",((1.65*(0.000125^($K$27-1))*((1-EXP(-0.04*E48))/4.15))*C48*F48*1000)/($K$28)*Paramètres!$H$5,IF(D48="Mash-hop",((1.65*(0.000125^($K$27-1))*((1-EXP(-0.04*E48))/4.15))*C48*F48*1000)/($K$28)*Paramètres!$H$6,IF(D48="Flame-out",((1.65*(0.000125^($K$27-1))*((1-EXP(-0.04*E48))/4.15))*C48*F48*1000)/($K$28)*Paramètres!$H$7,"")))))),0) ->  | M48: =IF(L48="","",($M$33-L48)/($M$33-1)) ->  | N48: =IF(M48="","",M48/$K$53) -> 
G49: =IFERROR(IF(D49="Ebullition",((1.65*(0.000125^($K$27-1))*((1-EXP(-0.04*E49))/4.15))*C49*F49*1000)/($K$28)*Paramètres!$H$2,IF(D49="DH",((1.65*(0.000125^($K$27-1))*((1-EXP(-0.04*E49))/4.15))*C49*F49*1000)/($K$28)*Paramètres!$H$3,IF(D49="Hop-stand",((1.65*(0.000125^($K$27-1))*((1-EXP(-0.04*E49))/4.15))*C49*F49*1000)/($K$28)*Paramètres!$H$4,IF(D49="FWH",((1.65*(0.000125^($K$27-1))*((1-EXP(-0.04*E49))/4.15))*C49*F49*1000)/($K$28)*Paramètres!$H$5,IF(D49="Mash-hop",((1.65*(0.000125^($K$27-1))*((1-EXP(-0.04*E49))/4.15))*C49*F49*1000)/($K$28)*Paramètres!$H$6,IF(D49="Flame-out",((1.65*(0.000125^($K$27-1))*((1-EXP(-0.04*E49))/4.15))*C49*F49*1000)/($K$28)*Paramètres!$H$7,"")))))),0) -> 
G50: =IFERROR(IF(D50="Ebullition",((1.65*(0.000125^($K$27-1))*((1-EXP(-0.04*E50))/4.15))*C50*F50*1000)/($K$28)*Paramètres!$H$2,IF(D50="DH",((1.65*(0.000125^($K$27-1))*((1-EXP(-0.04*E50))/4.15))*C50*F50*1000)/($K$28)*Paramètres!$H$3,IF(D50="Hop-stand",((1.65*(0.000125^($K$27-1))*((1-EXP(-0.04*E50))/4.15))*C50*F50*1000)/($K$28)*Paramètres!$H$4,IF(D50="FWH",((1.65*(0.000125^($K$27-1))*((1-EXP(-0.04*E50))/4.15))*C50*F50*1000)/($K$28)*Paramètres!$H$5,IF(D50="Mash-hop",((1.65*(0.000125^($K$27-1))*((1-EXP(-0.04*E50))/4.15))*C50*F50*1000)/($K$28)*Paramètres!$H$6,IF(D50="Flame-out",((1.65*(0.000125^($K$27-1))*((1-EXP(-0.04*E50))/4.15))*C50*F50*1000)/($K$28)*Paramètres!$H$7,"")))))),0) ->  | H50: Embouteillage | J50: 2020-01-27 | K50: Théorique | M50: Réel
G51: =IFERROR(IF(D51="Ebullition",((1.65*(0.000125^($K$27-1))*((1-EXP(-0.04*E51))/4.15))*C51*F51*1000)/($K$28)*Paramètres!$H$2,IF(D51="DH",((1.65*(0.000125^($K$27-1))*((1-EXP(-0.04*E51))/4.15))*C51*F51*1000)/($K$28)*Paramètres!$H$3,IF(D51="Hop-stand",((1.65*(0.000125^($K$27-1))*((1-EXP(-0.04*E51))/4.15))*C51*F51*1000)/($K$28)*Paramètres!$H$4,IF(D51="FWH",((1.65*(0.000125^($K$27-1))*((1-EXP(-0.04*E51))/4.15))*C51*F51*1000)/($K$28)*Paramètres!$H$5,IF(D51="Mash-hop",((1.65*(0.000125^($K$27-1))*((1-EXP(-0.04*E51))/4.15))*C51*F51*1000)/($K$28)*Paramètres!$H$6,IF(D51="Flame-out",((1.65*(0.000125^($K$27-1))*((1-EXP(-0.04*E51))/4.15))*C51*F51*1000)/($K$28)*Paramètres!$H$7,"")))))),0) ->  | J51: Volume | K51: =K34-N8 -> 24.4552
B52: TOTAL | E52: =E43 -> 60 | F52: =SUM(F43:F51) -> 60 | G52: =SUM(G43:G51) -> 79.83439418 | J52: DF | K52: =K27-((K27-1)*F55) -> 1.010156748
J53: Atténuation | K53: =F55 -> 0.7431 | M53: =(M33-M52)/(M33-1) -> 22.73913043
A54: Levure | B54: Type | C54: Quantité recommandée | D54: T°C min | E54: T°C max | F54: A.a corrigée | G54: Quantité utilisée (mds) | J54: % alcool | K54: =(76.08 * (K33 - K52) / (1.775 - K33 )) * (K52 / 0.794) -> 3.866473649 | M54: =(76.08 * (M33 - M52) / (1.775 - M33 )) * (M52 / 0.794) -> 0
B55: 1084 - Irish Ale | C55: =IF(B55="","",$K$34*(-676.67+1286.4*$K$33-800.47*$K$33^2+190.74*$K$33^3)*IF($E$4<Paramètres!$H$10,Paramètres!$H$11,Paramètres!$I$11)*IF(ISNUMBER(SEARCH("lager",$B$3)),2,1)) -> 191.5999873 | D55: =IF(B55="","",VLOOKUP(B55,Paramètres!$J$2:$Q$30,6,FALSE)) -> 16.7 | E55: =IF(B55="","",VLOOKUP(B55,Paramètres!$J$2:$Q$30,7,FALSE)) -> 22.2 | F55: =IF(B55="","",(-0.003*$B$11^2+0.3904*$B$11-11.699)*VLOOKUP(B55,Paramètres!$J$2:$Q$30,4,FALSE)) -> 0.7431 | G55: 192 | J55: Carbonatation en keg | K55: T°C | L55: Pression d'équilibre | N55: % alcool
K56: 3 | L56: =( -16.6999 - 0.0101059*(32+K56*9/5)+ 0.00116512 *(32+K56*9/5)^2 + 0.173354 *(32+K56*9/5)*E9 + 4.24267 *E9 - 0.0684226*E9^2)/14.515 -> 0.3947910018 | N56: =M54 -> 0
C57: =IF(B57="","",$K$34*(-676.67+1286.4*$K$33-800.47*$K$33^2+190.74*$K$33^3)*IF($E$4<Paramètres!$H$10,Paramètres!$H$11,Paramètres!$I$11)*IF(ISNUMBER(SEARCH("lager",$B$3)),2,1)) ->  | D57: =IF(B57="","",VLOOKUP(B57,Paramètres!$J$2:$Q$30,6,FALSE)) ->  | E57: =IF(B57="","",VLOOKUP(B57,Paramètres!$J$2:$Q$30,7,FALSE)) ->  | F57: =IF(B57="","",(-0.003*$B$11^2+0.3904*$B$11-11.699)*VLOOKUP(B57,Paramètres!$J$2:$Q$30,4,FALSE)) ->  | J57: Resucrage | K57: =(E9-(3.0378-5.0062*0.01*(MAX(K39:K41)*1.8+32)+2.6555*0.0001*(MAX(K39:K41)*1.8+32)^2))*4 -> 4.5540512 | L57: soit | M57: =K57*M51 -> 0 | N57: =(76.08*((M33+(K57/2.57452)/1000)-M52)/(1.775-(M33+(K57/2.57452)/1000))*(M52/0.794)) -> 0
H58: Ajout de non-fermentiscibles | J58: Lactose | K58: 20 | L58: soit | M58: =K58*K51 -> 489.104 | N58: =K52+(K58*(VLOOKUP(J58,Paramètres!F35:I41,2,FALSE))/2.57452)/1000 -> 1.016060761
L60: =VLOOKUP(J58,Paramètres!F35:I41,2,TRUE) -> 
B66: =IF(ROWS($1:7)<=COUNTIF(Utilisation,$F$60),INDEX(result,SMALL(IF(Utilisation=$F$60,ROW(INDIRECT("1:"&ROWS(Utilisation)))),ROWS($1:7))),"") ->  | E66: =IF(ROWS($1:7)<=COUNTIF(Utilisation,"Ebullition"),INDEX(poids,SMALL(IF(Utilisation="Ebullition",ROW(INDIRECT("1:"&ROWS(Utilisation)))),ROWS($1:7))),"") ->  | F66: =IF(ROWS($1:7)<=COUNTIF(Utilisation,"Ebullition"),INDEX(Durée,SMALL(IF(Utilisation="Ebullition",ROW(INDIRECT("1:"&ROWS(Utilisation)))),ROWS($1:7))),"") -> 
B67: =IF(ROWS($1:8)<=COUNTIF(Utilisation,$F$60),INDEX(result,SMALL(IF(Utilisation=$F$60,ROW(INDIRECT("1:"&ROWS(Utilisation)))),ROWS($1:8))),"") -> 

Sheet Feuille de Brassage
A1: =Brassage!A1 -> IRA vers l'heure d'hiver
A2: x | B2: x | C2: x | D2: x | E2: x | F2: x | G2: x
A3: Préparation du grain | D3: Préparation de l'eau
A4: Peser, (+/-conditionner) puis broyer : | E4: Empatage | F4: Rinçage | G4: Total
A5: =Brassage!F24 -> 4000 | B5: =IF(A5=0,"",Brassage!B24&" ("&Brassage!C24&" EBC)") -> Pale ale Swaen (7,1 EBC) | D5: Volume | E5: =Brassage!M9 -> 13.58 | F5: =Brassage!L17 -> 23.62555556 | G5: =E5+F5 -> 37.20555556
A6: =IF(Brassage!F25>0,Brassage!F25,IF(E6>0,"-","")) -> 400 | B6: =IF(A6="-","",Brassage!B25&" ("&Brassage!C25&" EBC)") -> Munich light Swaen (13 EBC) | D6: =Brassage!Q6 -> CaSO4 | E6: =Brassage!S6 -> 1.381153921 | F6: =Brassage!T6 -> 1.835710908 | G6: =Brassage!R6 -> 0.08741480513
A7: =IF(Brassage!F26>0,Brassage!F26,IF(E7>0,"-","")) -> 300 | B7: =IF(A7="-","",Brassage!B26&" ("&Brassage!C26&" EBC)") -> Cara Gold - Vieux Silo (120 EBC) | D7: =Brassage!Q7 -> NaCl | E7: =Brassage!S7 -> 2.303245125 | F7: =Brassage!T7 -> 3.061275166 | G7: =Brassage!R7 -> 0.1457750079
A8: =IF(Brassage!F27>0,Brassage!F27,IF(E8>0,"-","")) -> 150 | B8: =IF(A8="-","",Brassage!B27&" ("&Brassage!C27&" EBC)") -> Seigle Chocolat (650 EBC) | D8: =Brassage!Q8 -> MgSO4 | E8: =Brassage!S8 -> 2.120542468 | F8: =Brassage!T8 -> 2.81844252 | G8: =Brassage!R8 -> 0.1342115486 | O8: =Brassage!AB7 -> 0 | P8: =Brassage!AD8 -> 0
A9: =IF(Brassage!F28>0,Brassage!F28,IF(E9>0,"-","")) -> - | B9: =IF(A9="-","",Brassage!B28&" ("&Brassage!C28&" EBC)") ->  | D9: =Brassage!Q9 -> CaCl2 | E9: =Brassage!S9 -> 0.3436832939 | F9: =Brassage!T9 -> 0.4567942514 | G9: =Brassage!R9 -> 0.02175210721 | O9: =Brassage!AB8 -> 0 | P9: =Brassage!AD9 -> 0
A10: =IF(Brassage!F29>0,Brassage!F29,IF(E10>0,"-","")) ->  | B10: =IF(A10="-","",Brassage!B29&" ("&Brassage!C29&" EBC)") -> (0 EBC) | D10: =Brassage!Q10 -> NaHCO3 | E10: =Brassage!S10 -> 0 | F10: =Brassage!T10 -> 0 | G10: =Brassage!R10 -> 0 | O10: =Brassage!AB9 -> 0 | P10: =Brassage!AD10 -> 0
A11: =IF(Brassage!F30>0,Brassage!F30,IF(E11>0,"-","")) -> - | B11: =IF(A11="-","",Brassage!B30&" ("&Brassage!C30&" EBC)") ->  | D11: =Brassage!Q11 -> CaCO3 | E11: =Brassage!S11 -> 0.3889485484 | F11: =Brassage!T11 -> 0.5169569314 | G11: =Brassage!R11 -> 0.02461699673 | O11: =Brassage!AB10 -> 0 | P11: =Brassage!AD11 -> 0
A12: x | B12: x | C12: x | D12: x | E12: x | F12: x | G12: x
A13: Correction du pH
A14: =IF(Brassage!A19>0,"Ajouter",0) -> Ajouter | B14: =IF(A14>0,Brassage!C20,"") -> 0.5 | C14: =IF(A14>0,"de","") -> de | D14: =IF(A14>0,Brassage!A19,"") -> Acide Lactique | F14: =IF(A14>0,"à","") -> à | G14: =IF(A14>0,Brassage!B20,"") -> 0.8
A15: Objectif : le pH à l'empatage doit être d'environ | F15: =Brassage!G16 -> 5.589735748
A16: x | B16: x | C16: x | D16: x | E16: x | F16: x | G16: x
A17: Empatage et Mash-Hop
A18: =IF(B18="","","Ajouter") ->  | B18: =IF(ROWS($1:1)<=COUNTIF(Utilisation,"Mash-Hop"),INDEX(poids,SMALL(IF(Utilisation="Mash-Hop",ROW(INDIRECT("1:"&ROWS(Utilisation)))),ROWS($1:1))),"") ->  | C18: =IF(B18="","","de") ->  | D18: =IF(ROWS($1:1)<=COUNTIF(Utilisation,"Mash-Hop"),INDEX(result,SMALL(IF(Utilisation="Mash-Hop",ROW(INDIRECT("1:"&ROWS(Utilisation)))),ROWS($1:1))),"") ->  | E18: =IF(D18="","","pour le Mash-Hop") -> 
A19: =IF(B19="","","Ajouter") ->  | B19: =IF(ROWS($1:2)<=COUNTIF(Utilisation,"Mash-Hop"),INDEX(poids,SMALL(IF(Utilisation="Mash-Hop",ROW(INDIRECT("1:"&ROWS(Utilisation)))),ROWS($1:2))),"") ->  | C19: =IF(B19="","","de") ->  | D19: =IF(ROWS($1:2)<=COUNTIF(Utilisation,"Mash-Hop"),INDEX(result,SMALL(IF(Utilisation="Mash-Hop",ROW(INDIRECT("1:"&ROWS(Utilisation)))),ROWS($1:2))),"") -> 
B20: =IF(ROWS($1:3)<=COUNTIF(Utilisation,"Mash-Hop"),INDEX(poids,SMALL(IF(Utilisation="Mash-Hop",ROW(INDIRECT("1:"&ROWS(Utilisation)))),ROWS($1:3))),"") ->  | D20: =IF(ROWS($1:3)<=COUNTIF(Utilisation,"Mash-Hop"),INDEX(result,SMALL(IF(Utilisation="Mash-Hop",ROW(INDIRECT("1:"&ROWS(Utilisation)))),ROWS($1:3))),"") -> 
B21: =IF(ROWS($1:4)<=COUNTIF(Utilisation,"Mash-Hop"),INDEX(poids,SMALL(IF(Utilisation="Mash-Hop",ROW(INDIRECT("1:"&ROWS(Utilisation)))),ROWS($1:4))),"") ->  | D21: =IF(ROWS($1:4)<=COUNTIF(Utilisation,"Mash-Hop"),INDEX(result,SMALL(IF(Utilisation="Mash-Hop",ROW(INDIRECT("1:"&ROWS(Utilisation)))),ROWS($1:4))),"") -> 
B22: =IF(ROWS($1:5)<=COUNTIF(Utilisation,"Mash-Hop"),INDEX(poids,SMALL(IF(Utilisation="Mash-Hop",ROW(INDIRECT("1:"&ROWS(Utilisation)))),ROWS($1:5))),"") ->  | D22: =IF(ROWS($1:5)<=COUNTIF(Utilisation,"Mash-Hop"),INDEX(result,SMALL(IF(Utilisation="Mash-Hop",ROW(INDIRECT("1:"&ROWS(Utilisation)))),ROWS($1:5))),"") -> 
B23: =IF(ROWS($1:6)<=COUNTIF(Utilisation,"Mash-Hop"),INDEX(poids,SMALL(IF(Utilisation="Mash-Hop",ROW(INDIRECT("1:"&ROWS(Utilisation)))),ROWS($1:6))),"") ->  | D23: =IF(ROWS($1:6)<=COUNTIF(Utilisation,"Mash-Hop"),INDEX(result,SMALL(IF(Utilisation="Mash-Hop",ROW(INDIRECT("1:"&ROWS(Utilisation)))),ROWS($1:6))),"") -> 
B24: =IF(ROWS($1:7)<=COUNTIF(Utilisation,"Mash-Hop"),INDEX(poids,SMALL(IF(Utilisation="Mash-Hop",ROW(INDIRECT("1:"&ROWS(Utilisation)))),ROWS($1:7))),"") ->  | D24: =IF(ROWS($1:7)<=COUNTIF(Utilisation,"Mash-Hop"),INDEX(result,SMALL(IF(Utilisation="Mash-Hop",ROW(INDIRECT("1:"&ROWS(Utilisation)))),ROWS($1:7))),"") -> 
B25: =IF(ROWS($1:8)<=COUNTIF(Utilisation,"Mash-Hop"),INDEX(poids,SMALL(IF(Utilisation="Mash-Hop",ROW(INDIRECT("1:"&ROWS(Utilisation)))),ROWS($1:8))),"") ->  | D25: =IF(ROWS($1:8)<=COUNTIF(Utilisation,"Mash-Hop"),INDEX(result,SMALL(IF(Utilisation="Mash-Hop",ROW(INDIRECT("1:"&ROWS(Utilisation)))),ROWS($1:8))),"") -> 
B26: =IF(ROWS($1:9)<=COUNTIF(Utilisation,"Mash-Hop"),INDEX(poids,SMALL(IF(Utilisation="Mash-Hop",ROW(INDIRECT("1:"&ROWS(Utilisation)))),ROWS($1:9))),"") ->  | D26: =IF(ROWS($1:9)<=COUNTIF(Utilisation,"Mash-Hop"),INDEX(result,SMALL(IF(Utilisation="Mash-Hop",ROW(INDIRECT("1:"&ROWS(Utilisation)))),ROWS($1:9))),"") -> 
B27: =IF(ROWS($1:10)<=COUNTIF(Utilisation,"Mash-Hop"),INDEX(poids,SMALL(IF(Utilisation="Mash-Hop",ROW(INDIRECT("1:"&ROWS(Utilisation)))),ROWS($1:10))),"") ->  | D27: =IF(ROWS($1:10)<=COUNTIF(Utilisation,"Mash-Hop"),INDEX(result,SMALL(IF(Utilisation="Mash-Hop",ROW(INDIRECT("1:"&ROWS(Utilisation)))),ROWS($1:10))),"") -> 
B28: =IF(ROWS($1:11)<=COUNTIF(Utilisation,"Mash-Hop"),INDEX(poids,SMALL(IF(Utilisation="Mash-Hop",ROW(INDIRECT("1:"&ROWS(Utilisation)))),ROWS($1:11))),"") ->  | D28: =IF(ROWS($1:11)<=COUNTIF(Utilisation,"Mash-Hop"),INDEX(result,SMALL(IF(Utilisation="Mash-Hop",ROW(INDIRECT("1:"&ROWS(Utilisation)))),ROWS($1:11))),"") -> 
A29: =Brassage!A7 -> Palier 1 | B29: Ajouter | C29: =Brassage!M9 -> 13.58 | D29: d'eau à | E29: =Brassage!N9 -> 72.73387282 | F29: =Brassage!B7 -> 67 | G29: =Brassage!C7 -> 60
A30: =Brassage!A8 -> Palier 2 | B30: =IF(F30=0,"",IF(Brassage!$H$9="Chauffe Directe","Relancer",IF(Brassage!$H$9="Décoction","Prélever","Ajouter"))) ->  | C30: =IF(F30=0,"",IF(Brassage!$H$9="Chauffe Directe","la chauffe",IF(Brassage!$H$9="Décoction",Brassage!$N$12,Brassage!$N$12))) ->  | D30: =IF(F30=0,"",IF(Brassage!$H$9="Chauffe Directe","jusqu'à",IF(Brassage!$H$9="Décoction","les porter à","d'eau à"))) ->  | E30: =IF(F30=0,"",IF(Brassage!$H$9="Chauffe Directe","atteindre",IF(Brassage!$H$9="Décoction",Brassage!$I$9&"°C ",Brassage!$I$9&"°C "))) ->  | F30: =Brassage!B8 -> 0 | G30: =Brassage!C8 -> 0
A31: =Brassage!A9 -> Palier 3 | B31: =IF(F31=0,"",IF(Brassage!$H$9="Chauffe Directe","Relancer",IF(Brassage!$H$9="Décoction","Prélever","Ajouter"))) ->  | C31: =IF(F31=0,"",IF(Brassage!$H$9="Chauffe Directe","la chauffe",IF(Brassage!$H$9="Décoction",Brassage!$N$12,Brassage!$N$12))) ->  | D31: =IF(F31=0,"",IF(Brassage!$H$9="Chauffe Directe","jusqu'à",IF(Brassage!$H$9="Décoction","les porter à","d'eau à"))) ->  | E31: =IF(F31=0,"",IF(Brassage!$H$9="Chauffe Directe","atteindre",IF(Brassage!$H$9="Décoction",Brassage!$I$9&"°C ",Brassage!$I$9&"°C "))) ->  | F31: =Brassage!B9 -> 0 | G31: =Brassage!C9 -> 0
A32: =Brassage!A10 -> Mash-Out | B32: =IF(F32=0,"",IF(Brassage!$H$9="Chauffe Directe","Relancer",IF(Brassage!$H$9="Décoction","Prélever","Ajouter"))) -> Relancer | C32: =IF(F32=0,"",IF(Brassage!$H$9="Chauffe Directe","la chauffe",IF(Brassage!$H$9="Décoction",Brassage!$N$12,Brassage!$N$12))) -> la chauffe | D32: =IF(F32=0,"",IF(Brassage!$H$9="Chauffe Directe","jusqu'à",IF(Brassage!$H$9="Décoction","les porter à","d'eau à"))) -> jusqu'à | E32: =IF(F32=0,"",IF(Brassage!$H$9="Chauffe Directe","atteindre",IF(Brassage!$H$9="Décoction",Brassage!$I$9&"°C ",Brassage!$I$9&"°C "))) -> atteindre | F32: =Brassage!B10 -> 78 | G32: =Brassage!C10 -> 10
A33: x | B33: x | C33: x | D33: x | E33: x | F33: x | G33: x
A34: Fitration et FWH
A35: Filtrer les drêches et les rincer avec | E35: =Brassage!L17 -> 23.62555556 | F35: d'eau à | G35: =Brassage!L18 -> 78
A36: =IF(B36="","","Ajouter") -> Ajouter | B36: =IF(ROWS($1:1)<=COUNTIF(Utilisation,"FWH"),INDEX(poids,SMALL(IF(Utilisation="FWH",ROW(INDIRECT("1:"&ROWS(Utilisation)))),ROWS($1:1))),"") -> 30 | C36: =IF(B36="","","de") -> de | D36: =IF(ROWS($1:1)<=COUNTIF(Utilisation,"FWH"),INDEX(result,SMALL(IF(Utilisation="FWH",ROW(INDIRECT("1:"&ROWS(Utilisation)))),ROWS($1:1))),"") -> Magnum | E36: =IF(B36="","","dans la cuve ébu pour le FWH") -> dans la cuve ébu pour le FWH
A37: =IF(B37="","","Ajouter") -> Ajouter | B37: =IF(ROWS($1:2)<=COUNTIF(Utilisation,"FWH"),INDEX(poids,SMALL(IF(Utilisation="FWH",ROW(INDIRECT("1:"&ROWS(Utilisation)))),ROWS($1:2))),"") -> 30 | C37: =IF(B37="","","de") -> de | D37: =IF(ROWS($1:2)<=COUNTIF(Utilisation,"FWH"),INDEX(result,SMALL(IF(Utilisation="FWH",ROW(INDIRECT("1:"&ROWS(Utilisation)))),ROWS($1:2))),"") -> Golding | E37: dans la cuve ébu pour le FWH
B38: =IF(ROWS($1:3)<=COUNTIF(Utilisation,"FWH"),INDEX(poids,SMALL(IF(Utilisation="FWH",ROW(INDIRECT("1:"&ROWS(Utilisation)))),ROWS($1:3))),"") ->  | D38: =IF(ROWS($1:3)<=COUNTIF(Utilisation,"FWH"),INDEX(result,SMALL(IF(Utilisation="FWH",ROW(INDIRECT("1:"&ROWS(Utilisation)))),ROWS($1:3))),"") -> 
B39: =IF(ROWS($1:4)<=COUNTIF(Utilisation,"FWH"),INDEX(poids,SMALL(IF(Utilisation="FWH",ROW(INDIRECT("1:"&ROWS(Utilisation)))),ROWS($1:4))),"") ->  | D39: =IF(ROWS($1:4)<=COUNTIF(Utilisation,"FWH"),INDEX(result,SMALL(IF(Utilisation="FWH",ROW(INDIRECT("1:"&ROWS(Utilisation)))),ROWS($1:4))),"") -> 
B40: =IF(ROWS($1:5)<=COUNTIF(Utilisation,"FWH"),INDEX(poids,SMALL(IF(Utilisation="FWH",ROW(INDIRECT("1:"&ROWS(Utilisation)))),ROWS($1:5))),"") ->  | D40: =IF(ROWS($1:5)<=COUNTIF(Utilisation,"FWH"),INDEX(result,SMALL(IF(Utilisation="FWH",ROW(INDIRECT("1:"&ROWS(Utilisation)))),ROWS($1:5))),"") -> 
B41: =IF(ROWS($1:6)<=COUNTIF(Utilisation,"FWH"),INDEX(poids,SMALL(IF(Utilisation="FWH",ROW(INDIRECT("1:"&ROWS(Utilisation)))),ROWS($1:6))),"") ->  | D41: =IF(ROWS($1:6)<=COUNTIF(Utilisation,"FWH"),INDEX(result,SMALL(IF(Utilisation="FWH",ROW(INDIRECT("1:"&ROWS(Utilisation)))),ROWS($1:6))),"") -> 
B42: =IF(ROWS($1:7)<=COUNTIF(Utilisation,"FWH"),INDEX(poids,SMALL(IF(Utilisation="FWH",ROW(INDIRECT("1:"&ROWS(Utilisation)))),ROWS($1:7))),"") ->  | D42: =IF(ROWS($1:7)<=COUNTIF(Utilisation,"FWH"),INDEX(result,SMALL(IF(Utilisation="FWH",ROW(INDIRECT("1:"&ROWS(Utilisation)))),ROWS($1:7))),"") -> 
B43: =IF(ROWS($1:8)<=COUNTIF(Utilisation,"FWH"),INDEX(poids,SMALL(IF(Utilisation="FWH",ROW(INDIRECT("1:"&ROWS(Utilisation)))),ROWS($1:8))),"") ->  | D43: =IF(ROWS($1:8)<=COUNTIF(Utilisation,"FWH"),INDEX(result,SMALL(IF(Utilisation="FWH",ROW(INDIRECT("1:"&ROWS(Utilisation)))),ROWS($1:8))),"") -> 
B44: =IF(ROWS($1:9)<=COUNTIF(Utilisation,"FWH"),INDEX(poids,SMALL(IF(Utilisation="FWH",ROW(INDIRECT("1:"&ROWS(Utilisation)))),ROWS($1:9))),"") ->  | D44: =IF(ROWS($1:9)<=COUNTIF(Utilisation,"FWH"),INDEX(result,SMALL(IF(Utilisation="FWH",ROW(INDIRECT("1:"&ROWS(Utilisation)))),ROWS($1:9))),"") -> 
A45: x | B45: x | C45: x | D45: x | E45: x | F45: x | G45: x
A46: Ebullition et houblonnage
A47: Porter à ébulition pendant | C47: =Brassage!K6 -> 60 | D47: Objectif : | E47: =Brassage!K22 -> 32.35555556 | F47: à | G47: =Brassage!K21 -> 1.035582222
A48: =IF(B48="","","Ajouter") ->  | B48: =IF(ROWS($1:1)<=COUNTIF(Utilisation,"Ebullition"),INDEX(poids,SMALL(IF(Utilisation="Ebullition",ROW(INDIRECT("1:"&ROWS(Utilisation)))),ROWS($1:1))),"") ->  | C48: =IF(B48="","","de") ->  | D48: =IF(ROWS($1:1)<=COUNTIF(Utilisation,"Ebullition"),INDEX(result,SMALL(IF(Utilisation="Ebullition",ROW(INDIRECT("1:"&ROWS(Utilisation)))),ROWS($1:1))),"") ->  | F48: =IF(B48="","","pendant") ->  | G48: =IF(D48="","",IF(COUNTIF(Brassage!B31:B32,'Feuille de Brassage'!D48)>0,10,IF(ROWS($1:1)<=COUNTIF(Utilisation,"Ebullition"),INDEX(Durée,SMALL(IF(Utilisation="Ebullition",ROW(INDIRECT("1:"&ROWS(Utilisation)))),ROWS($1:1))),""))) -> 
A49: =IF(B49="","","Ajouter") ->  | B49: =IF(ROWS($1:2)<=COUNTIF(Utilisation,"Ebullition"),INDEX(poids,SMALL(IF(Utilisation="Ebullition",ROW(INDIRECT("1:"&ROWS(Utilisation)))),ROWS($1:2))),"") ->  | C49: =IF(B49="","","de") ->  | D49: =IF(ROWS($1:2)<=COUNTIF(Utilisation,"Ebullition"),INDEX(result,SMALL(IF(Utilisation="Ebullition",ROW(INDIRECT("1:"&ROWS(Utilisation)))),ROWS($1:2))),"") ->  | F49: =IF(B49="","","pendant") ->  | G49: =IF(D49="","",IF(COUNTIF(Brassage!B32:B33,'Feuille de Brassage'!D49)>0,10,IF(ROWS($1:2)<=COUNTIF(Utilisation,"Ebullition"),INDEX(Durée,SMALL(IF(Utilisation="Ebullition",ROW(INDIRECT("1:"&ROWS(Utilisation)))),ROWS($1:2))),""))) -> 
A50: =IF(B50="","","Ajouter") ->  | B50: =IF(ROWS($1:3)<=COUNTIF(Utilisation,"Ebullition"),INDEX(poids,SMALL(IF(Utilisation="Ebullition",ROW(INDIRECT("1:"&ROWS(Utilisation)))),ROWS($1:3))),"") ->  | C50: =IF(B50="","","de") ->  | D50: =IF(ROWS($1:3)<=COUNTIF(Utilisation,"Ebullition"),INDEX(result,SMALL(IF(Utilisation="Ebullition",ROW(INDIRECT("1:"&ROWS(Utilisation)))),ROWS($1:3))),"") ->  | G50: =IF(D50="","",IF(COUNTIF(Brassage!B33:B34,'Feuille de Brassage'!D50)>0,10,IF(ROWS($1:3)<=COUNTIF(Utilisation,"Ebullition"),INDEX(Durée,SMALL(IF(Utilisation="Ebullition",ROW(INDIRECT("1:"&ROWS(Utilisation)))),ROWS($1:3))),""))) -> 
B51: =IF(ROWS($1:4)<=COUNTIF(Utilisation,"Ebullition"),INDEX(poids,SMALL(IF(Utilisation="Ebullition",ROW(INDIRECT("1:"&ROWS(Utilisation)))),ROWS($1:4))),"") ->  | D51: =IF(ROWS($1:4)<=COUNTIF(Utilisation,"Ebullition"),INDEX(result,SMALL(IF(Utilisation="Ebullition",ROW(INDIRECT("1:"&ROWS(Utilisation)))),ROWS($1:4))),"") ->  | G51: =IF(D51="","",IF(COUNTIF(Brassage!B34:B35,'Feuille de Brassage'!D51)>0,10,IF(ROWS($1:4)<=COUNTIF(Utilisation,"Ebullition"),INDEX(Durée,SMALL(IF(Utilisation="Ebullition",ROW(INDIRECT("1:"&ROWS(Utilisation)))),ROWS($1:4))),""))) -> 
B52: =IF(ROWS($1:5)<=COUNTIF(Utilisation,"Ebullition"),INDEX(poids,SMALL(IF(Utilisation="Ebullition",ROW(INDIRECT("1:"&ROWS(Utilisation)))),ROWS($1:5))),"") ->  | D52: =IF(ROWS($1:5)<=COUNTIF(Utilisation,"Ebullition"),INDEX(result,SMALL(IF(Utilisation="Ebullition",ROW(INDIRECT("1:"&ROWS(Utilisation)))),ROWS($1:5))),"") ->  | G52: =IF(D52="","",IF(COUNTIF(Brassage!B35:B36,'Feuille de Brassage'!D52)>0,10,IF(ROWS($1:5)<=COUNTIF(Utilisation,"Ebullition"),INDEX(Durée,SMALL(IF(Utilisation="Ebullition",ROW(INDIRECT("1:"&ROWS(Utilisation)))),ROWS($1:5))),""))) ->  | I52: =IF(D52="","",IF(COUNTIF(Brassage!B35:B36,'Feuille de Brassage'!D52)>0,10,IF(ROWS($1:5)<=COUNTIF(Utilisation,"Ebullition"),INDEX(Durée,SMALL(IF(Utilisation="Ebullition",ROW(INDIRECT("1:"&ROWS(Utilisation)))),ROWS($1:5))),""))) -> 
B53: =IF(ROWS($1:6)<=COUNTIF(Utilisation,"Ebullition"),INDEX(poids,SMALL(IF(Utilisation="Ebullition",ROW(INDIRECT("1:"&ROWS(Utilisation)))),ROWS($1:6))),"") ->  | D53: =IF(ROWS($1:6)<=COUNTIF(Utilisation,"Ebullition"),INDEX(result,SMALL(IF(Utilisation="Ebullition",ROW(INDIRECT("1:"&ROWS(Utilisation)))),ROWS($1:6))),"") ->  | G53: =IF(D53="","",IF(COUNTIF(Brassage!B36:B37,'Feuille de Brassage'!D53)>0,10,IF(ROWS($1:6)<=COUNTIF(Utilisation,"Ebullition"),INDEX(Durée,SMALL(IF(Utilisation="Ebullition",ROW(INDIRECT("1:"&ROWS(Utilisation)))),ROWS($1:6))),""))) ->  | I53: =IF(D53="","",IF(COUNTIF(Brassage!B36:B37,'Feuille de Brassage'!D53)>0,10,IF(ROWS($1:6)<=COUNTIF(Utilisation,"Ebullition"),INDEX(Durée,SMALL(IF(Utilisation="Ebullition",ROW(INDIRECT("1:"&ROWS(Utilisation)))),ROWS($1:6))),""))) -> 
B54: =IF(ROWS($1:7)<=COUNTIF(Utilisation,"Ebullition"),INDEX(poids,SMALL(IF(Utilisation="Ebullition",ROW(INDIRECT("1:"&ROWS(Utilisation)))),ROWS($1:7))),"") ->  | D54: =IF(ROWS($1:7)<=COUNTIF(Utilisation,"Ebullition"),INDEX(result,SMALL(IF(Utilisation="Ebullition",ROW(INDIRECT("1:"&ROWS(Utilisation)))),ROWS($1:7))),"") ->  | G54: =IF(D54="","",IF(COUNTIF(Brassage!B37:B38,'Feuille de Brassage'!D54)>0,10,IF(ROWS($1:7)<=COUNTIF(Utilisation,"Ebullition"),INDEX(Durée,SMALL(IF(Utilisation="Ebullition",ROW(INDIRECT("1:"&ROWS(Utilisation)))),ROWS($1:7))),""))) ->  | I54: =IF(D54="","",IF(COUNTIF(Brassage!B37:B38,'Feuille de Brassage'!D54)>0,10,IF(ROWS($1:7)<=COUNTIF(Utilisation,"Ebullition"),INDEX(Durée,SMALL(IF(Utilisation="Ebullition",ROW(INDIRECT("1:"&ROWS(Utilisation)))),ROWS($1:7))),""))) -> 
B55: =IF(ROWS($1:8)<=COUNTIF(Utilisation,"Ebullition"),INDEX(poids,SMALL(IF(Utilisation="Ebullition",ROW(INDIRECT("1:"&ROWS(Utilisation)))),ROWS($1:8))),"") ->  | D55: =IF(ROWS($1:8)<=COUNTIF(Utilisation,"Ebullition"),INDEX(result,SMALL(IF(Utilisation="Ebullition",ROW(INDIRECT("1:"&ROWS(Utilisation)))),ROWS($1:8))),"") ->  | G55: =IF(D55="","",IF(COUNTIF(Brassage!B38:B39,'Feuille de Brassage'!D55)>0,10,IF(ROWS($1:8)<=COUNTIF(Utilisation,"Ebullition"),INDEX(Durée,SMALL(IF(Utilisation="Ebullition",ROW(INDIRECT("1:"&ROWS(Utilisation)))),ROWS($1:8))),""))) ->  | I55: =IF(D55="","",IF(COUNTIF(Brassage!B38:B39,'Feuille de Brassage'!D55)>0,10,IF(ROWS($1:8)<=COUNTIF(Utilisation,"Ebullition"),INDEX(Durée,SMALL(IF(Utilisation="Ebullition",ROW(INDIRECT("1:"&ROWS(Utilisation)))),ROWS($1:8))),""))) -> 
B56: =IF(ROWS($1:9)<=COUNTIF(Utilisation,"Ebullition"),INDEX(poids,SMALL(IF(Utilisation="Ebullition",ROW(INDIRECT("1:"&ROWS(Utilisation)))),ROWS($1:9))),"") ->  | D56: =IF(ROWS($1:9)<=COUNTIF(Utilisation,"Ebullition"),INDEX(result,SMALL(IF(Utilisation="Ebullition",ROW(INDIRECT("1:"&ROWS(Utilisation)))),ROWS($1:9))),"") ->  | G56: =IF(D56="","",IF(COUNTIF(Brassage!B39:B41,'Feuille de Brassage'!D56)>0,10,IF(ROWS($1:9)<=COUNTIF(Utilisation,"Ebullition"),INDEX(Durée,SMALL(IF(Utilisation="Ebullition",ROW(INDIRECT("1:"&ROWS(Utilisation)))),ROWS($1:9))),""))) ->  | I56: =IF(D56="","",IF(COUNTIF(Brassage!B39:B41,'Feuille de Brassage'!D56)>0,10,IF(ROWS($1:9)<=COUNTIF(Utilisation,"Ebullition"),INDEX(Durée,SMALL(IF(Utilisation="Ebullition",ROW(INDIRECT("1:"&ROWS(Utilisation)))),ROWS($1:9))),""))) -> 
B57: =IF(ROWS($1:10)<=COUNTIF(Utilisation,"Ebullition"),INDEX(poids,SMALL(IF(Utilisation="Ebullition",ROW(INDIRECT("1:"&ROWS(Utilisation)))),ROWS($1:10))),"") ->  | D57: =IF(ROWS($1:10)<=COUNTIF(Utilisation,"Ebullition"),INDEX(result,SMALL(IF(Utilisation="Ebullition",ROW(INDIRECT("1:"&ROWS(Utilisation)))),ROWS($1:10))),"") ->  | G57: =IF(D57="","",IF(COUNTIF(Brassage!B41:B42,'Feuille de Brassage'!D57)>0,10,IF(ROWS($1:10)<=COUNTIF(Utilisation,"Ebullition"),INDEX(Durée,SMALL(IF(Utilisation="Ebullition",ROW(INDIRECT("1:"&ROWS(Utilisation)))),ROWS($1:10))),""))) ->  | I57: =IF(D57="","",IF(COUNTIF(Brassage!B41:B42,'Feuille de Brassage'!D57)>0,10,IF(ROWS($1:10)<=COUNTIF(Utilisation,"Ebullition"),INDEX(Durée,SMALL(IF(Utilisation="Ebullition",ROW(INDIRECT("1:"&ROWS(Utilisation)))),ROWS($1:10))),""))) -> 
B58: =IF(ROWS($1:11)<=COUNTIF(Utilisation,"Ebullition"),INDEX(poids,SMALL(IF(Utilisation="Ebullition",ROW(INDIRECT("1:"&ROWS(Utilisation)))),ROWS($1:11))),"") ->  | D58: =IF(ROWS($1:11)<=COUNTIF(Utilisation,"Ebullition"),INDEX(result,SMALL(IF(Utilisation="Ebullition",ROW(INDIRECT("1:"&ROWS(Utilisation)))),ROWS($1:11))),"") ->  | G58: =IF(D58="","",IF(COUNTIF(Brassage!B42:B43,'Feuille de Brassage'!D58)>0,10,IF(ROWS($1:11)<=COUNTIF(Utilisation,"Ebullition"),INDEX(Durée,SMALL(IF(Utilisation="Ebullition",ROW(INDIRECT("1:"&ROWS(Utilisation)))),ROWS($1:11))),""))) ->  | I58: =IF(D58="","",IF(COUNTIF(Brassage!B42:B43,'Feuille de Brassage'!D58)>0,10,IF(ROWS($1:11)<=COUNTIF(Utilisation,"Ebullition"),INDEX(Durée,SMALL(IF(Utilisation="Ebullition",ROW(INDIRECT("1:"&ROWS(Utilisation)))),ROWS($1:11))),""))) -> 
B59: =IF(ROWS($1:12)<=COUNTIF(Utilisation,"Ebullition"),INDEX(poids,SMALL(IF(Utilisation="Ebullition",ROW(INDIRECT("1:"&ROWS(Utilisation)))),ROWS($1:12))),"") ->  | D59: =IF(ROWS($1:12)<=COUNTIF(Utilisation,"Ebullition"),INDEX(result,SMALL(IF(Utilisation="Ebullition",ROW(INDIRECT("1:"&ROWS(Utilisation)))),ROWS($1:12))),"") ->  | G59: =IF(D59="","",IF(COUNTIF(Brassage!B43:B44,'Feuille de Brassage'!D59)>0,10,IF(ROWS($1:12)<=COUNTIF(Utilisation,"Ebullition"),INDEX(Durée,SMALL(IF(Utilisation="Ebullition",ROW(INDIRECT("1:"&ROWS(Utilisation)))),ROWS($1:12))),""))) ->  | I59: =IF(D59="","",IF(COUNTIF(Brassage!B43:B44,'Feuille de Brassage'!D59)>0,10,IF(ROWS($1:12)<=COUNTIF(Utilisation,"Ebullition"),INDEX(Durée,SMALL(IF(Utilisation="Ebullition",ROW(INDIRECT("1:"&ROWS(Utilisation)))),ROWS($1:12))),""))) -> 
B60: =IF(ROWS($1:13)<=COUNTIF(Utilisation,"Ebullition"),INDEX(poids,SMALL(IF(Utilisation="Ebullition",ROW(INDIRECT("1:"&ROWS(Utilisation)))),ROWS($1:13))),"") ->  | D60: =IF(ROWS($1:13)<=COUNTIF(Utilisation,"Ebullition"),INDEX(result,SMALL(IF(Utilisation="Ebullition",ROW(INDIRECT("1:"&ROWS(Utilisation)))),ROWS($1:13))),"") ->  | G60: =IF(D60="","",IF(COUNTIF(Brassage!B44:B45,'Feuille de Brassage'!D60)>0,10,IF(ROWS($1:13)<=COUNTIF(Utilisation,"Ebullition"),INDEX(Durée,SMALL(IF(Utilisation="Ebullition",ROW(INDIRECT("1:"&ROWS(Utilisation)))),ROWS($1:13))),""))) ->  | I60: =IF(D60="","",IF(COUNTIF(Brassage!B44:B45,'Feuille de Brassage'!D60)>0,10,IF(ROWS($1:13)<=COUNTIF(Utilisation,"Ebullition"),INDEX(Durée,SMALL(IF(Utilisation="Ebullition",ROW(INDIRECT("1:"&ROWS(Utilisation)))),ROWS($1:13))),""))) -> 
B61: =IF(ROWS($1:14)<=COUNTIF(Utilisation,"Ebullition"),INDEX(poids,SMALL(IF(Utilisation="Ebullition",ROW(INDIRECT("1:"&ROWS(Utilisation)))),ROWS($1:14))),"") ->  | D61: =IF(ROWS($1:14)<=COUNTIF(Utilisation,"Ebullition"),INDEX(result,SMALL(IF(Utilisation="Ebullition",ROW(INDIRECT("1:"&ROWS(Utilisation)))),ROWS($1:14))),"") ->  | G61: =IF(D61="","",IF(COUNTIF(Brassage!B45:B46,'Feuille de Brassage'!D61)>0,10,IF(ROWS($1:14)<=COUNTIF(Utilisation,"Ebullition"),INDEX(Durée,SMALL(IF(Utilisation="Ebullition",ROW(INDIRECT("1:"&ROWS(Utilisation)))),ROWS($1:14))),""))) ->  | I61: =IF(D61="","",IF(COUNTIF(Brassage!B45:B46,'Feuille de Brassage'!D61)>0,10,IF(ROWS($1:14)<=COUNTIF(Utilisation,"Ebullition"),INDEX(Durée,SMALL(IF(Utilisation="Ebullition",ROW(INDIRECT("1:"&ROWS(Utilisation)))),ROWS($1:14))),""))) -> 
A62: x | B62: x | C62: x | D62: x | E62: x | F62: x | G62: x
A63: Fin d'ébullition et Flame-out
A64: Objectif en fin d'ébullition | E64: =Brassage!K28 -> 29.12 | F64: à | G64: =Brassage!K27 -> 1.039535803
A65: =IF(E65="","","Flame-out : Arrêter l'ébullition et ajouter") ->  | D65: =IF(ROWS($1:1)<=COUNTIF(Utilisation,"Flame-out"),INDEX(poids,SMALL(IF(Utilisation="Flame-out",ROW(INDIRECT("1:"&ROWS(Utilisation)))),ROWS($1:1))),"") ->  | E65: =IF(ROWS($1:1)<=COUNTIF(Utilisation,"Flame-out"),INDEX(result,SMALL(IF(Utilisation="Flame-out",ROW(INDIRECT("1:"&ROWS(Utilisation)))),ROWS($1:1))),"") ->  | F65: =IF(E65="","","pendant") ->  | G65: =IF(ROWS($1:1)<=COUNTIF(Utilisation,"Flame-out"),INDEX(Durée,SMALL(IF(Utilisation="Flame-out",ROW(INDIRECT("1:"&ROWS(Utilisation)))),ROWS($1:1))),"") -> 
A66: =IF(E66="","","Flame-out : Arrêter l'ébullition et ajouter") ->  | D66: =IF(ROWS($1:2)<=COUNTIF(Utilisation,"Flame-out"),INDEX(poids,SMALL(IF(Utilisation="Flame-out",ROW(INDIRECT("1:"&ROWS(Utilisation)))),ROWS($1:2))),"") ->  | E66: =IF(ROWS($1:2)<=COUNTIF(Utilisation,"Flame-out"),INDEX(result,SMALL(IF(Utilisation="Flame-out",ROW(INDIRECT("1:"&ROWS(Utilisation)))),ROWS($1:2))),"") ->  | F66: =IF(E66="","","pendant") ->  | G66: =IF(ROWS($1:2)<=COUNTIF(Utilisation,"Flame-out"),INDEX(Durée,SMALL(IF(Utilisation="Flame-out",ROW(INDIRECT("1:"&ROWS(Utilisation)))),ROWS($1:2))),"") -> 
D67: =IF(ROWS($1:3)<=COUNTIF(Utilisation,"Flame-out"),INDEX(poids,SMALL(IF(Utilisation="Flame-out",ROW(INDIRECT("1:"&ROWS(Utilisation)))),ROWS($1:3))),"") ->  | E67: =IF(ROWS($1:3)<=COUNTIF(Utilisation,"Flame-out"),INDEX(result,SMALL(IF(Utilisation="Flame-out",ROW(INDIRECT("1:"&ROWS(Utilisation)))),ROWS($1:3))),"") ->  | G67: =IF(ROWS($1:3)<=COUNTIF(Utilisation,"Flame-out"),INDEX(Durée,SMALL(IF(Utilisation="Flame-out",ROW(INDIRECT("1:"&ROWS(Utilisation)))),ROWS($1:3))),"") -> 
A68: =IF(E68="","","Flame-out : Arrêter l'ébullition et ajouter") ->  | D68: =IF(ROWS($1:4)<=COUNTIF(Utilisation,"Flame-out"),INDEX(poids,SMALL(IF(Utilisation="Flame-out",ROW(INDIRECT("1:"&ROWS(Utilisation)))),ROWS($1:4))),"") ->  | E68: =IF(ROWS($1:4)<=COUNTIF(Utilisation,"Flame-out"),INDEX(result,SMALL(IF(Utilisation="Flame-out",ROW(INDIRECT("1:"&ROWS(Utilisation)))),ROWS($1:4))),"") ->  | G68: =IF(ROWS($1:4)<=COUNTIF(Utilisation,"Flame-out"),INDEX(Durée,SMALL(IF(Utilisation="Flame-out",ROW(INDIRECT("1:"&ROWS(Utilisation)))),ROWS($1:4))),"") -> 
D69: =IF(ROWS($1:5)<=COUNTIF(Utilisation,"Flame-out"),INDEX(poids,SMALL(IF(Utilisation="Flame-out",ROW(INDIRECT("1:"&ROWS(Utilisation)))),ROWS($1:5))),"") ->  | E69: =IF(ROWS($1:5)<=COUNTIF(Utilisation,"Flame-out"),INDEX(result,SMALL(IF(Utilisation="Flame-out",ROW(INDIRECT("1:"&ROWS(Utilisation)))),ROWS($1:5))),"") ->  | G69: =IF(ROWS($1:5)<=COUNTIF(Utilisation,"Flame-out"),INDEX(Durée,SMALL(IF(Utilisation="Flame-out",ROW(INDIRECT("1:"&ROWS(Utilisation)))),ROWS($1:5))),"") -> 
D70: =IF(ROWS($1:6)<=COUNTIF(Utilisation,"Flame-out"),INDEX(poids,SMALL(IF(Utilisation="Flame-out",ROW(INDIRECT("1:"&ROWS(Utilisation)))),ROWS($1:6))),"") ->  | E70: =IF(ROWS($1:6)<=COUNTIF(Utilisation,"Flame-out"),INDEX(result,SMALL(IF(Utilisation="Flame-out",ROW(INDIRECT("1:"&ROWS(Utilisation)))),ROWS($1:6))),"") ->  | G70: =IF(ROWS($1:6)<=COUNTIF(Utilisation,"Flame-out"),INDEX(Durée,SMALL(IF(Utilisation="Flame-out",ROW(INDIRECT("1:"&ROWS(Utilisation)))),ROWS($1:6))),"") -> 
D71: =IF(ROWS($1:7)<=COUNTIF(Utilisation,"Flame-out"),INDEX(poids,SMALL(IF(Utilisation="Flame-out",ROW(INDIRECT("1:"&ROWS(Utilisation)))),ROWS($1:7))),"") ->  | E71: =IF(ROWS($1:7)<=COUNTIF(Utilisation,"Flame-out"),INDEX(result,SMALL(IF(Utilisation="Flame-out",ROW(INDIRECT("1:"&ROWS(Utilisation)))),ROWS($1:7))),"") ->  | G71: =IF(ROWS($1:7)<=COUNTIF(Utilisation,"Flame-out"),INDEX(Durée,SMALL(IF(Utilisation="Flame-out",ROW(INDIRECT("1:"&ROWS(Utilisation)))),ROWS($1:7))),"") -> 
D72: =IF(ROWS($1:8)<=COUNTIF(Utilisation,"Flame-out"),INDEX(poids,SMALL(IF(Utilisation="Flame-out",ROW(INDIRECT("1:"&ROWS(Utilisation)))),ROWS($1:8))),"") ->  | E72: =IF(ROWS($1:8)<=COUNTIF(Utilisation,"Flame-out"),INDEX(result,SMALL(IF(Utilisation="Flame-out",ROW(INDIRECT("1:"&ROWS(Utilisation)))),ROWS($1:8))),"") ->  | G72: =IF(ROWS($1:8)<=COUNTIF(Utilisation,"Flame-out"),INDEX(Durée,SMALL(IF(Utilisation="Flame-out",ROW(INDIRECT("1:"&ROWS(Utilisation)))),ROWS($1:8))),"") -> 
D73: =IF(ROWS($1:9)<=COUNTIF(Utilisation,"Flame-out"),INDEX(poids,SMALL(IF(Utilisation="Flame-out",ROW(INDIRECT("1:"&ROWS(Utilisation)))),ROWS($1:9))),"") ->  | E73: =IF(ROWS($1:9)<=COUNTIF(Utilisation,"Flame-out"),INDEX(result,SMALL(IF(Utilisation="Flame-out",ROW(INDIRECT("1:"&ROWS(Utilisation)))),ROWS($1:9))),"") ->  | G73: =IF(ROWS($1:9)<=COUNTIF(Utilisation,"Flame-out"),INDEX(Durée,SMALL(IF(Utilisation="Flame-out",ROW(INDIRECT("1:"&ROWS(Utilisation)))),ROWS($1:9))),"") -> 
D74: =IF(ROWS($1:10)<=COUNTIF(Utilisation,"Flame-out"),INDEX(poids,SMALL(IF(Utilisation="Flame-out",ROW(INDIRECT("1:"&ROWS(Utilisation)))),ROWS($1:10))),"") ->  | E74: =IF(ROWS($1:10)<=COUNTIF(Utilisation,"Flame-out"),INDEX(result,SMALL(IF(Utilisation="Flame-out",ROW(INDIRECT("1:"&ROWS(Utilisation)))),ROWS($1:10))),"") ->  | G74: =IF(ROWS($1:10)<=COUNTIF(Utilisation,"Flame-out"),INDEX(Durée,SMALL(IF(Utilisation="Flame-out",ROW(INDIRECT("1:"&ROWS(Utilisation)))),ROWS($1:10))),"") -> 
D75: =IF(ROWS($1:11)<=COUNTIF(Utilisation,"Flame-out"),INDEX(poids,SMALL(IF(Utilisation="Flame-out",ROW(INDIRECT("1:"&ROWS(Utilisation)))),ROWS($1:11))),"") ->  | E75: =IF(ROWS($1:11)<=COUNTIF(Utilisation,"Flame-out"),INDEX(result,SMALL(IF(Utilisation="Flame-out",ROW(INDIRECT("1:"&ROWS(Utilisation)))),ROWS($1:11))),"") ->  | G75: =IF(ROWS($1:11)<=COUNTIF(Utilisation,"Flame-out"),INDEX(Durée,SMALL(IF(Utilisation="Flame-out",ROW(INDIRECT("1:"&ROWS(Utilisation)))),ROWS($1:11))),"") -> 
A76: x | B76: x | C76: x | D76: x | E76: x | F76: x | G76: x
A77: Refroidissement, Hop-Stand et ensemencement
A78: =IF(E78="","","Hop-Stand : refroidir < 80°C et ajouter") ->  | D78: =IF(ROWS($1:1)<=COUNTIF(Utilisation,"Hop-Stand"),INDEX(poids,SMALL(IF(Utilisation="Hop-Stand",ROW(INDIRECT("1:"&ROWS(Utilisation)))),ROWS($1:1))),"") ->  | E78: =IF(ROWS($1:1)<=COUNTIF(Utilisation,"Hop-Stand"),INDEX(result,SMALL(IF(Utilisation="Hop-Stand",ROW(INDIRECT("1:"&ROWS(Utilisation)))),ROWS($1:1))),"") ->  | F78: =IF(E78="","","pendant") ->  | G78: =IF(ROWS($1:1)<=COUNTIF(Utilisation,"Hop-Stand"),INDEX(Durée,SMALL(IF(Utilisation="Hop-Stand",ROW(INDIRECT("1:"&ROWS(Utilisation)))),ROWS($1:1))),"") -> 
A79: =IF(E79="","","Hop-Stand : refroidir < 80°C et ajouter") ->  | D79: =IF(ROWS($1:2)<=COUNTIF(Utilisation,"Hop-Stand"),INDEX(poids,SMALL(IF(Utilisation="Hop-Stand",ROW(INDIRECT("1:"&ROWS(Utilisation)))),ROWS($1:2))),"") ->  | E79: =IF(ROWS($1:2)<=COUNTIF(Utilisation,"Hop-Stand"),INDEX(result,SMALL(IF(Utilisation="Hop-Stand",ROW(INDIRECT("1:"&ROWS(Utilisation)))),ROWS($1:2))),"") ->  | F79: =IF(E79="","","pendant") ->  | G79: =IF(ROWS($1:2)<=COUNTIF(Utilisation,"Hop-Stand"),INDEX(Durée,SMALL(IF(Utilisation="Hop-Stand",ROW(INDIRECT("1:"&ROWS(Utilisation)))),ROWS($1:2))),"") -> 
D80: =IF(ROWS($1:3)<=COUNTIF(Utilisation,"Hop-Stand"),INDEX(poids,SMALL(IF(Utilisation="Hop-Stand",ROW(INDIRECT("1:"&ROWS(Utilisation)))),ROWS($1:3))),"") ->  | E80: =IF(ROWS($1:3)<=COUNTIF(Utilisation,"Hop-Stand"),INDEX(result,SMALL(IF(Utilisation="Hop-Stand",ROW(INDIRECT("1:"&ROWS(Utilisation)))),ROWS($1:3))),"") ->  | G80: =IF(ROWS($1:3)<=COUNTIF(Utilisation,"Hop-Stand"),INDEX(Durée,SMALL(IF(Utilisation="Hop-Stand",ROW(INDIRECT("1:"&ROWS(Utilisation)))),ROWS($1:3))),"") -> 
D81: =IF(ROWS($1:4)<=COUNTIF(Utilisation,"Hop-Stand"),INDEX(poids,SMALL(IF(Utilisation="Hop-Stand",ROW(INDIRECT("1:"&ROWS(Utilisation)))),ROWS($1:4))),"") ->  | E81: =IF(ROWS($1:4)<=COUNTIF(Utilisation,"Hop-Stand"),INDEX(result,SMALL(IF(Utilisation="Hop-Stand",ROW(INDIRECT("1:"&ROWS(Utilisation)))),ROWS($1:4))),"") ->  | G81: =IF(ROWS($1:4)<=COUNTIF(Utilisation,"Hop-Stand"),INDEX(Durée,SMALL(IF(Utilisation="Hop-Stand",ROW(INDIRECT("1:"&ROWS(Utilisation)))),ROWS($1:4))),"") -> 
D82: =IF(ROWS($1:5)<=COUNTIF(Utilisation,"Hop-Stand"),INDEX(poids,SMALL(IF(Utilisation="Hop-Stand",ROW(INDIRECT("1:"&ROWS(Utilisation)))),ROWS($1:5))),"") ->  | E82: =IF(ROWS($1:5)<=COUNTIF(Utilisation,"Hop-Stand"),INDEX(result,SMALL(IF(Utilisation="Hop-Stand",ROW(INDIRECT("1:"&ROWS(Utilisation)))),ROWS($1:5))),"") ->  | G82: =IF(ROWS($1:5)<=COUNTIF(Utilisation,"Hop-Stand"),INDEX(Durée,SMALL(IF(Utilisation="Hop-Stand",ROW(INDIRECT("1:"&ROWS(Utilisation)))),ROWS($1:5))),"") -> 
A83: Selon l'installation effectuer whirpool, transfert et refroidir jusqu'à | G83: =Brassage!K39 -> 20
A84: Objectif en fermenteur | E84: =Brassage!K34 -> 25.9552 | F84: à | G84: =Brassage!K33 -> 1.039535803
A85: =IF(C85="","","Ensemencer avec") -> Ensemencer avec | C85: =Brassage!G55 -> 192 | D85: =IF(C85=0,"","de") -> de | E85: =Brassage!B55 -> 1084 - Irish Ale
A86: =IF(C86=0,"","Ensemencer avec") ->  | C86: =Brassage!G56 -> 0 | D86: =IF(C86=0,"","de") ->  | E86: =Brassage!B56 -> 0
A87: x | B87: x | C87: x | D87: x | E87: x | F87: x | G87: x
A88: Fermentation
A89: =IF(B89=0,"","Placer à ") -> Placer à | B89: =Brassage!K39 -> 20 | C89: =IF(B89=0,"","pendant ") -> pendant | D89: =Brassage!L39 -> 21 | E89: =IF(D89=0,"","théoriquement jusqu'au ") -> théoriquement jusqu'au | G89: =Brassage!M39 -> 2587-04-28
A90: =IF(B90=0,"","puis placer à ") -> puis placer à | B90: =Brassage!K40 -> 2 | C90: =IF(B90=0,"","pendant ") -> pendant | D90: =Brassage!L40 -> 2 | E90: =IF(D90=0,"","théoriquement jusqu'au ") -> théoriquement jusqu'au | G90: =Brassage!M40 -> 2587-04-30
A91: =IF(B91=0,"","puis placer à ") ->  | B91: =Brassage!K41 -> 0 | D91: =Brassage!L41 -> 0 | G91: =Brassage!M41 -> 
A92: =IF(C92="","","Faire un DH avec") ->  | C92: =IF(ROWS($1:1)<=COUNTIF(Utilisation,"DH"),INDEX(poids,SMALL(IF(Utilisation="DH",ROW(INDIRECT("1:"&ROWS(Utilisation)))),ROWS($1:1))),"") ->  | D92: =IF(C92="","","de") ->  | E92: =IF(ROWS($1:1)<=COUNTIF(Utilisation,"DH"),INDEX(result,SMALL(IF(Utilisation="DH",ROW(INDIRECT("1:"&ROWS(Utilisation)))),ROWS($1:1))),"") ->  | F92: =IF(C92="","","pendant") ->  | G92: =IF(ROWS($1:1)<=COUNTIF(Utilisation,"DH"),INDEX(Durée,SMALL(IF(Utilisation="DH",ROW(INDIRECT("1:"&ROWS(Utilisation)))),ROWS($1:1))),"") -> 
A93: =IF(C93="","","Faire un DH avec") ->  | C93: =IF(ROWS($1:2)<=COUNTIF(Utilisation,"DH"),INDEX(poids,SMALL(IF(Utilisation="DH",ROW(INDIRECT("1:"&ROWS(Utilisation)))),ROWS($1:2))),"") ->  | E93: =IF(ROWS($1:2)<=COUNTIF(Utilisation,"DH"),INDEX(result,SMALL(IF(Utilisation="DH",ROW(INDIRECT("1:"&ROWS(Utilisation)))),ROWS($1:2))),"") ->  | F93: =IF(C93="","","pendant") ->  | G93: =IF(ROWS($1:2)<=COUNTIF(Utilisation,"DH"),INDEX(Durée,SMALL(IF(Utilisation="DH",ROW(INDIRECT("1:"&ROWS(Utilisation)))),ROWS($1:2))),"") -> 
C94: =IF(ROWS($1:3)<=COUNTIF(Utilisation,"DH"),INDEX(poids,SMALL(IF(Utilisation="DH",ROW(INDIRECT("1:"&ROWS(Utilisation)))),ROWS($1:3))),"") ->  | E94: =IF(ROWS($1:3)<=COUNTIF(Utilisation,"DH"),INDEX(result,SMALL(IF(Utilisation="DH",ROW(INDIRECT("1:"&ROWS(Utilisation)))),ROWS($1:3))),"") ->  | G94: =IF(ROWS($1:3)<=COUNTIF(Utilisation,"DH"),INDEX(Durée,SMALL(IF(Utilisation="DH",ROW(INDIRECT("1:"&ROWS(Utilisation)))),ROWS($1:3))),"") -> 
C95: =IF(ROWS($1:4)<=COUNTIF(Utilisation,"DH"),INDEX(poids,SMALL(IF(Utilisation="DH",ROW(INDIRECT("1:"&ROWS(Utilisation)))),ROWS($1:4))),"") ->  | E95: =IF(ROWS($1:4)<=COUNTIF(Utilisation,"DH"),INDEX(result,SMALL(IF(Utilisation="DH",ROW(INDIRECT("1:"&ROWS(Utilisation)))),ROWS($1:4))),"") ->  | G95: =IF(ROWS($1:4)<=COUNTIF(Utilisation,"DH"),INDEX(Durée,SMALL(IF(Utilisation="DH",ROW(INDIRECT("1:"&ROWS(Utilisation)))),ROWS($1:4))),"") -> 
C96: =IF(ROWS($1:5)<=COUNTIF(Utilisation,"DH"),INDEX(poids,SMALL(IF(Utilisation="DH",ROW(INDIRECT("1:"&ROWS(Utilisation)))),ROWS($1:5))),"") ->  | E96: =IF(ROWS($1:5)<=COUNTIF(Utilisation,"DH"),INDEX(result,SMALL(IF(Utilisation="DH",ROW(INDIRECT("1:"&ROWS(Utilisation)))),ROWS($1:5))),"") ->  | G96: =IF(ROWS($1:5)<=COUNTIF(Utilisation,"DH"),INDEX(Durée,SMALL(IF(Utilisation="DH",ROW(INDIRECT("1:"&ROWS(Utilisation)))),ROWS($1:5))),"") -> 
C97: =IF(ROWS($1:6)<=COUNTIF(Utilisation,"DH"),INDEX(poids,SMALL(IF(Utilisation="DH",ROW(INDIRECT("1:"&ROWS(Utilisation)))),ROWS($1:6))),"") ->  | E97: =IF(ROWS($1:6)<=COUNTIF(Utilisation,"DH"),INDEX(result,SMALL(IF(Utilisation="DH",ROW(INDIRECT("1:"&ROWS(Utilisation)))),ROWS($1:6))),"") ->  | G97: =IF(ROWS($1:6)<=COUNTIF(Utilisation,"DH"),INDEX(Durée,SMALL(IF(Utilisation="DH",ROW(INDIRECT("1:"&ROWS(Utilisation)))),ROWS($1:6))),"") -> 
C98: =IF(ROWS($1:7)<=COUNTIF(Utilisation,"DH"),INDEX(poids,SMALL(IF(Utilisation="DH",ROW(INDIRECT("1:"&ROWS(Utilisation)))),ROWS($1:7))),"") ->  | E98: =IF(ROWS($1:7)<=COUNTIF(Utilisation,"DH"),INDEX(result,SMALL(IF(Utilisation="DH",ROW(INDIRECT("1:"&ROWS(Utilisation)))),ROWS($1:7))),"") ->  | G98: =IF(ROWS($1:7)<=COUNTIF(Utilisation,"DH"),INDEX(Durée,SMALL(IF(Utilisation="DH",ROW(INDIRECT("1:"&ROWS(Utilisation)))),ROWS($1:7))),"") -> 
C99: =IF(ROWS($1:8)<=COUNTIF(Utilisation,"DH"),INDEX(poids,SMALL(IF(Utilisation="DH",ROW(INDIRECT("1:"&ROWS(Utilisation)))),ROWS($1:8))),"") ->  | E99: =IF(ROWS($1:8)<=COUNTIF(Utilisation,"DH"),INDEX(result,SMALL(IF(Utilisation="DH",ROW(INDIRECT("1:"&ROWS(Utilisation)))),ROWS($1:8))),"") ->  | G99: =IF(ROWS($1:8)<=COUNTIF(Utilisation,"DH"),INDEX(Durée,SMALL(IF(Utilisation="DH",ROW(INDIRECT("1:"&ROWS(Utilisation)))),ROWS($1:8))),"") -> 
C100: =IF(ROWS($1:9)<=COUNTIF(Utilisation,"DH"),INDEX(poids,SMALL(IF(Utilisation="DH",ROW(INDIRECT("1:"&ROWS(Utilisation)))),ROWS($1:9))),"") ->  | E100: =IF(ROWS($1:9)<=COUNTIF(Utilisation,"DH"),INDEX(result,SMALL(IF(Utilisation="DH",ROW(INDIRECT("1:"&ROWS(Utilisation)))),ROWS($1:9))),"") ->  | G100: =IF(ROWS($1:9)<=COUNTIF(Utilisation,"DH"),INDEX(Durée,SMALL(IF(Utilisation="DH",ROW(INDIRECT("1:"&ROWS(Utilisation)))),ROWS($1:9))),"") -> 
C101: =IF(ROWS($1:10)<=COUNTIF(Utilisation,"DH"),INDEX(poids,SMALL(IF(Utilisation="DH",ROW(INDIRECT("1:"&ROWS(Utilisation)))),ROWS($1:10))),"") ->  | E101: =IF(ROWS($1:10)<=COUNTIF(Utilisation,"DH"),INDEX(result,SMALL(IF(Utilisation="DH",ROW(INDIRECT("1:"&ROWS(Utilisation)))),ROWS($1:10))),"") ->  | G101: =IF(ROWS($1:10)<=COUNTIF(Utilisation,"DH"),INDEX(Durée,SMALL(IF(Utilisation="DH",ROW(INDIRECT("1:"&ROWS(Utilisation)))),ROWS($1:10))),"") -> 
C102: =IF(ROWS($1:11)<=COUNTIF(Utilisation,"DH"),INDEX(poids,SMALL(IF(Utilisation="DH",ROW(INDIRECT("1:"&ROWS(Utilisation)))),ROWS($1:11))),"") ->  | E102: =IF(ROWS($1:11)<=COUNTIF(Utilisation,"DH"),INDEX(result,SMALL(IF(Utilisation="DH",ROW(INDIRECT("1:"&ROWS(Utilisation)))),ROWS($1:11))),"") ->  | G102: =IF(ROWS($1:11)<=COUNTIF(Utilisation,"DH"),INDEX(Durée,SMALL(IF(Utilisation="DH",ROW(INDIRECT("1:"&ROWS(Utilisation)))),ROWS($1:11))),"") -> 
C103: =IF(ROWS($1:12)<=COUNTIF(Utilisation,"DH"),INDEX(poids,SMALL(IF(Utilisation="DH",ROW(INDIRECT("1:"&ROWS(Utilisation)))),ROWS($1:12))),"") ->  | E103: =IF(ROWS($1:12)<=COUNTIF(Utilisation,"DH"),INDEX(result,SMALL(IF(Utilisation="DH",ROW(INDIRECT("1:"&ROWS(Utilisation)))),ROWS($1:12))),"") ->  | G103: =IF(ROWS($1:12)<=COUNTIF(Utilisation,"DH"),INDEX(Durée,SMALL(IF(Utilisation="DH",ROW(INDIRECT("1:"&ROWS(Utilisation)))),ROWS($1:12))),"") -> 
A104: x | B104: x | C104: x | D104: x | E104: x | F104: x | G104: x
A105: Autres ingrédients
A106: A ajouter aux moments choisis : | B106: =Brassage!B36 -> Type | D106: =Brassage!D36 -> Utilisation | E106: =Brassage!E36 -> Durée | F106: =Brassage!F36 -> Quantité | G106: =Brassage!G36 -> 0
B107: =Brassage!B37 -> 0 | D107: =Brassage!D37 -> 0 | E107: =Brassage!E37 -> 0 | F107: =Brassage!F37 -> 0 | G107: =Brassage!G37 -> 0
B108: =Brassage!B38 -> 0 | D108: =Brassage!D38 -> 0 | E108: =Brassage!E38 -> 0 | F108: =Brassage!F38 -> 0 | G108: =Brassage!G38 -> 0
B109: =Brassage!B39 -> 0 | D109: =Brassage!D39 -> 0 | E109: =Brassage!E39 -> 0 | F109: =Brassage!F39 -> 0 | G109: =Brassage!G39 -> 0
B110: =Brassage!B40 -> 0 | D110: =Brassage!D40 -> 0 | E110: =Brassage!E40 -> 0 | F110: =Brassage!F40 -> 0 | G110: =Brassage!G40 -> 0

Sheet Calculateur
A1: Calculateur/Convertisseur
B3: Densité | G3: Mout Fermenté | N3: Amertume
B4: 1.004 | C4: =-616.868 + 1111.14 * B4- 630.272 * B4^ 2+ 135.997 *B4^3 -> 1.027800208 | D4: =C4*1.04 -> 1.068912216 | G4: Facteur de correction | H4: 1.04 | I4: DI/BRIX | J4: BRIX | K4: DI/DF | L4: Trouvé DI | N4: Volume post-ébu | O4: 29.1 | Q4: Densité post-ébu | S4: 1.04
B5: 1.01 | C5: =1.00001 + 0.0038661*B5 + 1.3488* 10^-5*B5^2 + 4.3074 *10^-8*B5^3 -> 1.003928564 | D5: =B5*1.04 -> 1.0504 | G5: DI | I5: 1.07 | J5: =1 + J6/ ( 258.6 - 0.8796 * J6)/1.04 -> 1.093960608 | K5: 1.07 | L5: =(1+(L6/1.04)/(258.6-0.8796*(L6/1.04))) -> 1.042892344
B6: 1.05 | C6: =B6/1.04 -> 1.009615385 | D6: =1 + C6/ ( 258.6 - 0.8796 * C6) -> 1.003917612 | G6: DI °Brix | I6: =(-616.868 + 1111.14 * I5- 630.272 * I5^ 2+135.997 *I5^3)*1.04 -> 17.73778247 | J6: 23.27 | K6: =(-616.868 + 1111.14 * K5- 630.272 * K5^ 2+135.997 *K5^3)*1.04 -> 17.73778247 | L6: =(1+(0.00349412/1.04)*L8-L7)*(1.04/0.000856829) -> 11.11624373 | N6: Houblons | O6: Acide Alpha | P6: Utilisation | Q6: Durée | R6: Poids | S6: IBU
G7: DF | I7: =I10 -> 1.009576363 | J7: =J10 -> 1.012745893 | K7: 1.003 | L7: 1.011 | N7: Magnum | O7: 0.139 | P7: FWH | Q7: 60 | R7: 15 | S7: =IF(P7="Ebullition",((1.65*(0.000125^($S$4-1))*((1-EXP(-0.04*Q7))/4.15))*O7*R7*1000)/($O$4)*Paramètres!$H$2,IF(P7="DH",((1.65*(0.000125^($S$4-1))*((1-EXP(-0.04*Q7))/4.15))*O7*R7*1000)/($O$4)*Paramètres!$H$3,IF(P7="Hop-stand",((1.65*(0.000125^($S$4-1))*((1-EXP(-0.04*Q7))/4.15))*O7*R7*1000)/($O$4)*Paramètres!$H$4,IF(P7="FWH",((1.65*(0.000125^($S$4-1))*((1-EXP(-0.04*Q7))/4.15))*O7*R7*1000)/($O$4)*Paramètres!$H$5,IF(P7="Mash-hop",((1.65*(0.000125^($S$4-1))*((1-EXP(-0.04*Q7))/4.15))*O7*R7*1000)/($O$4)*Paramètres!$H$6,IF(P7="Flame-out",((1.65*(0.000125^($S$4-1))*((1-EXP(-0.04*Q7))/4.15))*O7*R7*1000)/($O$4)*Paramètres!$H$7,"")))))) -> 19.88916816
G8: DF Brix | I8: 7.2 | J8: 9.5 | K8: =(K7-1+(0.000856829/1.04)*K6)*1.04/0.00349412 -> 5.242592246 | L8: 6 | N8: Hallertau Hersbrucker | O8: 0.139 | P8: Ebullition | Q8: 60 | R8: 15 | S8: =IF(P8="Ebullition",((1.65*(0.000125^($S$4-1))*((1-EXP(-0.04*Q8))/4.15))*O8*R8*1000)/($O$4)*Paramètres!$H$2,IF(P8="DH",((1.65*(0.000125^($S$4-1))*((1-EXP(-0.04*Q8))/4.15))*O8*R8*1000)/($O$4)*Paramètres!$H$3,IF(P8="Hop-stand",((1.65*(0.000125^($S$4-1))*((1-EXP(-0.04*Q8))/4.15))*O8*R8*1000)/($O$4)*Paramètres!$H$4,IF(P8="FWH",((1.65*(0.000125^($S$4-1))*((1-EXP(-0.04*Q8))/4.15))*O8*R8*1000)/($O$4)*Paramètres!$H$5,IF(P8="Mash-hop",((1.65*(0.000125^($S$4-1))*((1-EXP(-0.04*Q8))/4.15))*O8*R8*1000)/($O$4)*Paramètres!$H$6,IF(P8="Flame-out",((1.65*(0.000125^($S$4-1))*((1-EXP(-0.04*Q8))/4.15))*O8*R8*1000)/($O$4)*Paramètres!$H$7,"")))))) -> 18.08106197
G9: DF Fct cubique | I9: =IF(I8=0, "XXX", 1 - 0.0044993*(I6/1.04) + 0.0117741*(I8/1.04) + 0.000275806*(I6/1.04)^2 - 0.00127169*(I8/1.04)^2 - 0.00000727999*(I6/1.04)^3 + 0.0000632929*(I8/1.04)^3) -> 1.008937075 | J9: =IF(J8=0, "XXX", 1 - 0.0044993*(J6/1.04) + 0.0117741*(J8/1.04) + 0.000275806*(J6/1.04)^2 - 0.00127169*(J8/1.04)^2 - 0.00000727999*(J6/1.04)^3 + 0.0000632929*(J8/1.04)^3) -> 1.005541203 | K9: =IF(K8=0, "XXX", 1 - 0.0044993*(K6/1.04) + 0.0117741*(K8/1.04) + 0.000275806*(K6/1.04)^2 - 0.00127169*(K8/1.04)^2 - 0.00000727999*(K6/1.04)^3 + 0.0000632929*(K8/1.04)^3) -> 1.002518416 | L9: =IF(L8=0, "XXX", 1 - 0.0044993*(L6/1.04) + 0.0117741*(L8/1.04) + 0.000275806*(L6/1.04)^2 - 0.00127169*(L8/1.04)^2 - 0.00000727999*(L6/1.04)^3 + 0.0000632929*(L8/1.04)^3) -> 1.012282876
G10: DF Fct linéaire | I10: =IF(I8=0, "XXX", 1 - 0.000856829*(I6/1.04) + 0.00349412*(I8/1.04)) -> 1.009576363 | J10: =IF(J8=0, "XXX", 1 - 0.000856829*(J6/1.04) + 0.00349412*(J8/1.04)) -> 1.012745893 | K10: =1-0.000856829*(K6/1.04)+0.00349412*(K8/1.04) -> 1.003 | L10: =IF(L8=0, "XXX", 1 - 0.000856829*(L6/1.04) + 0.00349412*(L8/1.04)) -> 1.011
G11: DF Fct univ-bière | I11: =IF(I8=0, "XXX", 1.001843-0.002318474*I6-0.000007775*I6^2-0.000000034*I6^3+0.00574*I8+0.00003344*I8^2+0.000000086*I8^3) -> 1.001176054 | J11: =IF(J8=0, "XXX", 1.001843-0.002318474*J6-0.000007775*J6^2-0.000000034*J6^3+0.00574*J8+0.00003344*J8^2+0.000000086*J8^3) -> 1.000875279 | K11: =IF(K8=0, "XXX", 1.001843-0.002318474*K6-0.000007775*K6^2-0.000000034*K6^3+0.00574*K8+0.00003344*K8^2+0.000000086*K8^3) -> 0.9891063869 | L11: =IF(L8=0, "XXX", 1.001843-0.002318474*L6-0.000007775*L6^2-0.000000034*L6^3+0.00574*L8+0.00003344*L8^2+0.000000086*L8^3) -> 1.010725226 | S11: =IF(P11="Ebullition",((1.65*(0.000125^($S$4-1))*((1-EXP(-0.04*Q11))/4.15))*O11*R11*1000)/($O$4)*Paramètres!$H$2,IF(P11="DH",((1.65*(0.000125^($S$4-1))*((1-EXP(-0.04*Q11))/4.15))*O11*R11*1000)/($O$4)*Paramètres!$H$3,IF(P11="Hop-stand",((1.65*(0.000125^($S$4-1))*((1-EXP(-0.04*Q11))/4.15))*O11*R11*1000)/($O$4)*Paramètres!$H$4,IF(P11="FWH",((1.65*(0.000125^($S$4-1))*((1-EXP(-0.04*Q11))/4.15))*O11*R11*1000)/($O$4)*Paramètres!$H$5,IF(P11="Mash-hop",((1.65*(0.000125^($S$4-1))*((1-EXP(-0.04*Q11))/4.15))*O11*R11*1000)/($O$4)*Paramètres!$H$6,IF(P11="Flame-out",((1.65*(0.000125^($S$4-1))*((1-EXP(-0.04*Q11))/4.15))*O11*R11*1000)/($O$4)*Paramètres!$H$7,"")))))) -> 
B12: Volume | G12: Atténuation Apparente | I12: =(I5-I7)/(I5-1) -> 0.8631948135 | J12: =(J5-J7)/(J5-1) -> 0.864348542 | K12: =(K5-K7)/(K5-1) -> 0.9571428571 | L12: =(L5-L7)/(L5-1) -> 0.7435439757 | S12: =IF(P12="Ebullition",((1.65*(0.000125^($S$4-1))*((1-EXP(-0.04*Q12))/4.15))*O12*R12*1000)/($O$4)*Paramètres!$H$2,IF(P12="DH",((1.65*(0.000125^($S$4-1))*((1-EXP(-0.04*Q12))/4.15))*O12*R12*1000)/($O$4)*Paramètres!$H$3,IF(P12="Hop-stand",((1.65*(0.000125^($S$4-1))*((1-EXP(-0.04*Q12))/4.15))*O12*R12*1000)/($O$4)*Paramètres!$H$4,IF(P12="FWH",((1.65*(0.000125^($S$4-1))*((1-EXP(-0.04*Q12))/4.15))*O12*R12*1000)/($O$4)*Paramètres!$H$5,IF(P12="Mash-hop",((1.65*(0.000125^($S$4-1))*((1-EXP(-0.04*Q12))/4.15))*O12*R12*1000)/($O$4)*Paramètres!$H$6,IF(P12="Flame-out",((1.65*(0.000125^($S$4-1))*((1-EXP(-0.04*Q12))/4.15))*O12*R12*1000)/($O$4)*Paramètres!$H$7,"")))))) -> 
B13: 1 | C13: =3.785 *B13 -> 3.785 | G13: Atténuation réelle | I13: =((-676.67 + 1286.4 * I5- 800.47 * I5^ 2+ 190.74 *I5^3)-I14)/(-676.67 + 1286.4 * I5- 800.47 * I5^ 2+ 190.74 *I5^3) -> 0.6939826054 | J13: =((-676.67 + 1286.4 * J5- 800.47 * J5^ 2+ 190.74 *J5^3)-J14)/(-676.67 + 1286.4 * J5- 800.47 * J5^ 2+ 190.74 *J5^3) -> 0.692988074 | K13: =((-676.67 + 1286.4 * K5- 800.47 * K5^ 2+ 190.74 *K5^3)-K14)/(-676.67 + 1286.4 * K5- 800.47 * K5^ 2+ 190.74 *K5^3) -> 0.77481362 | L13: =((-676.67 + 1286.4 * L5- 800.47 * L5^ 2+ 190.74 *L5^3)-L14)/(-676.67 + 1286.4 * L5- 800.47 * L5^ 2+ 190.74 *L5^3) -> 0.5960280183 | S13: =IF(P13="Ebullition",((1.65*(0.000125^($S$4-1))*((1-EXP(-0.04*Q13))/4.15))*O13*R13*1000)/($O$4)*Paramètres!$H$2,IF(P13="DH",((1.65*(0.000125^($S$4-1))*((1-EXP(-0.04*Q13))/4.15))*O13*R13*1000)/($O$4)*Paramètres!$H$3,IF(P13="Hop-stand",((1.65*(0.000125^($S$4-1))*((1-EXP(-0.04*Q13))/4.15))*O13*R13*1000)/($O$4)*Paramètres!$H$4,IF(P13="FWH",((1.65*(0.000125^($S$4-1))*((1-EXP(-0.04*Q13))/4.15))*O13*R13*1000)/($O$4)*Paramètres!$H$5,IF(P13="Mash-hop",((1.65*(0.000125^($S$4-1))*((1-EXP(-0.04*Q13))/4.15))*O13*R13*1000)/($O$4)*Paramètres!$H$6,IF(P13="Flame-out",((1.65*(0.000125^($S$4-1))*((1-EXP(-0.04*Q13))/4.15))*O13*R13*1000)/($O$4)*Paramètres!$H$7,"")))))) -> 
B14: 1 | C14: =B14/3.785 -> 0.2642007926 | G14: Sucre Résiduel | I14: =0.188 * ( -676.67 + 1286.4 *I5- 800.47 * I5^ 2+ 190.74 *I5^3) + 0.8192 * ( -676.67 + 1286.4 *I7- 800.47 * I7^ 2+ 190.74 *I7^3) -> 5.19758268 | J14: =0.188 * ( -676.67 + 1286.4 *J5- 800.47 * J5^ 2+ 190.74 *J5^3) + 0.8192 * ( -676.67 + 1286.4 *J7- 800.47 * J7^ 2+ 190.74 *J7^3) -> 6.863211359 | K14: =0.188 * ( -676.67 + 1286.4 *K5- 800.47 * K5^ 2+ 190.74 *K5^3) + 0.8192 * ( -676.67 + 1286.4 *K7- 800.47 * K7^ 2+ 190.74 *K7^3) -> 3.824700323 | L14: =0.188 * ( -676.67 + 1286.4 *L5- 800.47 * L5^ 2+ 190.74 *L5^3) + 0.8192 * ( -676.67 + 1286.4 *L7- 800.47 * L7^ 2+ 190.74 *L7^3) -> 4.30134301 | S14: =IF(P14="Ebullition",((1.65*(0.000125^($S$4-1))*((1-EXP(-0.04*Q14))/4.15))*O14*R14*1000)/($O$4)*Paramètres!$H$2,IF(P14="DH",((1.65*(0.000125^($S$4-1))*((1-EXP(-0.04*Q14))/4.15))*O14*R14*1000)/($O$4)*Paramètres!$H$3,IF(P14="Hop-stand",((1.65*(0.000125^($S$4-1))*((1-EXP(-0.04*Q14))/4.15))*O14*R14*1000)/($O$4)*Paramètres!$H$4,IF(P14="FWH",((1.65*(0.000125^($S$4-1))*((1-EXP(-0.04*Q14))/4.15))*O14*R14*1000)/($O$4)*Paramètres!$H$5,IF(P14="Mash-hop",((1.65*(0.000125^($S$4-1))*((1-EXP(-0.04*Q14))/4.15))*O14*R14*1000)/($O$4)*Paramètres!$H$6,IF(P14="Flame-out",((1.65*(0.000125^($S$4-1))*((1-EXP(-0.04*Q14))/4.15))*O14*R14*1000)/($O$4)*Paramètres!$H$7,"")))))) -> 
G15: Sucre Résiduel | I15: =I14*10*I5 -> 55.61413468 | J15: =J14*10*J5 -> 75.08082869 | K15: =K14*10*K5 -> 40.92429346 | L15: =L14*10*L5 -> 44.85837694 | S15: =IF(P15="Ebullition",((1.65*(0.000125^($S$4-1))*((1-EXP(-0.04*Q15))/4.15))*O15*R15*1000)/($O$4)*Paramètres!$H$2,IF(P15="DH",((1.65*(0.000125^($S$4-1))*((1-EXP(-0.04*Q15))/4.15))*O15*R15*1000)/($O$4)*Paramètres!$H$3,IF(P15="Hop-stand",((1.65*(0.000125^($S$4-1))*((1-EXP(-0.04*Q15))/4.15))*O15*R15*1000)/($O$4)*Paramètres!$H$4,IF(P15="FWH",((1.65*(0.000125^($S$4-1))*((1-EXP(-0.04*Q15))/4.15))*O15*R15*1000)/($O$4)*Paramètres!$H$5,IF(P15="Mash-hop",((1.65*(0.000125^($S$4-1))*((1-EXP(-0.04*Q15))/4.15))*O15*R15*1000)/($O$4)*Paramètres!$H$6,IF(P15="Flame-out",((1.65*(0.000125^($S$4-1))*((1-EXP(-0.04*Q15))/4.15))*O15*R15*1000)/($O$4)*Paramètres!$H$7,"")))))) -> 
B16: Poids | G16: Taux d'alcool | I16: =1000 * (I5 -I7) / 7.6 -> 7.950478545 | J16: =1000 * (J5 -J7) / 7.6 -> 10.68614662 | K16: 8.815789474 | L16: 4.196361045 | S16: =IF(P16="Ebullition",((1.65*(0.000125^($S$4-1))*((1-EXP(-0.04*Q16))/4.15))*O16*R16*1000)/($O$4)*Paramètres!$H$2,IF(P16="DH",((1.65*(0.000125^($S$4-1))*((1-EXP(-0.04*Q16))/4.15))*O16*R16*1000)/($O$4)*Paramètres!$H$3,IF(P16="Hop-stand",((1.65*(0.000125^($S$4-1))*((1-EXP(-0.04*Q16))/4.15))*O16*R16*1000)/($O$4)*Paramètres!$H$4,IF(P16="FWH",((1.65*(0.000125^($S$4-1))*((1-EXP(-0.04*Q16))/4.15))*O16*R16*1000)/($O$4)*Paramètres!$H$5,IF(P16="Mash-hop",((1.65*(0.000125^($S$4-1))*((1-EXP(-0.04*Q16))/4.15))*O16*R16*1000)/($O$4)*Paramètres!$H$6,IF(P16="Flame-out",((1.65*(0.000125^($S$4-1))*((1-EXP(-0.04*Q16))/4.15))*O16*R16*1000)/($O$4)*Paramètres!$H$7,"")))))) -> 
B17: 4.25 | C17: =B17*453.592 -> 1927.766 | S17: =IF(P17="Ebullition",((1.65*(0.000125^($S$4-1))*((1-EXP(-0.04*Q17))/4.15))*O17*R17*1000)/($O$4)*Paramètres!$H$2,IF(P17="DH",((1.65*(0.000125^($S$4-1))*((1-EXP(-0.04*Q17))/4.15))*O17*R17*1000)/($O$4)*Paramètres!$H$3,IF(P17="Hop-stand",((1.65*(0.000125^($S$4-1))*((1-EXP(-0.04*Q17))/4.15))*O17*R17*1000)/($O$4)*Paramètres!$H$4,IF(P17="FWH",((1.65*(0.000125^($S$4-1))*((1-EXP(-0.04*Q17))/4.15))*O17*R17*1000)/($O$4)*Paramètres!$H$5,IF(P17="Mash-hop",((1.65*(0.000125^($S$4-1))*((1-EXP(-0.04*Q17))/4.15))*O17*R17*1000)/($O$4)*Paramètres!$H$6,IF(P17="Flame-out",((1.65*(0.000125^($S$4-1))*((1-EXP(-0.04*Q17))/4.15))*O17*R17*1000)/($O$4)*Paramètres!$H$7,"")))))) -> 
B18: 453 | C18: =B18/453.592 -> 0.9986948623 | F18: Ajustement de la densité | J18: ABV / Extrait réel | N18: TOTAL | Q18: =Q7 -> 60 | R18: =SUM(R7:R17) -> 30 | S18: =SUM(S7:S17) -> 37.97023013
B19: 1 | C19: =B19*28.35 -> 28.35 | F19: Densité actuelle | H19: 1 | K19: DS | L19: Plato
B20: 28 | C20: =B20/28.35 -> 0.987654321 | F20: Volume actuel | H20: 1 | J20: DI | K20: 1.1 | L20: 23.77 | N20: Pied de cuve | Q20: modèle : | R20: Braukaiser (agitateur)
F21: Densité visée | H21: 1.001 | J21: DF | K21: 1.012 | L21: 3.07 | N21: Nombre de levures initial | O21: Volume | P21: Densité | Q21: Extrait sec | R21: Nombre de levures final
B22: Température | F22: Type d'ajout | H22: DME | J22: DI | K22: =-616.868 + 1111.14 * K20- 630.272 * K20^ 2+ 135.997 *K20^3 -> 23.768887 | L22: =1.00001 + 0.0038661*L20 + 1.3488* 10^-5*L20^2 + 4.3074 *10^-8*L20^3 -> 1.10010659
B23: 24 | C23: =32+B23*9/5 -> 75.2 | D23: =B23+273.15 -> 297.15 | F23: Quantité à ajouter | H23: =IF(H22="","",IF(H22="Sucre",(H21-H19)*1000*2.57452,IF(H22="DME",(H21-H19)*1000*2.66,IF(H22="LME",(H21-H19)*1000*3.24,IF(H22="Eau",1000*((H19-1)/(H21-1)*H20-H20)/H20))))) -> 2.66 | J23: DF | K23: =-616.868 + 1111.14 * K21- 630.272 * K21^ 2+ 135.997 *K21^3 -> 3.068270539 | L23: =1.00001 + 0.0038661*L21 + 1.3488* 10^-5*L21^2 + 4.3074 *10^-8*L21^3 -> 1.012007296 | N23: 234 | O23: 3 | P23: 1.04 | Q23: =O23*100*(P23-1)/0.0376 -> 319.1489362 | R23: =IF($R$20="White (simple)",IF(((12.54793776 * (N23/O23)^-0.4594858324) - 0.9994994906)*N23+N23>200*O23,200*O23,((12.54793776 * (N23/O23)^-0.4594858324) - 0.9994994906)*N23+N23),IF($R$20="Braukaiser (agitateur) ",IF((N23/Q23)<1.4,N23+Q23*1.4,N23+(2.33-0.67*(N23/Q23))))) -> 680.8085106
B24: 148 | C24: =(B24-32)*5/9 -> 64.44444444 | D24: =C24+273.15 -> 337.5944444 | F24: Quantité à ajouter | H24: =H23*H20 -> 2.66 | J24: ER final | K24: =0.8114*K23 + 0.1886*K22 -> 6.972406803 | L24: =0.8114*L21+ 0.1886*L20 -> 6.97402 | N24: 100 | O24: 2 | P24: 1.04 | Q24: =O24*100*(P24-1)/0.0376 -> 212.7659574 | R24: =IF($R$20="White (simple)",IF(((12.54793776 * (N24/O24)^-0.4594858324) - 0.9994994906)*N24+N24>200*O24,200*O24,((12.54793776 * (N24/O24)^-0.4594858324) - 0.9994994906)*N24+N24),IF($R$20="Braukaiser (agitateur) ",IF((N24/Q24)<1.4,N24+Q24*1.4,N24+(2.33-0.67*(N24/Q24))))) -> 397.8723404
B25: 295.75 | C25: =B25-273.15 -> 22.6 | D25: =32+C25*9/5 -> 72.68 | J25: ABV 1 | K25: =1000*(K20-K21)/7.6 -> 11.57894737 | L25: =1000*(L22-L23)/7.6 -> 11.59201234 | N25: 75 | O25: 2 | P25: 1.04 | Q25: =O25*100*(P25-1)/0.0376 -> 212.7659574 | R25: =IF($R$20="White (simple)",IF(((12.54793776 * (N25/O25)^-0.4594858324) - 0.9994994906)*N25+N25>200*O25,200*O25,((12.54793776 * (N25/O25)^-0.4594858324) - 0.9994994906)*N25+N25),IF($R$20="Braukaiser (agitateur) ",IF((N25/Q25)<1.4,N25+Q25*1.4,N25+(2.33-0.67*(N25/Q25))))) -> 372.8723404
F26: Sucre présent | J26: ABV 2 | K26: =133*(L22-L23)/L22 -> 10.65097344 | L26: =133*(L22-L23)/L22 -> 10.65097344 | N26: 15 | O26: 0.5 | P26: 1.04 | Q26: =O26*100*(P26-1)/0.0376 -> 53.19148936 | R26: =IF($R$20="White (simple)",IF(((12.54793776 * (N26/O26)^-0.4594858324) - 0.9994994906)*N26+N26>200*O26,200*O26,((12.54793776 * (N26/O26)^-0.4594858324) - 0.9994994906)*N26+N26),IF($R$20="Braukaiser (agitateur) ",IF((N26/Q26)<1.4,N26+Q26*1.4,N26+(2.33-0.67*(N26/Q26))))) -> 89.46808511
B27: Couleur | F27: DI | G27: Volume | H27: Sucre | J27: ABV 3 | K27: =((K22-K24)/(2.0665-0.010665*K22))*(K21/0.794) -> 11.80808127 | L27: =((L20-L24)/(2.0665-0.010665*L20))*(L23/0.794) -> 11.80789207
B28: Moût | C28: 1 | D28: =C28*1.97 -> 1.97 | F28: 1.063 | G28: 32.4 | H28: =G28*(F28-1)*1000*2.57452 -> 5255.110224 | J28: ABV 4 | K28: =VLOOKUP(((K20-K21)*1000),K32:L42,2,TRUE)*(K20-K21)*1000 -> 11.792 | N28: Mout à partir d'extrait
C29: 2 | D29: =C29/1.97 -> 1.015228426 | F29: 1.076 | G29: 29.1 | H29: =G29*(F29-1)*1000*2.57452 -> 5693.808432 | N29: Type d'extrait | O29: DME | P29: DME | Q29: LME
B30: Malt | C30: 1 | D30: =2.6686 * C30 - 1.497 -> 1.1716 | K30: Abaque pour ABV 4 | N30: Volume | O30: 2 | P30: 2 | Q30: =Q31/(1000*(Q32-1)*IF(Q29="DME",2.66,3.24)) -> 4.978096376
C31: 40 | D31: =1.3546 *C31 - 0.76 -> 53.424 | F31: pH des malts crystal/cara | K31: DI-DF | L31: Facteur | N31: Quantité d'extrait | O31: 259 | P31: =1000*(P32-1)*(IF(P29="DME",2.66,3.24))*P30 -> 260.68 | Q31: 500
C32: 1.17 | D32: =(C32+1.479)/2.6686 -> 0.9926553249 | F32: Crystal/Cara Malt | H32: 0 | I32: =5.22-0.00504*(H32+1.479)/2.6686 -> 5.217206715 | K32: 0 | L32: 0.125 | N32: Densité | O32: =1+(O31/((IF(O29="DME",2.66,3.24))*O30))/1000 -> 1.048684211 | P32: 1.049 | Q32: 1.031
C33: 53.42 | D33: =(C33+0.76)/1.3546 -> 39.9970471 | F33: Crystal/Cara Malt | H33: 0 | I33: =5.22-0.00504*(H33+1.479)/2.6686 -> 5.217206715 | K33: 7 | L33: 0.126
K34: 10.5 | L34: 0.127
K35: 17.3 | L35: 0.128
K36: 26.2 | L36: 0.129
K37: 36.1 | L37: 0.13
K38: 46.6 | L38: 0.131
K39: 57.2 | L39: 0.132
K40: 68 | L40: 0.133
K41: 78.9 | L41: 0.134
K42: 89.8 | L42: 0.135

Sheet Profil d'eau
A1: Outil de mélange d'eau | K1: Profils d'eau - ppm
A3: PROFIL | C3: NOM | D3: Ca (50-150) | E3: Mg (10-40) | F3: Na (0-150) | G3: SO4 (50-250) | H3: Cl (0-250) | I3: HCO3 (0-250) | K3: Profil | L3: Ca | M3: Mg | N3: Na | O3: SO4 | P3: Cl | Q3: HCO3
A4: Style BJCCP | C4: 06C - Dunkles Bock | D4: =IF($C$4="","",VLOOKUP($C$4,BJCCP!$A$2:$AU$119,22,FALSE)) -> 50-75 | E4: =IF($C$4="","",VLOOKUP($C$4,BJCCP!$A$2:$AU$119,23,FALSE)) -> 0-30 | F4: =IF($C$4="","",VLOOKUP($C$4,BJCCP!$A$2:$AU$119,24,FALSE)) -> 40-80 | G4: =IF($C$4="","",VLOOKUP($C$4,BJCCP!$A$2:$AU$119,25,FALSE)) -> 0-100 | H4: =IF($C$4="","",VLOOKUP($C$4,BJCCP!$A$2:$AU$119,26,FALSE)) -> 50-150 | I4: =IF($C$4="","",VLOOKUP($C$4,BJCCP!$A$2:$AU$119,27,FALSE)) -> <100 | K4: =IF([1]Eaux!A4="","",[1]Eaux!A4) -> 00 Saint-Paulet | L4: =IF([1]Eaux!B4="","",[1]Eaux!B4) -> 30 | M4: =IF([1]Eaux!C4="","",[1]Eaux!C4) -> 3 | N4: =IF([1]Eaux!D4="","",[1]Eaux!D4) -> 9 | O4: =IF([1]Eaux!E4="","",[1]Eaux!E4) -> 3 | P4: =IF([1]Eaux!F4="","",[1]Eaux!F4) -> 10 | Q4: =IF([1]Eaux!G4="","",[1]Eaux!G4) -> 111
A5: Profil cible (manuel) | K5: =IF([1]Eaux!A5="","",[1]Eaux!A5) -> Buffalo, NY | L5: =IF([1]Eaux!B5="","",[1]Eaux!B5) -> 34 | M5: =IF([1]Eaux!C5="","",[1]Eaux!C5) -> 9 | N5: =IF([1]Eaux!D5="","",[1]Eaux!D5) -> 11 | O5: =IF([1]Eaux!E5="","",[1]Eaux!E5) -> 23 | P5: =IF([1]Eaux!F5="","",[1]Eaux!F5) -> 19 | Q5: =IF([1]Eaux!G5="","",[1]Eaux!G5) -> 110
A6: Profil cible (liste) | C6: Stout - Porter | D6: =IF($C$6="","",VLOOKUP($C$6,$K$4:$Q$97,2,FALSE)) -> 50 | E6: =IF($C$6="","",VLOOKUP($C$6,$K$4:$Q$97,3,FALSE)) -> 12 | F6: =IF($C$6="","",VLOOKUP($C$6,$K$4:$Q$97,4,FALSE)) -> 60 | G6: =IF($C$6="","",VLOOKUP($C$6,$K$4:$Q$97,5,FALSE)) -> 46 | H6: =IF($C$6="","",VLOOKUP($C$6,$K$4:$Q$97,6,FALSE)) -> 175 | I6: =IF($C$6="","",VLOOKUP($C$6,$K$4:$Q$97,7,FALSE)) -> 170 | K6: =IF([1]Eaux!A6="","",[1]Eaux!A6) -> Burton-on-Trent | L6: =IF([1]Eaux!B6="","",[1]Eaux!B6) -> 268 | M6: =IF([1]Eaux!C6="","",[1]Eaux!C6) -> 62 | N6: =IF([1]Eaux!D6="","",[1]Eaux!D6) -> 30 | O6: =IF([1]Eaux!E6="","",[1]Eaux!E6) -> 638 | P6: =IF([1]Eaux!F6="","",[1]Eaux!F6) -> 36 | Q6: =IF([1]Eaux!G6="","",[1]Eaux!G6) -> 141
A7: Profil cible retenu | C7: =IF($C$6="",C5,C6) -> Stout - Porter | D7: =IF($C$6="",D5,D6) -> 50 | E7: 12 | F7: 60 | G7: 46 | H7: 175 | I7: 170 | K7: =IF([1]Eaux!A7="","",[1]Eaux!A7) -> Dortmund | L7: =IF([1]Eaux!B7="","",[1]Eaux!B7) -> 260 | M7: =IF([1]Eaux!C7="","",[1]Eaux!C7) -> 23 | N7: =IF([1]Eaux!D7="","",[1]Eaux!D7) -> 69 | O7: =IF([1]Eaux!E7="","",[1]Eaux!E7) -> 240 | P7: =IF([1]Eaux!F7="","",[1]Eaux!F7) -> 106 | Q7: =IF([1]Eaux!G7="","",[1]Eaux!G7) -> 270
A8: Eau de départ 1 | B8: 15 | C8: 00 Saint-Paulet | D8: =IF($C8="",0,VLOOKUP($C8,$K$4:$Q$97,2,FALSE)) -> 30 | E8: =IF($C8="",0,VLOOKUP($C8,$K$4:$Q$97,3,FALSE)) -> 3 | F8: =IF($C8="",0,VLOOKUP($C8,$K$4:$Q$97,4,FALSE)) -> 9 | G8: =IF($C8="",0,VLOOKUP($C8,$K$4:$Q$97,5,FALSE)) -> 3 | H8: =IF($C8="",0,VLOOKUP($C8,$K$4:$Q$97,6,FALSE)) -> 10 | I8: =IF($C8="",0,VLOOKUP($C8,$K$4:$Q$97,7,FALSE)) -> 111 | K8: =IF([1]Eaux!A8="","",[1]Eaux!A8) -> Dublin | L8: =IF([1]Eaux!B8="","",[1]Eaux!B8) -> 118 | M8: =IF([1]Eaux!C8="","",[1]Eaux!C8) -> 4 | N8: =IF([1]Eaux!D8="","",[1]Eaux!D8) -> 12 | O8: =IF([1]Eaux!E8="","",[1]Eaux!E8) -> 54 | P8: =IF([1]Eaux!F8="","",[1]Eaux!F8) -> 19 | Q8: =IF([1]Eaux!G8="","",[1]Eaux!G8) -> 319
A9: Eau de départ 2 | B9: 10 | C9: Vienna | D9: =IF($C9="",0,VLOOKUP($C9,$K$4:$Q$97,2,FALSE)) -> 200 | E9: =IF($C9="",0,VLOOKUP($C9,$K$4:$Q$97,3,FALSE)) -> 60 | F9: =IF($C9="",0,VLOOKUP($C9,$K$4:$Q$97,4,FALSE)) -> 8 | G9: =IF($C9="",0,VLOOKUP($C9,$K$4:$Q$97,5,FALSE)) -> 125 | H9: =IF($C9="",0,VLOOKUP($C9,$K$4:$Q$97,6,FALSE)) -> 12 | I9: =IF($C9="",0,VLOOKUP($C9,$K$4:$Q$97,7,FALSE)) -> 120 | K9: =IF([1]Eaux!A9="","",[1]Eaux!A9) -> East Flanders | L9: =IF([1]Eaux!B9="","",[1]Eaux!B9) -> 134 | M9: =IF([1]Eaux!C9="","",[1]Eaux!C9) -> 22 | N9: =IF([1]Eaux!D9="","",[1]Eaux!D9) -> 52 | O9: =IF([1]Eaux!E9="","",[1]Eaux!E9) -> 76 | P9: =IF([1]Eaux!F9="","",[1]Eaux!F9) -> 47 | Q9: =IF([1]Eaux!G9="","",[1]Eaux!G9) -> 306
A10: Eau de départ 3 | D10: =IF($C10="",0,VLOOKUP($C10,$K$4:$Q$97,2,FALSE)) -> 0 | E10: =IF($C10="",0,VLOOKUP($C10,$K$4:$Q$97,3,FALSE)) -> 0 | F10: =IF($C10="",0,VLOOKUP($C10,$K$4:$Q$97,4,FALSE)) -> 0 | G10: =IF($C10="",0,VLOOKUP($C10,$K$4:$Q$97,5,FALSE)) -> 0 | H10: =IF($C10="",0,VLOOKUP($C10,$K$4:$Q$97,6,FALSE)) -> 0 | I10: =IF($C10="",0,VLOOKUP($C10,$K$4:$Q$97,7,FALSE)) -> 0 | K10: =IF([1]Eaux!A10="","",[1]Eaux!A10) -> Eau déminéralisée | L10: =IF([1]Eaux!B10="","",[1]Eaux!B10) -> 0 | M10: =IF([1]Eaux!C10="","",[1]Eaux!C10) -> 0 | N10: =IF([1]Eaux!D10="","",[1]Eaux!D10) -> 0 | O10: =IF([1]Eaux!E10="","",[1]Eaux!E10) -> 0 | P10: =IF([1]Eaux!F10="","",[1]Eaux!F10) -> 0 | Q10: =IF([1]Eaux!G10="","",[1]Eaux!G10) -> 0
A11: Eau de départ 4 | D11: 0 | E11: 0 | F11: 0 | G11: 0 | H11: 0 | I11: 0 | K11: =IF([1]Eaux!A11="","",[1]Eaux!A11) -> Edinburgh | L11: =IF([1]Eaux!B11="","",[1]Eaux!B11) -> 140 | M11: =IF([1]Eaux!C11="","",[1]Eaux!C11) -> 36 | N11: =IF([1]Eaux!D11="","",[1]Eaux!D11) -> 92 | O11: =IF([1]Eaux!E11="","",[1]Eaux!E11) -> 231 | P11: =IF([1]Eaux!F11="","",[1]Eaux!F11) -> 60 | Q11: =IF([1]Eaux!G11="","",[1]Eaux!G11) -> 270
A12: Eau de départ 5 | D12: 0 | E12: 0 | F12: 0 | G12: 0 | H12: 0 | I12: 0 | K12: =IF([1]Eaux!A12="","",[1]Eaux!A12) -> Erie County | L12: =IF([1]Eaux!B12="","",[1]Eaux!B12) -> 31 | M12: =IF([1]Eaux!C12="","",[1]Eaux!C12) -> 8 | N12: =IF([1]Eaux!D12="","",[1]Eaux!D12) -> 10 | O12: =IF([1]Eaux!E12="","",[1]Eaux!E12) -> 24 | P12: =IF([1]Eaux!F12="","",[1]Eaux!F12) -> 18 | Q12: =IF([1]Eaux!G12="","",[1]Eaux!G12) -> 102
A13: Eau obtenue | B13: =SUM(B8:B12) -> 25 | C13: Nouvelle eau | D13: =(D8*$B$8+D9*$B$9+D10*$B$10+D11*$B$11+D12*$B$12)/$B$13 -> 98 | E13: =(E8*$B$8+E9*$B$9+E10*$B$10+E11*$B$11+E12*$B$12)/$B$13 -> 25.8 | F13: 8.6 | G13: 51.8 | H13: 10.8 | I13: 114.6 | K13: =IF([1]Eaux!A13="","",[1]Eaux!A13) -> Lockport | L13: =IF([1]Eaux!B13="","",[1]Eaux!B13) -> 36 | M13: =IF([1]Eaux!C13="","",[1]Eaux!C13) -> 6 | N13: =IF([1]Eaux!D13="","",[1]Eaux!D13) -> 9 | O13: =IF([1]Eaux!E13="","",[1]Eaux!E13) -> 23 | P13: =IF([1]Eaux!F13="","",[1]Eaux!F13) -> 18 | Q13: =IF([1]Eaux!G13="","",[1]Eaux!G13) -> 95
A14: Différence profil cible | D14: =D13-D7 -> 48 | E14: =E13-E7 -> 13.8 | F14: -51.4 | G14: 5.8 | H14: -164.2 | I14: -55.4 | K14: =IF([1]Eaux!A14="","",[1]Eaux!A14) -> London | L14: =IF([1]Eaux!B14="","",[1]Eaux!B14) -> 90 | M14: =IF([1]Eaux!C14="","",[1]Eaux!C14) -> 4 | N14: =IF([1]Eaux!D14="","",[1]Eaux!D14) -> 24 | O14: =IF([1]Eaux!E14="","",[1]Eaux!E14) -> 58 | P14: =IF([1]Eaux!F14="","",[1]Eaux!F14) -> 18 | Q14: =IF([1]Eaux!G14="","",[1]Eaux!G14) -> 123
K15: =IF([1]Eaux!A15="","",[1]Eaux!A15) -> Mild Ale - Dark Lager | L15: =IF([1]Eaux!B15="","",[1]Eaux!B15) -> 75 | M15: =IF([1]Eaux!C15="","",[1]Eaux!C15) -> 12 | N15: =IF([1]Eaux!D15="","",[1]Eaux!D15) -> 35 | O15: =IF([1]Eaux!E15="","",[1]Eaux!E15) -> 120 | P15: =IF([1]Eaux!F15="","",[1]Eaux!F15) -> 100 | Q15: =IF([1]Eaux!G15="","",[1]Eaux!G15) -> 120
K16: =IF([1]Eaux!A16="","",[1]Eaux!A16) -> Munich | L16: =IF([1]Eaux!B16="","",[1]Eaux!B16) -> 76 | M16: =IF([1]Eaux!C16="","",[1]Eaux!C16) -> 18 | N16: =IF([1]Eaux!D16="","",[1]Eaux!D16) -> 1 | O16: =IF([1]Eaux!E16="","",[1]Eaux!E16) -> 10 | P16: =IF([1]Eaux!F16="","",[1]Eaux!F16) -> 2 | Q16: =IF([1]Eaux!G16="","",[1]Eaux!G16) -> 152
A17: Outil sels minéraux | K17: =IF([1]Eaux!A17="","",[1]Eaux!A17) -> Niagara County | L17: =IF([1]Eaux!B17="","",[1]Eaux!B17) -> 31 | M17: =IF([1]Eaux!C17="","",[1]Eaux!C17) -> 10 | N17: =IF([1]Eaux!D17="","",[1]Eaux!D17) -> 10 | O17: =IF([1]Eaux!E17="","",[1]Eaux!E17) -> 25 | P17: =IF([1]Eaux!F17="","",[1]Eaux!F17) -> 20 | Q17: =IF([1]Eaux!G17="","",[1]Eaux!G17) -> 109
K18: =IF([1]Eaux!A18="","",[1]Eaux!A18) -> Niagara Falls | L18: =IF([1]Eaux!B18="","",[1]Eaux!B18) -> 35 | M18: =IF([1]Eaux!C18="","",[1]Eaux!C18) -> 7 | N18: =IF([1]Eaux!D18="","",[1]Eaux!D18) -> 10 | O18: =IF([1]Eaux!E18="","",[1]Eaux!E18) -> 32 | P18: =IF([1]Eaux!F18="","",[1]Eaux!F18) -> 26 | Q18: =IF([1]Eaux!G18="","",[1]Eaux!G18) -> 107
A19: PROFIL | C19: NOM | D19: Ca (50-150) | E19: Mg (10-40) | F19: Na (0-150) | G19: SO4 (50-250) | H19: Cl (0-250) | I19: HCO3 (0-250) | K19: =IF([1]Eaux!A19="","",[1]Eaux!A19) -> Pale Ale | L19: =IF([1]Eaux!B19="","",[1]Eaux!B19) -> 110 | M19: =IF([1]Eaux!C19="","",[1]Eaux!C19) -> 18 | N19: =IF([1]Eaux!D19="","",[1]Eaux!D19) -> 17 | O19: =IF([1]Eaux!E19="","",[1]Eaux!E19) -> 350 | P19: =IF([1]Eaux!F19="","",[1]Eaux!F19) -> 50 | Q19: =IF([1]Eaux!G19="","",[1]Eaux!G19) -> 70
A20: Style BJCCP | C20: 06C - Dunkles Bock | D20: =IF($C$4="","",VLOOKUP($C$4,BJCCP!$A$2:$AU$119,22,FALSE)) -> 50-75 | E20: =IF($C$4="","",VLOOKUP($C$4,BJCCP!$A$2:$AU$119,23,FALSE)) -> 0-30 | F20: =IF($C$4="","",VLOOKUP($C$4,BJCCP!$A$2:$AU$119,24,FALSE)) -> 40-80 | G20: =IF($C$4="","",VLOOKUP($C$4,BJCCP!$A$2:$AU$119,25,FALSE)) -> 0-100 | H20: =IF($C$4="","",VLOOKUP($C$4,BJCCP!$A$2:$AU$119,26,FALSE)) -> 50-150 | I20: =IF($C$4="","",VLOOKUP($C$4,BJCCP!$A$2:$AU$119,27,FALSE)) -> <100 | K20: =IF([1]Eaux!A20="","",[1]Eaux!A20) -> Pale Lager | L20: =IF([1]Eaux!B20="","",[1]Eaux!B20) -> 20 | M20: =IF([1]Eaux!C20="","",[1]Eaux!C20) -> 6 | N20: =IF([1]Eaux!D20="","",[1]Eaux!D20) -> 24 | O20: =IF([1]Eaux!E20="","",[1]Eaux!E20) -> 5 | P20: =IF([1]Eaux!F20="","",[1]Eaux!F20) -> 18 | Q20: =IF([1]Eaux!G20="","",[1]Eaux!G20) -> 60
A21: Profil cible (manuel) | C21: Essai 1 | D21: 60 | E21: 25 | F21: 20 | G21: 75 | H21: 75 | I21: 120 | K21: =IF([1]Eaux!A21="","",[1]Eaux!A21) -> Pilsen | L21: =IF([1]Eaux!B21="","",[1]Eaux!B21) -> 7 | M21: =IF([1]Eaux!C21="","",[1]Eaux!C21) -> 3 | N21: =IF([1]Eaux!D21="","",[1]Eaux!D21) -> 3 | O21: =IF([1]Eaux!E21="","",[1]Eaux!E21) -> 6 | P21: =IF([1]Eaux!F21="","",[1]Eaux!F21) -> 5 | Q21: =IF([1]Eaux!G21="","",[1]Eaux!G21) -> 9
A22: Profil cible (liste) | D22: =IF($C$22="","",VLOOKUP($C$22,$K$4:$Q$97,2,FALSE)) ->  | E22: =IF($C$22="","",VLOOKUP($C$22,$K$4:$Q$97,3,FALSE)) ->  | F22: =IF($C$22="","",VLOOKUP($C$22,$K$4:$Q$97,4,FALSE)) ->  | G22: =IF($C$22="","",VLOOKUP($C$22,$K$4:$Q$97,5,FALSE)) ->  | H22: =IF($C$22="","",VLOOKUP($C$22,$K$4:$Q$97,6,FALSE)) ->  | I22: =IF($C$22="","",VLOOKUP($C$22,$K$4:$Q$97,7,FALSE)) ->  | K22: =IF([1]Eaux!A22="","",[1]Eaux!A22) -> Pollock Pines | L22: =IF([1]Eaux!B22="","",[1]Eaux!B22) -> 5 | M22: =IF([1]Eaux!C22="","",[1]Eaux!C22) -> 1 | N22: =IF([1]Eaux!D22="","",[1]Eaux!D22) -> 6 | O22: =IF([1]Eaux!E22="","",[1]Eaux!E22) -> 4 | P22: =IF([1]Eaux!F22="","",[1]Eaux!F22) -> 5 | Q22: =IF([1]Eaux!G22="","",[1]Eaux!G22) -> 22
A23: Profil cible retenu | C23: =IF($C$22="",C21,C22) -> Essai 1 | D23: 60 | E23: 25 | F23: 20 | G23: 75 | H23: 75 | I23: 111 | K23: =IF([1]Eaux!A23="","",[1]Eaux!A23) -> Stout - Porter | L23: =IF([1]Eaux!B23="","",[1]Eaux!B23) -> 50 | M23: =IF([1]Eaux!C23="","",[1]Eaux!C23) -> 12 | N23: =IF([1]Eaux!D23="","",[1]Eaux!D23) -> 60 | O23: =IF([1]Eaux!E23="","",[1]Eaux!E23) -> 46 | P23: =IF([1]Eaux!F23="","",[1]Eaux!F23) -> 175 | Q23: =IF([1]Eaux!G23="","",[1]Eaux!G23) -> 170
A24: Eau de départ | C24: 00 Saint-Paulet | D24: =IF($C$24="","",VLOOKUP($C$24,$K$4:$Q$97,2,FALSE)) -> 30 | E24: =IF($C$24="","",VLOOKUP($C$24,$K$4:$Q$97,3,FALSE)) -> 3 | F24: =IF($C$24="","",VLOOKUP($C$24,$K$4:$Q$97,4,FALSE)) -> 9 | G24: =IF($C$24="","",VLOOKUP($C$24,$K$4:$Q$97,5,FALSE)) -> 3 | H24: =IF($C$24="","",VLOOKUP($C$24,$K$4:$Q$97,6,FALSE)) -> 10 | I24: =IF($C$24="","",VLOOKUP($C$24,$K$4:$Q$97,7,FALSE)) -> 111 | K24: =IF([1]Eaux!A24="","",[1]Eaux!A24) -> Vienna | L24: =IF([1]Eaux!B24="","",[1]Eaux!B24) -> 200 | M24: =IF([1]Eaux!C24="","",[1]Eaux!C24) -> 60 | N24: =IF([1]Eaux!D24="","",[1]Eaux!D24) -> 8 | O24: =IF([1]Eaux!E24="","",[1]Eaux!E24) -> 125 | P24: =IF([1]Eaux!F24="","",[1]Eaux!F24) -> 12 | Q24: =IF([1]Eaux!G24="","",[1]Eaux!G24) -> 120
A25: Sulfate de Calcium | B25: CaSO4 | C25: 0.01 | D25: =$C25*3.78541178*61.5 -> 2.328028245 | G25: =$C25*3.78541178*147.4 -> 5.579696964 | K25: =IF([1]Eaux!A25="","",[1]Eaux!A25) -> West Flanders | L25: =IF([1]Eaux!B25="","",[1]Eaux!B25) -> 114 | M25: =IF([1]Eaux!C25="","",[1]Eaux!C25) -> 10 | N25: =IF([1]Eaux!D25="","",[1]Eaux!D25) -> 125 | O25: =IF([1]Eaux!E25="","",[1]Eaux!E25) -> 145 | P25: =IF([1]Eaux!F25="","",[1]Eaux!F25) -> 139 | Q25: =IF([1]Eaux!G25="","",[1]Eaux!G25) -> 370
A26: Chlorure de Sodium | B26: NaCl | C26: 0.03 | F26: =$C26*3.78541178*103.9 -> 11.79912852 | H26: =$C26*3.78541178*160.3 -> 18.20404525 | K26: =IF([1]Eaux!A26="","",[1]Eaux!A26) -> Yorkshire | L26: =IF([1]Eaux!B26="","",[1]Eaux!B26) -> 105 | M26: =IF([1]Eaux!C26="","",[1]Eaux!C26) -> 17 | N26: =IF([1]Eaux!D26="","",[1]Eaux!D26) -> 23 | O26: =IF([1]Eaux!E26="","",[1]Eaux!E26) -> 66 | P26: =IF([1]Eaux!F26="","",[1]Eaux!F26) -> 30 | Q26: =IF([1]Eaux!G26="","",[1]Eaux!G26) -> 153
A27: Sulfate de Magnésium | B27: MgSO4 | C27: 0.18 | E27: =$C27*3.78541178*26.01 -> 17.72254087 | G27: =$C27*3.78541178*103 -> 70.1815344 | K27: =IF([1]Eaux!A27="","",[1]Eaux!A27) ->  | L27: =IF([1]Eaux!B27="","",[1]Eaux!B27) ->  | M27: =IF([1]Eaux!C27="","",[1]Eaux!C27) ->  | N27: =IF([1]Eaux!D27="","",[1]Eaux!D27) ->  | O27: =IF([1]Eaux!E27="","",[1]Eaux!E27) ->  | P27: =IF([1]Eaux!F27="","",[1]Eaux!F27) ->  | Q27: =IF([1]Eaux!G27="","",[1]Eaux!G27) -> 
A28: Chlorure de Calcium | B28: CaCl2 | C28: 0.1 | D28: =$C28*3.78541178*72 -> 27.25496482 | H28: =$C28*3.78541178*127.4 -> 48.22614608 | K28: =IF([1]Eaux!A28="","",[1]Eaux!A28) ->  | L28: =IF([1]Eaux!B28="","",[1]Eaux!B28) ->  | M28: =IF([1]Eaux!C28="","",[1]Eaux!C28) ->  | N28: =IF([1]Eaux!D28="","",[1]Eaux!D28) ->  | O28: =IF([1]Eaux!E28="","",[1]Eaux!E28) ->  | P28: =IF([1]Eaux!F28="","",[1]Eaux!F28) ->  | Q28: =IF([1]Eaux!G28="","",[1]Eaux!G28) -> 
A29: Bicarbonate de Sodium | B29: NaHCO3 | C29: 0 | F29: =$C29*3.78541178*72 -> 0 | I29: =$C29*3.78541178*189 -> 0 | K29: =IF([1]Eaux!A29="","",[1]Eaux!A29) ->  | L29: =IF([1]Eaux!B29="","",[1]Eaux!B29) ->  | M29: =IF([1]Eaux!C29="","",[1]Eaux!C29) ->  | N29: =IF([1]Eaux!D29="","",[1]Eaux!D29) ->  | O29: =IF([1]Eaux!E29="","",[1]Eaux!E29) ->  | P29: =IF([1]Eaux!F29="","",[1]Eaux!F29) ->  | Q29: =IF([1]Eaux!G29="","",[1]Eaux!G29) -> 
A30: Carbonate de Calcium | B30: CaCO3 | C30: 0 | D30: =$C30*3.78541178*105.8 -> 0 | I30: =$C30*3.78541178*158.4 -> 0 | K30: =IF([1]Eaux!A30="","",[1]Eaux!A30) ->  | L30: =IF([1]Eaux!B30="","",[1]Eaux!B30) ->  | M30: =IF([1]Eaux!C30="","",[1]Eaux!C30) ->  | N30: =IF([1]Eaux!D30="","",[1]Eaux!D30) ->  | O30: =IF([1]Eaux!E30="","",[1]Eaux!E30) ->  | P30: =IF([1]Eaux!F30="","",[1]Eaux!F30) ->  | Q30: =IF([1]Eaux!G30="","",[1]Eaux!G30) -> 
A31: Profil obtenu | D31: =SUM(D24:D30) -> 59.58299306 | E31: =SUM(E24:E30) -> 20.72254087 | F31: 20.79912852 | G31: 78.76123136 | H31: 76.43019133 | I31: 111 | K31: =IF([1]Eaux!A31="","",[1]Eaux!A31) ->  | L31: =IF([1]Eaux!B31="","",[1]Eaux!B31) ->  | M31: =IF([1]Eaux!C31="","",[1]Eaux!C31) ->  | N31: =IF([1]Eaux!D31="","",[1]Eaux!D31) ->  | O31: =IF([1]Eaux!E31="","",[1]Eaux!E31) ->  | P31: =IF([1]Eaux!F31="","",[1]Eaux!F31) ->  | Q31: =IF([1]Eaux!G31="","",[1]Eaux!G31) -> 
A32: Différence profil cible | D32: =D31-D23 -> -0.4170069393 | E32: =E31-E23 -> -4.277459128 | F32: 0.7991285183 | G32: 3.761231365 | H32: 1.430191327 | I32: 0 | K32: =IF([1]Eaux!A32="","",[1]Eaux!A32) ->  | L32: =IF([1]Eaux!B32="","",[1]Eaux!B32) ->  | M32: =IF([1]Eaux!C32="","",[1]Eaux!C32) ->  | N32: =IF([1]Eaux!D32="","",[1]Eaux!D32) ->  | O32: =IF([1]Eaux!E32="","",[1]Eaux!E32) ->  | P32: =IF([1]Eaux!F32="","",[1]Eaux!F32) ->  | Q32: =IF([1]Eaux!G32="","",[1]Eaux!G32) -> 
K33: =IF([1]Eaux!A33="","",[1]Eaux!A33) ->  | L33: =IF([1]Eaux!B33="","",[1]Eaux!B33) ->  | M33: =IF([1]Eaux!C33="","",[1]Eaux!C33) ->  | N33: =IF([1]Eaux!D33="","",[1]Eaux!D33) ->  | O33: =IF([1]Eaux!E33="","",[1]Eaux!E33) ->  | P33: =IF([1]Eaux!F33="","",[1]Eaux!F33) ->  | Q33: =IF([1]Eaux!G33="","",[1]Eaux!G33) -> 
A34: Ajout des sels minéraux | D34: Empatage | F34: Rinçage | H34: Total | K34: =IF([1]Eaux!A34="","",[1]Eaux!A34) ->  | L34: =IF([1]Eaux!B34="","",[1]Eaux!B34) ->  | M34: =IF([1]Eaux!C34="","",[1]Eaux!C34) ->  | N34: =IF([1]Eaux!D34="","",[1]Eaux!D34) ->  | O34: =IF([1]Eaux!E34="","",[1]Eaux!E34) ->  | P34: =IF([1]Eaux!F34="","",[1]Eaux!F34) ->  | Q34: =IF([1]Eaux!G34="","",[1]Eaux!G34) -> 
D35: 20 | F35: 15 | H35: =D35+F35 -> 35 | K35: =IF([1]Eaux!A35="","",[1]Eaux!A35) ->  | L35: =IF([1]Eaux!B35="","",[1]Eaux!B35) ->  | M35: =IF([1]Eaux!C35="","",[1]Eaux!C35) ->  | N35: =IF([1]Eaux!D35="","",[1]Eaux!D35) ->  | O35: =IF([1]Eaux!E35="","",[1]Eaux!E35) ->  | P35: =IF([1]Eaux!F35="","",[1]Eaux!F35) ->  | Q35: =IF([1]Eaux!G35="","",[1]Eaux!G35) -> 
A36: Sulfate de Calcium | B36: CaSO4 | C36: =C25 -> 0.01 | D36: =$C36*$D$35 -> 0.2 | F36: =$C36*$F$35 -> 0.15 | H36: =D36+F36 -> 0.35 | K36: =IF([1]Eaux!A36="","",[1]Eaux!A36) ->  | L36: =IF([1]Eaux!B36="","",[1]Eaux!B36) ->  | M36: =IF([1]Eaux!C36="","",[1]Eaux!C36) ->  | N36: =IF([1]Eaux!D36="","",[1]Eaux!D36) ->  | O36: =IF([1]Eaux!E36="","",[1]Eaux!E36) ->  | P36: =IF([1]Eaux!F36="","",[1]Eaux!F36) ->  | Q36: =IF([1]Eaux!G36="","",[1]Eaux!G36) -> 
A37: Chlorure de Sodium | B37: NaCl | C37: =C26 -> 0.03 | D37: =$C37*$D$35 -> 0.6 | F37: =$C37*$F$35 -> 0.45 | H37: 1.05 | K37: =IF([1]Eaux!A37="","",[1]Eaux!A37) ->  | L37: =IF([1]Eaux!B37="","",[1]Eaux!B37) ->  | M37: =IF([1]Eaux!C37="","",[1]Eaux!C37) ->  | N37: =IF([1]Eaux!D37="","",[1]Eaux!D37) ->  | O37: =IF([1]Eaux!E37="","",[1]Eaux!E37) ->  | P37: =IF([1]Eaux!F37="","",[1]Eaux!F37) ->  | Q37: =IF([1]Eaux!G37="","",[1]Eaux!G37) -> 
A38: Sulfate de Magnésium | B38: MgSO4 | C38: 0.18 | D38: 3.6 | F38: 2.7 | H38: =D38+F38 -> 6.3 | K38: =IF([1]Eaux!A38="","",[1]Eaux!A38) ->  | L38: =IF([1]Eaux!B38="","",[1]Eaux!B38) ->  | M38: =IF([1]Eaux!C38="","",[1]Eaux!C38) ->  | N38: =IF([1]Eaux!D38="","",[1]Eaux!D38) ->  | O38: =IF([1]Eaux!E38="","",[1]Eaux!E38) ->  | P38: =IF([1]Eaux!F38="","",[1]Eaux!F38) ->  | Q38: =IF([1]Eaux!G38="","",[1]Eaux!G38) -> 
A39: Chlorure de Calcium | B39: CaCl2 | C39: 0.1 | D39: 2 | F39: 1.5 | H39: =D39+F39 -> 3.5 | K39: =IF([1]Eaux!A39="","",[1]Eaux!A39) ->  | L39: =IF([1]Eaux!B39="","",[1]Eaux!B39) ->  | M39: =IF([1]Eaux!C39="","",[1]Eaux!C39) ->  | N39: =IF([1]Eaux!D39="","",[1]Eaux!D39) ->  | O39: =IF([1]Eaux!E39="","",[1]Eaux!E39) ->  | P39: =IF([1]Eaux!F39="","",[1]Eaux!F39) ->  | Q39: =IF([1]Eaux!G39="","",[1]Eaux!G39) -> 
A40: Bicarbonate de Sodium | B40: NaHCO3 | C40: 0 | D40: 0 | F40: 0 | H40: 0 | K40: =IF([1]Eaux!A40="","",[1]Eaux!A40) ->  | L40: =IF([1]Eaux!B40="","",[1]Eaux!B40) ->  | M40: =IF([1]Eaux!C40="","",[1]Eaux!C40) ->  | N40: =IF([1]Eaux!D40="","",[1]Eaux!D40) ->  | O40: =IF([1]Eaux!E40="","",[1]Eaux!E40) ->  | P40: =IF([1]Eaux!F40="","",[1]Eaux!F40) ->  | Q40: =IF([1]Eaux!G40="","",[1]Eaux!G40) -> 
A41: Carbonate de Calcium | B41: CaCO3 | C41: 0 | D41: 0 | F41: 0 | H41: 0 | K41: =IF([1]Eaux!A41="","",[1]Eaux!A41) ->  | L41: =IF([1]Eaux!B41="","",[1]Eaux!B41) ->  | M41: =IF([1]Eaux!C41="","",[1]Eaux!C41) ->  | N41: =IF([1]Eaux!D41="","",[1]Eaux!D41) ->  | O41: =IF([1]Eaux!E41="","",[1]Eaux!E41) ->  | P41: =IF([1]Eaux!F41="","",[1]Eaux!F41) ->  | Q41: =IF([1]Eaux!G41="","",[1]Eaux!G41) -> 
K42: =IF([1]Eaux!A42="","",[1]Eaux!A42) ->  | L42: =IF([1]Eaux!B42="","",[1]Eaux!B42) ->  | M42: =IF([1]Eaux!C42="","",[1]Eaux!C42) ->  | N42: =IF([1]Eaux!D42="","",[1]Eaux!D42) ->  | O42: =IF([1]Eaux!E42="","",[1]Eaux!E42) ->  | P42: =IF([1]Eaux!F42="","",[1]Eaux!F42) ->  | Q42: =IF([1]Eaux!G42="","",[1]Eaux!G42) -> 
K43: =IF([1]Eaux!A43="","",[1]Eaux!A43) ->  | L43: =IF([1]Eaux!B43="","",[1]Eaux!B43) ->  | M43: =IF([1]Eaux!C43="","",[1]Eaux!C43) ->  | N43: =IF([1]Eaux!D43="","",[1]Eaux!D43) ->  | O43: =IF([1]Eaux!E43="","",[1]Eaux!E43) ->  | P43: =IF([1]Eaux!F43="","",[1]Eaux!F43) ->  | Q43: =IF([1]Eaux!G43="","",[1]Eaux!G43) -> 
K44: =IF([1]Eaux!A44="","",[1]Eaux!A44) ->  | L44: =IF([1]Eaux!B44="","",[1]Eaux!B44) ->  | M44: =IF([1]Eaux!C44="","",[1]Eaux!C44) ->  | N44: =IF([1]Eaux!D44="","",[1]Eaux!D44) ->  | O44: =IF([1]Eaux!E44="","",[1]Eaux!E44) ->  | P44: =IF([1]Eaux!F44="","",[1]Eaux!F44) ->  | Q44: =IF([1]Eaux!G44="","",[1]Eaux!G44) -> 
K45: =IF([1]Eaux!A45="","",[1]Eaux!A45) ->  | L45: =IF([1]Eaux!B45="","",[1]Eaux!B45) ->  | M45: =IF([1]Eaux!C45="","",[1]Eaux!C45) ->  | N45: =IF([1]Eaux!D45="","",[1]Eaux!D45) ->  | O45: =IF([1]Eaux!E45="","",[1]Eaux!E45) ->  | P45: =IF([1]Eaux!F45="","",[1]Eaux!F45) ->  | Q45: =IF([1]Eaux!G45="","",[1]Eaux!G45) -> 
K46: =IF([1]Eaux!A46="","",[1]Eaux!A46) ->  | L46: =IF([1]Eaux!B46="","",[1]Eaux!B46) ->  | M46: =IF([1]Eaux!C46="","",[1]Eaux!C46) ->  | N46: =IF([1]Eaux!D46="","",[1]Eaux!D46) ->  | O46: =IF([1]Eaux!E46="","",[1]Eaux!E46) ->  | P46: =IF([1]Eaux!F46="","",[1]Eaux!F46) ->  | Q46: =IF([1]Eaux!G46="","",[1]Eaux!G46) -> 
K47: =IF([1]Eaux!A47="","",[1]Eaux!A47) ->  | L47: =IF([1]Eaux!B47="","",[1]Eaux!B47) ->  | M47: =IF([1]Eaux!C47="","",[1]Eaux!C47) ->  | N47: =IF([1]Eaux!D47="","",[1]Eaux!D47) ->  | O47: =IF([1]Eaux!E47="","",[1]Eaux!E47) ->  | P47: =IF([1]Eaux!F47="","",[1]Eaux!F47) ->  | Q47: =IF([1]Eaux!G47="","",[1]Eaux!G47) -> 
K48: =IF([1]Eaux!A48="","",[1]Eaux!A48) ->  | L48: =IF([1]Eaux!B48="","",[1]Eaux!B48) ->  | M48: =IF([1]Eaux!C48="","",[1]Eaux!C48) ->  | N48: =IF([1]Eaux!D48="","",[1]Eaux!D48) ->  | O48: =IF([1]Eaux!E48="","",[1]Eaux!E48) ->  | P48: =IF([1]Eaux!F48="","",[1]Eaux!F48) ->  | Q48: =IF([1]Eaux!G48="","",[1]Eaux!G48) -> 
K49: =IF([1]Eaux!A49="","",[1]Eaux!A49) ->  | L49: =IF([1]Eaux!B49="","",[1]Eaux!B49) ->  | M49: =IF([1]Eaux!C49="","",[1]Eaux!C49) ->  | N49: =IF([1]Eaux!D49="","",[1]Eaux!D49) ->  | O49: =IF([1]Eaux!E49="","",[1]Eaux!E49) ->  | P49: =IF([1]Eaux!F49="","",[1]Eaux!F49) ->  | Q49: =IF([1]Eaux!G49="","",[1]Eaux!G49) -> 
K50: =IF([1]Eaux!A50="","",[1]Eaux!A50) ->  | L50: =IF([1]Eaux!B50="","",[1]Eaux!B50) ->  | M50: =IF([1]Eaux!C50="","",[1]Eaux!C50) ->  | N50: =IF([1]Eaux!D50="","",[1]Eaux!D50) ->  | O50: =IF([1]Eaux!E50="","",[1]Eaux!E50) ->  | P50: =IF([1]Eaux!F50="","",[1]Eaux!F50) ->  | Q50: =IF([1]Eaux!G50="","",[1]Eaux!G50) -> 
K51: =IF([1]Eaux!A51="","",[1]Eaux!A51) ->  | L51: =IF([1]Eaux!B51="","",[1]Eaux!B51) ->  | M51: =IF([1]Eaux!C51="","",[1]Eaux!C51) ->  | N51: =IF([1]Eaux!D51="","",[1]Eaux!D51) ->  | O51: =IF([1]Eaux!E51="","",[1]Eaux!E51) ->  | P51: =IF([1]Eaux!F51="","",[1]Eaux!F51) ->  | Q51: =IF([1]Eaux!G51="","",[1]Eaux!G51) -> 
K52: =IF([1]Eaux!A52="","",[1]Eaux!A52) ->  | L52: =IF([1]Eaux!B52="","",[1]Eaux!B52) ->  | M52: =IF([1]Eaux!C52="","",[1]Eaux!C52) ->  | N52: =IF([1]Eaux!D52="","",[1]Eaux!D52) ->  | O52: =IF([1]Eaux!E52="","",[1]Eaux!E52) ->  | P52: =IF([1]Eaux!F52="","",[1]Eaux!F52) ->  | Q52: =IF([1]Eaux!G52="","",[1]Eaux!G52) -> 
K53: =IF([1]Eaux!A53="","",[1]Eaux!A53) ->  | L53: =IF([1]Eaux!B53="","",[1]Eaux!B53) ->  | M53: =IF([1]Eaux!C53="","",[1]Eaux!C53) ->  | N53: =IF([1]Eaux!D53="","",[1]Eaux!D53) ->  | O53: =IF([1]Eaux!E53="","",[1]Eaux!E53) ->  | P53: =IF([1]Eaux!F53="","",[1]Eaux!F53) ->  | Q53: =IF([1]Eaux!G53="","",[1]Eaux!G53) -> 
K54: =IF([1]Eaux!A54="","",[1]Eaux!A54) ->  | L54: =IF([1]Eaux!B54="","",[1]Eaux!B54) ->  | M54: =IF([1]Eaux!C54="","",[1]Eaux!C54) ->  | N54: =IF([1]Eaux!D54="","",[1]Eaux!D54) ->  | O54: =IF([1]Eaux!E54="","",[1]Eaux!E54) ->  | P54: =IF([1]Eaux!F54="","",[1]Eaux!F54) ->  | Q54: =IF([1]Eaux!G54="","",[1]Eaux!G54) -> 
K55: =IF([1]Eaux!A55="","",[1]Eaux!A55) ->  | L55: =IF([1]Eaux!B55="","",[1]Eaux!B55) ->  | M55: =IF([1]Eaux!C55="","",[1]Eaux!C55) ->  | N55: =IF([1]Eaux!D55="","",[1]Eaux!D55) ->  | O55: =IF([1]Eaux!E55="","",[1]Eaux!E55) ->  | P55: =IF([1]Eaux!F55="","",[1]Eaux!F55) ->  | Q55: =IF([1]Eaux!G55="","",[1]Eaux!G55) -> 
K56: =IF([1]Eaux!A56="","",[1]Eaux!A56) ->  | L56: =IF([1]Eaux!B56="","",[1]Eaux!B56) ->  | M56: =IF([1]Eaux!C56="","",[1]Eaux!C56) ->  | N56: =IF([1]Eaux!D56="","",[1]Eaux!D56) ->  | O56: =IF([1]Eaux!E56="","",[1]Eaux!E56) ->  | P56: =IF([1]Eaux!F56="","",[1]Eaux!F56) ->  | Q56: =IF([1]Eaux!G56="","",[1]Eaux!G56) -> 
K57: =IF([1]Eaux!A57="","",[1]Eaux!A57) ->  | L57: =IF([1]Eaux!B57="","",[1]Eaux!B57) ->  | M57: =IF([1]Eaux!C57="","",[1]Eaux!C57) ->  | N57: =IF([1]Eaux!D57="","",[1]Eaux!D57) ->  | O57: =IF([1]Eaux!E57="","",[1]Eaux!E57) ->  | P57: =IF([1]Eaux!F57="","",[1]Eaux!F57) ->  | Q57: =IF([1]Eaux!G57="","",[1]Eaux!G57) -> 
K58: =IF([1]Eaux!A58="","",[1]Eaux!A58) ->  | L58: =IF([1]Eaux!B58="","",[1]Eaux!B58) ->  | M58: =IF([1]Eaux!C58="","",[1]Eaux!C58) ->  | N58: =IF([1]Eaux!D58="","",[1]Eaux!D58) ->  | O58: =IF([1]Eaux!E58="","",[1]Eaux!E58) ->  | P58: =IF([1]Eaux!F58="","",[1]Eaux!F58) ->  | Q58: =IF([1]Eaux!G58="","",[1]Eaux!G58) -> 
K59: =IF([1]Eaux!A59="","",[1]Eaux!A59) ->  | L59: =IF([1]Eaux!B59="","",[1]Eaux!B59) ->  | M59: =IF([1]Eaux!C59="","",[1]Eaux!C59) ->  | N59: =IF([1]Eaux!D59="","",[1]Eaux!D59) ->  | O59: =IF([1]Eaux!E59="","",[1]Eaux!E59) ->  | P59: =IF([1]Eaux!F59="","",[1]Eaux!F59) ->  | Q59: =IF([1]Eaux!G59="","",[1]Eaux!G59) -> 
K60: =IF([1]Eaux!A60="","",[1]Eaux!A60) ->  | L60: =IF([1]Eaux!B60="","",[1]Eaux!B60) ->  | M60: =IF([1]Eaux!C60="","",[1]Eaux!C60) ->  | N60: =IF([1]Eaux!D60="","",[1]Eaux!D60) ->  | O60: =IF([1]Eaux!E60="","",[1]Eaux!E60) ->  | P60: =IF([1]Eaux!F60="","",[1]Eaux!F60) ->  | Q60: =IF([1]Eaux!G60="","",[1]Eaux!G60) -> 
K61: =IF([1]Eaux!A61="","",[1]Eaux!A61) ->  | L61: =IF([1]Eaux!B61="","",[1]Eaux!B61) ->  | M61: =IF([1]Eaux!C61="","",[1]Eaux!C61) ->  | N61: =IF([1]Eaux!D61="","",[1]Eaux!D61) ->  | O61: =IF([1]Eaux!E61="","",[1]Eaux!E61) ->  | P61: =IF([1]Eaux!F61="","",[1]Eaux!F61) ->  | Q61: =IF([1]Eaux!G61="","",[1]Eaux!G61) -> 
K62: =IF([1]Eaux!A62="","",[1]Eaux!A62) ->  | L62: =IF([1]Eaux!B62="","",[1]Eaux!B62) ->  | M62: =IF([1]Eaux!C62="","",[1]Eaux!C62) ->  | N62: =IF([1]Eaux!D62="","",[1]Eaux!D62) ->  | O62: =IF([1]Eaux!E62="","",[1]Eaux!E62) ->  | P62: =IF([1]Eaux!F62="","",[1]Eaux!F62) ->  | Q62: =IF([1]Eaux!G62="","",[1]Eaux!G62) -> 
K63: =IF([1]Eaux!A63="","",[1]Eaux!A63) ->  | L63: =IF([1]Eaux!B63="","",[1]Eaux!B63) ->  | M63: =IF([1]Eaux!C63="","",[1]Eaux!C63) ->  | N63: =IF([1]Eaux!D63="","",[1]Eaux!D63) ->  | O63: =IF([1]Eaux!E63="","",[1]Eaux!E63) ->  | P63: =IF([1]Eaux!F63="","",[1]Eaux!F63) ->  | Q63: =IF([1]Eaux!G63="","",[1]Eaux!G63) -> 
K64: =IF([1]Eaux!A64="","",[1]Eaux!A64) ->  | L64: =IF([1]Eaux!B64="","",[1]Eaux!B64) ->  | M64: =IF([1]Eaux!C64="","",[1]Eaux!C64) ->  | N64: =IF([1]Eaux!D64="","",[1]Eaux!D64) ->  | O64: =IF([1]Eaux!E64="","",[1]Eaux!E64) ->  | P64: =IF([1]Eaux!F64="","",[1]Eaux!F64) ->  | Q64: =IF([1]Eaux!G64="","",[1]Eaux!G64) -> 
K65: =IF([1]Eaux!A65="","",[1]Eaux!A65) ->  | L65: =IF([1]Eaux!B65="","",[1]Eaux!B65) ->  | M65: =IF([1]Eaux!C65="","",[1]Eaux!C65) ->  | N65: =IF([1]Eaux!D65="","",[1]Eaux!D65) ->  | O65: =IF([1]Eaux!E65="","",[1]Eaux!E65) ->  | P65: =IF([1]Eaux!F65="","",[1]Eaux!F65) ->  | Q65: =IF([1]Eaux!G65="","",[1]Eaux!G65) -> 
K66: =IF([1]Eaux!A66="","",[1]Eaux!A66) ->  | L66: =IF([1]Eaux!B66="","",[1]Eaux!B66) ->  | M66: =IF([1]Eaux!C66="","",[1]Eaux!C66) ->  | N66: =IF([1]Eaux!D66="","",[1]Eaux!D66) ->  | O66: =IF([1]Eaux!E66="","",[1]Eaux!E66) ->  | P66: =IF([1]Eaux!F66="","",[1]Eaux!F66) ->  | Q66: =IF([1]Eaux!G66="","",[1]Eaux!G66) -> 
K67: =IF([1]Eaux!A67="","",[1]Eaux!A67) ->  | L67: =IF([1]Eaux!B67="","",[1]Eaux!B67) ->  | M67: =IF([1]Eaux!C67="","",[1]Eaux!C67) ->  | N67: =IF([1]Eaux!D67="","",[1]Eaux!D67) ->  | O67: =IF([1]Eaux!E67="","",[1]Eaux!E67) ->  | P67: =IF([1]Eaux!F67="","",[1]Eaux!F67) ->  | Q67: =IF([1]Eaux!G67="","",[1]Eaux!G67) -> 
K68: =IF([1]Eaux!A68="","",[1]Eaux!A68) ->  | L68: =IF([1]Eaux!B68="","",[1]Eaux!B68) ->  | M68: =IF([1]Eaux!C68="","",[1]Eaux!C68) ->  | N68: =IF([1]Eaux!D68="","",[1]Eaux!D68) ->  | O68: =IF([1]Eaux!E68="","",[1]Eaux!E68) ->  | P68: =IF([1]Eaux!F68="","",[1]Eaux!F68) ->  | Q68: =IF([1]Eaux!G68="","",[1]Eaux!G68) -> 
K69: =IF([1]Eaux!A69="","",[1]Eaux!A69) ->  | L69: =IF([1]Eaux!B69="","",[1]Eaux!B69) ->  | M69: =IF([1]Eaux!C69="","",[1]Eaux!C69) ->  | N69: =IF([1]Eaux!D69="","",[1]Eaux!D69) ->  | O69: =IF([1]Eaux!E69="","",[1]Eaux!E69) ->  | P69: =IF([1]Eaux!F69="","",[1]Eaux!F69) ->  | Q69: =IF([1]Eaux!G69="","",[1]Eaux!G69) -> 
K70: =IF([1]Eaux!A70="","",[1]Eaux!A70) ->  | L70: =IF([1]Eaux!B70="","",[1]Eaux!B70) ->  | M70: =IF([1]Eaux!C70="","",[1]Eaux!C70) ->  | N70: =IF([1]Eaux!D70="","",[1]Eaux!D70) ->  | O70: =IF([1]Eaux!E70="","",[1]Eaux!E70) ->  | P70: =IF([1]Eaux!F70="","",[1]Eaux!F70) ->  | Q70: =IF([1]Eaux!G70="","",[1]Eaux!G70) -> 
K71: =IF([1]Eaux!A71="","",[1]Eaux!A71) ->  | L71: =IF([1]Eaux!B71="","",[1]Eaux!B71) ->  | M71: =IF([1]Eaux!C71="","",[1]Eaux!C71) ->  | N71: =IF([1]Eaux!D71="","",[1]Eaux!D71) ->  | O71: =IF([1]Eaux!E71="","",[1]Eaux!E71) ->  | P71: =IF([1]Eaux!F71="","",[1]Eaux!F71) ->  | Q71: =IF([1]Eaux!G71="","",[1]Eaux!G71) -> 
K72: =IF([1]Eaux!A72="","",[1]Eaux!A72) ->  | L72: =IF([1]Eaux!B72="","",[1]Eaux!B72) ->  | M72: =IF([1]Eaux!C72="","",[1]Eaux!C72) ->  | N72: =IF([1]Eaux!D72="","",[1]Eaux!D72) ->  | O72: =IF([1]Eaux!E72="","",[1]Eaux!E72) ->  | P72: =IF([1]Eaux!F72="","",[1]Eaux!F72) ->  | Q72: =IF([1]Eaux!G72="","",[1]Eaux!G72) -> 
K73: =IF([1]Eaux!A73="","",[1]Eaux!A73) ->  | L73: =IF([1]Eaux!B73="","",[1]Eaux!B73) ->  | M73: =IF([1]Eaux!C73="","",[1]Eaux!C73) ->  | N73: =IF([1]Eaux!D73="","",[1]Eaux!D73) ->  | O73: =IF([1]Eaux!E73="","",[1]Eaux!E73) ->  | P73: =IF([1]Eaux!F73="","",[1]Eaux!F73) ->  | Q73: =IF([1]Eaux!G73="","",[1]Eaux!G73) -> 
K74: =IF([1]Eaux!A74="","",[1]Eaux!A74) ->  | L74: =IF([1]Eaux!B74="","",[1]Eaux!B74) ->  | M74: =IF([1]Eaux!C74="","",[1]Eaux!C74) ->  | N74: =IF([1]Eaux!D74="","",[1]Eaux!D74) ->  | O74: =IF([1]Eaux!E74="","",[1]Eaux!E74) ->  | P74: =IF([1]Eaux!F74="","",[1]Eaux!F74) ->  | Q74: =IF([1]Eaux!G74="","",[1]Eaux!G74) -> 
K75: =IF([1]Eaux!A75="","",[1]Eaux!A75) ->  | L75: =IF([1]Eaux!B75="","",[1]Eaux!B75) ->  | M75: =IF([1]Eaux!C75="","",[1]Eaux!C75) ->  | N75: =IF([1]Eaux!D75="","",[1]Eaux!D75) ->  | O75: =IF([1]Eaux!E75="","",[1]Eaux!E75) ->  | P75: =IF([1]Eaux!F75="","",[1]Eaux!F75) ->  | Q75: =IF([1]Eaux!G75="","",[1]Eaux!G75) -> 
K76: =IF([1]Eaux!A76="","",[1]Eaux!A76) ->  | L76: =IF([1]Eaux!B76="","",[1]Eaux!B76) ->  | M76: =IF([1]Eaux!C76="","",[1]Eaux!C76) ->  | N76: =IF([1]Eaux!D76="","",[1]Eaux!D76) ->  | O76: =IF([1]Eaux!E76="","",[1]Eaux!E76) ->  | P76: =IF([1]Eaux!F76="","",[1]Eaux!F76) ->  | Q76: =IF([1]Eaux!G76="","",[1]Eaux!G76) -> 
K77: =IF([1]Eaux!A77="","",[1]Eaux!A77) ->  | L77: =IF([1]Eaux!B77="","",[1]Eaux!B77) ->  | M77: =IF([1]Eaux!C77="","",[1]Eaux!C77) ->  | N77: =IF([1]Eaux!D77="","",[1]Eaux!D77) ->  | O77: =IF([1]Eaux!E77="","",[1]Eaux!E77) ->  | P77: =IF([1]Eaux!F77="","",[1]Eaux!F77) ->  | Q77: =IF([1]Eaux!G77="","",[1]Eaux!G77) -> 
K78: =IF([1]Eaux!A78="","",[1]Eaux!A78) ->  | L78: =IF([1]Eaux!B78="","",[1]Eaux!B78) ->  | M78: =IF([1]Eaux!C78="","",[1]Eaux!C78) ->  | N78: =IF([1]Eaux!D78="","",[1]Eaux!D78) ->  | O78: =IF([1]Eaux!E78="","",[1]Eaux!E78) ->  | P78: =IF([1]Eaux!F78="","",[1]Eaux!F78) ->  | Q78: =IF([1]Eaux!G78="","",[1]Eaux!G78) -> 
K79: =IF([1]Eaux!A79="","",[1]Eaux!A79) ->  | L79: =IF([1]Eaux!B79="","",[1]Eaux!B79) ->  | M79: =IF([1]Eaux!C79="","",[1]Eaux!C79) ->  | N79: =IF([1]Eaux!D79="","",[1]Eaux!D79) ->  | O79: =IF([1]Eaux!E79="","",[1]Eaux!E79) ->  | P79: =IF([1]Eaux!F79="","",[1]Eaux!F79) ->  | Q79: =IF([1]Eaux!G79="","",[1]Eaux!G79) -> 
K80: =IF([1]Eaux!A80="","",[1]Eaux!A80) ->  | L80: =IF([1]Eaux!B80="","",[1]Eaux!B80) ->  | M80: =IF([1]Eaux!C80="","",[1]Eaux!C80) ->  | N80: =IF([1]Eaux!D80="","",[1]Eaux!D80) ->  | O80: =IF([1]Eaux!E80="","",[1]Eaux!E80) ->  | P80: =IF([1]Eaux!F80="","",[1]Eaux!F80) ->  | Q80: =IF([1]Eaux!G80="","",[1]Eaux!G80) -> 
K81: =IF([1]Eaux!A81="","",[1]Eaux!A81) ->  | L81: =IF([1]Eaux!B81="","",[1]Eaux!B81) ->  | M81: =IF([1]Eaux!C81="","",[1]Eaux!C81) ->  | N81: =IF([1]Eaux!D81="","",[1]Eaux!D81) ->  | O81: =IF([1]Eaux!E81="","",[1]Eaux!E81) ->  | P81: =IF([1]Eaux!F81="","",[1]Eaux!F81) ->  | Q81: =IF([1]Eaux!G81="","",[1]Eaux!G81) -> 
K82: =IF([1]Eaux!A82="","",[1]Eaux!A82) ->  | L82: =IF([1]Eaux!B82="","",[1]Eaux!B82) ->  | M82: =IF([1]Eaux!C82="","",[1]Eaux!C82) ->  | N82: =IF([1]Eaux!D82="","",[1]Eaux!D82) ->  | O82: =IF([1]Eaux!E82="","",[1]Eaux!E82) ->  | P82: =IF([1]Eaux!F82="","",[1]Eaux!F82) ->  | Q82: =IF([1]Eaux!G82="","",[1]Eaux!G82) -> 
K83: =IF([1]Eaux!A83="","",[1]Eaux!A83) ->  | L83: =IF([1]Eaux!B83="","",[1]Eaux!B83) ->  | M83: =IF([1]Eaux!C83="","",[1]Eaux!C83) ->  | N83: =IF([1]Eaux!D83="","",[1]Eaux!D83) ->  | O83: =IF([1]Eaux!E83="","",[1]Eaux!E83) ->  | P83: =IF([1]Eaux!F83="","",[1]Eaux!F83) ->  | Q83: =IF([1]Eaux!G83="","",[1]Eaux!G83) -> 
K84: =IF([1]Eaux!A84="","",[1]Eaux!A84) ->  | L84: =IF([1]Eaux!B84="","",[1]Eaux!B84) ->  | M84: =IF([1]Eaux!C84="","",[1]Eaux!C84) ->  | N84: =IF([1]Eaux!D84="","",[1]Eaux!D84) ->  | O84: =IF([1]Eaux!E84="","",[1]Eaux!E84) ->  | P84: =IF([1]Eaux!F84="","",[1]Eaux!F84) ->  | Q84: =IF([1]Eaux!G84="","",[1]Eaux!G84) -> 
K85: =IF([1]Eaux!A85="","",[1]Eaux!A85) ->  | L85: =IF([1]Eaux!B85="","",[1]Eaux!B85) ->  | M85: =IF([1]Eaux!C85="","",[1]Eaux!C85) ->  | N85: =IF([1]Eaux!D85="","",[1]Eaux!D85) ->  | O85: =IF([1]Eaux!E85="","",[1]Eaux!E85) ->  | P85: =IF([1]Eaux!F85="","",[1]Eaux!F85) ->  | Q85: =IF([1]Eaux!G85="","",[1]Eaux!G85) -> 
K86: =IF([1]Eaux!A86="","",[1]Eaux!A86) ->  | L86: =IF([1]Eaux!B86="","",[1]Eaux!B86) ->  | M86: =IF([1]Eaux!C86="","",[1]Eaux!C86) ->  | N86: =IF([1]Eaux!D86="","",[1]Eaux!D86) ->  | O86: =IF([1]Eaux!E86="","",[1]Eaux!E86) ->  | P86: =IF([1]Eaux!F86="","",[1]Eaux!F86) ->  | Q86: =IF([1]Eaux!G86="","",[1]Eaux!G86) -> 
K87: =IF([1]Eaux!A87="","",[1]Eaux!A87) ->  | L87: =IF([1]Eaux!B87="","",[1]Eaux!B87) ->  | M87: =IF([1]Eaux!C87="","",[1]Eaux!C87) ->  | N87: =IF([1]Eaux!D87="","",[1]Eaux!D87) ->  | O87: =IF([1]Eaux!E87="","",[1]Eaux!E87) ->  | P87: =IF([1]Eaux!F87="","",[1]Eaux!F87) ->  | Q87: =IF([1]Eaux!G87="","",[1]Eaux!G87) -> 
K88: =IF([1]Eaux!A88="","",[1]Eaux!A88) ->  | L88: =IF([1]Eaux!B88="","",[1]Eaux!B88) ->  | M88: =IF([1]Eaux!C88="","",[1]Eaux!C88) ->  | N88: =IF([1]Eaux!D88="","",[1]Eaux!D88) ->  | O88: =IF([1]Eaux!E88="","",[1]Eaux!E88) ->  | P88: =IF([1]Eaux!F88="","",[1]Eaux!F88) ->  | Q88: =IF([1]Eaux!G88="","",[1]Eaux!G88) -> 
K89: =IF([1]Eaux!A89="","",[1]Eaux!A89) ->  | L89: =IF([1]Eaux!B89="","",[1]Eaux!B89) ->  | M89: =IF([1]Eaux!C89="","",[1]Eaux!C89) ->  | N89: =IF([1]Eaux!D89="","",[1]Eaux!D89) ->  | O89: =IF([1]Eaux!E89="","",[1]Eaux!E89) ->  | P89: =IF([1]Eaux!F89="","",[1]Eaux!F89) ->  | Q89: =IF([1]Eaux!G89="","",[1]Eaux!G89) -> 
K90: =IF([1]Eaux!A90="","",[1]Eaux!A90) ->  | L90: =IF([1]Eaux!B90="","",[1]Eaux!B90) ->  | M90: =IF([1]Eaux!C90="","",[1]Eaux!C90) ->  | N90: =IF([1]Eaux!D90="","",[1]Eaux!D90) ->  | O90: =IF([1]Eaux!E90="","",[1]Eaux!E90) ->  | P90: =IF([1]Eaux!F90="","",[1]Eaux!F90) ->  | Q90: =IF([1]Eaux!G90="","",[1]Eaux!G90) -> 
K91: =IF([1]Eaux!A91="","",[1]Eaux!A91) ->  | L91: =IF([1]Eaux!B91="","",[1]Eaux!B91) ->  | M91: =IF([1]Eaux!C91="","",[1]Eaux!C91) ->  | N91: =IF([1]Eaux!D91="","",[1]Eaux!D91) ->  | O91: =IF([1]Eaux!E91="","",[1]Eaux!E91) ->  | P91: =IF([1]Eaux!F91="","",[1]Eaux!F91) ->  | Q91: =IF([1]Eaux!G91="","",[1]Eaux!G91) -> 
K92: =IF([1]Eaux!A92="","",[1]Eaux!A92) ->  | L92: =IF([1]Eaux!B92="","",[1]Eaux!B92) ->  | M92: =IF([1]Eaux!C92="","",[1]Eaux!C92) ->  | N92: =IF([1]Eaux!D92="","",[1]Eaux!D92) ->  | O92: =IF([1]Eaux!E92="","",[1]Eaux!E92) ->  | P92: =IF([1]Eaux!F92="","",[1]Eaux!F92) ->  | Q92: =IF([1]Eaux!G92="","",[1]Eaux!G92) -> 
K93: =IF([1]Eaux!A93="","",[1]Eaux!A93) ->  | L93: =IF([1]Eaux!B93="","",[1]Eaux!B93) ->  | M93: =IF([1]Eaux!C93="","",[1]Eaux!C93) ->  | N93: =IF([1]Eaux!D93="","",[1]Eaux!D93) ->  | O93: =IF([1]Eaux!E93="","",[1]Eaux!E93) ->  | P93: =IF([1]Eaux!F93="","",[1]Eaux!F93) ->  | Q93: =IF([1]Eaux!G93="","",[1]Eaux!G93) -> 
K94: =IF([1]Eaux!A94="","",[1]Eaux!A94) ->  | L94: =IF([1]Eaux!B94="","",[1]Eaux!B94) ->  | M94: =IF([1]Eaux!C94="","",[1]Eaux!C94) ->  | N94: =IF([1]Eaux!D94="","",[1]Eaux!D94) ->  | O94: =IF([1]Eaux!E94="","",[1]Eaux!E94) ->  | P94: =IF([1]Eaux!F94="","",[1]Eaux!F94) ->  | Q94: =IF([1]Eaux!G94="","",[1]Eaux!G94) -> 
K95: =IF([1]Eaux!A95="","",[1]Eaux!A95) ->  | L95: =IF([1]Eaux!B95="","",[1]Eaux!B95) ->  | M95: =IF([1]Eaux!C95="","",[1]Eaux!C95) ->  | N95: =IF([1]Eaux!D95="","",[1]Eaux!D95) ->  | O95: =IF([1]Eaux!E95="","",[1]Eaux!E95) ->  | P95: =IF([1]Eaux!F95="","",[1]Eaux!F95) ->  | Q95: =IF([1]Eaux!G95="","",[1]Eaux!G95) -> 
K96: =IF([1]Eaux!A96="","",[1]Eaux!A96) ->  | L96: =IF([1]Eaux!B96="","",[1]Eaux!B96) ->  | M96: =IF([1]Eaux!C96="","",[1]Eaux!C96) ->  | N96: =IF([1]Eaux!D96="","",[1]Eaux!D96) ->  | O96: =IF([1]Eaux!E96="","",[1]Eaux!E96) ->  | P96: =IF([1]Eaux!F96="","",[1]Eaux!F96) ->  | Q96: =IF([1]Eaux!G96="","",[1]Eaux!G96) -> 
K97: =IF([1]Eaux!A97="","",[1]Eaux!A97) ->  | L97: =IF([1]Eaux!B97="","",[1]Eaux!B97) ->  | M97: =IF([1]Eaux!C97="","",[1]Eaux!C97) ->  | N97: =IF([1]Eaux!D97="","",[1]Eaux!D97) ->  | O97: =IF([1]Eaux!E97="","",[1]Eaux!E97) ->  | P97: =IF([1]Eaux!F97="","",[1]Eaux!F97) ->  | Q97: =IF([1]Eaux!G97="","",[1]Eaux!G97) -> 

Sheet Stock
A1: STOCK
A3: GRAINS | H3: HOUBLONS | P3: LEVURES
A4: Stock Grains | D4: Recette en cours | H4: Stock Houblons | L4: Recette en cours | P4: Stock Levures | R4: Recette en cours
A5: Type | B5: EBC | C5: Quantité | D5: Type | E5: EBC | F5: Quantité | H5: Type | I5: Acide Alpha | J5: Année | K5: Quantité | L5: Type | M5: Acide Alpha | N5: Quantité | P5: Type | Q5: Quantité mds/paquets | R5: Type | S5: Quantité
A6: =IF([1]Stock!A6="","",[1]Stock!A6) -> Avoine (flocons) | B6: =IF([1]Stock!B6="","",[1]Stock!B6) -> 5 | C6: =IF([1]Stock!C6="","",[1]Stock!C6) -> 0 | D6: =IF(A6="","",IFERROR(VLOOKUP(A6,Brassage!$B$24:$G$32,1,FALSE),"")) ->  | E6: =IF(A6="","",IFERROR(VLOOKUP(A6,Brassage!$B$24:$G$32,2,FALSE),"")) ->  | F6: =IF(Stock!D6="0","0",SUMIF(Brassage!$B$24:$B$32,Stock!D6,Brassage!$F$24:$F$32)) -> 0 | H6: =IF([1]Stock!E6="","",[1]Stock!E6) -> Cascade | I6: =IF([1]Stock!F6="","",[1]Stock!F6) -> 0.055 | J6: =IF([1]Stock!G6="","",[1]Stock!G6) -> 2019 | K6: =IF([1]Stock!H6="","",[1]Stock!H6) -> 60 | L6: =IF(H6="","",IFERROR(VLOOKUP(H6,Brassage!$B$43:$G$51,1,FALSE),"")) ->  | M6: =IF(L6="","",IFERROR(VLOOKUP(L6,Brassage!$B$43:$G$51,2,FALSE),"")) ->  | N6: =IF(L6="0","0",SUMIF(Brassage!$B$43:$B$51,L6,Brassage!$F$43:$F$51)) -> 0 | P6: =IF([1]Stock!J6="","",[1]Stock!J6) -> 1214 - Belgian Ale | Q6: =IF([1]Stock!K6="","",[1]Stock!K6) -> 1000 | R6: =IF(P6="","",IFERROR(VLOOKUP(P6,Brassage!$B$55:$G$58,1,FALSE),"")) ->  | S6: =IF(R6="","0",IFERROR(VLOOKUP(P6,Brassage!$B$55:$G$58,6,FALSE),"")) -> 0
A7: =IF([1]Stock!A7="","",[1]Stock!A7) -> Black | B7: =IF([1]Stock!B7="","",[1]Stock!B7) -> 1300 | C7: =IF([1]Stock!C7="","",[1]Stock!C7) -> 400 | D7: =IF(A7="","",IFERROR(VLOOKUP(A7,Brassage!$B$24:$G$32,1,FALSE),"")) ->  | E7: =IF(A7="","",IFERROR(VLOOKUP(A7,Brassage!$B$24:$G$32,2,FALSE),"")) ->  | F7: =IF(Stock!D7="0","0",SUMIF(Brassage!$B$24:$B$32,Stock!D7,Brassage!$F$24:$F$32)) -> 0 | H7: =IF([1]Stock!E7="","",[1]Stock!E7) -> Hersbrucker | I7: =IF([1]Stock!F7="","",[1]Stock!F7) -> 0.028 | J7: =IF([1]Stock!G7="","",[1]Stock!G7) -> 2018 | K7: =IF([1]Stock!H7="","",[1]Stock!H7) -> 130 | L7: =IF(H7="","",IFERROR(VLOOKUP(H7,Brassage!$B$43:$G$51,1,FALSE),"")) ->  | M7: =IF(L7="","",IFERROR(VLOOKUP(L7,Brassage!$B$43:$G$51,2,FALSE),"")) ->  | N7: =IF(L7="0","0",SUMIF(Brassage!$B$43:$B$51,L7,Brassage!$F$43:$F$51)) -> 0 | P7: =IF([1]Stock!J7="","",[1]Stock!J7) -> S-33 | Q7: =IF([1]Stock!K7="","",[1]Stock!K7) -> 2 | R7: =IF(P7="","",IFERROR(VLOOKUP(P7,Brassage!$B$55:$G$58,1,FALSE),"")) ->  | S7: =IF(R7="","0",IFERROR(VLOOKUP(P7,Brassage!$B$55:$G$58,6,FALSE),"")) -> 0
A8: =IF([1]Stock!A8="","",[1]Stock!A8) -> Café light | B8: =IF([1]Stock!B8="","",[1]Stock!B8) -> 250 | C8: =IF([1]Stock!C8="","",[1]Stock!C8) -> 500 | D8: =IF(A8="","",IFERROR(VLOOKUP(A8,Brassage!$B$24:$G$32,1,FALSE),"")) ->  | E8: =IF(A8="","",IFERROR(VLOOKUP(A8,Brassage!$B$24:$G$32,2,FALSE),"")) ->  | F8: =IF(Stock!D8="0","0",SUMIF(Brassage!$B$24:$B$32,Stock!D8,Brassage!$F$24:$F$32)) -> 0 | H8: =IF([1]Stock!E8="","",[1]Stock!E8) -> Chinook | I8: =IF([1]Stock!F8="","",[1]Stock!F8) -> 0.13 | J8: =IF([1]Stock!G8="","",[1]Stock!G8) -> 2019 | K8: =IF([1]Stock!H8="","",[1]Stock!H8) -> 60 | L8: =IF(H8="","",IFERROR(VLOOKUP(H8,Brassage!$B$43:$G$51,1,FALSE),"")) ->  | M8: =IF(L8="","",IFERROR(VLOOKUP(L8,Brassage!$B$43:$G$51,2,FALSE),"")) ->  | N8: =IF(L8="0","0",SUMIF(Brassage!$B$43:$B$51,L8,Brassage!$F$43:$F$51)) -> 0 | P8: =IF([1]Stock!J8="","",[1]Stock!J8) -> WLP002 - English Ale | Q8: =IF([1]Stock!K8="","",[1]Stock!K8) -> 1000 | R8: =IF(P8="","",IFERROR(VLOOKUP(P8,Brassage!$B$55:$G$58,1,FALSE),"")) ->  | S8: =IF(R8="","0",IFERROR(VLOOKUP(P8,Brassage!$B$55:$G$58,6,FALSE),"")) -> 0
A9: =IF([1]Stock!A9="","",[1]Stock!A9) -> Cara Gold - Vieux Silo | B9: =IF([1]Stock!B9="","",[1]Stock!B9) -> 120 | C9: =IF([1]Stock!C9="","",[1]Stock!C9) -> 4700 | D9: =IF(A9="","",IFERROR(VLOOKUP(A9,Brassage!$B$24:$G$32,1,FALSE),"")) -> Cara Gold - Vieux Silo | E9: =IF(A9="","",IFERROR(VLOOKUP(A9,Brassage!$B$24:$G$32,2,FALSE),"")) -> 120 | F9: =IF(Stock!D9="0","0",SUMIF(Brassage!$B$24:$B$32,Stock!D9,Brassage!$F$24:$F$32)) -> 300 | H9: =IF([1]Stock!E9="","",[1]Stock!E9) -> Citra | I9: =IF([1]Stock!F9="","",[1]Stock!F9) -> 0.12 | J9: =IF([1]Stock!G9="","",[1]Stock!G9) -> 2019 | K9: =IF([1]Stock!H9="","",[1]Stock!H9) -> 100 | L9: =IF(H9="","",IFERROR(VLOOKUP(H9,Brassage!$B$43:$G$51,1,FALSE),"")) ->  | M9: =IF(L9="","",IFERROR(VLOOKUP(L9,Brassage!$B$43:$G$51,2,FALSE),"")) ->  | N9: =IF(L9="0","0",SUMIF(Brassage!$B$43:$B$51,L9,Brassage!$F$43:$F$51)) -> 0 | P9: =IF([1]Stock!J9="","",[1]Stock!J9) -> 3711 - French Saison | Q9: =IF([1]Stock!K9="","",[1]Stock!K9) -> 1000 | R9: =IF(P9="","",IFERROR(VLOOKUP(P9,Brassage!$B$55:$G$58,1,FALSE),"")) ->  | S9: =IF(R9="","0",IFERROR(VLOOKUP(P9,Brassage!$B$55:$G$58,6,FALSE),"")) -> 0
A10: =IF([1]Stock!A10="","",[1]Stock!A10) -> Cara Ruby | B10: =IF([1]Stock!B10="","",[1]Stock!B10) -> 50 | C10: =IF([1]Stock!C10="","",[1]Stock!C10) -> 1400 | D10: =IF(A10="","",IFERROR(VLOOKUP(A10,Brassage!$B$24:$G$32,1,FALSE),"")) ->  | E10: =IF(A10="","",IFERROR(VLOOKUP(A10,Brassage!$B$24:$G$32,2,FALSE),"")) ->  | F10: =IF(Stock!D10="0","0",SUMIF(Brassage!$B$24:$B$32,Stock!D10,Brassage!$F$24:$F$32)) -> 0 | H10: =IF([1]Stock!E10="","",[1]Stock!E10) ->  | I10: =IF([1]Stock!F10="","",[1]Stock!F10) ->  | J10: =IF([1]Stock!G10="","",[1]Stock!G10) ->  | K10: =IF([1]Stock!H10="","",[1]Stock!H10) ->  | L10: =IF(H10="","",IFERROR(VLOOKUP(H10,Brassage!$B$43:$G$51,1,FALSE),"")) ->  | M10: =IF(L10="","",IFERROR(VLOOKUP(L10,Brassage!$B$43:$G$51,2,FALSE),"")) ->  | N10: =IF(L10="0","0",SUMIF(Brassage!$B$43:$B$51,L10,Brassage!$F$43:$F$51)) -> 0 | P10: =IF([1]Stock!J10="","",[1]Stock!J10) -> WLP833 - German Bock Lager | Q10: =IF([1]Stock!K10="","",[1]Stock!K10) -> 1000 | R10: =IF(P10="","",IFERROR(VLOOKUP(P10,Brassage!$B$55:$G$58,1,FALSE),"")) ->  | S10: =IF(R10="","0",IFERROR(VLOOKUP(P10,Brassage!$B$55:$G$58,6,FALSE),"")) -> 0
A11: =IF([1]Stock!A11="","",[1]Stock!A11) -> Cara-clair | B11: =IF([1]Stock!B11="","",[1]Stock!B11) -> 5.5 | C11: =IF([1]Stock!C11="","",[1]Stock!C11) -> 1150 | D11: =IF(A11="","",IFERROR(VLOOKUP(A11,Brassage!$B$24:$G$32,1,FALSE),"")) ->  | E11: =IF(A11="","",IFERROR(VLOOKUP(A11,Brassage!$B$24:$G$32,2,FALSE),"")) ->  | F11: =IF(Stock!D11="0","0",SUMIF(Brassage!$B$24:$B$32,Stock!D11,Brassage!$F$24:$F$32)) -> 0 | H11: =IF([1]Stock!E11="","",[1]Stock!E11) -> Cascade BE | I11: =IF([1]Stock!F11="","",[1]Stock!F11) -> 0.024 | J11: =IF([1]Stock!G11="","",[1]Stock!G11) -> 2018 | K11: =IF([1]Stock!H11="","",[1]Stock!H11) -> 70 | L11: =IF(H11="","",IFERROR(VLOOKUP(H11,Brassage!$B$43:$G$51,1,FALSE),"")) ->  | M11: =IF(L11="","",IFERROR(VLOOKUP(L11,Brassage!$B$43:$G$51,2,FALSE),"")) ->  | N11: =IF(L11="0","0",SUMIF(Brassage!$B$43:$B$51,L11,Brassage!$F$43:$F$51)) -> 0 | P11: =IF([1]Stock!J11="","",[1]Stock!J11) -> WLP4042 - Hazy Daze | Q11: =IF([1]Stock!K11="","",[1]Stock!K11) -> 1000 | R11: =IF(P11="","",IFERROR(VLOOKUP(P11,Brassage!$B$55:$G$58,1,FALSE),"")) ->  | S11: =IF(R11="","0",IFERROR(VLOOKUP(P11,Brassage!$B$55:$G$58,6,FALSE),"")) -> 0
A12: =IF([1]Stock!A12="","",[1]Stock!A12) -> Diastasique | B12: =IF([1]Stock!B12="","",[1]Stock!B12) -> 3 | C12: =IF([1]Stock!C12="","",[1]Stock!C12) -> 4100 | D12: =IF(A12="","",IFERROR(VLOOKUP(A12,Brassage!$B$24:$G$32,1,FALSE),"")) ->  | E12: =IF(A12="","",IFERROR(VLOOKUP(A12,Brassage!$B$24:$G$32,2,FALSE),"")) ->  | F12: =IF(Stock!D12="0","0",SUMIF(Brassage!$B$24:$B$32,Stock!D12,Brassage!$F$24:$F$32)) -> 0 | H12: =IF([1]Stock!E12="","",[1]Stock!E12) -> Sauvage 2019 | I12: =IF([1]Stock!F12="","",[1]Stock!F12) -> 0.045 | J12: =IF([1]Stock!G12="","",[1]Stock!G12) -> 2019 | K12: =IF([1]Stock!H12="","",[1]Stock!H12) -> 80 | L12: =IF(H12="","",IFERROR(VLOOKUP(H12,Brassage!$B$43:$G$51,1,FALSE),"")) ->  | M12: =IF(L12="","",IFERROR(VLOOKUP(L12,Brassage!$B$43:$G$51,2,FALSE),"")) ->  | N12: =IF(L12="0","0",SUMIF(Brassage!$B$43:$B$51,L12,Brassage!$F$43:$F$51)) -> 0 | P12: =IF([1]Stock!J12="","",[1]Stock!J12) -> WLP830 - German Lager | Q12: =IF([1]Stock!K12="","",[1]Stock!K12) -> 1000 | R12: =IF(P12="","",IFERROR(VLOOKUP(P12,Brassage!$B$55:$G$58,1,FALSE),"")) ->  | S12: =IF(R12="","0",IFERROR(VLOOKUP(P12,Brassage!$B$55:$G$58,6,FALSE),"")) -> 0
A13: =IF([1]Stock!A13="","",[1]Stock!A13) -> Froment - Vieux Silo | B13: =IF([1]Stock!B13="","",[1]Stock!B13) -> 4.5 | C13: =IF([1]Stock!C13="","",[1]Stock!C13) -> 20000 | D13: =IF(A13="","",IFERROR(VLOOKUP(A13,Brassage!$B$24:$G$32,1,FALSE),"")) ->  | E13: =IF(A13="","",IFERROR(VLOOKUP(A13,Brassage!$B$24:$G$32,2,FALSE),"")) ->  | F13: =IF(Stock!D13="0","0",SUMIF(Brassage!$B$24:$B$32,Stock!D13,Brassage!$F$24:$F$32)) -> 0 | H13: =IF([1]Stock!E13="","",[1]Stock!E13) -> Saaz Jean-Pascal 2020 | I13: =IF([1]Stock!F13="","",[1]Stock!F13) -> 0.03 | J13: =IF([1]Stock!G13="","",[1]Stock!G13) -> 2020 | K13: =IF([1]Stock!H13="","",[1]Stock!H13) -> 100 | L13: =IF(H13="","",IFERROR(VLOOKUP(H13,Brassage!$B$43:$G$51,1,FALSE),"")) ->  | M13: =IF(L13="","",IFERROR(VLOOKUP(L13,Brassage!$B$43:$G$51,2,FALSE),"")) ->  | N13: =IF(L13="0","0",SUMIF(Brassage!$B$43:$B$51,L13,Brassage!$F$43:$F$51)) -> 0 | P13: =IF([1]Stock!J13="","",[1]Stock!J13) -> 1084 - Irish Ale | Q13: =IF([1]Stock!K13="","",[1]Stock!K13) -> 1000 | R13: =IF(P13="","",IFERROR(VLOOKUP(P13,Brassage!$B$55:$G$58,1,FALSE),"")) -> 1084 - Irish Ale | S13: =IF(R13="","0",IFERROR(VLOOKUP(P13,Brassage!$B$55:$G$58,6,FALSE),"")) -> 192
A14: =IF([1]Stock!A14="","",[1]Stock!A14) -> Munich light Swaen | B14: =IF([1]Stock!B14="","",[1]Stock!B14) -> 13 | C14: =IF([1]Stock!C14="","",[1]Stock!C14) -> 8600 | D14: =IF(A14="","",IFERROR(VLOOKUP(A14,Brassage!$B$24:$G$32,1,FALSE),"")) -> Munich light Swaen | E14: =IF(A14="","",IFERROR(VLOOKUP(A14,Brassage!$B$24:$G$32,2,FALSE),"")) -> 13 | F14: =IF(Stock!D14="0","0",SUMIF(Brassage!$B$24:$B$32,Stock!D14,Brassage!$F$24:$F$32)) -> 400 | H14: =IF([1]Stock!E14="","",[1]Stock!E14) -> Magnum | I14: =IF([1]Stock!F14="","",[1]Stock!F14) -> 0.139 | J14: =IF([1]Stock!G14="","",[1]Stock!G14) -> 2019 | K14: =IF([1]Stock!H14="","",[1]Stock!H14) -> 260 | L14: =IF(H14="","",IFERROR(VLOOKUP(H14,Brassage!$B$43:$G$51,1,FALSE),"")) -> Magnum | M14: =IF(L14="","",IFERROR(VLOOKUP(L14,Brassage!$B$43:$G$51,2,FALSE),"")) -> 0.139 | N14: =IF(L14="0","0",SUMIF(Brassage!$B$43:$B$51,L14,Brassage!$F$43:$F$51)) -> 30 | P14: =IF([1]Stock!J14="","",[1]Stock!J14) -> WLP810 - San Fransisco Lager | Q14: =IF([1]Stock!K14="","",[1]Stock!K14) -> 1000 | R14: =IF(P14="","",IFERROR(VLOOKUP(P14,Brassage!$B$55:$G$58,1,FALSE),"")) ->  | S14: =IF(R14="","0",IFERROR(VLOOKUP(P14,Brassage!$B$55:$G$58,6,FALSE),"")) -> 0
A15: =IF([1]Stock!A15="","",[1]Stock!A15) -> Pale ale Château | B15: =IF([1]Stock!B15="","",[1]Stock!B15) -> 8.5 | C15: =IF([1]Stock!C15="","",[1]Stock!C15) -> 0 | D15: =IF(A15="","",IFERROR(VLOOKUP(A15,Brassage!$B$24:$G$32,1,FALSE),"")) ->  | E15: =IF(A15="","",IFERROR(VLOOKUP(A15,Brassage!$B$24:$G$32,2,FALSE),"")) ->  | F15: =IF(Stock!D15="0","0",SUMIF(Brassage!$B$24:$B$32,Stock!D15,Brassage!$F$24:$F$32)) -> 0 | H15: =IF([1]Stock!E15="","",[1]Stock!E15) -> Hallertau Mittelfrüh | I15: =IF([1]Stock!F15="","",[1]Stock!F15) -> 0.046 | J15: =IF([1]Stock!G15="","",[1]Stock!G15) -> 2019 | K15: =IF([1]Stock!H15="","",[1]Stock!H15) -> 100 | L15: =IF(H15="","",IFERROR(VLOOKUP(H15,Brassage!$B$43:$G$51,1,FALSE),"")) ->  | M15: =IF(L15="","",IFERROR(VLOOKUP(L15,Brassage!$B$43:$G$51,2,FALSE),"")) ->  | N15: =IF(L15="0","0",SUMIF(Brassage!$B$43:$B$51,L15,Brassage!$F$43:$F$51)) -> 0 | P15: =IF([1]Stock!J15="","",[1]Stock!J15) -> WLP4046 - Simonaitis Lithuanian Farmhouse | Q15: =IF([1]Stock!K15="","",[1]Stock!K15) -> 1000 | R15: =IF(P15="","",IFERROR(VLOOKUP(P15,Brassage!$B$55:$G$58,1,FALSE),"")) ->  | S15: =IF(R15="","0",IFERROR(VLOOKUP(P15,Brassage!$B$55:$G$58,6,FALSE),"")) -> 0
A16: =IF([1]Stock!A16="","",[1]Stock!A16) -> Pale ale Swaen | B16: =IF([1]Stock!B16="","",[1]Stock!B16) -> 7.1 | C16: =IF([1]Stock!C16="","",[1]Stock!C16) -> 23000 | D16: =IF(A16="","",IFERROR(VLOOKUP(A16,Brassage!$B$24:$G$32,1,FALSE),"")) -> Pale ale Swaen | E16: =IF(A16="","",IFERROR(VLOOKUP(A16,Brassage!$B$24:$G$32,2,FALSE),"")) -> 7.1 | F16: =IF(Stock!D16="0","0",SUMIF(Brassage!$B$24:$B$32,Stock!D16,Brassage!$F$24:$F$32)) -> 4000 | H16: =IF([1]Stock!E16="","",[1]Stock!E16) -> Northern Brewer | I16: =IF([1]Stock!F16="","",[1]Stock!F16) -> 0.083 | J16: =IF([1]Stock!G16="","",[1]Stock!G16) -> 2019 | K16: =IF([1]Stock!H16="","",[1]Stock!H16) -> 100 | L16: =IF(H16="","",IFERROR(VLOOKUP(H16,Brassage!$B$43:$G$51,1,FALSE),"")) ->  | M16: =IF(L16="","",IFERROR(VLOOKUP(L16,Brassage!$B$43:$G$51,2,FALSE),"")) ->  | N16: =IF(L16="0","0",SUMIF(Brassage!$B$43:$B$51,L16,Brassage!$F$43:$F$51)) -> 0 | P16: =IF([1]Stock!J16="","",[1]Stock!J16) -> OYL-062 - Voss Kveik | Q16: =IF([1]Stock!K16="","",[1]Stock!K16) -> 1000 | R16: =IF(P16="","",IFERROR(VLOOKUP(P16,Brassage!$B$55:$G$58,1,FALSE),"")) ->  | S16: =IF(R16="","0",IFERROR(VLOOKUP(P16,Brassage!$B$55:$G$58,6,FALSE),"")) -> 0
A17: =IF([1]Stock!A17="","",[1]Stock!A17) -> Pilsen Swaen | B17: =IF([1]Stock!B17="","",[1]Stock!B17) -> 3.7 | C17: =IF([1]Stock!C17="","",[1]Stock!C17) -> 25000 | D17: =IF(A17="","",IFERROR(VLOOKUP(A17,Brassage!$B$24:$G$32,1,FALSE),"")) ->  | E17: =IF(A17="","",IFERROR(VLOOKUP(A17,Brassage!$B$24:$G$32,2,FALSE),"")) ->  | F17: =IF(Stock!D17="0","0",SUMIF(Brassage!$B$24:$B$32,Stock!D17,Brassage!$F$24:$F$32)) -> 0 | H17: =IF([1]Stock!E17="","",[1]Stock!E17) ->  | I17: =IF([1]Stock!F17="","",[1]Stock!F17) ->  | J17: =IF([1]Stock!G17="","",[1]Stock!G17) ->  | K17: =IF([1]Stock!H17="","",[1]Stock!H17) -> 0 | L17: =IF(H17="","",IFERROR(VLOOKUP(H17,Brassage!$B$43:$G$51,1,FALSE),"")) ->  | M17: =IF(L17="","",IFERROR(VLOOKUP(L17,Brassage!$B$43:$G$51,2,FALSE),"")) ->  | N17: =IF(L17="0","0",SUMIF(Brassage!$B$43:$B$51,L17,Brassage!$F$43:$F$51)) -> 0 | P17: =IF([1]Stock!J17="","",[1]Stock!J17) -> 3068 - Weihenstephan Weizen | Q17: =IF([1]Stock!K17="","",[1]Stock!K17) -> 1000 | R17: =IF(P17="","",IFERROR(VLOOKUP(P17,Brassage!$B$55:$G$58,1,FALSE),"")) ->  | S17: =IF(R17="","0",IFERROR(VLOOKUP(P17,Brassage!$B$55:$G$58,6,FALSE),"")) -> 0
A18: =IF([1]Stock!A18="","",[1]Stock!A18) -> Pilsen vieux silo | B18: =IF([1]Stock!B18="","",[1]Stock!B18) -> 3 | C18: =IF([1]Stock!C18="","",[1]Stock!C18) -> 0 | D18: =IF(A18="","",IFERROR(VLOOKUP(A18,Brassage!$B$24:$G$32,1,FALSE),"")) ->  | E18: =IF(A18="","",IFERROR(VLOOKUP(A18,Brassage!$B$24:$G$32,2,FALSE),"")) ->  | F18: =IF(Stock!D18="0","0",SUMIF(Brassage!$B$24:$B$32,Stock!D18,Brassage!$F$24:$F$32)) -> 0 | H18: =IF([1]Stock!E18="","",[1]Stock!E18) ->  | I18: =IF([1]Stock!F18="","",[1]Stock!F18) ->  | J18: =IF([1]Stock!G18="","",[1]Stock!G18) ->  | K18: =IF([1]Stock!H18="","",[1]Stock!H18) -> 0 | L18: =IF(H18="","",IFERROR(VLOOKUP(H18,Brassage!$B$43:$G$51,1,FALSE),"")) ->  | M18: =IF(L18="","",IFERROR(VLOOKUP(L18,Brassage!$B$43:$G$51,2,FALSE),"")) ->  | N18: =IF(L18="0","0",SUMIF(Brassage!$B$43:$B$51,L18,Brassage!$F$43:$F$51)) -> 0 | Q18: =IF([1]Stock!K18="","",[1]Stock!K18) ->  | R18: =IF(P18="","",IFERROR(VLOOKUP(P18,Brassage!$B$55:$G$58,1,FALSE),"")) ->  | S18: =IF(R18="","0",IFERROR(VLOOKUP(P18,Brassage!$B$55:$G$58,6,FALSE),"")) -> 0
A19: =IF([1]Stock!A19="","",[1]Stock!A19) -> Seigle Chocolat | B19: =IF([1]Stock!B19="","",[1]Stock!B19) -> 650 | C19: =IF([1]Stock!C19="","",[1]Stock!C19) -> 40 | D19: =IF(A19="","",IFERROR(VLOOKUP(A19,Brassage!$B$24:$G$32,1,FALSE),"")) -> Seigle Chocolat | E19: =IF(A19="","",IFERROR(VLOOKUP(A19,Brassage!$B$24:$G$32,2,FALSE),"")) -> 650 | F19: =IF(Stock!D19="0","0",SUMIF(Brassage!$B$24:$B$32,Stock!D19,Brassage!$F$24:$F$32)) -> 150 | H19: =IF([1]Stock!E19="","",[1]Stock!E19) ->  | I19: =IF([1]Stock!F19="","",[1]Stock!F19) ->  | J19: =IF([1]Stock!G19="","",[1]Stock!G19) ->  | K19: =IF([1]Stock!H19="","",[1]Stock!H19) -> 0 | L19: =IF(H19="","",IFERROR(VLOOKUP(H19,Brassage!$B$43:$G$51,1,FALSE),"")) ->  | M19: =IF(L19="","",IFERROR(VLOOKUP(L19,Brassage!$B$43:$G$51,2,FALSE),"")) ->  | N19: =IF(L19="0","0",SUMIF(Brassage!$B$43:$B$51,L19,Brassage!$F$43:$F$51)) -> 0 | P19: =IF([1]Stock!J19="","",[1]Stock!J19) ->  | Q19: =IF([1]Stock!K19="","",[1]Stock!K19) ->  | R19: =IF(P19="","",IFERROR(VLOOKUP(P19,Brassage!$B$55:$G$58,1,FALSE),"")) ->  | S19: =IF(R19="","0",IFERROR(VLOOKUP(P19,Brassage!$B$55:$G$58,6,FALSE),"")) -> 0
A20: =IF([1]Stock!A20="","",[1]Stock!A20) -> Special B | B20: =IF([1]Stock!B20="","",[1]Stock!B20) -> 300 | C20: =IF([1]Stock!C20="","",[1]Stock!C20) -> 350 | D20: =IF(A20="","",IFERROR(VLOOKUP(A20,Brassage!$B$24:$G$32,1,FALSE),"")) ->  | E20: =IF(A20="","",IFERROR(VLOOKUP(A20,Brassage!$B$24:$G$32,2,FALSE),"")) ->  | F20: =IF(Stock!D20="0","0",SUMIF(Brassage!$B$24:$B$32,Stock!D20,Brassage!$F$24:$F$32)) -> 0 | H20: =IF([1]Stock!E20="","",[1]Stock!E20) ->  | I20: =IF([1]Stock!F20="","",[1]Stock!F20) ->  | J20: =IF([1]Stock!G20="","",[1]Stock!G20) ->  | K20: =IF([1]Stock!H20="","",[1]Stock!H20) -> 0 | L20: =IF(H20="","",IFERROR(VLOOKUP(H20,Brassage!$B$43:$G$51,1,FALSE),"")) ->  | M20: =IF(L20="","",IFERROR(VLOOKUP(L20,Brassage!$B$43:$G$51,2,FALSE),"")) ->  | N20: =IF(L20="0","0",SUMIF(Brassage!$B$43:$B$51,L20,Brassage!$F$43:$F$51)) -> 0 | P20: =IF([1]Stock!J20="","",[1]Stock!J20) ->  | Q20: =IF([1]Stock!K20="","",[1]Stock!K20) ->  | R20: =IF(P20="","",IFERROR(VLOOKUP(P20,Brassage!$B$55:$G$58,1,FALSE),"")) ->  | S20: =IF(R20="","0",IFERROR(VLOOKUP(P20,Brassage!$B$55:$G$58,6,FALSE),"")) -> 0
A21: =IF([1]Stock!A21="","",[1]Stock!A21) -> Vienna Swaen | B21: =IF([1]Stock!B21="","",[1]Stock!B21) -> 10 | C21: =IF([1]Stock!C21="","",[1]Stock!C21) -> 5000 | D21: =IF(A21="","",IFERROR(VLOOKUP(A21,Brassage!$B$24:$G$32,1,FALSE),"")) ->  | E21: =IF(A21="","",IFERROR(VLOOKUP(A21,Brassage!$B$24:$G$32,2,FALSE),"")) ->  | F21: =IF(Stock!D21="0","0",SUMIF(Brassage!$B$24:$B$32,Stock!D21,Brassage!$F$24:$F$32)) -> 0 | H21: =IF([1]Stock!E21="","",[1]Stock!E21) ->  | I21: =IF([1]Stock!F21="","",[1]Stock!F21) ->  | J21: =IF([1]Stock!G21="","",[1]Stock!G21) ->  | K21: =IF([1]Stock!H21="","",[1]Stock!H21) -> 0 | L21: =IF(H21="","",IFERROR(VLOOKUP(H21,Brassage!$B$43:$G$51,1,FALSE),"")) ->  | M21: =IF(L21="","",IFERROR(VLOOKUP(L21,Brassage!$B$43:$G$51,2,FALSE),"")) ->  | N21: =IF(L21="0","0",SUMIF(Brassage!$B$43:$B$51,L21,Brassage!$F$43:$F$51)) -> 0 | P21: =IF([1]Stock!J21="","",[1]Stock!J21) ->  | Q21: =IF([1]Stock!K21="","",[1]Stock!K21) ->  | R21: =IF(P21="","",IFERROR(VLOOKUP(P21,Brassage!$B$55:$G$58,1,FALSE),"")) ->  | S21: =IF(R21="","0",IFERROR(VLOOKUP(P21,Brassage!$B$55:$G$58,6,FALSE),"")) -> 0
A22: =IF([1]Stock!A22="","",[1]Stock!A22) ->  | B22: =IF([1]Stock!B22="","",[1]Stock!B22) ->  | C22: =IF([1]Stock!C22="","",[1]Stock!C22) -> 0 | D22: =IF(A22="","",IFERROR(VLOOKUP(A22,Brassage!$B$24:$G$32,1,FALSE),"")) ->  | E22: =IF(A22="","",IFERROR(VLOOKUP(A22,Brassage!$B$24:$G$32,2,FALSE),"")) ->  | F22: =IF(Stock!D22="0","0",SUMIF(Brassage!$B$24:$B$32,Stock!D22,Brassage!$F$24:$F$32)) -> 0 | H22: =IF([1]Stock!E22="","",[1]Stock!E22) ->  | I22: =IF([1]Stock!F22="","",[1]Stock!F22) ->  | J22: =IF([1]Stock!G22="","",[1]Stock!G22) ->  | K22: =IF([1]Stock!H22="","",[1]Stock!H22) -> 0 | L22: =IF(H22="","",IFERROR(VLOOKUP(H22,Brassage!$B$43:$G$51,1,FALSE),"")) ->  | M22: =IF(L22="","",IFERROR(VLOOKUP(L22,Brassage!$B$43:$G$51,2,FALSE),"")) ->  | N22: =IF(L22="0","0",SUMIF(Brassage!$B$43:$B$51,L22,Brassage!$F$43:$F$51)) -> 0 | P22: =IF([1]Stock!J22="","",[1]Stock!J22) ->  | Q22: =IF([1]Stock!K22="","",[1]Stock!K22) ->  | R22: =IF(P22="","",IFERROR(VLOOKUP(P22,Brassage!$B$55:$G$58,1,FALSE),"")) ->  | S22: =IF(R22="","0",IFERROR(VLOOKUP(P22,Brassage!$B$55:$G$58,6,FALSE),"")) -> 0
A23: =IF([1]Stock!A23="","",[1]Stock!A23) ->  | B23: =IF([1]Stock!B23="","",[1]Stock!B23) ->  | C23: =IF([1]Stock!C23="","",[1]Stock!C23) -> 0 | D23: =IF(A23="","",IFERROR(VLOOKUP(A23,Brassage!$B$24:$G$32,1,FALSE),"")) ->  | E23: =IF(A23="","",IFERROR(VLOOKUP(A23,Brassage!$B$24:$G$32,2,FALSE),"")) ->  | F23: =IF(Stock!D23="0","0",SUMIF(Brassage!$B$24:$B$32,Stock!D23,Brassage!$F$24:$F$32)) -> 0 | H23: =IF([1]Stock!E23="","",[1]Stock!E23) ->  | I23: =IF([1]Stock!F23="","",[1]Stock!F23) ->  | J23: =IF([1]Stock!G23="","",[1]Stock!G23) ->  | K23: =IF([1]Stock!H23="","",[1]Stock!H23) -> 0 | L23: =IF(H23="","",IFERROR(VLOOKUP(H23,Brassage!$B$43:$G$51,1,FALSE),"")) ->  | M23: =IF(L23="","",IFERROR(VLOOKUP(L23,Brassage!$B$43:$G$51,2,FALSE),"")) ->  | N23: =IF(L23="0","0",SUMIF(Brassage!$B$43:$B$51,L23,Brassage!$F$43:$F$51)) -> 0 | P23: =IF([1]Stock!J23="","",[1]Stock!J23) ->  | Q23: =IF([1]Stock!K23="","",[1]Stock!K23) ->  | R23: =IF(P23="","",IFERROR(VLOOKUP(P23,Brassage!$B$55:$G$58,1,FALSE),"")) ->  | S23: =IF(R23="","0",IFERROR(VLOOKUP(P23,Brassage!$B$55:$G$58,6,FALSE),"")) -> 0
A24: =IF([1]Stock!A24="","",[1]Stock!A24) ->  | B24: =IF([1]Stock!B24="","",[1]Stock!B24) ->  | C24: =IF([1]Stock!C24="","",[1]Stock!C24) -> 0 | D24: =IF(A24="","",IFERROR(VLOOKUP(A24,Brassage!$B$24:$G$32,1,FALSE),"")) ->  | E24: =IF(A24="","",IFERROR(VLOOKUP(A24,Brassage!$B$24:$G$32,2,FALSE),"")) ->  | F24: =IF(Stock!D24="0","0",SUMIF(Brassage!$B$24:$B$32,Stock!D24,Brassage!$F$24:$F$32)) -> 0 | H24: =IF([1]Stock!E24="","",[1]Stock!E24) ->  | I24: =IF([1]Stock!F24="","",[1]Stock!F24) ->  | J24: =IF([1]Stock!G24="","",[1]Stock!G24) ->  | K24: =IF([1]Stock!H24="","",[1]Stock!H24) -> 0 | L24: =IF(H24="","",IFERROR(VLOOKUP(H24,Brassage!$B$43:$G$51,1,FALSE),"")) ->  | M24: =IF(L24="","",IFERROR(VLOOKUP(L24,Brassage!$B$43:$G$51,2,FALSE),"")) ->  | N24: =IF(L24="0","0",SUMIF(Brassage!$B$43:$B$51,L24,Brassage!$F$43:$F$51)) -> 0 | P24: =IF([1]Stock!J24="","",[1]Stock!J24) ->  | Q24: =IF([1]Stock!K24="","",[1]Stock!K24) ->  | R24: =IF(P24="","",IFERROR(VLOOKUP(P24,Brassage!$B$55:$G$58,1,FALSE),"")) ->  | S24: =IF(R24="","0",IFERROR(VLOOKUP(P24,Brassage!$B$55:$G$58,6,FALSE),"")) -> 0
A25: =IF([1]Stock!A25="","",[1]Stock!A25) ->  | B25: =IF([1]Stock!B25="","",[1]Stock!B25) ->  | C25: =IF([1]Stock!C25="","",[1]Stock!C25) -> 0 | D25: =IF(A25="","",IFERROR(VLOOKUP(A25,Brassage!$B$24:$G$32,1,FALSE),"")) ->  | E25: =IF(A25="","",IFERROR(VLOOKUP(A25,Brassage!$B$24:$G$32,2,FALSE),"")) ->  | F25: =IF(Stock!D25="0","0",SUMIF(Brassage!$B$24:$B$32,Stock!D25,Brassage!$F$24:$F$32)) -> 0 | H25: =IF([1]Stock!E25="","",[1]Stock!E25) ->  | I25: =IF([1]Stock!F25="","",[1]Stock!F25) ->  | J25: =IF([1]Stock!G25="","",[1]Stock!G25) ->  | K25: =IF([1]Stock!H25="","",[1]Stock!H25) -> 0 | L25: =IF(H25="","",IFERROR(VLOOKUP(H25,Brassage!$B$43:$G$51,1,FALSE),"")) ->  | M25: =IF(L25="","",IFERROR(VLOOKUP(L25,Brassage!$B$43:$G$51,2,FALSE),"")) ->  | N25: =IF(L25="0","0",SUMIF(Brassage!$B$43:$B$51,L25,Brassage!$F$43:$F$51)) -> 0 | P25: =IF([1]Stock!J25="","",[1]Stock!J25) ->  | Q25: =IF([1]Stock!K25="","",[1]Stock!K25) ->  | R25: =IF(P25="","",IFERROR(VLOOKUP(P25,Brassage!$B$55:$G$58,1,FALSE),"")) ->  | S25: =IF(R25="","0",IFERROR(VLOOKUP(P25,Brassage!$B$55:$G$58,6,FALSE),"")) -> 0
A26: =IF([1]Stock!A26="","",[1]Stock!A26) ->  | B26: =IF([1]Stock!B26="","",[1]Stock!B26) ->  | C26: =IF([1]Stock!C26="","",[1]Stock!C26) -> 0 | D26: =IF(A26="","",IFERROR(VLOOKUP(A26,Brassage!$B$24:$G$32,1,FALSE),"")) ->  | E26: =IF(A26="","",IFERROR(VLOOKUP(A26,Brassage!$B$24:$G$32,2,FALSE),"")) ->  | F26: =IF(Stock!D26="0","0",SUMIF(Brassage!$B$24:$B$32,Stock!D26,Brassage!$F$24:$F$32)) -> 0 | H26: =IF([1]Stock!E26="","",[1]Stock!E26) ->  | I26: =IF([1]Stock!F26="","",[1]Stock!F26) ->  | J26: =IF([1]Stock!G26="","",[1]Stock!G26) ->  | K26: =IF([1]Stock!H26="","",[1]Stock!H26) -> 0 | L26: =IF(H26="","",IFERROR(VLOOKUP(H26,Brassage!$B$43:$G$51,1,FALSE),"")) ->  | M26: =IF(L26="","",IFERROR(VLOOKUP(L26,Brassage!$B$43:$G$51,2,FALSE),"")) ->  | N26: =IF(L26="0","0",SUMIF(Brassage!$B$43:$B$51,L26,Brassage!$F$43:$F$51)) -> 0 | P26: =IF([1]Stock!J26="","",[1]Stock!J26) ->  | Q26: =IF([1]Stock!K26="","",[1]Stock!K26) ->  | R26: =IF(P26="","",IFERROR(VLOOKUP(P26,Brassage!$B$55:$G$58,1,FALSE),"")) ->  | S26: =IF(R26="","0",IFERROR(VLOOKUP(P26,Brassage!$B$55:$G$58,6,FALSE),"")) -> 0
A27: =IF([1]Stock!A27="","",[1]Stock!A27) ->  | B27: =IF([1]Stock!B27="","",[1]Stock!B27) ->  | C27: =IF([1]Stock!C27="","",[1]Stock!C27) -> 0 | D27: =IF(A27="","",IFERROR(VLOOKUP(A27,Brassage!$B$24:$G$32,1,FALSE),"")) ->  | E27: =IF(A27="","",IFERROR(VLOOKUP(A27,Brassage!$B$24:$G$32,2,FALSE),"")) ->  | F27: =IF(Stock!D27="0","0",SUMIF(Brassage!$B$24:$B$32,Stock!D27,Brassage!$F$24:$F$32)) -> 0 | H27: =IF([1]Stock!E27="","",[1]Stock!E27) ->  | I27: =IF([1]Stock!F27="","",[1]Stock!F27) ->  | J27: =IF([1]Stock!G27="","",[1]Stock!G27) ->  | K27: =IF([1]Stock!H27="","",[1]Stock!H27) -> 0 | L27: =IF(H27="","",IFERROR(VLOOKUP(H27,Brassage!$B$43:$G$51,1,FALSE),"")) ->  | M27: =IF(L27="","",IFERROR(VLOOKUP(L27,Brassage!$B$43:$G$51,2,FALSE),"")) ->  | N27: =IF(L27="0","0",SUMIF(Brassage!$B$43:$B$51,L27,Brassage!$F$43:$F$51)) -> 0 | P27: =IF([1]Stock!J27="","",[1]Stock!J27) ->  | Q27: =IF([1]Stock!K27="","",[1]Stock!K27) ->  | R27: =IF(P27="","",IFERROR(VLOOKUP(P27,Brassage!$B$55:$G$58,1,FALSE),"")) ->  | S27: =IF(R27="","0",IFERROR(VLOOKUP(P27,Brassage!$B$55:$G$58,6,FALSE),"")) -> 0
A28: =IF([1]Stock!A28="","",[1]Stock!A28) ->  | B28: =IF([1]Stock!B28="","",[1]Stock!B28) ->  | C28: =IF([1]Stock!C28="","",[1]Stock!C28) -> 0 | D28: =IF(A28="","",IFERROR(VLOOKUP(A28,Brassage!$B$24:$G$32,1,FALSE),"")) ->  | E28: =IF(A28="","",IFERROR(VLOOKUP(A28,Brassage!$B$24:$G$32,2,FALSE),"")) ->  | F28: =IF(Stock!D28="0","0",SUMIF(Brassage!$B$24:$B$32,Stock!D28,Brassage!$F$24:$F$32)) -> 0 | H28: =IF([1]Stock!E28="","",[1]Stock!E28) ->  | I28: =IF([1]Stock!F28="","",[1]Stock!F28) ->  | J28: =IF([1]Stock!G28="","",[1]Stock!G28) ->  | K28: =IF([1]Stock!H28="","",[1]Stock!H28) -> 0 | L28: =IF(H28="","",IFERROR(VLOOKUP(H28,Brassage!$B$43:$G$51,1,FALSE),"")) ->  | M28: =IF(L28="","",IFERROR(VLOOKUP(L28,Brassage!$B$43:$G$51,2,FALSE),"")) ->  | N28: =IF(L28="0","0",SUMIF(Brassage!$B$43:$B$51,L28,Brassage!$F$43:$F$51)) -> 0 | P28: =IF([1]Stock!J28="","",[1]Stock!J28) ->  | Q28: =IF([1]Stock!K28="","",[1]Stock!K28) ->  | R28: =IF(P28="","",IFERROR(VLOOKUP(P28,Brassage!$B$55:$G$58,1,FALSE),"")) ->  | S28: =IF(R28="","0",IFERROR(VLOOKUP(P28,Brassage!$B$55:$G$58,6,FALSE),"")) -> 0
A29: =IF([1]Stock!A29="","",[1]Stock!A29) ->  | B29: =IF([1]Stock!B29="","",[1]Stock!B29) ->  | C29: =IF([1]Stock!C29="","",[1]Stock!C29) -> 0 | D29: =IF(A29="","",IFERROR(VLOOKUP(A29,Brassage!$B$24:$G$32,1,FALSE),"")) ->  | E29: =IF(A29="","",IFERROR(VLOOKUP(A29,Brassage!$B$24:$G$32,2,FALSE),"")) ->  | F29: =IF(Stock!D29="0","0",SUMIF(Brassage!$B$24:$B$32,Stock!D29,Brassage!$F$24:$F$32)) -> 0 | H29: =IF([1]Stock!E29="","",[1]Stock!E29) ->  | I29: =IF([1]Stock!F29="","",[1]Stock!F29) ->  | J29: =IF([1]Stock!G29="","",[1]Stock!G29) ->  | K29: =IF([1]Stock!H29="","",[1]Stock!H29) -> 0 | L29: =IF(H29="","",IFERROR(VLOOKUP(H29,Brassage!$B$43:$G$51,1,FALSE),"")) ->  | M29: =IF(L29="","",IFERROR(VLOOKUP(L29,Brassage!$B$43:$G$51,2,FALSE),"")) ->  | N29: =IF(L29="0","0",SUMIF(Brassage!$B$43:$B$51,L29,Brassage!$F$43:$F$51)) -> 0 | P29: =IF([1]Stock!J29="","",[1]Stock!J29) ->  | Q29: =IF([1]Stock!K29="","",[1]Stock!K29) ->  | R29: =IF(P29="","",IFERROR(VLOOKUP(P29,Brassage!$B$55:$G$58,1,FALSE),"")) ->  | S29: =IF(R29="","0",IFERROR(VLOOKUP(P29,Brassage!$B$55:$G$58,6,FALSE),"")) -> 0
A30: =IF([1]Stock!A30="","",[1]Stock!A30) ->  | B30: =IF([1]Stock!B30="","",[1]Stock!B30) ->  | C30: =IF([1]Stock!C30="","",[1]Stock!C30) -> 0 | D30: =IF(A30="","",IFERROR(VLOOKUP(A30,Brassage!$B$24:$G$32,1,FALSE),"")) ->  | E30: =IF(A30="","",IFERROR(VLOOKUP(A30,Brassage!$B$24:$G$32,2,FALSE),"")) ->  | F30: =IF(Stock!D30="0","0",SUMIF(Brassage!$B$24:$B$32,Stock!D30,Brassage!$F$24:$F$32)) -> 0 | H30: =IF([1]Stock!E30="","",[1]Stock!E30) ->  | I30: =IF([1]Stock!F30="","",[1]Stock!F30) ->  | J30: =IF([1]Stock!G30="","",[1]Stock!G30) ->  | K30: =IF([1]Stock!H30="","",[1]Stock!H30) -> 0 | L30: =IF(H30="","",IFERROR(VLOOKUP(H30,Brassage!$B$43:$G$51,1,FALSE),"")) ->  | M30: =IF(L30="","",IFERROR(VLOOKUP(L30,Brassage!$B$43:$G$51,2,FALSE),"")) ->  | N30: =IF(L30="0","0",SUMIF(Brassage!$B$43:$B$51,L30,Brassage!$F$43:$F$51)) -> 0 | P30: =IF([1]Stock!J30="","",[1]Stock!J30) ->  | Q30: =IF([1]Stock!K30="","",[1]Stock!K30) ->  | R30: =IF(P30="","",IFERROR(VLOOKUP(P30,Brassage!$B$55:$G$58,1,FALSE),"")) ->  | S30: =IF(R30="","0",IFERROR(VLOOKUP(P30,Brassage!$B$55:$G$58,6,FALSE),"")) -> 0
A31: =IF([1]Stock!A31="","",[1]Stock!A31) ->  | B31: =IF([1]Stock!B31="","",[1]Stock!B31) ->  | C31: =IF([1]Stock!C31="","",[1]Stock!C31) -> 0 | D31: =IF(A31="","",IFERROR(VLOOKUP(A31,Brassage!$B$24:$G$32,1,FALSE),"")) ->  | E31: =IF(A31="","",IFERROR(VLOOKUP(A31,Brassage!$B$24:$G$32,2,FALSE),"")) ->  | F31: =IF(Stock!D31="0","0",SUMIF(Brassage!$B$24:$B$32,Stock!D31,Brassage!$F$24:$F$32)) -> 0 | H31: =IF([1]Stock!E31="","",[1]Stock!E31) ->  | I31: =IF([1]Stock!F31="","",[1]Stock!F31) ->  | J31: =IF([1]Stock!G31="","",[1]Stock!G31) ->  | K31: =IF([1]Stock!H31="","",[1]Stock!H31) -> 0 | L31: =IF(H31="","",IFERROR(VLOOKUP(H31,Brassage!$B$43:$G$51,1,FALSE),"")) ->  | M31: =IF(L31="","",IFERROR(VLOOKUP(L31,Brassage!$B$43:$G$51,2,FALSE),"")) ->  | N31: =IF(L31="0","0",SUMIF(Brassage!$B$43:$B$51,L31,Brassage!$F$43:$F$51)) -> 0 | P31: =IF([1]Stock!J31="","",[1]Stock!J31) ->  | Q31: =IF([1]Stock!K31="","",[1]Stock!K31) ->  | R31: =IF(P31="","",IFERROR(VLOOKUP(P31,Brassage!$B$55:$G$58,1,FALSE),"")) ->  | S31: =IF(R31="","0",IFERROR(VLOOKUP(P31,Brassage!$B$55:$G$58,6,FALSE),"")) -> 0
A32: =IF([1]Stock!A32="","",[1]Stock!A32) ->  | B32: =IF([1]Stock!B32="","",[1]Stock!B32) ->  | C32: =IF([1]Stock!C32="","",[1]Stock!C32) -> 0 | D32: =IF(A32="","",IFERROR(VLOOKUP(A32,Brassage!$B$24:$G$32,1,FALSE),"")) ->  | E32: =IF(A32="","",IFERROR(VLOOKUP(A32,Brassage!$B$24:$G$32,2,FALSE),"")) ->  | F32: =IF(Stock!D32="0","0",SUMIF(Brassage!$B$24:$B$32,Stock!D32,Brassage!$F$24:$F$32)) -> 0 | H32: =IF([1]Stock!E32="","",[1]Stock!E32) ->  | I32: =IF([1]Stock!F32="","",[1]Stock!F32) ->  | J32: =IF([1]Stock!G32="","",[1]Stock!G32) ->  | K32: =IF([1]Stock!H32="","",[1]Stock!H32) -> 0 | L32: =IF(H32="","",IFERROR(VLOOKUP(H32,Brassage!$B$43:$G$51,1,FALSE),"")) ->  | M32: =IF(L32="","",IFERROR(VLOOKUP(L32,Brassage!$B$43:$G$51,2,FALSE),"")) ->  | N32: =IF(L32="0","0",SUMIF(Brassage!$B$43:$B$51,L32,Brassage!$F$43:$F$51)) -> 0 | P32: =IF([1]Stock!J32="","",[1]Stock!J32) ->  | Q32: =IF([1]Stock!K32="","",[1]Stock!K32) ->  | R32: =IF(P32="","",IFERROR(VLOOKUP(P32,Brassage!$B$55:$G$58,1,FALSE),"")) ->  | S32: =IF(R32="","0",IFERROR(VLOOKUP(P32,Brassage!$B$55:$G$58,6,FALSE),"")) -> 0

Sheet Etiquettes
A1: =Brassage!A1 -> IRA vers l'heure d'hiver | B1: =A1 -> IRA vers l'heure d'hiver | C1: =A1 -> IRA vers l'heure d'hiver | D1: =A1 -> IRA vers l'heure d'hiver | E1: =A1 -> IRA vers l'heure d'hiver | F1: =A1 -> IRA vers l'heure d'hiver | I1: =G1 -> 0 | K1: =G1 -> 0 | M1: =G1 -> 0 | O1: =G1 -> 0 | Q1: =G1 -> 0
A5: ="Brassin de "&Brassage!B4&" L" -> Brassin de 26 L | B5: =A5 -> Brassin de 26 L | C5: =A5 -> Brassin de 26 L | D5: =A5 -> Brassin de 26 L | E5: =A5 -> Brassin de 26 L | F5: =A5 -> Brassin de 26 L
B6: =A6 -> 0 | C6: =A6 -> 0 | D6: =A6 -> 0 | E6: =A6 -> 0 | F6: =A6 -> 0 | G6: Brassée | H6: =Brassage!B5 -> 2587-04-07 | I6: =G6 -> Brassée | J6: =H6 -> 2587-04-07 | K6: =G6 -> Brassée | L6: =H6 -> 2587-04-07 | M6: =G6 -> Brassée | N6: =H6 -> 2587-04-07 | O6: =G6 -> Brassée | P6: =H6 -> 2587-04-07 | Q6: =G6 -> Brassée | R6: =H6 -> 2587-04-07 | S6: EBC | T6: ABV | U6: Emb. | V6: Brassée | W6: =S6 -> EBC | X6: ABV | Y6: Emb. | Z6: Brassée | AA6: EBC | AB6: ABV | AC6: Emb. | AD6: Brassée | AE6: EBC | AF6: ABV | AG6: Emb. | AH6: Brassée | AI6: EBC | AJ6: ABV | AK6: Emb. | AL6: Brassée | AM6: EBC | AN6: ABV | AO6: Emb. | AP6: Brassée
A7: ="DI : " &Brassage!M33 -> DI : 1,046 | B7: =A7 -> DI : 1,046 | C7: =A7 -> DI : 1,046 | D7: =A7 -> DI : 1,046 | E7: =A7 -> DI : 1,046 | F7: =A7 -> DI : 1,046 | G7: Emb le | H7: =Brassage!J50 -> 2020-01-27 | I7: Emb le | J7: 2020-01-27 | K7: Emb le | L7: 2020-01-27 | M7: Emb le | N7: 2020-01-27 | O7: Emb le | P7: 2020-01-27 | Q7: Emb le | R7: 2020-01-27
A8: ="DF : " &Brassage!M52 -> DF : | B8: =A8 -> DF : | C8: =A8 -> DF : | D8: =A8 -> DF : | E8: =A8 -> DF : | F8: =A8 -> DF : | G8: ABV - | H8: =Brassage!E8 -> 3.865665111 | I8: ABV - | J8: 3.865665111 | K8: ABV - | L8: 3.865665111 | M8: ABV - | N8: 3.865665111 | O8: ABV - | P8: 3.865665111 | Q8: ABV - | R8: 3.865665111
A9: ="Empatage à "&ROUND(Brassage!B11,1)&"°C" -> Empatage à 67°C | B9: =A9 -> Empatage à 67°C | C9: =A9 -> Empatage à 67°C | D9: =A9 -> Empatage à 67°C | E9: =A9 -> Empatage à 67°C | F9: =A9 -> Empatage à 67°C | G9: EBC - | H9: =Brassage!E6 -> 26.20268419 | I9: EBC - | J9: 26.20268419 | K9: EBC - | L9: 26.20268419 | M9: EBC - | N9: 26.20268419 | O9: EBC - | P9: 26.20268419 | Q9: EBC - | R9: 26.20268419 | S9: =Brassage!$E$6 -> 26.20268419 | T9: =Brassage!$N$57 -> 0 | U9: =Brassage!$J$50 -> 2020-01-27 | V9: =Brassage!$B$5 -> 2587-04-07 | W9: =S9 -> 26.20268419 | X9: 0 | Y9: 2020-01-27 | Z9: 2587-04-07 | AA9: 26.20268419 | AB9: 0 | AC9: 2020-01-27 | AD9: 2587-04-07 | AE9: 26.20268419 | AF9: 0 | AG9: 2020-01-27 | AH9: 2587-04-07 | AI9: 26.20268419 | AJ9: 0 | AK9: 2020-01-27 | AL9: 2587-04-07 | AM9: 26.20268419 | AN9: 0 | AO9: 2020-01-27 | AP9: 2587-04-07
G10: IBU - | H10: =Brassage!E7 -> 79.83439418 | I10: IBU - | J10: 79.83439418 | K10: IBU - | L10: 79.83439418 | M10: IBU - | N10: 79.83439418 | O10: IBU - | P10: 79.83439418 | Q10: IBU - | R10: 79.83439418
A11: ="Grains" -> Grains | B11: =A11 -> Grains | C11: =A11 -> Grains | D11: =A11 -> Grains | E11: =A11 -> Grains | F11: =A11 -> Grains | G11: IBU/DI - | H11: =Brassage!E7/((Brassage!M33-1)*1000) -> 1.735530308 | I11: IBU/DI - | J11: 1.735530308 | K11: IBU/DI - | L11: 1.735530308 | M11: IBU/DI - | N11: 1.735530308 | O11: IBU/DI - | P11: 1.735530308 | Q11: IBU/DI - | R11: 1.735530308
A12: =IF(Brassage!F24=0,"","- "&Brassage!F24&"g "&Brassage!B24) -> - 4000g Pale ale Swaen | B12: - 4000g Pale ale Swaen | C12: - 4000g Pale ale Swaen | D12: - 4000g Pale ale Swaen | E12: - 4000g Pale ale Swaen | F12: - 4000g Pale ale Swaen | G12: vol CO2 | H12: =Brassage!E9 -> 2 | I12: vol CO2 | J12: 2 | K12: vol CO2 | L12: 2 | M12: vol CO2 | N12: 2 | O12: vol CO2 | P12: 2 | Q12: vol CO2 | R12: 2 | S12: vol CO2 | T12: IBU/RE | U12: IBU/DI | V12: IBU | W12: =S12 -> vol CO2 | X12: IBU/RE | Y12: IBU/DI | Z12: IBU | AA12: vol CO2 | AB12: IBU/RE | AC12: IBU/DI | AD12: IBU | AE12: vol CO2 | AF12: IBU/RE | AG12: IBU/DI | AH12: IBU | AI12: vol CO2 | AJ12: IBU/RE | AK12: IBU/DI | AL12: IBU | AM12: vol CO2 | AN12: IBU/RE | AO12: IBU/DI | AP12: IBU
A13: =IF(Brassage!F25=0,"","- "&Brassage!F25&"g "&Brassage!B25) -> - 400g Munich light Swaen | B13: - 400g Munich light Swaen | C13: - 400g Munich light Swaen | D13: - 400g Munich light Swaen | E13: - 400g Munich light Swaen | F13: - 400g Munich light Swaen | I13: 0 | J13: 0 | K13: 0 | L13: 0 | M13: 0 | N13: 0 | O13: 0 | P13: 0 | Q13: 0 | R13: 0
A14: =IF(Brassage!F26=0,"","- "&Brassage!F26&"g "&Brassage!B26) -> - 300g Cara Gold - Vieux Silo | B14: - 300g Cara Gold - Vieux Silo | C14: - 300g Cara Gold - Vieux Silo | D14: - 300g Cara Gold - Vieux Silo | E14: - 300g Cara Gold - Vieux Silo | F14: - 300g Cara Gold - Vieux Silo | G14: =Brassage!A1 -> IRA vers l'heure d'hiver | H14: =Brassage!B3 -> 15A - Irish Red Ale | I14: IRA vers l'heure d'hiver | J14: 15A - Irish Red Ale | K14: IRA vers l'heure d'hiver | L14: 15A - Irish Red Ale | M14: IRA vers l'heure d'hiver | N14: 15A - Irish Red Ale | O14: IRA vers l'heure d'hiver | P14: 15A - Irish Red Ale | Q14: IRA vers l'heure d'hiver | R14: 15A - Irish Red Ale
A15: =IF(Brassage!F27=0,"","- "&Brassage!F27&"g "&Brassage!B27) -> - 150g Seigle Chocolat | B15: - 150g Seigle Chocolat | C15: - 150g Seigle Chocolat | D15: - 150g Seigle Chocolat | E15: - 150g Seigle Chocolat | F15: - 150g Seigle Chocolat | S15: =Brassage!$E$9 -> 2 | T15: =Brassage!$E$7/(0.1808*(259-(259/Brassage!$M$33))+(0.8192*(259-(259/Brassage!$K$52)))) -> 19.04155538 | U15: =Brassage!E11 -> 20.39579226 | V15: =Brassage!$E$7 -> 79.83439418 | W15: =S15 -> 2 | X15: 19.04155538 | Y15: 20.39579226 | Z15: 79.83439418 | AA15: 2 | AB15: 19.04155538 | AC15: 20.39579226 | AD15: 79.83439418 | AE15: 2 | AF15: 19.04155538 | AG15: 20.39579226 | AH15: 79.83439418 | AI15: 2 | AJ15: 19.04155538 | AK15: 20.39579226 | AL15: 79.83439418 | AM15: 2 | AN15: 19.04155538 | AO15: 20.39579226 | AP15: 79.83439418
A16: =IF(Brassage!F28=0,"","- "&Brassage!F28&"g "&Brassage!B28) -> 
A17: =IF(Brassage!F29=0,"","- "&Brassage!F29&"g "&Brassage!B29) -> 
A18: =IF(Brassage!F30=0,"","- "&Brassage!F30&"g "&Brassage!B30) ->  | S18: =Brassage!$A$1 -> IRA vers l'heure d'hiver | U18: =Brassage!$B$3 -> 15A - Irish Red Ale | W18: =S18 -> IRA vers l'heure d'hiver | Y18: =U18 -> 15A - Irish Red Ale | AA18: =W18 -> IRA vers l'heure d'hiver | AC18: =Y18 -> 15A - Irish Red Ale | AE18: =AA18 -> IRA vers l'heure d'hiver | AG18: =AC18 -> 15A - Irish Red Ale | AI18: =AE18 -> IRA vers l'heure d'hiver | AK18: =AG18 -> 15A - Irish Red Ale | AM18: =AI18 -> IRA vers l'heure d'hiver | AO18: =AK18 -> 15A - Irish Red Ale
A19: Autres | B19: =A19 -> Autres | C19: =A19 -> Autres | D19: =A19 -> Autres | E19: =A19 -> Autres | F19: =A19 -> Autres
A20: =IF(Brassage!B37=0,"",Brassage!F37&" "&Brassage!B37) ->  | B20: =A20 ->  | C20: =A20 ->  | D20: =A20 ->  | E20: =A20 ->  | F20: =A20 -> 
A21: =IF(Brassage!B38=0,"",Brassage!F38&"g "&Brassage!B38) ->  | B21: =A21 ->  | C21: =A21 ->  | D21: =A21 ->  | E21: =A21 ->  | F21: =A21 -> 
A22: =IF(Brassage!B39=0,"",Brassage!F39&"g "&Brassage!B39) ->  | B22: =A22 ->  | C22: =A22 ->  | D22: =A22 ->  | E22: =A22 ->  | F22: =A22 -> 
A24: Houblons | B24: =A24 -> Houblons | C24: =A24 -> Houblons | D24: =A24 -> Houblons | E24: =A24 -> Houblons | F24: =A24 -> Houblons
A25: =IF(Brassage!F43=0,"","- "&Brassage!F43&"g "&Brassage!B43&" "&100*Brassage!C43&"%"&" "&"("&Brassage!D43&" "&Brassage!E43&"')") -> - 30g Magnum 13,9% (FWH 60') | B25: - 30g Magnum 13,9% (FWH 60') | C25: - 30g Magnum 13,9% (FWH 60') | D25: - 30g Magnum 13,9% (FWH 60') | E25: - 30g Magnum 13,9% (FWH 60') | F25: - 30g Magnum 13,9% (FWH 60')
A26: =IF(Brassage!F44=0,"","- "&Brassage!F44&"g "&Brassage!B44&" "&100*Brassage!C44&"%"&" "&"("&Brassage!D44&" "&Brassage!E44&"')") -> - 30g Golding 13,9% (FWH 60') | B26: - 30g Golding 13,9% (FWH 60') | C26: - 30g Golding 13,9% (FWH 60') | D26: - 30g Golding 13,9% (FWH 60') | E26: - 30g Golding 13,9% (FWH 60') | F26: - 30g Golding 13,9% (FWH 60')
A27: =IF(Brassage!F45=0,"","- "&Brassage!F45&"g "&Brassage!B45&" "&100*Brassage!C45&"%"&" "&"("&Brassage!D45&" "&Brassage!E45&"')") -> 
A28: =IF(Brassage!F46=0,"","- "&Brassage!F46&"g "&Brassage!B46&" "&100*Brassage!C46&"%"&" "&"("&Brassage!D46&" "&Brassage!E46&"')") -> 
A29: =IF(Brassage!F47=0,"","- "&Brassage!F47&"g "&Brassage!B47&" "&100*Brassage!C47&"%"&" "&"("&Brassage!D47&" "&Brassage!E47&"')") -> 
A30: =IF(Brassage!F48=0,"","- "&Brassage!F48&"g "&Brassage!B48&" "&100*Brassage!C48&"%"&" "&"("&Brassage!D48&" "&Brassage!E48&"')") -> 
A31: =IF(Brassage!F49=0,"","- "&Brassage!F49&"g "&Brassage!B49&" "&100*Brassage!C49&"%"&" "&"("&Brassage!D49&" "&Brassage!E49&"')") -> 
A32: Levures | B32: Levures | C32: =A32 -> Levures | D32: =A32 -> Levures | E32: =A32 -> Levures | F32: =A32 -> Levures
A33: =IF(Brassage!B55=0,"",Brassage!B55) -> 1084 - Irish Ale | B33: 1084 - Irish Ale | C33: =A33 -> 1084 - Irish Ale | D33: =A33 -> 1084 - Irish Ale | E33: =A33 -> 1084 - Irish Ale | F33: =A33 -> 1084 - Irish Ale
A34: =IF(Brassage!B56=0,"",Brassage!B56) ->  | C34: =A34 ->  | D34: =A34 ->  | E34: =A34 ->  | F34: =A34 -> 
B35: 0
S37: =$A$1 -> IRA vers l'heure d'hiver | W37: =S37 -> IRA vers l'heure d'hiver | AA37: =W37 -> IRA vers l'heure d'hiver | AE37: =AA37 -> IRA vers l'heure d'hiver | AI37: =AE37 -> IRA vers l'heure d'hiver | AM37: =AI37 -> IRA vers l'heure d'hiver
I41: =G41 -> 0 | J41: =H41 -> 0 | K41: =G41 -> 0 | L41: =H41 -> 0 | M41: =G41 -> 0 | N41: =H41 -> 0 | O41: =G41 -> 0 | P41: =H41 -> 0 | Q41: =G41 -> 0 | R41: =H41 -> 0
I42: =G42 -> 0 | K42: =G42 -> 0 | M42: =G42 -> 0 | O42: =G42 -> 0 | Q42: =G42 -> 0

Sheet Paramètres
A1: Caractéristiques des malts | G1: Taux d'utilisation houblon | J1: Caractéristiques des levures
A2: Type | B2: Rendement max | C2: EBC | D2: %max | E2: pH | G2: Ebullition | H2: 1 | J2: Nom | K2: Type | L2: Atténuation min | M2: Atténuation max | N2: Atténuation moyenne calculée | O2: T°C min | P2: T°C max | Q2: Floculation
A3: =IF([1]Paramètres!A3="","",[1]Paramètres!A3) -> Abbaye | B3: =IF([1]Paramètres!B3="","",[1]Paramètres!B3) -> 0.7 | C3: =IF([1]Paramètres!C3="","",[1]Paramètres!C3) -> 45 | D3: =IF([1]Paramètres!D3="","",[1]Paramètres!D3) -> 0.3 | E3: =IF([1]Paramètres!E3="","",[1]Paramètres!E3) -> 5.13 | G3: DH | H3: 0 | J3: =IF([1]Paramètres!J3="","",[1]Paramètres!J3) -> S-33 | K3: =IF([1]Paramètres!K3="","",[1]Paramètres!K3) -> Sèche | L3: =IF([1]Paramètres!L3="","",[1]Paramètres!L3) -> 0.7 | M3: =IF([1]Paramètres!M3="","",[1]Paramètres!M3) -> 0.7 | N3: =IF([1]Paramètres!N3="","",[1]Paramètres!N3) -> 0.7 | O3: =IF([1]Paramètres!O3="","",[1]Paramètres!O3) -> 15 | P3: =IF([1]Paramètres!P3="","",[1]Paramètres!P3) -> 20 | Q3: =IF([1]Paramètres!Q3="","",[1]Paramètres!Q3) -> Moyenne
A4: =IF([1]Paramètres!A4="","",[1]Paramètres!A4) -> Arôme | B4: =IF([1]Paramètres!B4="","",[1]Paramètres!B4) -> 0.74 | C4: =IF([1]Paramètres!C4="","",[1]Paramètres!C4) -> 100 | D4: =IF([1]Paramètres!D4="","",[1]Paramètres!D4) -> 0.2 | E4: =IF([1]Paramètres!E4="","",[1]Paramètres!E4) -> 5.03 | G4: Hop-Stand | H4: 0 | J4: =IF([1]Paramètres!J4="","",[1]Paramètres!J4) -> 1214 - Belgian Ale | K4: =IF([1]Paramètres!K4="","",[1]Paramètres!K4) -> Liquide | L4: =IF([1]Paramètres!L4="","",[1]Paramètres!L4) -> 0.74 | M4: =IF([1]Paramètres!M4="","",[1]Paramètres!M4) -> 0.78 | N4: =IF([1]Paramètres!N4="","",[1]Paramètres!N4) -> 0.76 | O4: =IF([1]Paramètres!O4="","",[1]Paramètres!O4) -> 20 | P4: =IF([1]Paramètres!P4="","",[1]Paramètres!P4) -> 24 | Q4: =IF([1]Paramètres!Q4="","",[1]Paramètres!Q4) -> Faible
A5: =IF([1]Paramètres!A5="","",[1]Paramètres!A5) -> Avoine (flocons) | B5: =IF([1]Paramètres!B5="","",[1]Paramètres!B5) -> 0.7 | C5: =IF([1]Paramètres!C5="","",[1]Paramètres!C5) -> 5 | D5: =IF([1]Paramètres!D5="","",[1]Paramètres!D5) -> 0.25 | E5: =IF([1]Paramètres!E5="","",[1]Paramètres!E5) -> 5.2 | G5: FWH | H5: 1.1 | J5: =IF([1]Paramètres!J5="","",[1]Paramètres!J5) -> WLP650 - Brettanomyces Bruxellensis | K5: =IF([1]Paramètres!K5="","",[1]Paramètres!K5) -> Liquide | L5: =IF([1]Paramètres!L5="","",[1]Paramètres!L5) -> 0.85 | M5: =IF([1]Paramètres!M5="","",[1]Paramètres!M5) -> 0.85 | N5: =IF([1]Paramètres!N5="","",[1]Paramètres!N5) -> 0.85 | O5: =IF([1]Paramètres!O5="","",[1]Paramètres!O5) -> 21 | P5: =IF([1]Paramètres!P5="","",[1]Paramètres!P5) -> 30 | Q5: =IF([1]Paramètres!Q5="","",[1]Paramètres!Q5) -> Moyenne
A6: =IF([1]Paramètres!A6="","",[1]Paramètres!A6) -> Biscuit Malt | B6: =IF([1]Paramètres!B6="","",[1]Paramètres!B6) -> 0.75 | C6: =IF([1]Paramètres!C6="","",[1]Paramètres!C6) -> 50 | D6: =IF([1]Paramètres!D6="","",[1]Paramètres!D6) -> 0.3 | E6: =IF([1]Paramètres!E6="","",[1]Paramètres!E6) -> 5.12 | G6: Mash-Hop | H6: 0.2 | J6: =IF([1]Paramètres!J6="","",[1]Paramètres!J6) -> WLP002 - English Ale | K6: =IF([1]Paramètres!K6="","",[1]Paramètres!K6) -> Liquide | L6: =IF([1]Paramètres!L6="","",[1]Paramètres!L6) -> 0.63 | M6: =IF([1]Paramètres!M6="","",[1]Paramètres!M6) -> 0.7 | N6: =IF([1]Paramètres!N6="","",[1]Paramètres!N6) -> 0.665 | O6: =IF([1]Paramètres!O6="","",[1]Paramètres!O6) -> 18.3 | P6: =IF([1]Paramètres!P6="","",[1]Paramètres!P6) -> 20 | Q6: =IF([1]Paramètres!Q6="","",[1]Paramètres!Q6) -> Très forte
A7: =IF([1]Paramètres!A7="","",[1]Paramètres!A7) -> Black | B7: =IF([1]Paramètres!B7="","",[1]Paramètres!B7) -> 0.55 | C7: =IF([1]Paramètres!C7="","",[1]Paramètres!C7) -> 1300 | D7: =IF([1]Paramètres!D7="","",[1]Paramètres!D7) -> 0.05 | E7: =IF([1]Paramètres!E7="","",[1]Paramètres!E7) -> 4.71 | G7: Flame-out | H7: 0.75 | J7: =IF([1]Paramètres!J7="","",[1]Paramètres!J7) -> 3711 - French Saison | K7: =IF([1]Paramètres!K7="","",[1]Paramètres!K7) -> Liquide | L7: =IF([1]Paramètres!L7="","",[1]Paramètres!L7) -> 0.8 | M7: =IF([1]Paramètres!M7="","",[1]Paramètres!M7) -> 0.95 | N7: =IF([1]Paramètres!N7="","",[1]Paramètres!N7) -> 0.875 | O7: =IF([1]Paramètres!O7="","",[1]Paramètres!O7) -> 23 | P7: =IF([1]Paramètres!P7="","",[1]Paramètres!P7) -> 30 | Q7: =IF([1]Paramètres!Q7="","",[1]Paramètres!Q7) -> Faible
A8: =IF([1]Paramètres!A8="","",[1]Paramètres!A8) -> Black of black | B8: =IF([1]Paramètres!B8="","",[1]Paramètres!B8) -> 0.55 | C8: =IF([1]Paramètres!C8="","",[1]Paramètres!C8) -> 800 | D8: =IF([1]Paramètres!D8="","",[1]Paramètres!D8) -> 0.05 | E8: =IF([1]Paramètres!E8="","",[1]Paramètres!E8) -> 4.71 | J8: =IF([1]Paramètres!J8="","",[1]Paramètres!J8) -> WLP833 - German Bock Lager | K8: =IF([1]Paramètres!K8="","",[1]Paramètres!K8) -> Liquide | L8: =IF([1]Paramètres!L8="","",[1]Paramètres!L8) -> 0.7 | M8: =IF([1]Paramètres!M8="","",[1]Paramètres!M8) -> 0.76 | N8: =IF([1]Paramètres!N8="","",[1]Paramètres!N8) -> 0.73 | O8: =IF([1]Paramètres!O8="","",[1]Paramètres!O8) -> 9 | P8: =IF([1]Paramètres!P8="","",[1]Paramètres!P8) -> 13 | Q8: =IF([1]Paramètres!Q8="","",[1]Paramètres!Q8) -> Moyenne
A9: =IF([1]Paramètres!A9="","",[1]Paramètres!A9) -> Blé (flocons) | B9: =IF([1]Paramètres!B9="","",[1]Paramètres!B9) -> 0.77 | C9: =IF([1]Paramètres!C9="","",[1]Paramètres!C9) -> 5 | D9: =IF([1]Paramètres!D9="","",[1]Paramètres!D9) -> 0.25 | E9: =IF([1]Paramètres!E9="","",[1]Paramètres!E9) -> 5.2 | G9: Taux d'ensemencement | J9: =IF([1]Paramètres!J9="","",[1]Paramètres!J9) -> WLP830 - German Lager | K9: =IF([1]Paramètres!K9="","",[1]Paramètres!K9) -> Liquide | L9: =IF([1]Paramètres!L9="","",[1]Paramètres!L9) -> 0.74 | M9: =IF([1]Paramètres!M9="","",[1]Paramètres!M9) -> 0.79 | N9: =IF([1]Paramètres!N9="","",[1]Paramètres!N9) -> 0.765 | O9: =IF([1]Paramètres!O9="","",[1]Paramètres!O9) -> 10 | P9: =IF([1]Paramètres!P9="","",[1]Paramètres!P9) -> 13 | Q9: =IF([1]Paramètres!Q9="","",[1]Paramètres!Q9) -> Moyenne
A10: =IF([1]Paramètres!A10="","",[1]Paramètres!A10) -> Café | B10: =IF([1]Paramètres!B10="","",[1]Paramètres!B10) -> 0.6 | C10: =IF([1]Paramètres!C10="","",[1]Paramètres!C10) -> 500 | D10: =IF([1]Paramètres!D10="","",[1]Paramètres!D10) -> 0.1 | E10: =IF([1]Paramètres!E10="","",[1]Paramètres!E10) -> 4.71 | H10: 1.065 | I10: >1065 | J10: =IF([1]Paramètres!J10="","",[1]Paramètres!J10) -> WLP4042 - Hazy Daze | K10: =IF([1]Paramètres!K10="","",[1]Paramètres!K10) -> Liquide | L10: =IF([1]Paramètres!L10="","",[1]Paramètres!L10) -> 0.79 | M10: =IF([1]Paramètres!M10="","",[1]Paramètres!M10) -> 0.83 | N10: =IF([1]Paramètres!N10="","",[1]Paramètres!N10) -> 0.81 | O10: =IF([1]Paramètres!O10="","",[1]Paramètres!O10) -> 17.7 | P10: =IF([1]Paramètres!P10="","",[1]Paramètres!P10) -> 22 | Q10: =IF([1]Paramètres!Q10="","",[1]Paramètres!Q10) -> Moyenne
A11: =IF([1]Paramètres!A11="","",[1]Paramètres!A11) -> Café light | B11: =IF([1]Paramètres!B11="","",[1]Paramètres!B11) -> 0.6 | C11: =IF([1]Paramètres!C11="","",[1]Paramètres!C11) -> 250 | D11: =IF([1]Paramètres!D11="","",[1]Paramètres!D11) -> 0.1 | E11: =IF([1]Paramètres!E11="","",[1]Paramètres!E11) -> 4.71 | G11: Ale | H11: 0.75 | I11: 1 | J11: =IF([1]Paramètres!J11="","",[1]Paramètres!J11) -> 1084 - Irish Ale | K11: =IF([1]Paramètres!K11="","",[1]Paramètres!K11) -> Liquide | L11: =IF([1]Paramètres!L11="","",[1]Paramètres!L11) -> 0.71 | M11: =IF([1]Paramètres!M11="","",[1]Paramètres!M11) -> 0.75 | N11: =IF([1]Paramètres!N11="","",[1]Paramètres!N11) -> 0.73 | O11: =IF([1]Paramètres!O11="","",[1]Paramètres!O11) -> 16.7 | P11: =IF([1]Paramètres!P11="","",[1]Paramètres!P11) -> 22.2 | Q11: =IF([1]Paramètres!Q11="","",[1]Paramètres!Q11) -> Moyenne
A12: =IF([1]Paramètres!A12="","",[1]Paramètres!A12) -> Cara Belge | B12: =IF([1]Paramètres!B12="","",[1]Paramètres!B12) -> 0.74 | C12: =IF([1]Paramètres!C12="","",[1]Paramètres!C12) -> 35 | D12: =IF([1]Paramètres!D12="","",[1]Paramètres!D12) -> 0.3 | E12: =IF([1]Paramètres!E12="","",[1]Paramètres!E12) -> 5.16 | G12: Lager | H12: 1.5 | I12: 2 | J12: =IF([1]Paramètres!J12="","",[1]Paramètres!J12) -> WLP810 - San Fransisco Lager | K12: =IF([1]Paramètres!K12="","",[1]Paramètres!K12) -> Liquide | L12: =IF([1]Paramètres!L12="","",[1]Paramètres!L12) -> 0.65 | M12: =IF([1]Paramètres!M12="","",[1]Paramètres!M12) -> 0.7 | N12: =IF([1]Paramètres!N12="","",[1]Paramètres!N12) -> 0.675 | O12: =IF([1]Paramètres!O12="","",[1]Paramètres!O12) -> 14.4 | P12: =IF([1]Paramètres!P12="","",[1]Paramètres!P12) -> 18.3 | Q12: =IF([1]Paramètres!Q12="","",[1]Paramètres!Q12) -> Forte
A13: =IF([1]Paramètres!A13="","",[1]Paramètres!A13) -> Cara Bohemian | B13: =IF([1]Paramètres!B13="","",[1]Paramètres!B13) -> 0.74 | C13: =IF([1]Paramètres!C13="","",[1]Paramètres!C13) -> 195 | D13: =IF([1]Paramètres!D13="","",[1]Paramètres!D13) -> 0.2 | E13: =IF([1]Paramètres!E13="","",[1]Paramètres!E13) -> 4.9 | J13: =IF([1]Paramètres!J13="","",[1]Paramètres!J13) -> WLP4046 - Simonaitis Lithuanian Farmhouse | K13: =IF([1]Paramètres!K13="","",[1]Paramètres!K13) -> Liquide | L13: =IF([1]Paramètres!L13="","",[1]Paramètres!L13) -> 0.76 | M13: =IF([1]Paramètres!M13="","",[1]Paramètres!M13) -> 0.82 | N13: =IF([1]Paramètres!N13="","",[1]Paramètres!N13) -> 0.79 | O13: =IF([1]Paramètres!O13="","",[1]Paramètres!O13) -> 24 | P13: =IF([1]Paramètres!P13="","",[1]Paramètres!P13) -> 35 | Q13: =IF([1]Paramètres!Q13="","",[1]Paramètres!Q13) -> Forte
A14: =IF([1]Paramètres!A14="","",[1]Paramètres!A14) -> Cara Gold | B14: =IF([1]Paramètres!B14="","",[1]Paramètres!B14) -> 0.74 | C14: =IF([1]Paramètres!C14="","",[1]Paramètres!C14) -> 120 | D14: =IF([1]Paramètres!D14="","",[1]Paramètres!D14) -> 0.2 | E14: =IF([1]Paramètres!E14="","",[1]Paramètres!E14) -> 4.99 | J14: =IF([1]Paramètres!J14="","",[1]Paramètres!J14) -> OYL-062 - Voss Kveik | K14: =IF([1]Paramètres!K14="","",[1]Paramètres!K14) -> Liquide | L14: =IF([1]Paramètres!L14="","",[1]Paramètres!L14) -> 0.75 | M14: =IF([1]Paramètres!M14="","",[1]Paramètres!M14) -> 0.82 | N14: =IF([1]Paramètres!N14="","",[1]Paramètres!N14) -> 0.785 | O14: =IF([1]Paramètres!O14="","",[1]Paramètres!O14) -> 20 | P14: =IF([1]Paramètres!P14="","",[1]Paramètres!P14) -> 36.7 | Q14: =IF([1]Paramètres!Q14="","",[1]Paramètres!Q14) -> Moyenne
A15: =IF([1]Paramètres!A15="","",[1]Paramètres!A15) -> Cara Gold - Vieux Silo | B15: =IF([1]Paramètres!B15="","",[1]Paramètres!B15) -> 0.7 | C15: =IF([1]Paramètres!C15="","",[1]Paramètres!C15) -> 120 | D15: =IF([1]Paramètres!D15="","",[1]Paramètres!D15) -> 0.2 | E15: =IF([1]Paramètres!E15="","",[1]Paramètres!E15) -> 4.99 | J15: =IF([1]Paramètres!J15="","",[1]Paramètres!J15) -> 3068 - Weihenstephan Weizen | K15: =IF([1]Paramètres!K15="","",[1]Paramètres!K15) -> Liquide | L15: =IF([1]Paramètres!L15="","",[1]Paramètres!L15) -> 0.73 | M15: =IF([1]Paramètres!M15="","",[1]Paramètres!M15) -> 0.77 | N15: =IF([1]Paramètres!N15="","",[1]Paramètres!N15) -> 0.75 | O15: =IF([1]Paramètres!O15="","",[1]Paramètres!O15) -> 17.8 | P15: =IF([1]Paramètres!P15="","",[1]Paramètres!P15) -> 23.9 | Q15: =IF([1]Paramètres!Q15="","",[1]Paramètres!Q15) -> Faible
A16: =IF([1]Paramètres!A16="","",[1]Paramètres!A16) -> Cara Ruby | B16: =IF([1]Paramètres!B16="","",[1]Paramètres!B16) -> 0.74 | C16: =IF([1]Paramètres!C16="","",[1]Paramètres!C16) -> 50 | D16: =IF([1]Paramètres!D16="","",[1]Paramètres!D16) -> 0.25 | E16: =IF([1]Paramètres!E16="","",[1]Paramètres!E16) -> 5.12 | F16: Sucres | J16: =IF([1]Paramètres!J16="","",[1]Paramètres!J16) ->  | K16: =IF([1]Paramètres!K16="","",[1]Paramètres!K16) ->  | L16: =IF([1]Paramètres!L16="","",[1]Paramètres!L16) ->  | M16: =IF([1]Paramètres!M16="","",[1]Paramètres!M16) ->  | N16: =IF([1]Paramètres!N16="","",[1]Paramètres!N16) ->  | O16: =IF([1]Paramètres!O16="","",[1]Paramètres!O16) ->  | P16: =IF([1]Paramètres!P16="","",[1]Paramètres!P16) ->  | Q16: =IF([1]Paramètres!Q16="","",[1]Paramètres!Q16) -> 
A17: =IF([1]Paramètres!A17="","",[1]Paramètres!A17) -> Cara-Blond | B17: =IF([1]Paramètres!B17="","",[1]Paramètres!B17) -> 0.7 | C17: =IF([1]Paramètres!C17="","",[1]Paramètres!C17) -> 20 | D17: =IF([1]Paramètres!D17="","",[1]Paramètres!D17) -> 0.3 | E17: =IF([1]Paramètres!E17="","",[1]Paramètres!E17) -> 5.18 | F17: Type | G17: Rendement max | H17: EBC | I17: pH | J17: =IF([1]Paramètres!J17="","",[1]Paramètres!J17) ->  | K17: =IF([1]Paramètres!K17="","",[1]Paramètres!K17) ->  | L17: =IF([1]Paramètres!L17="","",[1]Paramètres!L17) ->  | M17: =IF([1]Paramètres!M17="","",[1]Paramètres!M17) ->  | N17: =IF([1]Paramètres!N17="","",[1]Paramètres!N17) ->  | O17: =IF([1]Paramètres!O17="","",[1]Paramètres!O17) ->  | P17: =IF([1]Paramètres!P17="","",[1]Paramètres!P17) ->  | Q17: =IF([1]Paramètres!Q17="","",[1]Paramètres!Q17) -> 
A18: =IF([1]Paramètres!A18="","",[1]Paramètres!A18) -> Cara-clair | B18: =IF([1]Paramètres!B18="","",[1]Paramètres!B18) -> 0.75 | C18: =IF([1]Paramètres!C18="","",[1]Paramètres!C18) -> 5.5 | D18: =IF([1]Paramètres!D18="","",[1]Paramètres!D18) -> 0.3 | E18: =IF([1]Paramètres!E18="","",[1]Paramètres!E18) -> 5.2 | F18: =IF([1]Paramètres!F18="","",[1]Paramètres!F18) -> Sucre ambré | G18: =IF([1]Paramètres!G18="","",[1]Paramètres!G18) -> 1 | H18: =IF([1]Paramètres!H18="","",[1]Paramètres!H18) -> 150 | J18: =IF([1]Paramètres!J18="","",[1]Paramètres!J18) ->  | K18: =IF([1]Paramètres!K18="","",[1]Paramètres!K18) ->  | L18: =IF([1]Paramètres!L18="","",[1]Paramètres!L18) ->  | M18: =IF([1]Paramètres!M18="","",[1]Paramètres!M18) ->  | N18: =IF([1]Paramètres!N18="","",[1]Paramètres!N18) ->  | O18: =IF([1]Paramètres!O18="","",[1]Paramètres!O18) ->  | P18: =IF([1]Paramètres!P18="","",[1]Paramètres!P18) ->  | Q18: =IF([1]Paramètres!Q18="","",[1]Paramètres!Q18) -> 
A19: =IF([1]Paramètres!A19="","",[1]Paramètres!A19) -> Chocolat | B19: =IF([1]Paramètres!B19="","",[1]Paramètres!B19) -> 0.6 | C19: =IF([1]Paramètres!C19="","",[1]Paramètres!C19) -> 1000 | D19: =IF([1]Paramètres!D19="","",[1]Paramètres!D19) -> 0.07 | E19: =IF([1]Paramètres!E19="","",[1]Paramètres!E19) -> 3.33 | F19: =IF([1]Paramètres!F19="","",[1]Paramètres!F19) -> Sucre blanc | G19: =IF([1]Paramètres!G19="","",[1]Paramètres!G19) -> 1 | H19: =IF([1]Paramètres!H19="","",[1]Paramètres!H19) -> 2 | J19: =IF([1]Paramètres!J19="","",[1]Paramètres!J19) ->  | K19: =IF([1]Paramètres!K19="","",[1]Paramètres!K19) ->  | L19: =IF([1]Paramètres!L19="","",[1]Paramètres!L19) ->  | M19: =IF([1]Paramètres!M19="","",[1]Paramètres!M19) ->  | N19: =IF([1]Paramètres!N19="","",[1]Paramètres!N19) ->  | O19: =IF([1]Paramètres!O19="","",[1]Paramètres!O19) ->  | P19: =IF([1]Paramètres!P19="","",[1]Paramètres!P19) ->  | Q19: =IF([1]Paramètres!Q19="","",[1]Paramètres!Q19) -> 
A20: =IF([1]Paramètres!A20="","",[1]Paramètres!A20) -> Crystal | B20: =IF([1]Paramètres!B20="","",[1]Paramètres!B20) -> 0.74 | C20: =IF([1]Paramètres!C20="","",[1]Paramètres!C20) -> 150 | D20: =IF([1]Paramètres!D20="","",[1]Paramètres!D20) -> 0.2 | E20: =IF([1]Paramètres!E20="","",[1]Paramètres!E20) -> 4.93 | F20: =IF([1]Paramètres!F20="","",[1]Paramètres!F20) -> Sucre foncé | G20: =IF([1]Paramètres!G20="","",[1]Paramètres!G20) -> 1 | H20: =IF([1]Paramètres!H20="","",[1]Paramètres!H20) -> 542 | J20: =IF([1]Paramètres!J20="","",[1]Paramètres!J20) ->  | K20: =IF([1]Paramètres!K20="","",[1]Paramètres!K20) ->  | L20: =IF([1]Paramètres!L20="","",[1]Paramètres!L20) ->  | M20: =IF([1]Paramètres!M20="","",[1]Paramètres!M20) ->  | N20: =IF([1]Paramètres!N20="","",[1]Paramètres!N20) ->  | O20: =IF([1]Paramètres!O20="","",[1]Paramètres!O20) ->  | P20: =IF([1]Paramètres!P20="","",[1]Paramètres!P20) ->  | Q20: =IF([1]Paramètres!Q20="","",[1]Paramètres!Q20) -> 
A21: =IF([1]Paramètres!A21="","",[1]Paramètres!A21) -> Dextrine/Cara pils Malt | B21: =IF([1]Paramètres!B21="","",[1]Paramètres!B21) -> 0.7 | C21: =IF([1]Paramètres!C21="","",[1]Paramètres!C21) -> 5 | D21: =IF([1]Paramètres!D21="","",[1]Paramètres!D21) -> 0.4 | E21: =IF([1]Paramètres!E21="","",[1]Paramètres!E21) -> 5.2 | F21: =IF([1]Paramètres!F21="","",[1]Paramètres!F21) -> DME blond | G21: =IF([1]Paramètres!G21="","",[1]Paramètres!G21) -> 0.966 | H21: =IF([1]Paramètres!H21="","",[1]Paramètres!H21) -> 8 | I21: =IF([1]Paramètres!I21="","",[1]Paramètres!I21) ->  | J21: =IF([1]Paramètres!J21="","",[1]Paramètres!J21) ->  | K21: =IF([1]Paramètres!K21="","",[1]Paramètres!K21) ->  | L21: =IF([1]Paramètres!L21="","",[1]Paramètres!L21) ->  | M21: =IF([1]Paramètres!M21="","",[1]Paramètres!M21) ->  | N21: =IF([1]Paramètres!N21="","",[1]Paramètres!N21) ->  | O21: =IF([1]Paramètres!O21="","",[1]Paramètres!O21) ->  | P21: =IF([1]Paramètres!P21="","",[1]Paramètres!P21) ->  | Q21: =IF([1]Paramètres!Q21="","",[1]Paramètres!Q21) -> 
A22: =IF([1]Paramètres!A22="","",[1]Paramètres!A22) -> Diastasique | B22: =IF([1]Paramètres!B22="","",[1]Paramètres!B22) -> 0.81 | C22: =IF([1]Paramètres!C22="","",[1]Paramètres!C22) -> 3 | D22: =IF([1]Paramètres!D22="","",[1]Paramètres!D22) -> 0.3 | E22: =IF([1]Paramètres!E22="","",[1]Paramètres!E22) -> 5.7 | F22: =IF([1]Paramètres!F22="","",[1]Paramètres!F22) -> DME ambré | G22: =IF([1]Paramètres!G22="","",[1]Paramètres!G22) -> 0.966 | H22: =IF([1]Paramètres!H22="","",[1]Paramètres!H22) -> 18 | I22: =IF([1]Paramètres!I22="","",[1]Paramètres!I22) ->  | J22: =IF([1]Paramètres!J22="","",[1]Paramètres!J22) ->  | K22: =IF([1]Paramètres!K22="","",[1]Paramètres!K22) ->  | L22: =IF([1]Paramètres!L22="","",[1]Paramètres!L22) ->  | M22: =IF([1]Paramètres!M22="","",[1]Paramètres!M22) ->  | N22: =IF([1]Paramètres!N22="","",[1]Paramètres!N22) ->  | O22: =IF([1]Paramètres!O22="","",[1]Paramètres!O22) ->  | P22: =IF([1]Paramètres!P22="","",[1]Paramètres!P22) ->  | Q22: =IF([1]Paramètres!Q22="","",[1]Paramètres!Q22) -> 
A23: =IF([1]Paramètres!A23="","",[1]Paramètres!A23) -> Froment | B23: =IF([1]Paramètres!B23="","",[1]Paramètres!B23) -> 0.79 | C23: =IF([1]Paramètres!C23="","",[1]Paramètres!C23) -> 4.5 | D23: =IF([1]Paramètres!D23="","",[1]Paramètres!D23) -> 0.35 | E23: =IF([1]Paramètres!E23="","",[1]Paramètres!E23) -> 6.04 | F23: =IF([1]Paramètres!F23="","",[1]Paramètres!F23) -> DME foncé | G23: =IF([1]Paramètres!G23="","",[1]Paramètres!G23) -> 0.966 | H23: =IF([1]Paramètres!H23="","",[1]Paramètres!H23) -> 57 | I23: =IF([1]Paramètres!I23="","",[1]Paramètres!I23) ->  | J23: =IF([1]Paramètres!J23="","",[1]Paramètres!J23) ->  | K23: =IF([1]Paramètres!K23="","",[1]Paramètres!K23) ->  | L23: =IF([1]Paramètres!L23="","",[1]Paramètres!L23) ->  | M23: =IF([1]Paramètres!M23="","",[1]Paramètres!M23) ->  | N23: =IF([1]Paramètres!N23="","",[1]Paramètres!N23) ->  | O23: =IF([1]Paramètres!O23="","",[1]Paramètres!O23) ->  | P23: =IF([1]Paramètres!P23="","",[1]Paramètres!P23) ->  | Q23: =IF([1]Paramètres!Q23="","",[1]Paramètres!Q23) -> 
A24: =IF([1]Paramètres!A24="","",[1]Paramètres!A24) -> Froment - Vieux Silo | B24: =IF([1]Paramètres!B24="","",[1]Paramètres!B24) -> 0.75 | C24: =IF([1]Paramètres!C24="","",[1]Paramètres!C24) -> 4.5 | D24: =IF([1]Paramètres!D24="","",[1]Paramètres!D24) -> 0.35 | E24: =IF([1]Paramètres!E24="","",[1]Paramètres!E24) -> 6.04 | F24: =IF([1]Paramètres!F24="","",[1]Paramètres!F24) -> DME noir | G24: =IF([1]Paramètres!G24="","",[1]Paramètres!G24) -> 0.966 | H24: =IF([1]Paramètres!H24="","",[1]Paramètres!H24) -> 95 | I24: =IF([1]Paramètres!I24="","",[1]Paramètres!I24) ->  | J24: =IF([1]Paramètres!J24="","",[1]Paramètres!J24) ->  | K24: =IF([1]Paramètres!K24="","",[1]Paramètres!K24) ->  | L24: =IF([1]Paramètres!L24="","",[1]Paramètres!L24) ->  | M24: =IF([1]Paramètres!M24="","",[1]Paramètres!M24) ->  | N24: =IF([1]Paramètres!N24="","",[1]Paramètres!N24) ->  | O24: =IF([1]Paramètres!O24="","",[1]Paramètres!O24) ->  | P24: =IF([1]Paramètres!P24="","",[1]Paramètres!P24) ->  | Q24: =IF([1]Paramètres!Q24="","",[1]Paramètres!Q24) -> 
A25: =IF([1]Paramètres!A25="","",[1]Paramètres!A25) -> Froment Black | B25: =IF([1]Paramètres!B25="","",[1]Paramètres!B25) -> 0.55 | C25: =IF([1]Paramètres!C25="","",[1]Paramètres!C25) -> 1300 | D25: =IF([1]Paramètres!D25="","",[1]Paramètres!D25) -> 0.05 | E25: =IF([1]Paramètres!E25="","",[1]Paramètres!E25) -> 4.71 | F25: =IF([1]Paramètres!F25="","",[1]Paramètres!F25) -> LME blond | G25: =IF([1]Paramètres!G25="","",[1]Paramètres!G25) -> 0.793 | H25: =IF([1]Paramètres!H25="","",[1]Paramètres!H25) -> 10 | I25: =IF([1]Paramètres!I25="","",[1]Paramètres!I25) ->  | J25: =IF([1]Paramètres!J25="","",[1]Paramètres!J25) ->  | K25: =IF([1]Paramètres!K25="","",[1]Paramètres!K25) ->  | L25: =IF([1]Paramètres!L25="","",[1]Paramètres!L25) ->  | M25: =IF([1]Paramètres!M25="","",[1]Paramètres!M25) ->  | N25: =IF([1]Paramètres!N25="","",[1]Paramètres!N25) ->  | O25: =IF([1]Paramètres!O25="","",[1]Paramètres!O25) ->  | P25: =IF([1]Paramètres!P25="","",[1]Paramètres!P25) ->  | Q25: =IF([1]Paramètres!Q25="","",[1]Paramètres!Q25) -> 
A26: =IF([1]Paramètres!A26="","",[1]Paramètres!A26) -> Froment Chocolat | B26: =IF([1]Paramètres!B26="","",[1]Paramètres!B26) -> 0.6 | C26: =IF([1]Paramètres!C26="","",[1]Paramètres!C26) -> 1000 | D26: =IF([1]Paramètres!D26="","",[1]Paramètres!D26) -> 0.2 | E26: =IF([1]Paramètres!E26="","",[1]Paramètres!E26) -> 4.71 | F26: =IF([1]Paramètres!F26="","",[1]Paramètres!F26) -> LME ambré | G26: =IF([1]Paramètres!G26="","",[1]Paramètres!G26) -> 0.793 | H26: =IF([1]Paramètres!H26="","",[1]Paramètres!H26) -> 18 | I26: =IF([1]Paramètres!I26="","",[1]Paramètres!I26) ->  | J26: =IF([1]Paramètres!J26="","",[1]Paramètres!J26) ->  | K26: =IF([1]Paramètres!K26="","",[1]Paramètres!K26) ->  | L26: =IF([1]Paramètres!L26="","",[1]Paramètres!L26) ->  | M26: =IF([1]Paramètres!M26="","",[1]Paramètres!M26) ->  | N26: =IF([1]Paramètres!N26="","",[1]Paramètres!N26) ->  | O26: =IF([1]Paramètres!O26="","",[1]Paramètres!O26) ->  | P26: =IF([1]Paramètres!P26="","",[1]Paramètres!P26) ->  | Q26: =IF([1]Paramètres!Q26="","",[1]Paramètres!Q26) -> 
A27: =IF([1]Paramètres!A27="","",[1]Paramètres!A27) -> Froment Crystal | B27: =IF([1]Paramètres!B27="","",[1]Paramètres!B27) -> 0.74 | C27: =IF([1]Paramètres!C27="","",[1]Paramètres!C27) -> 150 | D27: =IF([1]Paramètres!D27="","",[1]Paramètres!D27) -> 0.2 | E27: =IF([1]Paramètres!E27="","",[1]Paramètres!E27) -> 4.93 | F27: =IF([1]Paramètres!F27="","",[1]Paramètres!F27) -> LME foncé | G27: =IF([1]Paramètres!G27="","",[1]Paramètres!G27) -> 0.793 | H27: =IF([1]Paramètres!H27="","",[1]Paramètres!H27) -> 55 | I27: =IF([1]Paramètres!I27="","",[1]Paramètres!I27) ->  | J27: =IF([1]Paramètres!J27="","",[1]Paramètres!J27) ->  | K27: =IF([1]Paramètres!K27="","",[1]Paramètres!K27) ->  | L27: =IF([1]Paramètres!L27="","",[1]Paramètres!L27) ->  | M27: =IF([1]Paramètres!M27="","",[1]Paramètres!M27) ->  | N27: =IF([1]Paramètres!N27="","",[1]Paramètres!N27) ->  | O27: =IF([1]Paramètres!O27="","",[1]Paramètres!O27) ->  | P27: =IF([1]Paramètres!P27="","",[1]Paramètres!P27) ->  | Q27: =IF([1]Paramètres!Q27="","",[1]Paramètres!Q27) -> 
A28: =IF([1]Paramètres!A28="","",[1]Paramètres!A28) -> Froment Munich | B28: =IF([1]Paramètres!B28="","",[1]Paramètres!B28) -> 0.75 | C28: =IF([1]Paramètres!C28="","",[1]Paramètres!C28) -> 25 | D28: =IF([1]Paramètres!D28="","",[1]Paramètres!D28) -> 0.3 | E28: =IF([1]Paramètres!E28="","",[1]Paramètres!E28) -> 5.43 | F28: =IF([1]Paramètres!F28="","",[1]Paramètres!F28) ->  | G28: =IF([1]Paramètres!G28="","",[1]Paramètres!G28) ->  | H28: =IF([1]Paramètres!H28="","",[1]Paramètres!H28) ->  | I28: =IF([1]Paramètres!I28="","",[1]Paramètres!I28) ->  | J28: =IF([1]Paramètres!J28="","",[1]Paramètres!J28) ->  | K28: =IF([1]Paramètres!K28="","",[1]Paramètres!K28) ->  | L28: =IF([1]Paramètres!L28="","",[1]Paramètres!L28) ->  | M28: =IF([1]Paramètres!M28="","",[1]Paramètres!M28) ->  | N28: =IF([1]Paramètres!N28="","",[1]Paramètres!N28) ->  | O28: =IF([1]Paramètres!O28="","",[1]Paramètres!O28) ->  | P28: =IF([1]Paramètres!P28="","",[1]Paramètres!P28) ->  | Q28: =IF([1]Paramètres!Q28="","",[1]Paramètres!Q28) -> 
A29: =IF([1]Paramètres!A29="","",[1]Paramètres!A29) -> Froment Munich light | B29: =IF([1]Paramètres!B29="","",[1]Paramètres!B29) -> 0.75 | C29: =IF([1]Paramètres!C29="","",[1]Paramètres!C29) -> 15 | D29: =IF([1]Paramètres!D29="","",[1]Paramètres!D29) -> 0.3 | E29: =IF([1]Paramètres!E29="","",[1]Paramètres!E29) -> 5.19 | F29: =IF([1]Paramètres!F29="","",[1]Paramètres!F29) ->  | G29: =IF([1]Paramètres!G29="","",[1]Paramètres!G29) ->  | H29: =IF([1]Paramètres!H29="","",[1]Paramètres!H29) ->  | I29: =IF([1]Paramètres!I29="","",[1]Paramètres!I29) ->  | J29: =IF([1]Paramètres!J29="","",[1]Paramètres!J29) ->  | K29: =IF([1]Paramètres!K29="","",[1]Paramètres!K29) ->  | L29: =IF([1]Paramètres!L29="","",[1]Paramètres!L29) ->  | M29: =IF([1]Paramètres!M29="","",[1]Paramètres!M29) ->  | N29: =IF([1]Paramètres!N29="","",[1]Paramètres!N29) ->  | O29: =IF([1]Paramètres!O29="","",[1]Paramètres!O29) ->  | P29: =IF([1]Paramètres!P29="","",[1]Paramètres!P29) ->  | Q29: =IF([1]Paramètres!Q29="","",[1]Paramètres!Q29) -> 
A30: =IF([1]Paramètres!A30="","",[1]Paramètres!A30) -> Maïs (flocons) | B30: =IF([1]Paramètres!B30="","",[1]Paramètres!B30) -> 0.84 | C30: =IF([1]Paramètres!C30="","",[1]Paramètres!C30) -> 5 | D30: =IF([1]Paramètres!D30="","",[1]Paramètres!D30) -> 0.25 | E30: =IF([1]Paramètres!E30="","",[1]Paramètres!E30) -> 5.7 | F30: =IF([1]Paramètres!F30="","",[1]Paramètres!F30) ->  | G30: =IF([1]Paramètres!G30="","",[1]Paramètres!G30) ->  | H30: =IF([1]Paramètres!H30="","",[1]Paramètres!H30) ->  | I30: =IF([1]Paramètres!I30="","",[1]Paramètres!I30) ->  | J30: =IF([1]Paramètres!J30="","",[1]Paramètres!J30) ->  | K30: =IF([1]Paramètres!K30="","",[1]Paramètres!K30) ->  | L30: =IF([1]Paramètres!L30="","",[1]Paramètres!L30) ->  | M30: =IF([1]Paramètres!M30="","",[1]Paramètres!M30) ->  | N30: =IF([1]Paramètres!N30="","",[1]Paramètres!N30) ->  | O30: =IF([1]Paramètres!O30="","",[1]Paramètres!O30) ->  | P30: =IF([1]Paramètres!P30="","",[1]Paramètres!P30) ->  | Q30: =IF([1]Paramètres!Q30="","",[1]Paramètres!Q30) -> 
A31: =IF([1]Paramètres!A31="","",[1]Paramètres!A31) -> Marris Otter | B31: =IF([1]Paramètres!B31="","",[1]Paramètres!B31) -> 0.81 | C31: =IF([1]Paramètres!C31="","",[1]Paramètres!C31) -> 5 | D31: =IF([1]Paramètres!D31="","",[1]Paramètres!D31) -> 1 | E31: =IF([1]Paramètres!E31="","",[1]Paramètres!E31) -> 5.77 | F31: =IF([1]Paramètres!F31="","",[1]Paramètres!F31) ->  | G31: =IF([1]Paramètres!G31="","",[1]Paramètres!G31) ->  | H31: =IF([1]Paramètres!H31="","",[1]Paramètres!H31) ->  | I31: =IF([1]Paramètres!I31="","",[1]Paramètres!I31) -> 
A32: =IF([1]Paramètres!A32="","",[1]Paramètres!A32) -> Melano | B32: =IF([1]Paramètres!B32="","",[1]Paramètres!B32) -> 0.7 | C32: =IF([1]Paramètres!C32="","",[1]Paramètres!C32) -> 80 | D32: =IF([1]Paramètres!D32="","",[1]Paramètres!D32) -> 0.3 | E32: =IF([1]Paramètres!E32="","",[1]Paramètres!E32) -> 5.07
A33: =IF([1]Paramètres!A33="","",[1]Paramètres!A33) -> Melano light | B33: =IF([1]Paramètres!B33="","",[1]Paramètres!B33) -> 0.7 | C33: =IF([1]Paramètres!C33="","",[1]Paramètres!C33) -> 40 | D33: =IF([1]Paramètres!D33="","",[1]Paramètres!D33) -> 0.3 | E33: =IF([1]Paramètres!E33="","",[1]Paramètres!E33) -> 5.14 | F33: Sucres non-fermentiscibles
A34: =IF([1]Paramètres!A34="","",[1]Paramètres!A34) -> Munich light | B34: =IF([1]Paramètres!B34="","",[1]Paramètres!B34) -> 0.75 | C34: =IF([1]Paramètres!C34="","",[1]Paramètres!C34) -> 15 | D34: =IF([1]Paramètres!D34="","",[1]Paramètres!D34) -> 0.6 | E34: =IF([1]Paramètres!E34="","",[1]Paramètres!E34) -> 5.43 | F34: Type | G34: Rendement max | H34: EBC | I34: Pouvoir sucrant | K34: Bastok 2,0+dt | L34: =Brassage!L11+(Brassage!F33/1000*1677.7869+Brassage!N4)*(Brassage!L11-Brassage!K3)/(Brassage!M9*4185)+Brassage!N5 -> 75.5063037
A35: =IF([1]Paramètres!A35="","",[1]Paramètres!A35) -> Munich light Swaen | B35: =IF([1]Paramètres!B35="","",[1]Paramètres!B35) -> 0.75 | C35: =IF([1]Paramètres!C35="","",[1]Paramètres!C35) -> 13 | D35: =IF([1]Paramètres!D35="","",[1]Paramètres!D35) -> 0.6 | E35: =IF([1]Paramètres!E35="","",[1]Paramètres!E35) -> 5.43 | F35: =IF([1]Paramètres!F35="","",[1]Paramètres!F35) -> Lactose | G35: =IF([1]Paramètres!G35="","",[1]Paramètres!G35) -> 0.76 | H35: =IF([1]Paramètres!H35="","",[1]Paramètres!H35) ->  | I35: =IF([1]Paramètres!I35="","",[1]Paramètres!I35) -> 0.16 | J35: lactose | K35: Penn-Maen | L35: =Brassage!L11-(Brassage!F33/1000*1677.7869*(Brassage!K3-Brassage!L11)/(Brassage!M9*4185)) -> 74.30219593
A36: =IF([1]Paramètres!A36="","",[1]Paramètres!A36) -> Munich Malt | B36: =IF([1]Paramètres!B36="","",[1]Paramètres!B36) -> 0.75 | C36: =IF([1]Paramètres!C36="","",[1]Paramètres!C36) -> 25 | D36: =IF([1]Paramètres!D36="","",[1]Paramètres!D36) -> 0.6 | E36: =IF([1]Paramètres!E36="","",[1]Paramètres!E36) -> 5.43 | F36: =IF([1]Paramètres!F36="","",[1]Paramètres!F36) ->  | G36: =IF([1]Paramètres!G36="","",[1]Paramètres!G36) ->  | H36: =IF([1]Paramètres!H36="","",[1]Paramètres!H36) ->  | I36: =IF([1]Paramètres!I36="","",[1]Paramètres!I36) ->  | J36: =VLOOKUP(J35,F35:I41,2,FALSE) -> 0.76 | K36: PM + cuve | L36: =(Brassage!L11*(Brassage!N4+4185*Brassage!M9+1677.7869*Brassage!F33/1000)-1677.7869*Brassage!F33/1000*Brassage!K3-Brassage!N4*Brassage!N3)/(Brassage!M9*4185) -> 74.13293479 | M36: =(Brassage!L11*(Brassage!N4+4185*Brassage!M9+(23.9246*Brassage!K8*100+1585.0029)*Brassage!F33/1000)-(23.9246*Brassage!K8*100+1585.0029)*Brassage!F33/1000*Brassage!K3-Brassage!N4*Brassage!N3)/(Brassage!M9*4185) -> 74.14561907
A37: =IF([1]Paramètres!A37="","",[1]Paramètres!A37) -> Orge (flocons) | B37: =IF([1]Paramètres!B37="","",[1]Paramètres!B37) -> 0.7 | C37: =IF([1]Paramètres!C37="","",[1]Paramètres!C37) -> 5 | D37: =IF([1]Paramètres!D37="","",[1]Paramètres!D37) -> 0.25 | E37: =IF([1]Paramètres!E37="","",[1]Paramètres!E37) -> 5.7 | F37: =IF([1]Paramètres!F37="","",[1]Paramètres!F37) ->  | G37: =IF([1]Paramètres!G37="","",[1]Paramètres!G37) ->  | H37: =IF([1]Paramètres!H37="","",[1]Paramètres!H37) ->  | I37: =IF([1]Paramètres!I37="","",[1]Paramètres!I37) ->  | K37: PM+ cuve + dt | L37: =L36+Brassage!N5 -> 72.72118854 | M37: =(Brassage!L11*(Brassage!N4+4185*Brassage!M9+(23.9246*Brassage!K8*100+1585.0029)*Brassage!F33/1000)-(23.9246*Brassage!K8*100+1585.0029)*Brassage!F33/1000*Brassage!K3-Brassage!N4*Brassage!N3)/(Brassage!M9*4185)+Brassage!N5 -> 72.73387282
A38: =IF([1]Paramètres!A38="","",[1]Paramètres!A38) -> Pale ale 2 rangs | B38: =IF([1]Paramètres!B38="","",[1]Paramètres!B38) -> 0.81 | C38: =IF([1]Paramètres!C38="","",[1]Paramètres!C38) -> 8 | D38: =IF([1]Paramètres!D38="","",[1]Paramètres!D38) -> 0.8 | E38: =IF([1]Paramètres!E38="","",[1]Paramètres!E38) -> 5.7 | F38: =IF([1]Paramètres!F38="","",[1]Paramètres!F38) ->  | G38: =IF([1]Paramètres!G38="","",[1]Paramètres!G38) ->  | H38: =IF([1]Paramètres!H38="","",[1]Paramètres!H38) ->  | I38: =IF([1]Paramètres!I38="","",[1]Paramètres!I38) ->  | K38: Jinac faux + dt | L38: =Brassage!B7 +Brassage!N5+ (((Brassage!F33/1000)*(23.9246*Brassage!K8*100+1585.0029))*(Brassage!B7 - Brassage!K3)+(Brassage!N4*(Brassage!B7-Brassage!N3)))/(Brassage!M9 *4185) -> 72.73387282
A39: =IF([1]Paramètres!A39="","",[1]Paramètres!A39) -> Pale ale Château | B39: =IF([1]Paramètres!B39="","",[1]Paramètres!B39) -> 0.81 | C39: =IF([1]Paramètres!C39="","",[1]Paramètres!C39) -> 8.5 | D39: =IF([1]Paramètres!D39="","",[1]Paramètres!D39) -> 1 | E39: =IF([1]Paramètres!E39="","",[1]Paramètres!E39) -> 5.7 | F39: =IF([1]Paramètres!F39="","",[1]Paramètres!F39) ->  | G39: =IF([1]Paramètres!G39="","",[1]Paramètres!G39) ->  | H39: =IF([1]Paramètres!H39="","",[1]Paramètres!H39) ->  | I39: =IF([1]Paramètres!I39="","",[1]Paramètres!I39) ->  | K39: Bastok 3,0 | L39: =Brassage!L11+((Brassage!F33/1000*1677.7869)*(Brassage!L11-Brassage!K3))/(Brassage!N4+4185*Brassage!M9) -> 73.94593044
A40: =IF([1]Paramètres!A40="","",[1]Paramètres!A40) -> Pale ale Swaen | B40: =IF([1]Paramètres!B40="","",[1]Paramètres!B40) -> 0.8 | C40: =IF([1]Paramètres!C40="","",[1]Paramètres!C40) -> 7.1 | D40: =IF([1]Paramètres!D40="","",[1]Paramètres!D40) -> 1 | E40: =IF([1]Paramètres!E40="","",[1]Paramètres!E40) -> 5.7 | F40: =IF([1]Paramètres!F40="","",[1]Paramètres!F40) ->  | G40: =IF([1]Paramètres!G40="","",[1]Paramètres!G40) ->  | H40: =IF([1]Paramètres!H40="","",[1]Paramètres!H40) ->  | I40: =IF([1]Paramètres!I40="","",[1]Paramètres!I40) ->  | K40: Bastok 3,0 + dt | L40: =L39+Brassage!N5 -> 72.53418419
A41: =IF([1]Paramètres!A41="","",[1]Paramètres!A41) -> Pilsen 2 rangs | B41: =IF([1]Paramètres!B41="","",[1]Paramètres!B41) -> 0.8 | C41: =IF([1]Paramètres!C41="","",[1]Paramètres!C41) -> 3 | D41: =IF([1]Paramètres!D41="","",[1]Paramètres!D41) -> 1 | E41: =IF([1]Paramètres!E41="","",[1]Paramètres!E41) -> 5.7 | F41: =IF([1]Paramètres!F41="","",[1]Paramètres!F41) ->  | G41: =IF([1]Paramètres!G41="","",[1]Paramètres!G41) ->  | H41: =IF([1]Paramètres!H41="","",[1]Paramètres!H41) ->  | I41: =IF([1]Paramètres!I41="","",[1]Paramètres!I41) -> 
A42: =IF([1]Paramètres!A42="","",[1]Paramètres!A42) -> Pilsen 6 rangs | B42: =IF([1]Paramètres!B42="","",[1]Paramètres!B42) -> 0.76 | C42: =IF([1]Paramètres!C42="","",[1]Paramètres!C42) -> 3 | D42: =IF([1]Paramètres!D42="","",[1]Paramètres!D42) -> 1 | E42: =IF([1]Paramètres!E42="","",[1]Paramètres!E42) -> 5.79
A43: =IF([1]Paramètres!A43="","",[1]Paramètres!A43) -> Pilsen Swaen | B43: =IF([1]Paramètres!B43="","",[1]Paramètres!B43) -> 0.8 | C43: =IF([1]Paramètres!C43="","",[1]Paramètres!C43) -> 3.7 | D43: =IF([1]Paramètres!D43="","",[1]Paramètres!D43) -> 1 | E43: =IF([1]Paramètres!E43="","",[1]Paramètres!E43) -> 5.7
A44: =IF([1]Paramètres!A44="","",[1]Paramètres!A44) -> Pilsen vieux silo | B44: =IF([1]Paramètres!B44="","",[1]Paramètres!B44) -> 0.72 | C44: =IF([1]Paramètres!C44="","",[1]Paramètres!C44) -> 3 | D44: =IF([1]Paramètres!D44="","",[1]Paramètres!D44) -> 1 | E44: =IF([1]Paramètres!E44="","",[1]Paramètres!E44) -> 5.79
A45: =IF([1]Paramètres!A45="","",[1]Paramètres!A45) -> Riz (flocons) | B45: =IF([1]Paramètres!B45="","",[1]Paramètres!B45) -> 0.82 | C45: =IF([1]Paramètres!C45="","",[1]Paramètres!C45) -> 5 | D45: =IF([1]Paramètres!D45="","",[1]Paramètres!D45) -> 0.25 | E45: =IF([1]Paramètres!E45="","",[1]Paramètres!E45) -> 5.7
A46: =IF([1]Paramètres!A46="","",[1]Paramètres!A46) -> Roasted Barley | B46: =IF([1]Paramètres!B46="","",[1]Paramètres!B46) -> 0.55 | C46: =IF([1]Paramètres!C46="","",[1]Paramètres!C46) -> 1200 | D46: =IF([1]Paramètres!D46="","",[1]Paramètres!D46) -> 0.1 | E46: =IF([1]Paramètres!E46="","",[1]Paramètres!E46) -> 4.71
A47: =IF([1]Paramètres!A47="","",[1]Paramètres!A47) -> Seigle | B47: =IF([1]Paramètres!B47="","",[1]Paramètres!B47) -> 0.63 | C47: =IF([1]Paramètres!C47="","",[1]Paramètres!C47) -> 8 | D47: =IF([1]Paramètres!D47="","",[1]Paramètres!D47) -> 0.2 | E47: =IF([1]Paramètres!E47="","",[1]Paramètres!E47) -> 5.7
A48: =IF([1]Paramètres!A48="","",[1]Paramètres!A48) -> Seigle Chocolat | B48: =IF([1]Paramètres!B48="","",[1]Paramètres!B48) -> 0.6 | C48: =IF([1]Paramètres!C48="","",[1]Paramètres!C48) -> 650 | D48: =IF([1]Paramètres!D48="","",[1]Paramètres!D48) -> 0.07 | E48: =IF([1]Paramètres!E48="","",[1]Paramètres!E48) -> 4.71
A49: =IF([1]Paramètres!A49="","",[1]Paramètres!A49) -> Special B | B49: =IF([1]Paramètres!B49="","",[1]Paramètres!B49) -> 0.68 | C49: =IF([1]Paramètres!C49="","",[1]Paramètres!C49) -> 300 | D49: =IF([1]Paramètres!D49="","",[1]Paramètres!D49) -> 0.1 | E49: =IF([1]Paramètres!E49="","",[1]Paramètres!E49) -> 4.65 | F49: pH des malts
A50: =IF([1]Paramètres!A50="","",[1]Paramètres!A50) -> Sucre ambré | B50: =IF([1]Paramètres!B50="","",[1]Paramètres!B50) -> 1 | C50: =IF([1]Paramètres!C50="","",[1]Paramètres!C50) -> 150 | D50: =IF([1]Paramètres!D50="","",[1]Paramètres!D50) ->  | E50: =IF([1]Paramètres!E50="","",[1]Paramètres!E50) ->  | F50: Crystal/Cara Malt | G50: 5 | H50: =5.22-0.00504*(G50+1.479)/2.6686 -> 5.207763561
A51: =IF([1]Paramètres!A51="","",[1]Paramètres!A51) -> Sucre blanc | B51: =IF([1]Paramètres!B51="","",[1]Paramètres!B51) -> 1 | C51: =IF([1]Paramètres!C51="","",[1]Paramètres!C51) -> 2 | D51: =IF([1]Paramètres!D51="","",[1]Paramètres!D51) ->  | E51: =IF([1]Paramètres!E51="","",[1]Paramètres!E51) ->  | F51: Base - 2-Row | G51: 5.7
A52: =IF([1]Paramètres!A52="","",[1]Paramètres!A52) -> Sucre foncé | B52: =IF([1]Paramètres!B52="","",[1]Paramètres!B52) -> 1 | C52: =IF([1]Paramètres!C52="","",[1]Paramètres!C52) -> 542 | D52: =IF([1]Paramètres!D52="","",[1]Paramètres!D52) ->  | E52: =IF([1]Paramètres!E52="","",[1]Paramètres!E52) ->  | F52: Base - 6-Row | G52: 5.79
A53: =IF([1]Paramètres!A53="","",[1]Paramètres!A53) -> Vienna | B53: =IF([1]Paramètres!B53="","",[1]Paramètres!B53) -> 0.75 | C53: =IF([1]Paramètres!C53="","",[1]Paramètres!C53) -> 6 | D53: =IF([1]Paramètres!D53="","",[1]Paramètres!D53) -> 1 | E53: =IF([1]Paramètres!E53="","",[1]Paramètres!E53) -> 5.56 | F53: Base - Maris Otter | G53: 5.77
A54: =IF([1]Paramètres!A54="","",[1]Paramètres!A54) -> Vienna Swaen | B54: =IF([1]Paramètres!B54="","",[1]Paramètres!B54) -> 0.75 | C54: =IF([1]Paramètres!C54="","",[1]Paramètres!C54) -> 10 | D54: =IF([1]Paramètres!D54="","",[1]Paramètres!D54) -> 1 | E54: =IF([1]Paramètres!E54="","",[1]Paramètres!E54) -> 5.56 | F54: Base - Munich | G54: 5.43
A55: =IF([1]Paramètres!A55="","",[1]Paramètres!A55) ->  | B55: =IF([1]Paramètres!B55="","",[1]Paramètres!B55) ->  | C55: =IF([1]Paramètres!C55="","",[1]Paramètres!C55) ->  | D55: =IF([1]Paramètres!D55="","",[1]Paramètres!D55) ->  | E55: =IF([1]Paramètres!E55="","",[1]Paramètres!E55) ->  | F55: Base - Pilsner | G55: 5.75
A56: =IF([1]Paramètres!A56="","",[1]Paramètres!A56) ->  | B56: =IF([1]Paramètres!B56="","",[1]Paramètres!B56) ->  | C56: =IF([1]Paramètres!C56="","",[1]Paramètres!C56) ->  | D56: =IF([1]Paramètres!D56="","",[1]Paramètres!D56) ->  | E56: =IF([1]Paramètres!E56="","",[1]Paramètres!E56) ->  | F56: Base - Wheat | G56: 6.04
A57: =IF([1]Paramètres!A57="","",[1]Paramètres!A57) ->  | B57: =IF([1]Paramètres!B57="","",[1]Paramètres!B57) ->  | C57: =IF([1]Paramètres!C57="","",[1]Paramètres!C57) ->  | D57: =IF([1]Paramètres!D57="","",[1]Paramètres!D57) ->  | E57: =IF([1]Paramètres!E57="","",[1]Paramètres!E57) ->  | F57: Base - Vienna | G57: 5.56
A58: =IF([1]Paramètres!A58="","",[1]Paramètres!A58) ->  | B58: =IF([1]Paramètres!B58="","",[1]Paramètres!B58) ->  | C58: =IF([1]Paramètres!C58="","",[1]Paramètres!C58) ->  | D58: =IF([1]Paramètres!D58="","",[1]Paramètres!D58) ->  | E58: =IF([1]Paramètres!E58="","",[1]Paramètres!E58) ->  | F58: Base - Other | G58: 5.7
A59: =IF([1]Paramètres!A59="","",[1]Paramètres!A59) ->  | B59: =IF([1]Paramètres!B59="","",[1]Paramètres!B59) ->  | C59: =IF([1]Paramètres!C59="","",[1]Paramètres!C59) ->  | D59: =IF([1]Paramètres!D59="","",[1]Paramètres!D59) ->  | E59: =IF([1]Paramètres!E59="","",[1]Paramètres!E59) ->  | F59: Roasted/Toasted Malt | G59: 4.71
A60: =IF([1]Paramètres!A60="","",[1]Paramètres!A60) ->  | B60: =IF([1]Paramètres!B60="","",[1]Paramètres!B60) ->  | C60: =IF([1]Paramètres!C60="","",[1]Paramètres!C60) ->  | D60: =IF([1]Paramètres!D60="","",[1]Paramètres!D60) ->  | E60: =IF([1]Paramètres!E60="","",[1]Paramètres!E60) -> 

Sheet Houblons
A1: Variété | B1: Utilisation | C1: % d'acide alpha | D1: % d'acide béta | E1: Description | F1: Substituts possibles | G1: Pays d'origine | H1: Ales compatibles | I1: Pale Ales compatibles | J1: Fermentation basses compatibles | K1: IPA compatibles | L1: Stouts et Porter compatibles | M1: Autres styles compatibles | N1: Généalogie
A2: Admiral | B2: Amérisant | C2: 13.5 – 16 % | D2: 4.5 – 6 % | E2: Une variété Anglaise à grande teneur en acide alpha, souvent utilisée dans les ales anglaises. Peut substituer la variété Target mais est plus délicate avec un caractère de houblon plaisant, arômes abricots et orange, | F2: Target Northdown Challenger Pilgrim | G2: UK | H2: Ales Anglaises foncées | I2: Bitter | J2: Lager | K2: IPA
A3: Agnus (Lamb) | B3: Amérisant | C3: 11-15% | D3: 4 – 6.6 % | E3: Il apporte à la bière un caractère épicé et herbacé. C'est un houblon que l'on retrouve dans les bières Pilsner ou les Lagers. | F3: Nugget Horizon Magnum | G3: République Tchèque | J3: Lager Pilsner | M3: Bière de froment | N3: Sladek Saaz Northern Brewer Fuggle
A4: Ahil | B4: Double | C4: 8.5 – 11.5 % | D4: 3.5 – 5.2 % | E4: Floral. C’est le précurseur des « superstyrian ». Classé en aromatique par la plupart des « guide », son taux d’alpha permet de l’utiliser en amérisant | G4: Slovénie | H4: Ales Belges | N4: Brewer’s Gold (frère de Apolon & Atlas)
A5: Ahtanum (YCR1) | B5: Aromatique | C5: 5.7 – 6.3 % | D5: 5 – 6.5 % | E5: Ce houblon procure un arôme typique américain similaire au Cascade, williamette et amarillo, Notes d’herbes, de menthe, de citron, de fleurs d'agrume et de pin, | F5: Amarillo Cascade | G5: USA | H5: American Brown Ale | K5: AIPA | N5: Whitebread Golding Brewer’s Gold
A6: Alliance | B6: Double | C6: 4.5 – 7.5 % | D6: 2 – 5 % | F6: Fuggle | G6: UK
A7: Amallia | B7: Double | C7: 5 – 9 % | D7: 4 – 8.5 % | E7: Très terreux, et avec un profil très agrume | F7: Brown Ale Dark Ale | G7: USA | H7: Brown Ale Dark Ale
A8: Amarillo (VGXP01) | B8: Aromatique | C8: 10 - 12 % | D8: 5,5 - 8 % | E8: Son arôme et la saveur est décrit comme une version suralimentée du Cascade. Il caractérise par des arômes floraux, tropicaux et d'agrumes (citron, orange et pamplemousse). | F8: Cascade Centennial Simcoe | G8: USA | I8: APA | K8: AIPA
A9: Amethyst | B9: Aromatique | C9: 3,5-6% | D9: 7 – 8 % | E9: Arômes terreux, agrumes, épicé | F9: Saaz | G9: République Tchèque | I9: Pale Ale | J9: Lager | N9: Saaz
A10: Apollo (#01051) | B10: Amérisant | C10: 15-19% | D10: 5.5 – 8 % | E10: Caractérisé par son taux fortement élevé en alpha, cette variété de houblon procurera à votre bière une saveur particulière et franche, avec des notes d’agrume (citron vert, pamplemousse) et résineuses | F10: Colombus Magnum Nugget Zeus | G10: USA | K10: IPA Impérial IPA | N10: Zeus
A11: Apolon | B11: Double | C11: 10-12% | D11: 3.5 – 4 % | G11: Slovénie | H11: Ales Anglaises | I11: Bitter | K11: IPA | N11: Brewer’s Gold (frère de Ahil et Atlas)
A12: Aquila | B12: Aromatique | C12: 6.5 – 9 % | D12: 4 – 5 % | E12: Cultivar abandonné à l’échelle industrielle | F12: Cluster Galena | G12: USA | H12: Saison Belge | N12: Brewer’s Gold
A13: Aramis | B13: Double | C13: 7 - 8.5%; | D13: 3.5 – 4.5 % | E13: Nouvelle race à haute teneur en acides alpha avec un arome plaisant de fruits, avec une pointe de poire et pomme qui oscille avec des goûts d'épices, | F13: Centennial Challenger Ahtanum Willamette Challenger Athanum | G13: France | H13: Saison | J13: Lager Pilsner | M13: Blanche belge
A14: Archer | B14: Double | C14: 4-6% | D14: 2 – 3 % | E14: Floral, notes de citron vert et de pêche. DH possible | F14: Summer | G14: UK | I14: Bitter blonde
A15: Ariana | B15: Amérisant | C15: 9-13% | D15: 4,5-6 % | E15: Cette variété se distingue par des notes de cassis, de pêche, de poire et de fruits tropicaux. Utilisé en dry hopping, ce houblon confère également des notes de pamplemousse, de groseille, d'agrumes et de vanille. | G15: Allemagne | H15: Amber ale | I15: Pale Ale | K15: IPA
A16: Atlas (Styrian Atlas) | B16: Amérisant | C16: 5 - 9% | D16: 3.8 – 4 % | E16: Arome frais, notes d'herbe fraîche, | F16: Styrian Golding Aurora | G16: Slovénie | H16: Ales Belges | I16: APA | N16: Ahil Apolon
A17: Aurora (Super Styrian) | B17: Aromatique | C17: 5 - 10% | D17: 2.5 – 5.5 % | E17: Grande teneur en acides alpha, arôme ressemblant à Styrian Golding mais plus léger, notes herbacées et fleuries. | F17: Perle Sladek | G17: Slovénie | H17: Ales Anglaises Ales Belges Ales Américaines | I17: APA | J17: Lager Pilsner | M17: Bière de froment
A18: Azacca ® (#483, Azaaca) | B18: Double | C18: 14-16 % | D18: 4 – 5.5 % | E18: Agrumes (citron, pamplemousse, orange), fruits tropicaux (papaye, ananas, mangue, papaye), épicé, herbeux | G18: USA | K18: AIPA | N18: Northern Brewer Toyomidori Summit
A19: Bačka | B19: Aromatique | C19: 3 – 6.5 % | D19: 4 – 7 % | E19: Arômes de « houblons nobles », Très vieille variété serbe | G19: Serbie | J19: Lager Pilsner
A20: Banner | B20: Amérisant | C20: 8.5 – 12.5 % | D20: 5 – 8 % | F20: Aquila Cluster Galena | G20: USA | I20: Bitter | N20: Brewer’s Gold
A21: Barbe Rouge | B21: Double | C21: 3,8-6% | D21: 4 - 6.5 % | E21: notes prononcées de fruits rouges tel que la fraise, la cerise avec une belle balance côté herbal et épicé | G21: France
A22: Beata | B22: Aromatique | C22: 3.5 – 3.8 % | E22: Pomme, Abricot, Amande | G22: UK | N22: Strisselspalt
A23: Beata | B23: Aromatique | C23: 3 - 7% | D23: 9 - 11% | E23: Abricot, et pomme, avec une pointe d'amande | F23: Boaticea Belma | G23: UK
A24: Belma | B24: Double | C24: 12.1 | E24: Notes d'orange, melon, fraise, ananas avec un soupçon de pamplemousse | F24: Golding | G24: USA | I24: Pale Ale | K24: IPA
A25: Bianca (Bianco, Bianca Gold) | B25: Aromatique | C25: 7 – 7.8 %% | D25: 3.2-3.4 % | F25: Saaz Sunbeam | G25: USA | H25: Ales Belges | J25: Lager Pilsner | N25: Demi-frère de SunBeam
A26: Bitter Gold | B26: Amérisant | C26: 14 – 19 % | D26: 6 – 7.5 % | E26: En théorie très neutre, mais certains écrits rapportent des notes de poire, de pastèque et de fruit à noyau | F26: Nugget Galena | G26: USA | H26: Ales | I26: Bitter | J26: Lager Pilsner | K26: AIPA | N26: Bullion, Brewer’s Gold, Comet et Fuggle
A27: Blato | B27: Aromatique | C27: 4.2 – 4.9 % | D27: 3.3 – 3.5 % | F27: Saaz | G27: République Tchèque | J27: Lager Pilsner | N27: Saaz (probablement)
A28: Blisk | B28: Double | C28: 9.7 – 14 % | D28: 3.3 – 4.8 % | G28: Slovénie | H28: Ales Anglaises | I28: ESB | N28: Atlas
A29: Boadicea | B29: Double | C29: 9 - 11% | D29: 3 – 4 % | E29: Boadicea a des caractéristiques délicates, légèrement fleuries et épicées avec un arôme aux senteurs herbacées. En bouche, il a un soupçon de notes fleuries qui rappellent un verger en fleur. Les propriétés amérisantes de Boadicea sont légères et arrondies. | F29: Challenger Sovereign | G29: UK | I29: APA | J29: Pilsner | K29: AIPA | N29: Challenger Northdown
A30: Bobek (Styrian Golding B, Styrian Bobek) | B30: Aromatique | C30: 3 - 8% | D30: 4.5 – 6.5 % | E30: Arôme doux et amertume moderée, Epicé, résineux, « plaisant » | F30: Cascade Smaragd Styrian Golding Fuggle Willamette | G30: Slovénie | H30: Ales Anglaises | I30: Bitter ESB | J30: Lager Pilsner | L30: Stout | M30: Ales Belges | N30: Northern Brewer
A31: Bohemie | B31: Aromatique | C31: 5 – 8 % | D31: 6 – 9 % | G31: République Tchèque | N31: Saaz Sladek
A32: BOR (BOR704) | B32: Aromatique | C32: 6 – 9 % | D32: 3 – 5.5 % | E32: Dans le style du Saaz | F32: Saaz | G32: République Tchèque | I32: Pale Ale | J32: Pilsner | M32: Wheat Beer | N32: Saaz Northern Brewer
A33: Bouclier | B33: Aromatique | C33: 7-9% | D33: 2.4 – 3.3 % | E33: Ce houblon offre un mélange d'arômes français et anglais avec des notes fruitées (agrumes), herbacées et épicées | F33: Tettnang Spalt(Select) Tradition Northen Brewer | G33: France | H33: Ales Anglaises Saison | I33: Pale Ale Bitter ESB | J33: Lager Pilsner | L33: Imperial Stout | N33: Strisselspalt Wye Challenger, Early Bird Golding Northern Brewer
A34: Bramling | B34: Aromatique | C34: 5,7-5,8% | D34: 2,9-3,2 % | F34: Whitbread Golding Progress East Kent Golding | G34: UK | H34: Golden Ale | I34: Pale Ale Bitter | K34: IPA | L34: Stout
A35: Bramling cross | B35: Double | C35: 5 - 8% | D35: 2.3 – 3.2 % | E35: Flaveur intense d’épices / cassis, légèrement résineux avec quelques notes boisées. En DH : notes de fruits frais, et notamment de cassis ; ainsi que des notes de citron | F35: Willamette East Kent Golding Progress Whitbread Golding | G35: UK | H35: Golden Ale Strong Ale | K35: IPA | L35: Porter Stout | N35: Golding
A36: Bravo ( #01046) | B36: Amérisant | C36: 12 - 17% | D36: 3.5 – 5.5 % | E36: Arôme riche, notes distinctes de résines et de pin, Floral, Fruité, Vanille, Epicé, un peu terreux | F36: Nugget Columbus Zeus Apollo Magnum, Chinook Centennial | G36: USA | I36: APA | K36: AIPA | N36: Zeus
A37: Brewer’s Gold | B37: Amérisant | C37: 7 - 11,3% | D37: 3 – 3.1 % | E37: Houblon Anglais amérisant de référence développé en 1919. Beaucoup d’houblons arômatiques de nos jours furent développés à partir du Brewer ‘s Gold. Grande teneur en résines, donne une amertume bien équilibrée, un caractère fruité et épicé. Donne des arômes légers de fruits et épices aux bières à haute fermentation. | F37: Northdown Northern Brewer Pioneer Bullion Galena Cascade | G37: UK USA | K37: IPA | N37: Bullion
A38: Buket | B38: Double | C38: 8.5 – 13.5 % | D38: 4.2 – 6.3 % | G38: Slovénie | H38: Ales Anglaises | I38: ESB | J38: Lager Pilsner | N38: Fuggle, Northern Brewer
A39: Bullion | B39: Amérisant | C39: 6,5 - 9% | D39: 5 – 6 % | E39: Arôme de cassis et fruits épicés. saveur de grosseille noire si utilisé durant l'ebullition | F39: Northern Brewer Brewer'S Gold Columbus | G39: UK | H39: Barley Wine | J39: Dopplebpock | K39: IPA | L39: Stout (guiness) | N39: Brewers Gold
A40: Calicross | B40: Double | C40: 5.8 – 7.9 % | D40: 4 – 7.5 % | E40: Fruité, terreux, Floral. Variété presque éteinte commercialement, sauf en NZ | G40: NZ
A41: Calista | B41: Amérisant | C41: 9-13% | E41: Au nez il offrira à la bière des notes intensément fruitées avec des touches d'abricot, de mûres et de framboise, de fruits de la passion, de pêche, de pamplemousse et de groseille. | G41: Allemagne | I41: Pale Ale | J41: Lager | K41: IPA | N41: Fuggle Late Cluster
A42: Calypso | B42: Double | C42: 11-14% | D42: 5 – 6 % | E42: Pomme, poire, fruits à noyaux et tropicaux, thé, un peu terreux, note citronnée et mentholée | F42: Cascade Belma Huell Melon | G42: USA | H42: Ales Américaines Barley Wines | I42: APA | K42: IPA | L42: Stout | N42: Nugget
A43: Cascade | B43: Double | C43: 4,5 -6% | D43: 4.8 – 7 % | E43: Arôme américain ainsi que des arômes d’agrumes et de fruits. Très floral et épicé, notes de citron et pamplemousse. Fournit une amertume très douce même si utilisé en grandes quantités. La version argentine développe un profil citronnelle, poivré, épicé et serait à considérer comme non-substituable avec les autres variétés. | F43: Amarillo Centennial Athanum Columbus | G43: USA NZ UK Argentine | H43: Ales Américaines bien houblonnée DH | I43: Pale Ale américaine bien houblonnée DH | K43: IPA | N43: Serrbianka Fuggle
A44: Cashmere | B44: Double | C44: 7.7 – 9.1 % | D44: 3.5 – 4.5 % | E44: Melon, noix de coco, ananas, citron, amertume douce, parfois herbeuse | G44: USA | H44: Saison | N44: Cascade Northern Brewer
A45: Cekin | B45: Aromatique | C45: 6 – 8 % | D45: 2 – 3 % | E45: Styrian | F45: Styrian, Savinjski Golding | G45: Slovénie | H45: Ale Anglaise | I45: Bitter | J45: Pilsner | N45: Aurora
A46: Centennial (Super Cascade) | B46: Double | C46: 9,5 - 8,5% | D46: 3.2 – 5.5 % | E46: Cette variété de houblon confère à votre bière un arôme Américain typique. Développé à partir des années 1974. Aromatique et légèrement amérisant, arôme épicé, floral avec des notes d’agrumes très délicates (citron) | F46: Cascade Chinook Columbus Galena Zeux Nugget | G46: USA | H46: Barley Wine Imperial Barley Wine | I46: Pale Ale Bitter | K46: IPA | N46: Brewer’s Gold Fuggle EKG Bavarian
A47: Challenger | B47: Double | C47: 6.5 – 8.5% | D47: 3.2 – 4.5 % | E47: Amertume douce mais puissante. Arôme du type Challenger , flaveur plus riche. amertume rafraîchissante et forme une bonne base pour des ajouts de houblons ultérieurs. Utilisé comme ajout ultérieur, il donnera une amertume agréable et fruitée à la bière. | F47: Northdown Northern Brewer First Gold-Ekg-Styriang Perle | G47: UK | H47: Ales Belges | I47: Bitter ESB Butterknowle Bitter | K47: Full Sail IPA | L47: Porter Stout | N47: Northern Brewer Zattler
A48: Chelan | B48: Amérisant | C48: 12 – 14.5 % | D48: 8.5 – 9.8 % | E48: Amertume forte et brutale, notes chocolatée, fraise et pomme | F48: Galena Nugget | G48: USA | N48: Galena
A49: Chinook (W-421-38) | B49: Double | C49: 12 – 14 % | D49: 3 – 4 % | E49: Ce houblon se caractérise par un arôme très typé d’épices. Caractère très prononcé de pamplemousse, floral, abricot, notes de fruit de sureau et autres baies rouges, arome de pin caractéristique, fort arome d'épice,. Houblon amérisant très volatile , perd son charme si mis en trop grande quantité | F49: Columbus Simcoe Galena Eroica Brewer'S Gold Nugget Bullion Zeus | G49: USA | H49: Barley Wine Saison | I49: APA | J49: Lager | K49: AIPA | L49: Porter Stout | N49: Petham Golding
A50: Cicero | B50: Double | C50: 6 – 7 % | D50: 2.5 – 2.7 % | E50: Serait dans le profil du Styrian | F50: Styrian Saaz | G50: Slovénie | H50: Pale Ale | J50: Lager Pilsner | N50: Aurora, frère du Cekin
A51: Citra (HBC394) | B51: Aromatique | C51: 9 - 11% | D51: 3.5 – 4.5 % | E51: Une variété de houblon américaine, à la fois aromatique et amérisant en raison de son taux élevé d’acides Alpha. Il développe des saveurs d’agrumes (Pamplemousse, citron vert), de fruits exotiques (goyave, mangue, fruits tropicaux, litchi) et de groseille. Amertume brutale. | F51: Fuggle Willamette Goldings Simcoe Mosaïc Centennial Cascade | G51: USA | H51: Ales Américaines fortes | I51: APA | J51: Lager | K51: AIPA | N51: Hallertau Tettnang
A52: Cluster (Golden Cluster) | B52: Double | C52: 5.5 – 8.5 % | D52: 4 – 6 % | E52: Egalement connue sous le nom de Golden Cluster. Elle développe des arômes de cassis, et floral, le cultivar australien présente une forte prédominance résineuse, Amertume bien équilibrée avec un arôme intense de fruits et houblon. | F52: Willamette Eroica Galena Brewers Gold | G52: USA Australie | I52: APA | J52: Lager | K52: AIPA | L52: Porter Stout
A53: Columbia | B53: Aromatique | C53: 8 – 8.5 % | D53: 3.9 – 4.1 % | E53: Houblons frais, zeste d’agrumes | G53: USA
A54: Columbus (Tomahawk, CTZ, Zeus) | B54: Amérisant | C54: 14 – 17 % | D54: 4.5 – 5 % | E54: Ce houblon américain confère aux bières des arômes de bois, herbeux, légèrement citronné/agrumes, notes de poivre noir et réglisse. | F54: Galea Nugget Chinook Simcoe | G54: USA | H54: Barley Wine Imperial Brown Ale | I54: APA | K54: AIPA | L54: Stout Imperial Stout
A55: Comet | B55: Amérisant | C55: 9.4 – 12.4 % | D55: 3 – 6 % | E55: Résineux, Géranium, Pamplemousse, Mandarine, Citronnelle | F55: Summit, Galena | G55: USA Allemagne | H55: American Ale | J55: Lager | K55: IPA | N55: Sunshine
A56: Crystal | B56: Aromatique | C56: 3.5 – 5.5 % | D56: 6 - 8,5 % | E56: Son arôme d’épice est plus présent que le Hallertau toutefois.Houblon aromatique avec une flaveur délicate et de notes de tangerine | F56: Liberty Mount Hood Hallertau Hersbrucker Strisselpalt | G56: USA | I56: Bitter Forte | J56: Lager | K56: IPA | N56: Hallertau Cascade Brewer’s Gold Early Green
A57: Dana (Extra Styrian Dana, Styrian Dana) | B57: Double | C57: 11 - 16% | D57: 4.7 – 6.1 % | E57: Arôme intense pour une amertume harmonieuse | F57: Styrian Golding Bobek | G57: Slovénie | H57: Polyvalent | I57: Polyvalent | J57: Polyvalent | K57: Polyvalent | L57: Polyvalent | M57: Polyvalent | N57: Magnum
A58: Delta (#04188) | B58: Double | C58: 5,5-7% | D58: 6.5 – 7 % | E58: Arôme plaisant légèrement épicé avec une pointe de citron et de gingembre. | F58: Fuggle Willamette | G58: USA | I58: Pale Ale Bitter ESB | K58: IPA | N58: Fuggle Cascade
A59: Denali (#06277) | B59: Double | C59: 13 – 15 % | D59: 4 – 5 % | E59: Ananas, pin agrumes | G59: USA | N59: Nugget Zeus
A60: Dr Rudi (Super Alpha) | B60: Double | C60: 11-14% | D60: 7 – 8.5 % | E60: Pin, herbeux, notes d’agrumes et de citronelle. | F60: Green Bullet | G60: NZ | H60: Amérisant tout style | I60: Amérisant tout style | J60: Lager | K60: IPA | L60: Amérisant tout style | M60: Amérisant tout style
A61: Dunav | B61: Aromatique | C61: 5 – 10 % | D61: 2.8 – 4.6 % | G61: Slovénie | N61: Northern Brewer Styrian Golding
A62: East Kent Golding (Canterbury Golding, EKG) | B62: Aromatique | C62: 5 - 7% | D62: 1.9 – 2.8 % | E62: Ce houblon aromatique pouvant être utilisé comme amérisant, est surnommé le roi des houblons anglais du fait de son arôme très fin. Epicé/floral (thym lavande), terreux, arrondi, arôme doux, presque sucré, délicat. | F62: Progress Sovereign Goldings Fuggle | G62: UK | H62: Toutes bières anglaise | I62: Toutes bières anglaise | J62: Toutes bières anglaise | K62: Toutes bières anglaise | L62: Toutes bières anglaise | N62: Kirin 2
A63: Eastern Gold | B63: Amérisant | C63: 11 – 14 % | D63: 5 – 6 % | G63: Japon | M63: Toutes bières anglaise
A64: Ekuanot (Equinox, HBC366) | B64: Double | C64: 13-15,5% | D64: 4 – 5 % | E64: Agrumes, fruits tropicaux (papaye, mangue) , fruité (melon), herbeux et pomme de pin | F64: Citra Galaxy Athanum | G64: USA | I64: APA | K64: IPA
A65: El dorado | B65: Aromatique | C65: 13 - 17% | D65: 7 – 8 % | E65: Houblon aromatique à la teneur en acide alpha élevée. Saveur certaines de fruits, plus particulièrement fruits tropicaux ((ananas, mangue), mais aussi poire, cerise, fruits à noyaux | F65: Galena Simcoe | G65: USA | I65: Pale Ale | K65: IPA | M65: Wheat Beer
A66: Ella (Stella) | B66: Aromatique | C66: 14-16% | D66: 4 – 7.8 % | E66: Agrumes (bergamote, pamplemousse), fruits tropicaux, floral, épicé, pointes d'anis. | F66: Citra Delta | G66: Australie | J66: Lager Pilsner | K66: IPA
A67: Elsaesser | B67: Aromatique | C67: 4 – 4.7 % | D67: 3 – 5 % | G67: France
A68: Endéavour | B68: Double | C68: 5-9% | D68: 3.8 – 5.3 % | E68: Arôme complexe De cassis, de framboises, d'épice, de pamplemousse et de citron. Il est plus doux que Cascade. Amertume ronde et fruitée | F68: Northern Brewer | G68: UK | H68: Ales Anglaises | I68: Bitter | J68: Lagers Anglaises | N68: Cascade
A69: Enigma | B69: Double | C69: 13.5 – 16.5 % | D69: 4.8 – 6.4 % | E69: Pinot gris, framboises, groseilles, notes de fruit tropicaux | G69: Australie | M69: Blanche américaine | N69: Brewer’s Gold Galena
A70: Epic | B70: Aromatique | C70: 3 – 5 % | D70: 1.7 – 2.5 % | E70: Arôme profond de baies sauvages, avec une note de citronnelle. Légèrement herbeux. | G70: UK | N70: Tetenan Tettnanger
A71: Eroica | B71: Amérisant | C71: 9 – 12 % | D71: 4 – 5.5 % | E71: Confère un arôme bien présent dans votre bière avec un taux d’alpha assez élevé. | F71: Galena Nugget Olympic | G71: USA | H71: Brown Ale | I71: APA | L71: Stout | N71: Alliance
A72: Eureka (#05256) | B72: Double | C72: 11-20% | D72: 4.6 – 6 % | E72: Arôme des agrumes, de la résine et de fruits tropicaux avec des tons complexes de cassis, myrtille, fraise, mangue, poire, cerise | F72: Simcoe Summit | G72: Slovénie | I72: APA | N72: Merkur Apollo
A73: Falconer’s Flight® (7C's) | B73: Double | C73: 9 – 12 % | D73: 4 – 5.2 % | E73: Agrumes (pamplemousse), fruité, épicé, floral, notes terreuses | F73: voir notes | G73: USA
A74: Feux-Coeur Français | B74: Amérisant | C74: 12 – 16 % | D74: 3 – 6 % | G74: Australie
A75: First Gold | B75: Double | C75: 6.5 – 8.5 % | D75: 2.3 – 4.1 % | E75: Houblon Anglais de référence. Un peu épicé Fruité, baies rouges, herbeux, avec des notes agrumes / marmelade / abricot/orange. | F75: Northdown Challenger Boadicea Goldings Willamette | G75: UK | H75: Ales Belges Saison Bières de garde | I75: APA | K75: IPA | N75: Whitebread Golding
A76: Flyer | B76: Double | C76: 9-12% | D76: 4.1 – 6 % | E76: Epicé, agrumes, réglisse et résineux. Un houblon d'agrumes aux arômes de fruits lapidés, de réglisse, de mélasse et de caramel avec de légères notes brûlées. | F76: Bramling Cross | G76: UK | I76: Bitter ESB | K76: IPA
A77: Fuggle | B77: Aromatique | C77: 4 – 5.5 % | D77: 2 – 3 % | E77: Cette variété fut développée à partir du 19eme siècle en Angleterre. Le Fuggles confère une subtile saveur épice à la bière. Arôme doux, épicé. Léger fruité, boisé. Goût de terre | F77: Styrian Golding Willamette Progress Golding Sovereign | G77: UK France | H77: Ales Anglaises Ales Belges Ales Rouges | K77: IPA | L77: Porter Stout
A78: Galaxy | B78: Double | C78: 13 - 15% | D78: 5 – 6.9 % | E78: un houblon avec un caractère marqué de citron, myrtille, cassis, pêche et fruit de la passion | F78: Cascade Amarillo Citra Riwaka Centennial | G78: Australie | I78: Pale Ale | K78: IPA | N78: Perle
A79: Galena | B79: Amérisant | C79: 12 – 14% | D79: 7.2 – 8.7 % | E79: Un houblon amérisant développé à partir du Brewer’s Gold (par polonisation naturelle dans l’état d’Idaho). arôme de cassis, agrumes (pamplemousse, citron vert), groseille, poire, ananas, résineux donne à la bière un caractère très fruité, l'amérisant le plus utilisé aux US | F79: Nugget Target Cluster Super Galena | G79: USA | H79: Brown Ale | I79: APA | K79: AIPA | L79: Stout | M79: Bière de Froment américaine | N79: Brewers gold
A80: Gargoyle ® | B80: Aromatique | C80: 4 – 6 % | E80: Mangue, fruits tropicaux, agrumes, floral. Variété propriété de Hops-Meister’s | G80: USA | I80: APA | J80: Lager | K80: IPA | N80: Elsasser Brewer’s Gold Northern Brewer Bullion Early Green German Aroma EKG Bavarian Fuggle
A81: Glacier | B81: Double | C81: 5.5 % | D81: 5.4 – 9.5 % | E81: Une excellente nouvelle variété avec les propriétés équilibrées d'amertume, combinée avec un bon profil d'arôme. Prune, bois (cèdre), mûre | F81: Eroica Nugget Olympic Fuggle Willamette Tettnanger | G81: USA | I81: APA Bitter ESB | K81: IPA | L81: Porter Stout
A82: Gold | B82: Aromatique | C82: 3.5 – 6.5 % | D82: 3.5 – 5.9 % | E82: Miel, ortie, foin, origan, basilic | G82: Slovénie | N82: Styrian Savinsjki Golding
A83: Golden Star | B83: Aromatique | C83: 4.9 – 5.4 % | D83: 4.5 – 4.6 % | E83: Disponible presque exclusivement au Japon | G83: Japon | N83: Saaz White Vine Shinshuwase
A84: Golding | B84: Aromatique | C84: 4 – 5.5 % | D84: 2 – 3.5 % | E84: Le Goldings est appelé East Kent Goldings si sa culture se situe dans la région de Kent. Il confère à la bière un goût doux et sucré. Tous les Goldings sont substitutables entre eux (East Kent Goldings, Styrian Goldings, etc). Épicé et doux avec un caractère américain prononcé, légèrement fleuri, terreux, herbeux, floral, touche d’agrume (zeste de citron, orange, pamplemousse). | F84: East Kent Goldings Progress First Gold Fuggle | G84: UK Belgique USA NZ | H84: Saison Tripel | I84: Bitter ESB | J84: Kölsch | N84: EKG
A85: Green bullet | B85: Double | C85: 10 - 13% | D85: 5 – 7 % | E85: Fraîcheur de pin/citron et un arôme excellent, floral, épicé, fruits secs (raisin), résineux, | F85: Centennial Crystal Mount Hood Liberty Hallertau | G85: NZ | H85: Ales Anglaises | I85: Bitter | J85: Lager | K85: IPA | N85: Smoothcone
A86: Greensburg | B86: Double | C86: 5.2 % | D86: 7.20 % | E86: Un autre houblon américain découvert dans le sud d’Idaho. Ce houblon fut généralement utilisé dans les micros brasseries américaine autrefois. Arôme fruité, boisé, | G86: USA | H86: Ales Américaines | I86: APA | M86: Ales Américaines
A87: Hallertau | B87: Aromatique | C87: 3,5 - 6,5 % | D87: 2,5 - 3,5 % | E87: Arôme terreux, herbaux, épicé | F87: Hallertauer Mittelfrüh Hallertauer Tradition Liberty Mount Hood | G87: USA | J87: La plupart des bière de fermentation basse | N87: Hallertauer
A88: Hallertau Blanc | B88: Aromatique | C88: 9-12% | D88: 4.5 – 5.5 % | E88: Fruité, floral, raisin façon « vin blanc », fleur de sureau, bote de café, myrtille, cassis | F88: Nelson Sauvin | G88: Allemagne | H88: Ales Belges Brettanomyces | I88: Pale Ale | K88: IPA | M88: Bière de froment | N88: Cascade Huell
A89: Hallertau Hersbrucker | B89: Aromatique | C89: 2 - 5% | D89: 2.5 – 6 % | E89: Crée pour remplacer la variété Mittlefruh, caractéristiques très similaires, LE houblon aromatique ses Allemands ; arômes épicés et fleuris, foin, herbe, d'une finesse exceptionnelle. Noble, Plus asséchant & plus épicé que Hallertauer. | F89: Strisselspalt Hallertauer Mittlefruh Mount Hood Spalter | G89: Allemagne | H89: Toutes bières allemandes Ales Européenes | J89: Lager Pilsner | N89: Hallertau
A90: Hallertau Taurus (Taurus) | B90: Amérisant | C90: 12-18% | D90: 4 – 6 % | E90: Epicé, poivré, notes de banane, chocolat | F90: Magnum Herkules Merkur | G90: Allemagne | H90: Ales Allemandes Ales Belges | J90: Lager Pilsner
A91: Hallertau Tradition (Tradition) | B91: Aromatique | C91: 5 – 7 % | D91: 3 – 6 % | E91: Développé en 1991 à partir d’Hallertau Mittlefrüh par l’institut de recherche allemand afin de développer sa résistance aux maladies. Moyenne jusqu’à haute amertume, très bon arôme, bonne conservation. Amertume harmonieuse, floral intense, herbeux, épicé, notes de lavande | F91: Hallertauer Mittelfrüh Hallertau Hersbrucker Celeia | G91: Allemagne | J91: Pilsner | M91: Hefeweizen | N91: Hallertauer Gold
A92: Hallertauer Aroma (Wakatu) | B92: Double | C92: 7 - 10% | D92: 8.4 – 8.6 % | E92: Cultivé de Mittlefruh, caractérisé par une flaveur de fleurs et vanille, Arômes spécifique de zest frais de citron vert, épicié et floral, | F92: Hallertauer Mittlefruh | G92: NZ | J92: Lager Pilsner
A93: Hallertauer Merkur (Merkur) | B93: Double | C93: 12 - 14 % | D93: 4,5 - 5,5 % | E93: Arôme sucré, ananas, mentholé, légèrement terreux et agrumes | G93: Allemagne | N93: Magnum
A94: Hallertauer Mittelfrüh | B94: Aromatique | C94: 3.5 – 5.5 % | D94: 3 – 5 % | E94: Le houblon allemand de référence. Léger arôme de houblon avec des notes d’herbes et épices, L'arôme est doux, plaisant fleuri, épicé, herbeux, notes résineuses, | F94: Hallertau Hersbrucker Hallertau Tradition Saphir Liberty Mount Hood | G94: Allemagne | H94: Ales Allemandes | J94: Pilsner | M94: Hefeweizen | N94: Hallertau
A95: Hallertauer Perle (Perle) | B95: Double | C95: 5 – 7 % | D95: 2.5 – 4.5 % | E95: Utilisé principalement pour son amertume. L'arôme plaisant, légèrement épicé, avec goût de menthe et ses arômes vert, Très populaire grâce à la combinaison d’un bon arôme et d’un acide alpha élevé, bon pouvoir de conservation. Touche légèrement épicée. | F95: Northern Brewer | G95: Allemagne | J95: Lager Pilsner | N95: Northern Brewer
A96: Harmonie | B96: Aromatique | C96: 4-8% | D96: 5 – 8 % | E96: Amertume douce, Il confère à la bière des notes plaisantes à la fois d'épices, d'oignon et d'agrumes mais aussi des notes plus subtiles de résine. | G96: République Tchèque | J96: Lager Pilsner | N96: Saaz
A97: Helga (Southern Hallertau) | B97: Double | C97: 5.4 – 7.3 % | D97: 5 – 7 % | E97: Caractéristiques de « houblon noble » (floral, un peu épicé, terreux, herbeux) | G97: Australie | N97: Hallertau Mittelfrüh
A98: Herald | B98: Double | C98: 11 – 13 % | D98: 4.8 – 5.5 % | E98: Amertume franche, notes d’agrumes (orange et pamplemousse) | F98: Pionner Target | G98: UK | I98: Pale ale Bitter | N98: Pionner Pilgrim
A99: Herkules | B99: Amérisant | C99: 14 - 17% | D99: 4 – 5.5 % | E99: Haute teneur en acides alpha, arôme épicé (poivre), melon, résineux, notes d’orange et de citron | F99: Warrior Taurus | G99: Allemagne | H99: Ales Allemandes | J99: Lagers Allemandes | N99: Taurus Hull Cascade
A100: Hersbrucker (Hersbrucker Spät) | B100: Aromatique | C100: 1.5 – 5 % | D100: 2.5 – 6 % | E100: Floral, épicé, fruité, notes de foin et de tabac | F100: Spalter Tettnanger | G100: Allemagne
A101: Horizon | B101: Double | C101: 11- 13 % | D101: 5.5- 7.5 % | E101: Houblon Américain à fort taux d’acidité développé dans l’Oregon à partir des années 1970. Très aromatique, bière au goût très frais floral, épicé, citronné | F101: Magnum | G101: USA | N101: Brewer’s Gold Nugget
A102: Huell Melon (Hüll Melon) | B102: Amérisant | C102: 6,9-7,5% | D102: 6 – 9 % | E102: Melon honeydew, fruits tropicaux, orange, vanille, fraise des bois | F102: Calypso Cascade | G102: Allemagne | H102: Ales Belges Saison | K102: IPA | M102: Hefeweizen | N102: Cascade Huell
A103: Ivanhoe ® | B103: Aromatique | C103: 6.5 – 9 % | E103: Arôme doux aux notes florales et d’herbe | G103: USA | I103: Pale Ale | J103: Lager | L103: Stout
A104: Jester | B104: Aromatique | C104: 7-9% | D104: 4 – 6 % | E104: Pamplemousse, fruits tropicaux | F104: Challeger | G104: UK
A105: Junga | B105: Double | C105: 10 - 13% | D105: 5 – 8 % | E105: Très haute valeur amérisante, même qualité que le Magnum allemand mais avec un bel arôme lavec des notes de cassis, de pamplemousse et d'épices. | F105: Nugget Target Galena Chinock | G105: Pologne | J105: Lager | K105: IPA | N105: Northern Brewer Marynka
A106: Kazbek | B106: Aromatique | C106: 5-8% | D106: 4 – 6 % | E106: Jus multivitaminé, Papaye, zeste de mandarine, mélisse, notes mentholée. il confère à la bière des notes terreuses. Il est souvent décrit comme apportant des touches herbacées, sauvages et naturelles à la bière. | F106: Saaz Sterling | G106: République Tchèque | H106: Ales Belges | I106: Bitter (rares) | J106: Pilsner Lager
A107: Kirin II | B107: Double | C107: 7.5 – 8.2 % | D107: 6.2 – 6.4 % | E107: Hors du Japon, point de salut ! Cultivar local, produit sous contrôle de l’état, et non exporté. | G107: Japon | N107: Saaz White Vine
A108: Kohatu | B108: Double | C108: 6 - 8% | D108: 4 – 5 % | E108: Houblon a fort arôme avec un caractère floral intense, aiguilles de pins et fruit tropicaux. | F108: Motueka Wai-Iti | G108: NZ | I108: Pale Ale | K108: IPA | N108: Hallertau Mittelfrüh
A109: Lemondrop (#01210) | B109: Double | C109: 5 – 7 % | D109: 4 – 6 % | E109: Agrumes (citron), herbeux (thé vert), mentholé, note de melon | F109: Cascade Mandarina Bavaria Centennial | G109: USA | N109: Cascade
A110: Liberty | B110: Aromatique | C110: 3 – 5 % | D110: 3 – 4 % | E110: Ce houblon Américain est entre le Hallertauer Mittlefruh et le Downy mildew développé en 1983. Procure des arômes d’épices, de résines, avec des notes de citron / agrumes | F110: Crystal Mount Hood Tradition Hallertauer Mittelfrüh | G110: USA | H110: Brown Ale | I110: Pale Ale | J110: Lager Bock | M110: Hefeweizen American Wheat | N110: Hallertau ’Ultra Mt Hood Crystal
A111: Loral (HBC291) | B111: Double | C111: 11.3 – 12.2 % | D111: 4.9 – 5.3 % | E111: Floral, épicé (poivre), agrume (citron), baies noires | G111: USA
A112: Lublin (Lubelski, Polish Lublin, Lubelska) | B112: Aromatique | C112: 3 - 5% | D112: 2.5 – 3.5 % | E112: Ce houblon est la Saaz polonaise utilisé dans les blondes de ce même pays. Confère de légers arômes d’épices boisées, résineux, herbeux (thé), floral, notes citronnées. Saveur noble et intense, plus de notes de fruits et herbes que celles de résines. | F112: Styrian Goldings Saaz | G112: Pologne | J112: Pilsner polonaise | N112: Saaz
A113: Magnat | B113: Amérisant | C113: 13.3 – 13.3 % | D113: 3.2 – 3.2 % | E113: Aiguilles de pin, boisé, âcre | G113: Pologne | N113: Magnum
A114: Magnum (Hallertauer Magnum) | B114: Amérisant | C114: 10 – 12.6 % | D114: 5 – 7 % | E114: Cultivé à partir des années 1980 à l’institut Allemand de recherche. Ce houblon sera aussi bien amérisant qu’arômatique. Arôme aréable et caractère fruité et poivré. | F114: Pilgrim Target Hallertauer Taurus Herkules Hallertauer Merkur | G114: Allemagne | H114: Tout type de bières | I114: Pale Ale Tout type de bières | J114: Pilsner Tout type de bières | K114: IPA Tout type de bières | L114: Stout Tout type de bières | M114: Tout type de bières | N114: Galena
A115: Mandarina Bavaria | B115: Aromatique | C115: 8,5-1,5 | D115: 4 – 7 % | E115: Belle notes fruitées avec des touches de mandarine et d'orange bien marquée, note de bubble gum | F115: Nugget Colombus Perle Hallertauer Tradition Lemondrop Cascade | G115: Allemagne | H115: Ales belges Ales françaises | I115: Pale Ale Belge | K115: English IPA | M115: Ales Américaines | N115: Cascade
A116: Marco Polo (Makepoluo) | B116: Amérisant | C116: 12.6 % - 12.6 % | E116: Groseille, Origan, citron, fleur de sureau. 8 % des plantations chinoises seraient avec ce cultivar | G116: Chine | N116: Colombus
A117: Marynka | B117: Double | C117: 8 - 12% | D117: 10 – 13 % | E117: Combinaison intense et plaisante de fruits, résines et herbes, C'est un houblon amer typique. Arômes forts résineux, épicé, floral, anisé, agrume (pamplemousse, citron) | F117: Northern Brewer Tettnanger Stisselspalt | G117: Pologne | I117: Pale Ale Bitter | J117: Pilsner | K117: IPA | N117: Brewer’s Gold
A118: Melba | B118: Double | C118: 7 – 10 % | D118: 2.5 – 5 % | E118: Fruits de la passion, agrume (pamplemousse), amertume épicée | F118: Galaxy | G118: Australie
A119: Millennium | B119: Amérisant | C119: 15.5 % | D119: 5 – 6.5 % | E119: Floral, fruité (poire), herbeux, note de caramel au beurre (toffee) | F119: Nugget Columbus | G119: USA | H119: Toute bière américaine | I119: Toute bière américaine | J119: Toute bière américaine | K119: Toute bière américaine | L119: Toute bière américaine | M119: Toute bière américaine | N119: Nugget
A120: Minstrel | B120: Aromatique | C120: 5-7% | D120: 3 – 3.5 % | E120: Baies épicées, avec des notes d’orange. L’amertume est légère | F120: Challenger | G120: UK
A121: Mistral | B121: Aromatique | C121: 7,7-8,2 | D121: 3.1 – 3.8 % | E121: Notes de fruits blancs et des touches florales avec ses traits de rose et de jasmin. L'ensemble est complété par des pointes de lychee, de kumquat et de raisins blanc qui viennent apporter fraicheur et finesse à la bière. | G121: France | H121: Bières française : whirpool et dh +++ | I121: Pale Ale | J121: Lager Pilsner | M121: Weissbier | N121: Cascade Strisselspalt
A122: Monroe | B122: Aromatique | C122: 2.5 – 2.5 % | E122: Framboise, orange, sucre, cerise. Nommé en mémoire de Marylin Monroe « dans sa robe rouge », extravagante comme le serait ce houblon | G122: Allemagne
A123: Mosaïc (Citra on steroids, HBC 369) | B123: Aromatique | C123: 11-14% | D123: 3.2 – 3.9 % | E123: Il se caractérise par une palette aromatique complexe. En effet, il présente à la fois des notes d'agrumes, de fruits tropicaux, de fruits rouges (myrtille, mandarine, papaye), associées à des notes herbacées, terreuses et de pin, note de bubble gum. | F123: Citra Simcoe | G123: USA | I123: Pale Ale | K123: IPA | N123: City
A124: Motueka (Belgian Saaz, B-Saaz) | B124: Aromatique | C124: 5 - 8% | D124: 5 – 5.5 % | E124: Il dégage d'excellents arômes citronnés aux notes variées, tapissés de saveurs de fruits tropicaux. Arôme et caractère unique, particulièrement bon pour les lagers traditionnels, ales belges et bières amères | F124: Saaz Sterling | G124: NZ | H124: Saison | J124: Pilsner Bohemian Pilsner | N124: Saaz
A125: Mount Hood (Mt Hood) | B125: Aromatique | C125: 5 – 8 % | D125: 4 – 7.5 % | E125: Houblon américain développé à partir de la variété Hallertau.Un caractère floral, épicé, herbeux, arôme doux, notes d’estragon (?) et de miel (?). Amertume parfois âcre | F125: Hallertau Hersbrucker Strisselspalt Crystal | G125: USA | J125: Lager | M125: Bière de froment | N125: Hallertau Mittelfrüh frère du Liberty
A126: Mount Rainier (Mt Rainer) | B126: Aromatique | C126: 5 – 9.4 | D126: 5 – 7 % | E126: Herbeux (herbe, thé), floral, boisé (cèdre). On retrouve parfois des valeurs jusqu’à 10 % pour l’acide beta | F126: Hallertau Fuggle | G126: USA | L126: Stout | M126: Bière aux fruits | N126: Magnum
A127: National | B127: Double | C127: 5 – 6 % | E127: Chocolat, bergamote, ail | G127: Ukraine
A128: Nelson Sauvin | B128: Double | C128: 12 - 14 % | D128: 6 – 8 % | E128: Cette nouvelle variété d’houblon a été développée à Nelson en Nouvelle Zélande. Arômes uniques de Sauvignon Blanc et à ses touches de fruits tropicaux. | F128: Pacific Jade Hallertau Blanc | G128: NZ | K128: IPA | N128: Smoothcone
A129: Newport | B129: Amérisant | C129: 10 – 17 % | D129: 5.5 – 6.5 % | E129: Il offre des arômes terreux et citronnés ainsi que des saveurs amères, résineuses avec une touche de vin doux. | F129: Nugget Galean Magnum | G129: USA | I129: Pale Ale | K129: IPA Black IPA | L129: Porter | N129: Magnum
A130: Northdown (Wye Northdown) | B130: Amérisant | C130: 6 – 9.5 % | D130: 4.5 – 6 % | E130: Houblon Anglais développé à partir des années 1970. Sensiblement identique au Challenger et Target. Une variété à double destination, arôme du type Challenger , flaveur plus riche, l présente des arômes aux notes fruitées et résineuses. | F130: Challenger Northern Brewer Phoenix Brewer Gold Admiral | G130: UK | H130: Ales Anglaises | I130: Bitter | K130: English IPA | L130: Porter Stout | N130: Northern Brewer
A131: Northern Brewer | B131: Double | C131: 8 – 10 % | D131: 3 – 5 % | E131: Cette variété d’houblon fut développée en Angleterre en 1934 (par un croisement d’houblons femelles sauvages américains et de mâle anglais). Généralement utilisée pour ses qualités arômatique (arômes boisé et fruité) et amérisant, en complément d’autres variétés. Brewer. Polyvalent, mais plutôt utilisé pour l'amertume. Saveurs fortes et très parfumées. Notes boisées (goût du bois) et de menthe | F131: Northdown Challenger Chinook Perle Aurora | G131: Allemagne | H131: Bières brunes Toute ale en amérisant | I131: Toute ale en amérisant | J131: Altbier Kölsch | K131: Toute ale en amérisant | L131: Toute ale en amérisant | M131: Toute ale en amérisant | N131: Canterbury’s Golding (EKG) Brewer’s Gold
A132: Nugget | B132: Amérisant | C132: 12 – 14 % | D132: 4 – 5.5 % | E132: Bien que confère des arômes de fleurs et de résine c’est avant tout un houblon amérisant. Arome lourd d'épice et d'herbes; amérisant fort | F132: Target Galena Magnum Zeus | G132: USA | H132: Ales Américaines | I132: APA | K132: AIPA | M132: Ales Américaines | N132: Brewer’s Gold
A133: Olicana® | B133: Double | C133: 6 – 9 % | D133: 4 – 6 % | E133: Fruits tropicaux (mangue, pamplemousse, passion). Amertume complexe avec une forte dominante agrume / fruits de la passion | G133: UK
A134: Olympic | B134: Aromatique | C134: 10.6 – 13.8 % | D134: 3.8 – 6.1 % | E134: Epicé, agrumes | F134: Brewer’s Gold Chinook | G134: USA | N134: Brewer’s Gold Fuggle EKG Bavarian
A135: Opal | B135: Double | C135: 4 - 6% | D135: 3.5 – 5.5 % | E135: Piquant, un arôme léger de citron , épicé (anis, poivre), herbeux, agrumes | F135: Tettnang Ekg-Goldings Savinjski Smaragd | G135: Allemagne | H135: Brown Ale Saison Tripel Blonde Ale | J135: Pilsner Lager Helles Kolsch | M135: Hefeweizen
A136: Pacific Gem | B136: Amérisant | C136: 14 – 16 % | D136: 5 – 9 % | E136: Ses arômes de bois et de fruits, flaveur distincte de baies / fruits confèrent une saveur unique à la bière,. Peut-être utilisé en DH. | F136: Cluster Fuggle Pacific Sunrise Pacifig Jade Galena | G136: NZ | H136: Strong Ale Imperial Ale | J136: Lager | L136: Porter | N136: Smoothcone Californie Cluster Late Fuggle
A137: Pacific jade | B137: Aromatique | C137: 12 - 14% | D137: 7 – 8 % | E137: Un houblon excellent à amertume plaisante et un arôme doux doté d'un parfum unique et intense d'agrumes, d'herbes et de poivre noir concassé, ce houblon aromatique est devenu de plus en plus populaire | F137: Pacific Gem | G137: NZ | I137: Pale Ale | J137: Lager | N137: First Choice (Late Cluster) Saaz
A138: Pacifica (Pacific hallertau) | B138: Aromatique | C138: 4 - 8% | D138: 5.9 – 6.1 % | E138: Confiture d'oranges, floral | F138: Hallertau Hersbrucker Perle Hallertau Mittelfrüh | G138: NZ | I138: Pale Ale | J138: Lager allemande Hells
A139: Palisade (YCR 4) | B139: Aromatique | C139: 6 – 10 % | D139: 5.5 – 8 % | E139: Une flaveur fruitée et bien équilibrée : terreux, floral, fruité (abricot), herbeux, pin. | F139: Cascade Willamette Chinook | G139: USA | I139: Pale Ale Bitter | K139: IPA | N139: Tettnanger
A140: Perle | B140: Aromatique | C140: 7 – 9.5 % | D140: 2.5 – 4.5 % | E140: Houblon en partie Allemand est souvent utilisé en combinaison d’autres variétés d’houblons. Il confère à la bière des arômes d’épices, de fruits et de fleurs. Utilisé principalement pour son amertume, son goût de menthe et ses bons arômes verts. L'arôme est plaisant et légèrement épicé | F140: Northdown Northern Brewer First Gold | G140: Allemagne France | J140: Lager | N140: Nothern Brewer
A141: Phoenix | B141: Double | C141: 10 - 12% | D141: 3.8 – 4.5 % | E141: Floral, épicé, chocolaté | F141: Challenger | G141: UK | H141: Saison Trippel | K141: IPA | L141: Porter Stout | N141: Yeoman
A142: Pilgrim | B142: Double | C142: 10 - 12% | D142: 4.3 – 5 % | E142: Ressemble à la variété Target mais avec un arôme de houblon plus intense, fruité (poire), agrumes (citron, pamplemousse), épicé. Un arôme d'épices, de bois de cèdre et de miel. | F142: Admiral Target Pioneer | G142: UK | H142: Brown Ale | I142: Bitter Pale Ale | L142: Porter | N142: First Gold Herald
A143: Pilot | B143: Amérisant | C143: 8 - 12% | D143: 3.3. - 5 % | E143: Doux, amertume rafraîchissante et « crisp » caractère herbacé avec des notes de citron, note d’agrumes (marmelade), épicé | F143: Galena | G143: UK
A144: Pioneer | B144: Double | C144: 7 – 9.5 % | D144: 3.5 – 4.5 % | E144: Arôme extraordinaire de citron / pamplemousse, agrumes (citron, pamplemousse), notes résineuses (cèdre). Amertume "propre" fraiche et intense. | F144: Brewers Gold East Kent Goldings | G144: UK | H144: Red Ale Specialty Ale | I144: ESB | K144: IPA | N144: Omega Herald
A145: Polaris | B145: Aromatique | C145: 18-23% | D145: 4 – 6 % | E145: Fruits tropicaux (ananas), agrume (bergamote), mentholé, eucalyptus | F145: Herkules | G145: Allemagne | I145: Pale Ale Bitter | J145: Lager | K145: IPA
A146: Premiant | B146: Aromatique | C146: 7 - 12% | D146: 4.5 – 8 % | E146: Arôme fruité, notes agrumes (citronnelle) et lavande, | F146: Strisselspalt Crystal Mount Hood | G146: République Tchèque | J146: Lager Pilsner | L146: Porter Stout | M146: Weizen | N146: Northern Brewer Saaz
A147: Pride of Ringwood | B147: Amérisant | C147: 7 – 10 % | D147: 4 – 7 % | E147: Houblon Australien peu connu utilisé pour la première fois en 1965 quand il fut l’houblon avec le plus haut taux d’alpha dans le monde. Fort arôme de bois et d’herbes. | F147: Centennial Galena Custer | G147: Australie | H147: Fruit Lambic | I147: Pale Ales | J147: Australian Lager | N147: Pride of kent
A148: Progress | B148: Aromatique | C148: 5 – 7 % | D148: 2 – 2.7 % | E148: Le Progress est un houblon Anglais développé dans les années 1960 pour remplacer le Fuggles. Il est souvent combiné avec le Goldings.Arome fruité intense, herbeux, épicé, fruité (cassis), résineux, terreux, belle amertume. Une alternative plus sucrée à Fuggles mais caractérisée par une amertume plus douce | F148: East Kent Goldings Fuggle | G148: UK | H148: Ales Belges | I148: Bitter Pale Ale Belge | K148: IPA | M148: Blanche Belge | N148: Whitebread Golding
A149: Rakau (AlphaAroma, Alpharoma, Whole Orchard) | B149: Double | C149: 11-14% | D149: 5 – 6 % | E149: Arôme frais et fruité avec des notes d'abricot et de pins, figue. Amertume assez brutale. | F149: Amarillo Admiral Summit | G149: NZ | I149: Australian Pale Ale | K149: IPA | N149: Smoothcone
A150: Relax | B150: Aromatique | C150: 0.25 – 0.5 % | D150: 0.13 | E150: thé vert, bleuet, citronelle, hibiscus, melon blanc d'Antibes (honeydew) | G150: Allemagne | N150: Huel
A151: Riwaka | B151: Aromatique | C151: 4 - 8% | D151: 4 – 5 % | E151: Caractère intense d'agrumes et pamplemousse. | F151: Saaz | G151: NZ | I151: Pale Ale | J151: Lager Pilsner
A152: Rubin | B152: Amérisant | C152: 9 – 12 % | D152: 3.5 – 5 % | G152: République Tchèque | N152: Bor
A153: Saaz (Saazer) | B153: Aromatique | C153: 3 – 4.5 % | D153: 4 – 6 % | E153: Le Saaz est un houblon noble utilisé pour arômatiser les pales de Tchéquie comme la fameuse Pilsner Urquell. Ce houblon est l’houblon de référence pour les bières blondes. Son arôme est doux et légèrement épicé. L'arôme est épicé et plaisant avec des traits parfumés | F153: Tettnang Spalter Lubelski Sterling | G153: République Tchèque | J153: Lager Pilsner | M153: Bière de froment | N153: Saazer
A154: Santiam | B154: Aromatique | C154: 5 – 7 % | D154: 7 – 8.5 % | E154: Un houblon aux arômes de fleurs avec un taux d’alpha moyen. Nommé de la sorte en rapport avec la rivière Santiam dans l’Oregon. | F154: Tettnang Spalte Spalter Selec | G154: USA | I154: Pale Ale Bitter | J154: Lager Allemande | K154: IPA Belgian IPA | N154: Tettnang Hallertau Mittelfrüh Cascade
A155: Saphir | B155: Aromatique | C155: 2 – 4.5 % | D155: 4 – 7 % | E155: Le Saphir est une nouvelle variété d’houblon qui remplace peu à peu le Hallertauer Mittlefruh (à cause de sa faiblesse aux maladies). Elle partage un grand nombre de caractéristiques avec cette dernière. Saveur d'agrumes, de mandarine douce et d'épices. | F155: Hallertau Tradition Spalter Select Hallertau Mittelfrüh | G155: Allemagne | H155: Ales Allemandes | J155: Pilsner | M155: Weat - Witbier
A156: Satus | B156: Amérisant | C156: 12.5 – 14 % | D156: 8.5%-9% | E156: Un récent houblon amérisant. Arôme délicat floral et d'agrumes, fruits sucrés, poires, ananas, mûres, citrons verts, groseille, | F156: Galena | G156: USA
A157: Savinski Golding (Styrian Golding) | B157: Aromatique | C157: 2-6% | D157: 2 – 3.5 % | E157: Un houblon Slovène similaire au East Kent Goldings. Son goût herbacé et fleuri. Arôme distinct, notes de pin / citron / agrumes, Son caractère houblonné est parfaitement exprimé dans des ales dorées faibles en arômes malteux. | F157: Tettnang Fuggle Ekg Willamete | G157: Slovénie | H157: Ales Anglaises Ales Belges | I157: Bitter Pale Ale Belge | M157: Blanche belge | N157: Fuggle
A158: Simcoe (YCR 14) | B158: Double | C158: 12 – 14 % | D158: 3 -4.5 % | E158: . Elle procure également une certaine saveur à la bière lors de son ajout en fin de cuisson. Arômes de résines, agrumes, fruit de la passion, d'abricot et de pin. | F158: Summit Citra Mosaic Cascade | G158: USA | K158: AIPA
A159: Sladek | B159: Double | C159: 5 - 7% | D159: 5 – 9 % | E159: Cette variété noble est appréciée pour les arômes herbacés et épicés qu'elle confère à la bière. | F159: Strisselspalt Crystal Mount Hood Saaz Tettnang | G159: République Tchèque | H159: Ales Belges | I159: Pale Ale Belge | J159: Lagers Belge | M159: Ales Belges | N159: Northern Brewer Saaz
A160: Smaragd (Emerald) | B160: Aromatique | C160: 4 -6% | D160: 3.5 – 5.5 % | E160: Avec un nez fruité avec des notes distinctes équilibré fleuris (camomille, estragon) de houblon, des notes de citron et de marmelade d'orange, , épicé, légèrement fruité, peut procurer des notes de cognac, Smaragd est la réponse européenne à des variétés comme Simcoe et Amarillo. | F160: Hallertau Mittelfruh | G160: Allemagne | I160: Pale Ale Belge | J160: Pilsner | N160: Hallertauer Gold
A161: Sonnet | B161: Aromatique | C161: 4 - 6% | E161: Il possède un arôme doux et une saveur florale, faite pour une bonne bière rafraîchissanteet légère | F161: Goldings | G161: USA | H161: Bières légères | I161: Bières légères | J161: Bières légères | M161: Blanche légère
A162: Sorachi ace | B162: Double | C162: 11 - 12% | D162: 6 – 8 % | E162: Arôme litchi, citron, citron vert, aneth, parfois notes très prononcées de noix de coco | F162: Columbus Simcoe Warrior Citra | G162: USA Japon | I162: Pale Ale | J162: Lager | K162: IPA | N162: Brewer’s Gold Saaz Beikei 2
A163: Southern cross | B163: Double | C163: 12 - 14% | D163: 5 – 6 % | E163: Un melange d'écorce de citron et d'aiguilles de pin. | F163: Simcoe Chinook | G163: NZ | I163: Pale Ale | J163: Lager | K163: IPA | N163: Smoothcone Fuggle
A164: Southern Dawn | B164: Double | C164: 11.2 – 12.5 % | D164: 4.3 – 5.9 % | E164: Epicé (pain d’épice), agrumes (bergamote), floral, fruits tropicaux | F164: Southern Promise | G164: Afrique du sud | N164: Southern Brewer
A165: Southern Promise | B165: Double | C165: 9.5 – 11.5 % | D165: 3.6 – 5.4 % | E165: Fruité, terreux, floral | G165: Afrique du sud | N165: Southern Brewer
A166: Southern Star | B166: Double | C166: 12 – 15.5 % | D166: 4.8 – 5.2 % | E166: Fruité (abricot), herbeux (persil), épicé (gingembre), agrumes (pamplemousse). Plutôt utilisé en amérisant | G166: Afrique du sud | N166: Outeniqua
A167: Sovereign (TA200) | B167: Aromatique | C167: 4 - 7% | D167: 2.1 – 3.1 % | E167: Houblon aromatique délicat d’origine anglaise avec un arôme de fleurs et agrumes | F167: Goldings | G167: UK | I167: Pale Ale Bitter ESB | K167: English IPA
A168: Spalt (Spalter) | B168: Aromatique | C168: 2,5-5,5% | D168: 3 – 5 % | E168: Herbeux, terreux, epicé (gingembre), résineux (pomme de pin), floral | F168: Saaz Hersbrucker | G168: Allemagne | H168: Ales Allemandes | J168: Lager Pilsner | M168: Blanche Allemandes
A169: Spalter Select (Select) | B169: Aromatique | C169: 4 – 5 % | D169: 2.4 – 5 % | E169: Saveurs herbeuses et épicées | F169: Tettnang Saaz Spalt | G169: Allemagne | J169: Lager
A170: Sterling | B170: Double | C170: 6 – 9 % | D170: 4 – 6 % | E170: Son arôme est une combinaison d'épices, d'agrumes et des notes florales, | F170: Saaz Mount Hood | G170: USA | N170: Saaz Cascade Brewer Gold Early Green
A171: Sticklebract | B171: Double | C171: 12-15% | D171: 7.5%-8.5% | E171: Arôme de pin frais, agrume | F171: Northern Brewer | G171: NZ | I171: Pale Ale Bitter | J171: Pilsner | N171: First Choice
A172: Strisselspalt (Strisselspalter) | B172: Aromatique | C172: 3 – 5 % | D172: 3 – 5.7 % | E172: Combinaison d'herbes, de fleurs et des notes de fruits et de citron | F172: Hallertauer Hersbrucker Crystal Mt Hood | G172: France | H172: Ales légères Saison | J172: Lager Pilsner
A173: Styria Cardinal | B173: Aromatique | C173: 10-15% | D173: 3.2 - 4.6 % | E173: Arôme de pomme, ananas, fruits tropicaux (fruit de la passion), fraises, anis. | G173: Slovénie | I173: APA | K173: IPA
A174: Styrian Golding C (Celeia) | B174: Aromatique | C174: 4.5 – 6 % | D174: 2 – 4 % | E174: Un houblon Slovène similaire au East Kent Goldings. Son goût herbacé et fleuri. Arôme distinct, notes de pin / citron / agrumes. | F174: Saaz Bobek Styrian Golding East Kent Golding | G174: Slovénie | H174: Ales Anglaises | I174: ESB | J174: Lager Pilsner | N174: Styrian Golding Aurora
A175: Styrian Golding (Styrian, Savinski Golding) | B175: Aromatique | C175: 2,8 - 6 % | D175: 2 - 3,5 % | E175: Arôme doux, épicé dans le style des houblons nobles. | F175: Fuggle Willamette EKG | G175: Slovénie | H175: Ales Anglaises Ales Belges | I175: Bitter Pale Ale Belge | M175: Blanche Belge | N175: Fuggle
A176: Styrian Wolf | B176: Aromatique | C176: 13,5-18,5 | D176: 5%-6% | E176: Fruits tropicaux (fruit de la passion, mangue, banane, melon, ananas, abricot, caramel ), epicé (piment, poivre, persil, foin), agrumes (citron, citron vert, citronnelle, gingembre), flloral (muguet, géranium, menthol , melisse) | G176: Slovénie | I176: APA | J176: IPA
A177: Summer | B177: Aromatique | C177: 4 - 7% | D177: 4.8 – 6.1 % | E177: Arôme fruité de melon, abricot et d'agrumes, fruits à noyau | F177: Palisade Belma | G177: Australie | I177: Pale Ale | K177: IPA | M177: Bière de froment | N177: Saaz
A178: Summit | B178: Amérisant | C178: 17 – 19 % | D178: 3.5 – 6.5 % | E178: Arôme riche d'agrumes, pamplemousse | F178: Zeus Bravo Apollo | G178: USA | H178: Barley Wine | I178: APA | K178: IPA | L178: Stout | N178: Lexus Zeus Nugget
A179: Super Pride | B179: Amérisant | C179: 12.5 – 16.3 % | D179: 6 – 8 % | E179: Résineux, épicé (pain d’épice), chocolaté, floral (marjolaine) | G179: Australie
A180: SuperGalena | B180: Aromatique | C180: 13 – 16 % | D180: 8 – 10 % | E180: Herbeux, épicé (baie de genévrier), Fruité (fraise, prune) | F180: Cluster Galena | G180: USA | N180: Pride of Ringwood
A181: Sussex | B181: Aromatique | C181: 4-7% | D181: 2.4 – 3.2 % | E181: Arôme puissant aux saveurs tropicales délicates, peut être Terreux, herbeux avec des notes mentholées et vanillées. | F181: Fuggle Progrès Whitbread Golding | G181: UK | H181: Ales Anglaises Ales Belges | I181: Pale Ale Bitter | M181: Ales Belges
A182: Sybillia | B182: Double | C182: 6 - 8% | D182: 3 – 5 % | E182: Bien équilibré, polyvalent, arôme européen traditionnel, terreux et épicé. Approprié pour le dry-hopping. | F182: Northern Brewer Perle Lublin | G182: Pologne | H182: Barley Wine | I182: Pale Ale | L182: Stout | N182: Lubelski
A183: Sylva | B183: Aromatique | C183: 5.6 – 7.3 % | D183: 3 – 4.6 % | E183: Identique au Saaz, mais avec un profil floral et herbeux plus complexe | F183: Saaz | G183: Australie | N183: Saaz
A184: Tahoma | B184: Aromatique | C184: 6 – 7.5 % | D184: 7 – 8 % | E184: Agrumes (pamplemousse, citron), boisé (cèdre, pin), épicé (poivre) | F184: Cascade Centennial | G184: USA
A185: Tardif de Bourgogne | B185: Aromatique | C185: 3.1 – 5.5 % | D185: 2.5 – 5 % | E185: Houblon arômatique Français utilisé pour les bières blondes européennes, développe des arômes de vanille. | G185: France | J185: Lager
A186: Target | B186: Amérisant | C186: 9.5 – 12.5 % | D186: 4.5 – 5.5 % | E186: Arôme intense de sauge, de fleurs, d'épices et d'agrumes | F186: Magnum Fuggle Willamette | G186: UK | H186: Ales forte | I186: Strong Bitter | J186: Lagers Anglaises | N186: Northern Brewer East Kent Golding
A187: Teamaker | B187: Aromatique | C187: 0.6 – 1.8 % | D187: 5.4 – 13.2 % | E187: Floral, thé | F187: Crystal | G187: USA
A188: Tettnanger (Tettnang) | B188: Aromatique | C188: 3.5 – 5.5 % | D188: 3 – 5 % | E188: Ce houblon nous vient de Tettnang un petit village dans le sud de Badenwürttemberg en Allemagne (région qui produit et exporte de grosse quantité d’houblon). Ce noble houblon présente des arômes épicé avec des notes de fleurs et d'herbes. peut être employé au brassage de bières blondes. Variété aromatique, utilisée traditionnellement par des brasseurs européens pour les Lagers mais aussi pour les Ales blondes, Aromatique noble. Doux, légèrement épicé. Goût fin et délicat | F188: Spalt (Select) Saaz Fuggle | G188: Allemagne | H188: Ales Allemandes Blondes | J188: Lager | M188: Wheat Beer | N188: Fuggle
A189: Topaz | B189: Double | C189: 15-18% | D189: 6.4 – 7.9 % | E189: Arôme merveilleusement unique d'herbes, d'épices et résineuses avec de notes tropical | F189: Rakau Summit | G189: Australie | H189: Ales Sombres | I189: Pale Ale | K189: IPA
A190: Triple Pearl | B190: Double | C190: 10.3 – 11.2 % | D190: 3.3 – 4.2 % | E190: Agrume, épicé, résineux | G190: USA | N190: Perle
A191: Triskel | B191: Aromatique | C191: 2,9-9% | D191: 4 – 4.7 % | E191: Ses notes sont fruitées, agrume et florales, sa teneur en huiles lui donne un potentiel intéréssant en houblonnage très tardif et surtout en houblonnage à cru. | F191: Strisselspalt | G191: France | N191: Strisselspalt Yeoman
A192: Tsingtao Flower | B192: Double | C192: 7 – 7 % | E192: Cassis, melon, tabac. 90 % de la production chinoise | G192: Chine | N192: Cluster (version chinoise)
A193: Ultra | B193: Double | C193: 4.5 – 5 % | D193: 3.8 – 4 % | E193: Confère à la bière des arômes poivrés, épicés. Arôme proche du Saaz. Très fin, épicé, avec des notes florales. Excellent en fin d'ébullition. | F193: Crystal Saaz Tettnanger | G193: USA | J193: Lager Pilsner | N193: Hallertau Saazer
A194: Vanguard | B194: Aromatique | C194: 5.5 – 6 % | D194: 5 – 7.5 % | E194: Arôme procje de Hallertau Mittelfrüh et de Saaz. Variété nôble, il offre des arômes épicés et herbacés, Boisé (cèdre), agrumes, fruits tropicaux. | F194: Hallertau Liberty Mount Hood | G194: USA | I194: Pale Ale | J194: Lagers Légères | N194: Hallertauer German Aroma
A195: Vic Secret™ | B195: Double | C195: 14 – 17 % | D195: 6 – 7 % | E195: Fruits tropicaux, résineux (pin) | F195: Galaxy | G195: Australie | I195: Pale Ale | J195: Lager
A196: Vital | B196: Double | C196: 9-12% | D196: 6 – 10 % | E196: Arôme épicé, agrumes. Initialement sélectionné pour l’industrie pharmaceutique à cause d’un taux de xanthohumol (antioxydant) très élevé | F196: Styrian Golding Saaz | G196: République Tchèque | I196: Pale Ale | N196: Agnus
A197: Vojvodina | B197: Aromatique | C197: 6 – 10.5 % | D197: 2.3 – 4.7 % | E197: Arôme de houblon noble (herbeux, floral, épicé) | G197: Slovénie USA | N197: Northern Brewer, Golding
A198: Wai-iti | B198: Aromatique | C198: 2 - 4% | D198: 4.5 – 5.5 % | E198: Arôme d'agrumes composée de mandarine, de citron et de fruits à noyau (pèche, abricot) | F198: Saaz Riwaka | G198: NZ | I198: Pale Ale | K198: IPA | N198: Liberty Hallertau Mittelfrüh
A199: Waimea | B199: Double | C199: 16-19% | D199: 7 – 9 % | E199: Arôme de Tangelo, d'agrumes et pin | F199: Pacific Jade | G199: NZ | I199: Pale Ale | J199: Lagers houblonnées | N199: Pacific Jade
A200: Wakatu (Hallertau Aroma) | B200: Double | C200: 4-7% | D200: 0.085 | E200: Houblon triploïdede NZ, 2/3 de Hallertauer Mittelfrüher et 1/3 de NZ, il a été publié en 1988. Son profil d'huile bien équilibré lui confère un arôme floral discret au-dessus de citron vert piquant. Considéré en grande partie comme à double usage, il peut être ajouté à n’importe quel stade de l’ébullition et séché avec succès. Il a également été noté pour son impressionnante stabilité aromatique.
... 9 more rows

Sheet Feuil2 (hidden)
A1: BJCP 2015 | B1: Calcium (ppm) | C1: Magnésium (ppm) | D1: Alcalinité en CaCO3 | E1: Sulfate (ppm) | F1: Chloride (ppm) | G1: Sodium (ppm) | H1: Alcalinité Résiduelle | I1: BJCP Style Name | J1: CODE | K1: BJCP 2015
A3: 01A - American Light Lager | B3: 50-60 | C3: 0-30 | D3: 0-40 | E3: 0-50 | F3: 50-100 | G3: <100 | H3: -60-0 | I3: 1A Lite American Lager | J3: 01A | K3: =VLOOKUP(J3,'BJCCP (2)'!$A$1:$R$119,2) -> 01A - American Light Lager
A4: 01B - American Lager | B4: 50-75 | C4: 0-30 | D4: 0-40 | E4: 50-150 | F4: 50-100 | G4: <100 | H4: =-60-0 -> -60 | I4: 1C Premium American | J4: 01B | K4: =VLOOKUP(J4,'BJCCP (2)'!$A$1:$R$119,2) -> 01B - American Lager
A5: 01B - American Lager | B5: 50-75 | C5: 0-30 | D5: 0-40 | E5: 50-150 | F5: 50-100 | G5: <100 | H5: -60-0 | I5: 2C Classic American Pilsner | J5: 01B | K5: =VLOOKUP(J5,'BJCCP (2)'!$A$1:$R$119,2) -> 01B - American Lager
A6: 01C - Cream Ale | B6: 50-100 | C6: 0-30 | D6: 0-80 | E6: 0-50 | F6: 0-100 | G6: <100 | H6: -30-30 | I6: 6A Cream Ale | J6: 01C | K6: =VLOOKUP(J6,'BJCCP (2)'!$A$1:$R$119,2) -> 01C - Cream Ale
A7: 01D - American Wheat Beer | B7: 50-100 | C7: 0-30 | D7: 0-80 | E7: 100-200 | F7: 50-100 | G7: <100 | H7: -60-0 | I7: 60 American Wheat /Rye | J7: 01D | K7: =VLOOKUP(J7,'BJCCP (2)'!$A$1:$R$119,2) -> 01D - American Wheat Beer
A8: 02C - International Dark Lager | B8: 50-75 | C8: 0-30 | D8: 80-120 | E8: 0-50 | F8: 50-150 | G8: <100 | H8: 40 - 80 | I8: 4A Dark American Lager | J8: 02C | K8: =VLOOKUP(J8,'BJCCP (2)'!$A$1:$R$119,2) -> 02C - International Dark Lager
A9: 03D - Czech Dark Lager | B9: 50-60 | C9: 0-30 | D9: 0-40 | E9: 0-50 | F9: 50-100 | G9: <100 | H9: -60-0 | I9: 2B Bohemian Pilsner | J9: 03D | K9: =VLOOKUP(J9,'BJCCP (2)'!$A$1:$R$119,2) -> 03D - Czech Dark Lager
A10: 04A - Munich Helles | B10: 50-60 | C10: 0-30 | D10: 0-40 | E10: 0-50 | F10: 50-100 | G10: <100 | H10: -60-0 | I10: 1D Munich Helles | J10: 04A | K10: =VLOOKUP(J10,'BJCCP (2)'!$A$1:$R$119,2) -> 04A - Munich Helles
A11: 04C - Helles Bock | B11: 50-75 | C11: 0-30 | D11: 40-80 | E11: 0-100 | F11: 50-150 | G11: <100 | H11: 0-60 | I11: 5A Helles Bock | J11: 04C | K11: =VLOOKUP(J11,'BJCCP (2)'!$A$1:$R$119,2) -> 04C - Helles Bock
A12: 05B - Kölsch | B12: 50-100 | C12: 0-30 | D12: 0-80 | E12: 0-50 | F12: 0-100 | G12: <100 | H12: -30-30 | I12: 6C Kölsch | J12: 05B | K12: =VLOOKUP(J12,'BJCCP (2)'!$A$1:$R$119,2) -> 05B - Kölsch
A13: 05C - German Helles Exportbier | B13: 75-150 | C13: 0-30 | D13: 40-80 | E13: 50-150 | F13: 50-100 | G13: <100 | H13: -30-30 | I13: 1E Dortmund et Export | J13: 05C | K13: =VLOOKUP(J13,'BJCCP (2)'!$A$1:$R$119,2) -> 05C - German Helles Exportbier
A14: 05D - German Pils | B14: 50-75 | C14: 0-30 | D14: 0-40 | E14: 50-150 | F14: 50-100 | G14: <100 | H14: -60-0 | I14: 2A German Pilsner (Plis) | J14: 05D | K14: =VLOOKUP(J14,'BJCCP (2)'!$A$1:$R$119,2) -> 05D - German Pils
A15: 06A - Märzen | B15: 50-75 | C15: 0-30 | D15: 40-120 | E15: 0-100 | F15: 50-150 | G15: <100 | H15: 0-60 | I15: 3B Oktoberfest/Marzen | J15: 06A | K15: =VLOOKUP(J15,'BJCCP (2)'!$A$1:$R$119,2) -> 06A - Märzen
A16: 06C - Dunkles Bock | B16: 50-75 | C16: 0-30 | D16: 40-80 | E16: 0-100 | F16: 50-150 | G16: <100 | H16: 0-60 | I16: 5B Traditionel Bock | J16: 06C | K16: =VLOOKUP(J16,'BJCCP (2)'!$A$1:$R$119,2) -> 06C - Dunkles Bock
A17: 07A - Vienna Lager | B17: 50-75 | C17: 0-30 | D17: 40-120 | E17: 0-100 | F17: 50-150 | G17: <100 | H17: 0-60 | I17: 3A Vienne Lager | J17: 07A | K17: =VLOOKUP(J17,'BJCCP (2)'!$A$1:$R$119,2) -> 07A - Vienna Lager
A18: 07B - Altbier | B18: 50-150 | C18: 0-30 | D18: 40-120 | E18: 100-300 | F18: 50-100 | G18: <100 | H18: 0-60 | I18: 7A N. German Altbier | J18: 07B | K18: =VLOOKUP(J18,'BJCCP (2)'!$A$1:$R$119,2) -> 07B - Altbier
A19: 07B - Altbier | B19: 50-150 | C19: 0-30 | D19: 40-120 | E19: 100-300 | F19: 50-100 | G19: <100 | H19: 0-60 | I19: 7C Düsseldorf Altbier | J19: 07B | K19: =VLOOKUP(J19,'BJCCP (2)'!$A$1:$R$119,2) -> 07B - Altbier
A20: 08A - Munich Dunkel | B20: 50-75 | C20: 0-30 | D20: 80-120 | E20: 0-50 | F20: 50-150 | G20: <100 | H20: 40 - 80 | I20: 4B Munich Dunkel | J20: 08A | K20: =VLOOKUP(J20,'BJCCP (2)'!$A$1:$R$119,2) -> 08A - Munich Dunkel
A21: 08B - Schwarzbier | B21: 50-75 | C21: 0-30 | D21: 80-120 | E21: 0-50 | F21: 50-150 | G21: <100 | H21: 40 - 80 | I21: 4C Schwarzbier | J21: 08B | K21: =VLOOKUP(J21,'BJCCP (2)'!$A$1:$R$119,2) -> 08B - Schwarzbier
A22: 09A - Doppelbock | B22: 50-100 | C22: 0-30 | D22: 80-150 | E22: 0-100 | F22: 50-100 | G22: <100 | H22: 60 - 120 | I22: 5C Doppelbock | J22: 09A | K22: =VLOOKUP(J22,'BJCCP (2)'!$A$1:$R$119,2) -> 09A - Doppelbock
A23: 09B - Eisbock | B23: 50-100 | C23: 0-30 | D23: 80-150 | E23: 0-100 | F23: 50-100 | G23: <100 | H23: 60 - 120 | I23: 50 Eisbock | J23: 09B | K23: =VLOOKUP(J23,'BJCCP (2)'!$A$1:$R$119,2) -> 09B - Eisbock
A24: 09C - Baltic Porter | B24: 50-75 | C24: 0-30 | D24: 80-160 | E24: 50-150 | F24: 50-150 | G24: <100 | H24: 60 -120 | I24: 12C Baltic Porter | J24: 09C | K24: =VLOOKUP(J24,'BJCCP (2)'!$A$1:$R$119,2) -> 09C - Baltic Porter
A25: 10A - Weissbier | B25: 50-100 | C25: 0-30 | D25: 0-80 | E25: 0-50 | F25: 0-100 | G25: <100 | H25: 30 - 30 | I25: 15A Weizen | J25: 10A | K25: =VLOOKUP(J25,'BJCCP (2)'!$A$1:$R$119,2) -> 10A - Weissbier
A26: 10B - Dunkles Weissbier | B26: 50-75 | C26: 0-30 | D26: 80-160 | E26: 50-150 | F26: 50-150 | G26: <100 | H26: 60 - 120 | I26: 15B Dunkelweizen | J26: 10B | K26: =VLOOKUP(J26,'BJCCP (2)'!$A$1:$R$119,2) -> 10B - Dunkles Weissbier
A27: 10C - Weizenbock | B27: 50-75 | C27: 0-30 | D27: 120-200 | E27: 50-150 | F27: 50-150 | G27: <100 | H27: 120 - 200 | I27: 15C Weizenbock | J27: 10C | K27: =VLOOKUP(J27,'BJCCP (2)'!$A$1:$R$119,2) -> 10C - Weizenbock
A28: 11A - Ordinary Bitter | B28: 50-100 | C28: 0-30 | D28: 0-80 | E28: 100-200 | F28: 50-100 | G28: <100 | H28: -60-0 | I28: 8A Ordinary Bitter | J28: 11A | K28: =VLOOKUP(J28,'BJCCP (2)'!$A$1:$R$119,2) -> 11A - Ordinary Bitter
A29: 11B - Best Bitter | B29: 50-150 | C29: 0-30 | D29: 40-120 | E29: 100-200 | F29: 50-100 | G29: <100 | H29: 0-60 | I29: 8B Special Bitter | J29: 11B | K29: =VLOOKUP(J29,'BJCCP (2)'!$A$1:$R$119,2) -> 11B - Best Bitter
A30: 11C - Strong Bitter | B30: 50-150 | C30: 0-30 | D30: 40-120 | E30: 100-300 | F30: 50-100 | G30: <100 | H30: 0-60 | I30: 8C Strong Bitter | J30: 11C | K30: =VLOOKUP(J30,'BJCCP (2)'!$A$1:$R$119,2) -> 11C - Strong Bitter
A31: 12C - English IPA | B31: 50-150 | C31: 0-30 | D31: 40-120 | E31: 100-300 | F31: 50-100 | G31: <100 | H31: 0-60 | I31: 14A English IPA | J31: 12C | K31: =VLOOKUP(J31,'BJCCP (2)'!$A$1:$R$119,2) -> 12C - English IPA
A32: 13A - Dark Mild | B32: 50-150 | C32: 0-30 | D32: 40-120 | E32: 100-200 | F32: 50-100 | G32: <100 | H32: 0-60 | I32: 11A Mild Ale | J32: 13A | K32: =VLOOKUP(J32,'BJCCP (2)'!$A$1:$R$119,2) -> 13A - Dark Mild
A33: 13B - British Brown Ale | B33: 50-75 | C33: 0-30 | D33: 80-150 | E33: 50-150 | F33: 50-100 | G33: <100 | H33: 30-90 | I33: 11B S. English Brown | J33: 13B ? | K33: =VLOOKUP(J33,'BJCCP (2)'!$A$1:$R$119,2) -> 13B - British Brown Ale
A34: 13B - British Brown Ale | B34: 50-75 | C34: 0-30 | D34: 80-150 | E34: 50-150 | F34: 50-100 | G34: <100 | H34: 30-90 | I34: 11C N. English Brown | J34: 13B ? | K34: =VLOOKUP(J34,'BJCCP (2)'!$A$1:$R$119,2) -> 13B - British Brown Ale
A35: 13C - English Porter | B35: 50-75 | C35: 0-30 | D35: 80-150 | E35: 50-150 | F35: 50-100 | G35: <100 | H35: 30-90 | I35: 12A Brown Porter | J35: 13C | K35: =VLOOKUP(J35,'BJCCP (2)'!$A$1:$R$119,2) -> 13C - English Porter
A36: 14A - Scottish Light | B36: 50-150 | C36: 0-30 | D36: 40-120 | E36: 100-200 | F36: 50-100 | G36: <100 | H36: 0-60 | I36: 9A Scotish 604 | J36: 14A | K36: =VLOOKUP(J36,'BJCCP (2)'!$A$1:$R$119,2) -> 14A - Scottish Light
A37: 14B - Scottish Heavy | B37: 50-150 | C37: 0-30 | D37: 40-120 | E37: 100-200 | F37: 50-100 | G37: <100 | H37: 0-60 | I37: 9B Scotish 704 | J37: 14B | K37: =VLOOKUP(J37,'BJCCP (2)'!$A$1:$R$119,2) -> 14B - Scottish Heavy
A38: 14C - Scottish Export | B38: 50-150 | C38: 0-30 | D38: 40-120 | E38: 100-200 | F38: 50-100 | G38: <100 | H38: 0-60 | I38: 9C Scotish 804 | J38: 14C | K38: =VLOOKUP(J38,'BJCCP (2)'!$A$1:$R$119,2) -> 14C - Scottish Export
A39: 15A - Irish Red Ale | B39: 50-150 | C39: 0-30 | D39: 40-120 | E39: 100-300 | F39: 50-100 | G39: <100 | H39: 0-60 | I39: 90 Irish Red Ale | J39: 15A | K39: =VLOOKUP(J39,'BJCCP (2)'!$A$1:$R$119,2) -> 15A - Irish Red Ale
A40: 15B - Irish Stout | B40: 50-75 | C40: 0-30 | D40: 80-150 | E40: 50-150 | F40: 50-100 | G40: <100 | H40: 30-90 | I40: 13A Dry Stout | J40: 15b | K40: =VLOOKUP(J40,'BJCCP (2)'!$A$1:$R$119,2) -> 15B - Irish Stout
A41: 16A - Sweet Stout | B41: 50-75 | C41: 0-30 | D41: 80-160 | E41: 50-150 | F41: 50-150 | G41: <100 | H41: 60 - 120 | I41: 13B Sweet Stout | J41: 16A | K41: =VLOOKUP(J41,'BJCCP (2)'!$A$1:$R$119,2) -> 16A - Sweet Stout
A42: 16B - Oatmeal Stout | B42: 50-75 | C42: 0-30 | D42: 80-160 | E42: 50-150 | F42: 50-150 | G42: <100 | H42: 60 - 120 | I42: 13C Oatmeal Stout | J42: 16B | K42: =VLOOKUP(J42,'BJCCP (2)'!$A$1:$R$119,2) -> 16B - Oatmeal Stout
A43: 16D - Foreign Extra Stout | B43: 50-75 | C43: 0-30 | D43: 80-160 | E43: 50-150 | F43: 50-150 | G43: <100 | H43: 60 - 120 | I43: 130 Foreign Extra Stout | J43: 16D | K43: =VLOOKUP(J43,'BJCCP (2)'!$A$1:$R$119,2) -> 16D - Foreign Extra Stout
A44: 17B - Old Ale | B44: 50-100 | C44: 0-30 | D44: 40-120 | E44: 50-100 | F44: 50-150 | G44: <100 | H44: 0-60 | I44: 19A Old Ale | J44: 17B | K44: =VLOOKUP(J44,'BJCCP (2)'!$A$1:$R$119,2) -> 17B - Old Ale
A45: 17C - Wee Heavy | B45: 50-100 | C45: 0-30 | D45: 40-120 | E45: 50-100 | F45: 50-150 | G45: <100 | H45: 0-60 | I45: 9E Strong Scotch Ale | J45: 17C | K45: =VLOOKUP(J45,'BJCCP (2)'!$A$1:$R$119,2) -> 17C - Wee Heavy
A46: 17D - English Barleywine | B46: 50-100 | C46: 0-30 | D46: 40-120 | E46: 50-100 | F46: 50-150 | G46: <100 | H46: 0-60 | I46: 19B English Barleywine | J46: 17D | K46: =VLOOKUP(J46,'BJCCP (2)'!$A$1:$R$119,2) -> 17D - English Barleywine
A47: 18A - Blonde Ale | B47: 50-60 | C47: 0-30 | D47: 0-40 | E47: 0-50 | F47: 50-100 | G47: <100 | H47: -60-0 | I47: 1B Standard American | J47: 18A | K47: =VLOOKUP(J47,'BJCCP (2)'!$A$1:$R$119,2) -> 18A - Blonde Ale
A48: 18A - Blonde Ale | B48: 50-100 | C48: 0-30 | D48: 0-80 | E48: 100-200 | F48: 50-100 | G48: <100 | H48: -60-0 | I48: 6B Blonde Ale | J48: 18A | K48: =VLOOKUP(J48,'BJCCP (2)'!$A$1:$R$119,2) -> 18A - Blonde Ale
A49: 18B - American Pale Ale | B49: 50-150 | C49: 0-30 | D49: 40-120 | E49: 100-400 | F49: 0-100 | G49: <100 | H49: -30-30 | I49: 10A American Pale Ale | J49: 18B | K49: =VLOOKUP(J49,'BJCCP (2)'!$A$1:$R$119,2) -> 18B - American Pale Ale
A50: 19A - American Amber Ale | B50: 50-150 | C50: 0-30 | D50: 40-120 | E50: 100-300 | F50: 50-100 | G50: <100 | H50: 0 -60 | I50: 10B American Amber Ale | J50: 19A | K50: =VLOOKUP(J50,'BJCCP (2)'!$A$1:$R$119,2) -> 19A - American Amber Ale
A51: 19B - California Common | B51: 50-150 | C51: 0-30 | D51: 40-120 | E51: 100-300 | F51: 50-100 | G51: <100 | H51: 0-60 | I51: 7B California Common Beer | J51: 19B | K51: =VLOOKUP(J51,'BJCCP (2)'!$A$1:$R$119,2) -> 19B - California Common
A52: 19C - American Brown Ale | B52: 50-75 | C52: 0-30 | D52: 80-160 | E52: 50-150 | F52: 50-150 | G52: <100 | H52: 60 -120 | I52: 10C American Brown Ale | J52: 19C | K52: =VLOOKUP(J52,'BJCCP (2)'!$A$1:$R$119,2) -> 19C - American Brown Ale
A53: 20A - American Porter | B53: 50-75 | C53: 0-30 | D53: 80-160 | E53: 50-150 | F53: 50-150 | G53: <100 | H53: 60 -120 | I53: 12B Robust Porter | J53: 20A | K53: =VLOOKUP(J53,'BJCCP (2)'!$A$1:$R$119,2) -> 20A - American Porter
A54: 20B - American Stout | B54: 50-75 | C54: 0-30 | D54: 80-160 | E54: 50-150 | F54: 50-150 | G54: <100 | H54: 60 - 120 | I54: 13E American Stout | J54: 20B | K54: =VLOOKUP(J54,'BJCCP (2)'!$A$1:$R$119,2) -> 20B - American Stout
A55: 20C - Imperial Stout | B55: 50-75 | C55: 0-30 | D55: 120-200 | E55: 50-150 | F55: 50-150 | G55: <100 | H55: 120 - 200 | I55: 13F Imperial Stout | J55: 20C | K55: =VLOOKUP(J55,'BJCCP (2)'!$A$1:$R$119,2) -> 20C - Imperial Stout
A56: 21A - American IPA | B56: 50-150 | C56: 0-30 | D56: 40-120 | E56: 100-400 | F56: 0-100 | G56: <100 | H56: -30-30 | I56: 14B American IPA | J56: 21A | K56: =VLOOKUP(J56,'BJCCP (2)'!$A$1:$R$119,2) -> 21A - American IPA
A57: 22A - Double IPA | B57: 50-150 | C57: 0-30 | D57: 40-120 | E57: 100-400 | F57: 0-100 | G57: <100 | H57: 30 - 30 | I57: 14C Imperial IPA | J57: 22A | K57: =VLOOKUP(J57,'BJCCP (2)'!$A$1:$R$119,2) -> 22A - Double IPA
A58: 22C - American Barleywine | B58: 50-100 | C58: 0-30 | D58: 40-120 | E58: 50-100 | F58: 50-150 | G58: <100 | H58: 0-60 | I58: 19C American Barleywine | J58: 22C | K58: =VLOOKUP(J58,'BJCCP (2)'!$A$1:$R$119,2) -> 22C - American Barleywine
A59: 23A - Berliner Weisse | B59: 50-100 | C59: 0-30 | D59: 0-80 | E59: 0-50 | F59: 0-100 | G59: <100 | H59: -100--30 | I59: 17A Berliner Weisse | J59: 23A | K59: =VLOOKUP(J59,'BJCCP (2)'!$A$1:$R$119,2) -> 23A - Berliner Weisse
A60: 23B - Flanders Red Ale | B60: 50-100 | C60: 0-30 | D60: 0-120 | E60: 0-50 | F60: 0-100 | G60: <100 | H60: 0-60 | I60: 17B Flanders Red Ale | J60: 23B | K60: =VLOOKUP(J60,'BJCCP (2)'!$A$1:$R$119,2) -> 23B - Flanders Red Ale
A61: 23C - Oud Bruin | B61: 50-100 | C61: 0-30 | D61: 0-100 | E61: 0-50 | F61: 0-100 | G61: <100 | H61: 0-60 | I61: 17C Oud Bruin | J61: 23C | K61: =VLOOKUP(J61,'BJCCP (2)'!$A$1:$R$119,2) -> 23C - Oud Bruin
A62: 23D - Lambic | B62: 50-100 | C62: 0-30 | D62: 0-80 | E62: 0-50 | F62: 0-100 | G62: <100 | H62: -100--30 | I62: 170 Staright Lambic | J62: 23D | K62: =VLOOKUP(J62,'BJCCP (2)'!$A$1:$R$119,2) -> 23D - Lambic
A63: 23E - Gueuze | B63: 50-100 | C63: 0-30 | D63: 0-80 | E63: 0-50 | F63: 0-100 | G63: <100 | H63: -100--30 | I63: 17E Gueuze | J63: 23E | K63: =VLOOKUP(J63,'BJCCP (2)'!$A$1:$R$119,2) -> 23E - Gueuze
A64: 23F - Fruit Lambic | B64: 50-100 | C64: 0-30 | D64: 0-80 | E64: 0-50 | F64: 0-100 | G64: <100 | H64: -100--30 | I64: 17F Fruit Lambic | J64: 23F | K64: =VLOOKUP(J64,'BJCCP (2)'!$A$1:$R$119,2) -> 23F - Fruit Lambic
A65: 24A - Witbier | B65: 50-100 | C65: 0-30 | D65: 0-80 | E65: 0-50 | F65: 0-100 | G65: <100 | H65: -60-0 | I65: 16A Witbier | J65: 24A | K65: =VLOOKUP(J65,'BJCCP (2)'!$A$1:$R$119,2) -> 24A - Witbier
A66: 24B - Belgian Pale Ale | B66: 50-150 | C66: 0-30 | D66: 40-120 | E66: 100-300 | F66: 50-100 | G66: <100 | H66: 0-60 | I66: 16B Belgian Pale Ale | J66: 24B | K66: =VLOOKUP(J66,'BJCCP (2)'!$A$1:$R$119,2) -> 24B - Belgian Pale Ale
A67: 24C - Bière de Garde | B67: 50-100 | C67: 0-30 | D67: 40-120 | E67: 50-100 | F67: 50-150 | G67: <100 | H67: 0-60 | I67: 160 Bière de Garde | J67: 24C | K67: =VLOOKUP(J67,'BJCCP (2)'!$A$1:$R$119,2) -> 24C - Bière de Garde
A68: 25A - Belgian Blond Ale | B68: 50-100 | C68: 0-30 | D68: 0-80 | E68: 0-50 | F68: 0-100 | G68: <100 | H68: -30-30 | I68: 18A Belgian Blond Ale | J68: 25A | K68: =VLOOKUP(J68,'BJCCP (2)'!$A$1:$R$119,2) -> 25A - Belgian Blond Ale
A69: 25B - Saison | B69: 50-150 | C69: 0-30 | D69: 40-120 | E69: 100-400 | F69: 0-100 | G69: <100 | H69: -60-0 | I69: 16C Saison | J69: 25B | K69: =VLOOKUP(J69,'BJCCP (2)'!$A$1:$R$119,2) -> 25B - Saison
A70: 25C - Belgian Golden Strong Ale | B70: 50-100 | C70: 0-30 | D70: 0-40 | E70: 50-100 | F70: 50-100 | G70: <100 | H70: -30-30 | I70: 180 Golden Strong Ale | J70: 25C | K70: =VLOOKUP(J70,'BJCCP (2)'!$A$1:$R$119,2) -> 25C - Belgian Golden Strong Ale
A71: 26B - Belgian Dubbel | B71: 50-100 | C71: 0-30 | D71: 40-120 | E71: 50-100 | F71: 50-150 | G71: <100 | H71: 0-60 | I71: 18B Belgian Dubbel | J71: 26B | K71: =VLOOKUP(J71,'BJCCP (2)'!$A$1:$R$119,2) -> 26B - Belgian Dubbel
A72: 26C - Belgian Tripel | B72: 50-100 | C72: 0-30 | D72: 0-40 | E72: 50-100 | F72: 50-100 | G72: <100 | H72: -30-30 | I72: 18C Belgian Tripel | J72: 26C | K72: =VLOOKUP(J72,'BJCCP (2)'!$A$1:$R$119,2) -> 26C - Belgian Tripel
A73: 26D - Belgian Dark Strong Ale | B73: 50-75 | C73: 0-30 | D73: 120-200 | E73: 50-150 | F73: 50-150 | G73: <100 | H73: 120 - 200 | I73: 18E Dark Strong Ale | J73: 26D | K73: =VLOOKUP(J73,'BJCCP (2)'!$A$1:$R$119,2) -> 26D - Belgian Dark Strong Ale
A74: 27A - Roggenbier | B74: 50-150 | C74: 0-30 | D74: 40-120 | E74: 100-300 | F74: 50-100 | G74: <100 | H74: 0-60 | I74: 150 Roggenbier | J74: 27A | K74: 27A - Roggenbier

Sheet Feuil1 (hidden)
A1: BJCP Style Name | B1: Calcium | C1: Magnésium | D1: Alcalinité en CaCO3 | E1: Sulfate | F1: Chloride | G1: Sodium | H1: Alcalinité
B2: (ppm) | C2: (ppm) | E2: (ppm) | F2: (ppm) | G2: (ppm) | H2: Résiduelle
A3: 1A Lite American Lager | B3: 50-60 | C3: 0-30 | D3: 0-40 | E3: 0-50 | F3: 50-100 | G3: <100 | H3: =-60-0 -> -60
A4: 1B Standard American | B4: 50-60 | C4: 0-30 | D4: 0-40 | E4: 0-50 | F4: 50-100 | G4: <100 | H4: =-60-0 -> -60
A5: 1C Premium American | B5: 50-75 | C5: 0-30 | D5: 0-40 | E5: 50-150 | F5: 50-100 | G5: <100 | H5: =-60-0 -> -60
A6: 10 Munch Helles | B6: 50-60 | C6: 0-30 | D6: 0-40 | E6: 0-50 | F6: 50-100 | G6: <100 | H6: =-60-0 -> -60
A7: 1E Dortmund er Export | B7: 75-150 | C7: 0-30 | D7: 40-80 | E7: 50-150 | F7: 50-100 | G7: <100 | H7: =-30-30 -> -60
A8: 2A German Pilsner (Plis) | B8: 50-75 | C8: 0-30 | D8: 0-40 | E8: 50-150 | F8: 50-100 | G8: <100 | H8: =-60-0 -> -60
A9: 2B Bohemian Pilsner | B9: 50-60 | C9: 0-30 | D9: 0-40 | E9: 0-50 | F9: 50-100 | G9: <100 | H9: =-60-0 -> -60
A10: 2C Classic American Pilsner | B10: 50-75 | C10: 0-30 | D10: 0-40 | E10: 50-150 | F10: 50-100 | G10: <100 | H10: =-60-0 -> -60
A11: 3A Vienne Lager | B11: 50-75 | C11: 0-30 | D11: 40-120 | E11: 0-100 | F11: 50-150 | G11: <100 | H11: 0-60
A12: 3B Oktoberfest/Marzen | B12: 50-75 | C12: 0-30 | D12: 40-120 | E12: 0-100 | F12: 50-150 | G12: <100 | H12: 0-60
A13: 4A Dark American Lager | B13: 50-75 | C13: 0-30 | D13: 80-120 | E13: 0-50 | F13: 50-150 | G13: <100 | H13: 40 - 80
A14: 4B Munch Dunkel | B14: 50-75 | C14: 0-30 | D14: 80-120 | E14: 0-50 | F14: 50-150 | G14: <100 | H14: 40 - 80
A15: 4C Schwarzbier | B15: 50-75 | C15: 0-30 | D15: 80-120 | E15: 0-50 | F15: 50-150 | G15: <100 | H15: 40 - 80
A16: 5A Helles Bock | B16: 50-75 | C16: 0-30 | D16: 40-80 | E16: 0-100 | F16: 50-150 | G16: <100 | H16: 0-60
A17: 5B Traditional Bock | B17: 50-75 | C17: 0-30 | D17: 40-80 | E17: 0-100 | F17: 50-150 | G17: <100 | H17: 0-60
A18: 5C Doppelbock | B18: 50-100 | C18: 0-30 | D18: 80-150 | E18: 0-100 | F18: 50-100 | G18: <100 | H18: 60 - 120
A19: 50 Eisbock | B19: 50-100 | C19: 0-30 | D19: 80-150 | E19: 0-100 | F19: 50-100 | G19: <100 | H19: 60 - 120
A20: 6A Cream Ale | B20: 50-100 | C20: 0-30 | D20: 0-80 | E20: 0-50 | F20: 0-100 | G20: <100 | H20: =-30-30 -> -60
A21: 6B Blonde Ale | B21: 50-100 | C21: 0-30 | D21: 0-80 | E21: 100-200 | F21: 50-100 | G21: <100 | H21: =-60-0 -> -60
A22: 6C Kölsch | B22: 50-100 | C22: 0-30 | D22: 0-80 | E22: 0-50 | F22: 0-100 | G22: <100 | H22: =-30-30 -> -60
A23: 60 American Wheat /Rye | B23: 50-100 | C23: 0-30 | D23: 0-80 | E23: 100-200 | F23: 50-100 | G23: <100 | H23: =-60-0 -> -60
A24: 7A N. German Altbier | B24: 50-150 | C24: 0-30 | D24: 40-120 | E24: 100-300 | F24: 50-100 | G24: <100 | H24: 0-60
A25: 7B California Common Beer | B25: 50-150 | C25: 0-30 | D25: 40-120 | E25: 100-300 | F25: 50-100 | G25: <100 | H25: 0-60
A26: 7C Düsseldorf Altbier | B26: 50-150 | C26: 0-30 | D26: 40-120 | E26: 100-300 | F26: 50-100 | G26: <100 | H26: 0-60
A27: 8A Ordinary Bitter | B27: 50-100 | C27: 0-30 | D27: 0-80 | E27: 100-200 | F27: 50-100 | G27: <100 | H27: =-60-0 -> -60
A28: 8B Special Bitter | B28: 50-150 | C28: 0-30 | D28: 40-120 | E28: 100-200 | F28: 50-100 | G28: <100 | H28: 0-60
A29: 8C Strong Bitter | B29: 50-150 | C29: 0-30 | D29: 40-120 | E29: 100-300 | F29: 50-100 | G29: <100 | H29: 0-60
A30: 9A Scotish 604 | B30: 50-150 | C30: 0-30 | D30: 40-120 | E30: 100-200 | F30: 50-100 | G30: <100 | H30: 0-60
A31: 9B Scotish 704 | B31: 50-150 | C31: 0-30 | D31: 40-120 | E31: 100-200 | F31: 50-100 | G31: <100 | H31: 0-60
A32: 9C Scotish 804 | B32: 50-150 | C32: 0-30 | D32: 40-120 | E32: 100-200 | F32: 50-100 | G32: <100 | H32: 0-60
A33: 90 Irish Red Ale | B33: 50-150 | C33: 0-30 | D33: 40-120 | E33: 100-300 | F33: 50-100 | G33: <100 | H33: 0-60
A34: 9E Strong Scotch Ale | B34: 50-100 | C34: 0-30 | D34: 40-120 | E34: 50-100 | F34: 50-150 | G34: <100 | H34: 0-60
A35: 10A American Pale Ale | B35: 50-150 | C35: 0-30 | D35: 40-120 | E35: 100-400 | F35: 0-100 | G35: <100 | H35: =-30-30 -> -60
A36: 10B American Amber Ale | B36: 50-150 | C36: 0-30 | D36: 40-120 | E36: 100-300 | F36: 50-100 | G36: <100 | H36: 0 -60
A37: 10C American Brown Ale | B37: 50-75 | C37: 0-30 | D37: 80-160 | E37: 50-150 | F37: 50-150 | G37: <100 | H37: 60 -120
A38: 11A Mild Ale | B38: 50-150 | C38: 0-30 | D38: 40-120 | E38: 100-200 | F38: 50-100 | G38: <100 | H38: 0-60
A39: 11B S. English Brown | B39: 50-75 | C39: 0-30 | D39: 80-150 | E39: 50-150 | F39: 50-100 | G39: <100 | H39: 30-90
A40: 11C N. English Brown | B40: 50-75 | C40: 0-30 | D40: 80-150 | E40: 50-150 | F40: 50-100 | G40: <100 | H40: 30-90
A41: 12A Brown Porter | B41: 50-75 | C41: 0-30 | D41: 80-150 | E41: 50-150 | F41: 50-100 | G41: <100 | H41: 30-90
A42: 12B Robust Porter | B42: 50-75 | C42: 0-30 | D42: 80-160 | E42: 50-150 | F42: 50-150 | G42: <100 | H42: 60 -120
A43: 12C Baltic Porter | B43: 50-75 | C43: 0-30 | D43: 80-160 | E43: 50-150 | F43: 50-150 | G43: <100 | H43: 60 -120
A44: 13A Dry Stout | B44: 50-75 | C44: 0-30 | D44: 80-150 | E44: 50-150 | F44: 50-100 | G44: <100 | H44: 30-90
A45: 13B Sweet Stout | B45: 50-75 | C45: 0-30 | D45: 80-160 | E45: 50-150 | F45: 50-150 | G45: <100 | H45: 60 - 120
A46: 13C Oatmeal Stout | B46: 50-75 | C46: 0-30 | D46: 80-160 | E46: 50-150 | F46: 50-150 | G46: <100 | H46: 60 - 120
A47: 130 Foreign Extra Stout | B47: 50-75 | C47: 0-30 | D47: 80-160 | E47: 50-150 | F47: 50-150 | G47: <100 | H47: 60 - 120
A48: 13E American Stout | B48: 50-75 | C48: 0-30 | D48: 80-160 | E48: 50-150 | F48: 50-150 | G48: <100 | H48: 60 - 120
A49: 13F Imperial Stout | B49: 50-75 | C49: 0-30 | D49: 120-200 | E49: 50-150 | F49: 50-150 | G49: <100 | H49: 120 - 201)
A50: 14A English IPA | B50: 50-150 | C50: 0-30 | D50: 40-120 | E50: 100-300 | F50: 50-100 | G50: <100 | H50: 0-60
A51: 14B American IPA | B51: 50-150 | C51: 0-30 | D51: 40-120 | E51: 100-400 | F51: 0-100 | G51: <100 | H51: =-30-30 -> -60
A52: 14C Imperial IPA | B52: 50-150 | C52: 0-30 | D52: 40-120 | E52: 100-400 | F52: 0-100 | G52: <100 | H52: 30 - 30
A53: 15A Weizen | B53: 50-100 | C53: 0-30 | D53: 0-80 | E53: 0-50 | F53: 0-100 | G53: <100 | H53: 30 - 30
A54: 15B Dunkelweizen | B54: 50-75 | C54: 0-30 | D54: 80-160 | E54: 50-150 | F54: 50-150 | G54: <100 | H54: 60 - 120
A55: 15C Weizenbock | B55: 50-75 | C55: 0-30 | D55: 120-200 | E55: 50-150 | F55: 50-150 | G55: <100 | H55: 120 - 201)
A56: 150 Roggenbier | B56: 50-150 | C56: 0-30 | D56: 40-120 | E56: 100-300 | F56: 50-100 | G56: <100 | H56: 0-60
A57: 16A Witbier | B57: 50-100 | C57: 0-30 | D57: 0-80 | E57: 0-50 | F57: 0-100 | G57: <100 | H57: =-60-0 -> -60
A58: 16B Belgian Pale Ale | B58: 50-150 | C58: 0-30 | D58: 40-120 | E58: 100-300 | F58: 50-100 | G58: <100 | H58: 0-60
A59: 16C Saison | B59: 50-150 | C59: 0-30 | D59: 40-120 | E59: 100-400 | F59: 0-100 | G59: <100 | H59: =-60-0 -> -60
A60: 160 Bière de Garde | B60: 50-100 | C60: 0-30 | D60: 40-120 | E60: 50-100 | F60: 50-150 | G60: <100 | H60: 0-60
A61: 17A Berliner Weisse | B61: 50-100 | C61: 0-30 | D61: 0-80 | E61: 0-50 | F61: 0-100 | G61: <100 | H61: =-100--30 -> -70
A62: 17B Flanders Red Ale | B62: 50-100 | C62: 0-30 | D62: 0-120 | E62: 0-50 | F62: 0-100 | G62: <100 | H62: 0-60
A63: 17C Oud Bruin | B63: 50-100 | C63: 0-30 | D63: 0-100 | E63: 0-50 | F63: 0-100 | G63: <100 | H63: 0-60
A64: 170 Staright Lambic | B64: 50-100 | C64: 0-30 | D64: 0-80 | E64: 0-50 | F64: 0-100 | G64: <100 | H64: =-100--30 -> -70
A65: 17E Gueuze | B65: 50-100 | C65: 0-30 | D65: 0-80 | E65: 0-50 | F65: 0-100 | G65: <100 | H65: =-100--30 -> -70
A66: 17F Fruit Lambic | B66: 50-100 | C66: 0-30 | D66: 0-80 | E66: 0-50 | F66: 0-100 | G66: <100 | H66: =-100--30 -> -70
A67: 18A Belgian Blond Ale | B67: 50-100 | C67: 0-30 | D67: 0-80 | E67: 0-50 | F67: 0-100 | G67: <100 | H67: =-30-30 -> -60
A68: 18B Belgian Dubbel | B68: 50-100 | C68: 0-30 | D68: 40-120 | E68: 50-100 | F68: 50-150 | G68: <100 | H68: 0-60
A69: 18C Belgian Tripel | B69: 50-100 | C69: 0-30 | D69: 0-40 | E69: 50-100 | F69: 50-100 | G69: <100 | H69: =-30-30 -> -60
A70: 180 Golden Strong Ale | B70: 50-100 | C70: 0-30 | D70: 0-40 | E70: 50-100 | F70: 50-100 | G70: <100 | H70: =-30-30 -> -60
A71: 18E Dark Strong Ale | B71: 50-75 | C71: 0-30 | D71: 120-200 | E71: 50-150 | F71: 50-150 | G71: <100 | H71: 120 - 201)
A72: 19A Old Ale | B72: 50-100 | C72: 0-30 | D72: 40-120 | E72: 50-100 | F72: 50-150 | G72: <100 | H72: 0-60
A73: 19B English Barleywine | B73: 50-100 | C73: 0-30 | D73: 40-120 | E73: 50-100 | F73: 50-150 | G73: <100 | H73: 0-60
A74: 19C American Barleywine | B74: 50-100 | C74: 0-30 | D74: 40-120 | E74: 50-100 | F74: 50-150 | G74: <100 | H74: 0-60

Sheet BJCCP (2) (hidden)
A1: # | C1: OG min | D1: OG max | E1: FG min | F1: FG max | G1: EBC min | H1: EBC max | I1: IBUs min | J1: IBUs max | K1: ABV min | L1: ABV max | M1: SRM min | N1: SRM max | O1: OG min | P1: OG max | Q1: FG min | R1: FG max | S1: Styles | T1: vol CO2 min | U1: vol CO2 max | V1: BJCP Categories | W1: Style Family | X1: Style History | Y1: Origin | Z1: FG min | AA1: FG max | AB1: Overall Impression | AC1: Aroma | AD1: Appearance | AE1: Flavor | AF1: Mouthfell | AG1: Comments | AH1: History | AI1: Characteristic Ingredients | AJ1: Style Comparison | AK1: Commercial Examples | AL1: Notes
A2: 01A | B2: =A2&" - "&S2 -> 01A - American Light Lager | C2: =O2/1000 -> 1.028 | D2: 1.04 | E2: 0.998 | F2: 1.008 | G2: 3.94 | H2: 5.91 | I2: 8 | J2: 12 | K2: 2.8 | L2: 4.2 | M2: 2 | N2: 3 | O2: 1028 | P2: 1040 | Q2: 998 | R2: 1008 | S2: American Light Lager | T2: 2.5 | U2: 2.9 | V2: Standard American Beer | W2: Pale Lager | X2: Mass Market Pale Lager | Y2: United States | Z2: 998 | AA2: 1008 | AB2: Highly carbonated, very light-bodied, nearly flavorless lager designed to be consumed very cold. Very refreshing and thirst quenching. | AC2: Low to no malt aroma, although it can be perceived as grainy, sweet, or corn-like if present. Hop aroma is light to none, with a spicy or floral hop character if present. While a clean fermentation character is desirable, a light amount of yeast character (particularly a light apple fruitiness) is not a fault. Light DMS is not a fault. | AD2: Very pale straw to pale yellow color. White, frothy head seldom persists. Very clear. | AE2: Relatively neutral palate with a crisp and dry finish and a low to very low grainy or corn-like flavor that might be perceived as sweetness due to the low bitterness. Hop flavor ranges from none to low levels, and can have a floral, spicy, or herbal quality (although rarely strong enough to detect). Low to very low hop bitterness. Balance may vary from slightly malty to slightly bitter, but is relatively close to even. High levels of carbonation may accentuate the crispness of the dry finish. Clean lager fermentation character. | AF2: Very light (sometimes watery) body. Very highly carbonated with slight carbonic bite on the tongue. | AG2: Designed to appeal to as broad a range of the general public as possible. Strong flavors are a fault. | AH2: Coors briefly made a light lager in the early 1940s. Modern versions were first produced by Rheingold in 1967 to appeal to diet-conscious drinkers, but only became popular starting in 1973 after Miller Brewing acquired the recipe and marketed the beer heavily to sports fans with the “tastes great, less filling” campaign. Beers of this genre became the largest sellers in the United States in the 1990s. | AI2: Two- or six-row barley with high percentage (up to 40%) of rice or corn as adjuncts. Additional enzymes can further lighten the body and lower carbohydrates. | AJ2: A lighter-bodied, lower-alcohol, lower calorie version of an American Lager. Less hop character and bitterness than a Leichtbier. | AK2: Bud Light, Coors Light, Keystone Light, Michelob Light, Miller Lite, Old Milwaukee Light
A3: 01B | B3: 01B - American Lager | C3: 1.04 | D3: 1.05 | E3: 1.004 | F3: 1.01 | G3: 3.94 | H3: 7.88 | I3: 8 | J3: 18 | K3: 4.2 | L3: 5.3 | M3: 2 | N3: 4 | O3: 1040 | P3: 1050 | Q3: 1004 | R3: 1010 | S3: American Lager | T3: 2.5 | U3: 2.9 | V3: Standard American Beer | W3: Pale Lager | X3: Mass Market Pale Lager | Y3: United States | Z3: 1004 | AA3: 1010 | AB3: A very pale, highly-carbonated, light-bodied, well-attenuated lager with a very neutral flavor profile and low bitterness. Served very cold, it can be a very refreshing and thirst quenching drink. | AC3: Low to no malt aroma, although it can be perceived as grainy, sweet or corn-like if present. Hop aroma may range from none to a light, spicy or floral hop presence. While a clean fermentation character is desirable, a light amount of yeast character (particularly a light apple character) is not a fault. Light DMS is also not a fault. | AD3: Very pale straw to medium yellow color. White, frothy head seldom persists. Very clear. | AE3: Relatively neutral palate with a crisp and dry finish and a moderately-low to low grainy or corn-like flavor that might be perceived as sweetness due to the low bitterness. Hop flavor ranges from none to moderately-low levels, and can have a floral, spicy, or herbal quality (although often not strong enough to distinguish). Hop bitterness at low to medium-low level. Balance may vary from slightly malty to slightly bitter, but is relatively close to even. High levels of carbonation may accentuate the crispness of the dry finish. Clean lager fermentation character. | AF3: Low to medium-low body. Very highly carbonated with slight carbonic bite on the tongue. | AG3: Strong flavors are a fault. Often what non-craft beer drinkers expect to be served if they order beer in the United States. May be marketed as Pilsner beers outside of Europe, but should not be confused with traditional examples. | AH3: Although German immigrants had brewed traditional Pilsner-inspired lager beer in the United States since the mid-late 1800s, the modern American lager style was heavily influenced by Prohibition and World War II. Surviving breweries consolidated, expanded distribution, and heavily promoted a beer style that was appealing to a broad range of the population. Became the dominant beer style for many decades, and spawning many international rivals who would develop similarly bland products for the mass market supported by heavy advertising. | AI3: Two- or six-row barley with high percentage (up to 40%) of rice or corn as adjuncts. | AJ3: Stronger, more flavor and body than a Light American Lager. Less bitterness and flavor than an International Lager. Significantly less flavor, hops, and bitterness than traditional European Pilsners. | AK3: Budweiser, Coors Original, Grain Belt Premium Lager, Miller High Life, Pabst Blue Ribbon, Special Export
A4: 01C | B4: 01C - Cream Ale | C4: 1.042 | D4: 1.055 | E4: 1.006 | F4: 1.012 | G4: 4.925 | H4: 9.85 | I4: 8 | J4: 20 | K4: 4.2 | L4: 5.6 | M4: 2.5 | N4: 5 | O4: 1042 | P4: 1055 | Q4: 1006 | R4: 1012 | S4: Cream Ale | T4: 2.5 | U4: 2.9 | V4: Standard American Beer | W4: Pale Ale | X4: Indigenous American Beer | Y4: United States | Z4: 1006 | AA4: 1012 | AB4: A clean, well-attenuated, flavorful American “lawnmower” beer. Easily drinkable and refreshing, with more character than typical American lagers. | AC4: Medium-low to low malt notes, with a sweet, corn-like aroma. Low levels of DMS are allowable, but are not required. Hop aroma medium low to none, and can be of any variety although floral, spicy, or herbal notes are most common. Overall, a subtle aroma with neither hops nor malt dominating. Low fruity esters are optional. | AD4: Pale straw to moderate gold color, although usually on the pale side. Low to medium head with medium to high carbonation. Fair head retention. Brilliant, sparkling clarity. | AE4: Low to medium-low hop bitterness. Low to moderate maltiness and sweetness, varying with gravity and attenuation. Usually well-attenuated. Neither malt nor hops dominate the palate. A low to moderate corny flavor is commonly found, as is light DMS (optional). Finish can vary from somewhat dry to faintly sweet. Low fruity esters are optional. Low to medium-low hop flavor (any variety, but typically floral, spicy, or herbal). | AF4: Generally light and crisp, although body can reach medium. Smooth mouthfeel with medium to high attenuation; higher attenuation levels can lend a “thirst quenching” quality. High carbonation. | AG4: Pre-prohibition Cream Ales were slightly stronger, hoppier (including some dry hopping) and more bitter (25-30+ IBUs). These versions should be entered in the historical category. Most commercial examples are in the 1.050–1.053 OG range, and bitterness rarely rises above 20 IBUs. | AH4: A sparkling or present-use ale that existed in the 1800s and survived prohibition. An ale version of the American lager style. Produced by ale brewers to compete with lager brewers in Canada and the Northeast, Mid-Atlantic, and Midwest states. Originally known as sparkling or present use ales, lager strains were (and sometimes still are) used by some brewers, but were not historically mixed with ale strains. Many examples are kräusened to achieve carbonation. Cold conditioning isn’t traditional, although modern brewers sometimes use it. | AI4: American ingredients most commonly used. A grain bill of six-row malt, or a combination of six-row and North American two-row, is common. Adjuncts can include up to 20% maize in the mash, and up to 20% glucose or other sugars in the boil. Any variety of hops can be used for bittering and finishing. | AJ4: Similar to a Standard American Lager, but with more character. | AK4: Genesee Cream Ale, Liebotschaner Cream Ale, Little Kings Cream Ale, New Glarus Spotted Cow, Old Style, Sleeman Cream Ale
A5: 01D | B5: 01D - American Wheat Beer | C5: 1.04 | D5: 1.055 | E5: 1.008 | F5: 1.013 | G5: 5.91 | H5: 11.82 | I5: 15 | J5: 30 | K5: 4 | L5: 5.5 | M5: 3 | N5: 6 | O5: 1040 | P5: 1055 | Q5: 1008 | R5: 1013 | S5: American Wheat Beer | T5: 2.5 | U5: 2.9 | V5: Standard American Beer | W5: Wheat Beer | X5: Wheat Beer | Y5: United States | Z5: 1008 | AA5: 1013 | AB5: Refreshing wheat beers that can display more hop character and less yeast character than their German cousins. A clean fermentation character allows bready, doughy, or grainy wheat flavors to be complemented by hop flavor and bitterness rather than yeast qualities. | AC5: Low to moderate grainy, bready, or doughy wheat character. A light to moderate malty sweetness is acceptable. Esters can be moderate to none, although should reflect relatively neutral yeast strains; banana is inappropriate. Hop aroma may be low to moderate, and can have a citrusy, spicy, floral, or fruity character. No clove phenols. | AD5: Usually pale yellow to gold. Clarity may range from brilliant to hazy with yeast approximating the German weissbier style of beer. Big, long-lasting white head. | AE5: Light to moderately-strong bready, doughy, or grainy wheat flavor, which can linger into the finish. May have a moderate malty sweetness or finish quite dry. Low to moderate hop bitterness, which sometimes lasts into the finish. Balance is usually even, but may be slightly bitter. Low to moderate hop flavor (citrusy, spicy, floral, or fruity). Esters can be moderate to none, but should not include banana. No clove phenols. May have a slightly crisp finish. | AF5: Medium-light to medium body. Medium-high to high carbonation. Slight creaminess is optional; wheat beers sometimes have a soft, ‘fluffy’ impression. | AG5: Different variations exist, from an easy-drinking fairly sweet beer to a dry, aggressively-hopped beer with a strong wheat flavor. American rye beers should be entered in the Alternative Fermentables specialty category. | AH5: An American craft beer adaptation of the German weissbier style using a cleaner yeast and more hops, first widely popularized by Widmer in the mid-1980s. | AI5: Clean American ale or lager yeast (German weissbier yeast is inappropriate). Large proportion of wheat malt (often 30–50%, which is lower than is typical in German weissbiers). American, German, or New World hops are typical. | AJ5: More hop character and less yeast character than German weissbier. Never with the banana and clove character of German weissbier. Generally can have the same range and balance as Blonde Ales, but with a wheat character as the primary malt flavor. | AK5: Bell’s Oberon, Boulevard Unfiltered Wheat Beer, Goose Island 312 Urban Wheat Ale, Widmer Hefeweizen
A6: 02A | B6: 02A - International Pale Lager | C6: 1.042 | D6: 1.05 | E6: 1.008 | F6: 1.012 | G6: 3.94 | H6: 11.82 | I6: 18 | J6: 25 | K6: 4.6 | L6: 6 | M6: 2 | N6: 6 | O6: 1042 | P6: 1050 | Q6: 1008 | R6: 1012 | S6: International Pale Lager | T6: 2.2 | U6: 2.7 | V6: International Lager | W6: Pale Lager | X6: Mass Market Pale Lager | Y6: International | Z6: 1008 | AA6: 1012 | AB6: A highly-attenuated pale lager without strong flavors, typically well-balanced and highly carbonated. Served cold, it is refreshing and thirst-quenching. | AC6: Low to medium-low malt aroma, which can be grainy-malty or slightly corny-sweet. Hop aroma may range from very low to a medium, spicy or floral hop presence. While a clean fermentation profile is generally most desirable, low levels of yeast character (such as a light apple fruitiness) are not a fault. A light amount of DMS or corn aroma is not a fault. | AD6: Pale straw to gold color. White, frothy head may not be long lasting. Very clear. | AE6: Low to moderate levels of grainy-malt flavor, with a crisp, dry, well-attenuated finish. The grain character can be somewhat neutral, or show a light bready-crackery quality or up to moderate corny or malty sweetness. Hop flavor ranges from none to medium levels, and often showing a floral, spicy, or herbal character if detected. Hop bitterness at medium-low to medium level. Balance may vary from slightly malty to slightly bitter, but is relatively close to even. Neutral aftertaste with light malt and sometimes hop flavors. A light amount of DMS is not a fault. | AF6: Light to medium body. Moderately high to highly carbonated. Can have a slight carbonic bite on the tongue. | AG6: International lagers tend to have fewer adjuncts than standard American lagers. They may be all-malt, although strong flavors are still a fault. A broad category of international mass-market lagers ranging from up-scale American lagers to the typical “import” or “green bottle” international beers found in America and many export markets. Often confusingly labeled as a “Pilsner.” Any skunkiness in commercial beers from being lightstruck in a green bottle is a mishandling fault, not a characteristic of the style. | AH6: In the United States, developed as a premium version of the standard American lager, with a similar history. Outside the United States, developed either as an imitation of American style lagers, or as a more accessible (and often drier and less bitter) version of a Pilsner-type beer. Often heavily marketed and exported by large industrial or multi-national breweries. | AI6: Two- or six-row barley. May use rice, corn, or sugar as adjuncts, or may be all malt. | AJ6: Generally more bitter and filling than American lager. Less hoppy and bitter than a German Pils. Less body, malt flavor, and hop character than a Czech Premium Pale Lager. More robust versions can approach a Munich Helles in flavor, although with more of an adjunct quality. | AK6: Asahi Super Dry, Birra Moretti, Corona Extra, Devils Backbone Gold Leaf Lager, Full Sail Session Premium Lager, Heineken, Red Stripe, Singha
A7: 02B | B7: 02B - International Amber Lager | C7: 1.042 | D7: 1.055 | E7: 1.008 | F7: 1.014 | G7: 13.79 | H7: 27.58 | I7: 8 | J7: 25 | K7: 4.6 | L7: 6 | M7: 7 | N7: 14 | O7: 1042 | P7: 1055 | Q7: 1008 | R7: 1014 | S7: International Amber Lager | T7: 2.2 | U7: 2.7 | V7: International Lager | W7: Amber Lager | X7: Amber Lager | Y7: International | Z7: 1008 | AA7: 1014 | AB7: A well-attenuated malty amber lager with an interesting caramel or toast quality and restrained bitterness. Usually fairly well-attenuated, often with an adjunct quality. Smooth, easily-drinkable lager character. | AC7: Low to moderate malt aroma which can be grainy, with a very low to moderate caramel-sweet to toasty-malty aroma. Hop aroma can range from low to none with a mildly floral or spicy character. Clean lager profile. A slight DMS or corny aroma is acceptable. | AD7: Golden-amber to reddish-copper color. Bright clarity. White to off-white foam stand which may not last. | AE7: Low to moderate malt profile which can vary from dry to grainy-sweet. Low to moderate levels of caramel and toasty-bready notes can be evident. Low to medium-low corny sweetness is optional, but not a fault. Hop bitterness is low to moderate, and hop flavor is low to moderate with a spicy, herbal, or floral character. The balance can be fairly malty to nearly even, with the bitterness becoming more noticeable but not objectionable. The bitterness level can increase if the malt character increases to match. Clean fermentation profile. Finish is moderately dry with a moderately malty aftertaste. | AF7: Light to medium body. Medium to high carbonation. Smooth; some examples can be creamy. | AG7: A wide spectrum of mass-market Amber lagers developed either independently in various countries, or describing rather generic amber beers that may have had more historical relevance but who eventually changed into an indistinguishable product in modern times. | AH7: Varies by country, but generally represents an adaptation of the mass-market International Lager or an evolution of indigenous styles into a more generic product. | AI7: Two-row or six-row base malt. Color malts such as victory, amber, etc. Caramel malt adjuncts. European or American hops or a combination of both. | AJ7: Less well-developed malt flavor than a Vienna lager, often with an adjunct taste. | AK7: Brooklyn Lager, Capital Winter Skål, Dos Equis Amber, Schell’s Oktoberfest, Yuengling Lager
A8: 02C | B8: 02C - International Dark Lager | C8: 1.044 | D8: 1.056 | E8: 1.008 | F8: 1.012 | G8: 27.58 | H8: 43.34 | I8: 8 | J8: 20 | K8: 4.2 | L8: 6 | M8: 14 | N8: 22 | O8: 1044 | P8: 1056 | Q8: 1008 | R8: 1012 | S8: International Dark Lager | T8: 2.2 | U8: 2.7 | V8: International Lager | W8: Dark Lager | X8: Dark Lager | Y8: International | Z8: 1008 | AA8: 1012 | AB8: A darker and somewhat sweeter version of international pale lager with a little more body and flavor, but equally restrained in bitterness. The low bitterness leaves the malt as the primary flavor element, and the low hop levels provide very little in the way of balance. | AC8: Little to no malt aroma; may have a light corn character. Medium-low to no roast and caramel malt aroma. Hop aroma may range from none to light spicy or floral hop presence. While a clean fermentation profile is generally most desirable, low levels of yeast character (such as a light apple fruitiness) are not a fault. A light amount of DMS or corn aroma is not a fault. | AD8: Deep amber to dark brown with bright clarity and ruby highlights. Foam stand may not be long lasting, and is beige to light tan in color. | AE8: Low to medium malty sweetness with medium-low to no caramel and/or roasted malt flavors (and may include hints of coffee, molasses or cocoa). Hop flavor ranges from none to low levels, and is typically floral, spicy, or herbal. Low to medium hop bitterness. May have a very light fruitiness. Moderately crisp finish. The balance is typically somewhat malty. Burnt or moderately strong roasted malt flavors are a defect. | AF8: Light to medium-light body. Smooth with a light creaminess. Medium to high carbonation. | AG8: A broad range of international lagers that are darker than pale, and not assertively bitter and/or roasted. | AH8: Darker versions of International Pale Lagers often created by the same large, industrial breweries and meant to appeal to a broad audience. Often either a colored or sweetened adaptation of the standard pale industrial lager, or a more broadly accessible (and inexpensive) version of more traditional dark lagers. | AI8: Two- or six-row barley, corn, rice, or sugars as adjuncts. Light use of caramel and darker malts. Commercial versions may use coloring agents. | AJ8: Less flavor and richness than Munich Dunkel, Schwarzbier, or other dark lagers. Frequently uses adjuncts, as is typical of other International Lagers. | AK8: Baltika #4 Original, Devils Backbone Old Virginia Dark, Dixie Blackened Voodoo, Saint Pauli Girl Dark, San Miguel Dark, Session Black Dark Lager, Shiner Bock
A9: 03A | B9: 03A - Czech Pale Lager | C9: 1.028 | D9: 1.044 | E9: 1.008 | F9: 1.014 | G9: 5.91 | H9: 11.82 | I9: 20 | J9: 35 | K9: 3 | L9: 4.1 | M9: 3 | N9: 6 | O9: 1028 | P9: 1044 | Q9: 1008 | R9: 1014 | S9: Czech Pale Lager | T9: 2.2 | U9: 2.7 | V9: Czech Lager | W9: Pale Lager | X9: Pilsner | Y9: Czech Republic | Z9: 1008 | AA9: 1014 | AB9: A lighter-bodied, rich, refreshing, hoppy, bitter pale Czech lager having the familiar flavors of the stronger Czech Premium Pale Lager (Pilsner-type) beer but in a lower alcohol, lighter-bodied, and slightly less intense format. | AC9: Light to moderate bready-rich malt combined with light to moderate spicy or herbal hop bouquet; the balance between the malt and hops may vary. Faint hint of caramel is acceptable. Light (but never intrusive) diacetyl and light, fruity hop-derived esters are acceptable, but need not be present. No sulfur. | AD9: Light gold to deep gold color. Brilliant to very clear, with a long-lasting, creamy white head. | AE9: Medium-low to medium bready-rich malt flavor with a rounded, hoppy finish. Low to medium-high spicy or herbal hop flavor. Bitterness is prominent but never harsh. Flavorful and refreshing. Diacetyl or fruity esters are acceptable at low levels, but need not be present and should never be overbearing. | AF9: Medium-light to medium body. Moderate carbonation. | AG9: The Czech name of the style is světlé výčepní pivo. | AH9: Josef Groll initially brewed two types of beer in 1842–3, a výčepní and a ležák, with the smaller beer having twice the production; Evan Rail speculates that these were probably 10 °P and 12 °P beers, but that the výčepní could have been weaker. This is the most consumed type of beer in the Czech Republic at present. | AI9: Soft water with low sulfate and carbonate content, Saazer-type hops, Czech Pilsner malt, Czech lager yeast. Low ion water provides a distinctively soft, rounded hop profile despite high hopping rates. | AJ9: A lighter-bodied, lower-intensity, refreshing, everyday version of Czech Premium Pale Lager. | AK9: Březňák Světlé výčepní pivo, Notch Session Pils, Pivovar Kout na Šumavě Koutská 10°, Únětické pivo 10°
A10: 03B | B10: 03B - Czech Premium Pale Lager | C10: 1.044 | D10: 1.06 | E10: 1.013 | F10: 1.017 | G10: 6.895 | H10: 11.82 | I10: 30 | J10: 45 | K10: 4.2 | L10: 5.8 | M10: 3.5 | N10: 6 | O10: 1044 | P10: 1060 | Q10: 1013 | R10: 1017 | S10: Czech Premium Pale Lager | T10: 2.2 | U10: 2.7 | V10: Czech Lager | W10: Pilsner | X10: Pilsner | Y10: Czech Republic | Z10: 1013 | AA10: 1017 | AB10: Rich, characterful, pale Czech lager, with considerable malt and hop character and a long, rounded finish. Complex yet well-balanced and refreshing. The malt flavors are complex for a Pilsner-type beer, and the bitterness is strong but clean and without harshness, which gives a rounded impression that enhances drinkability. | AC10: Medium to medium-high bready-rich malt and medium-low to medium-high spicy, floral, or herbal hop bouquet; though the balance between the malt and hops may vary, the interplay is rich and complex. Light diacetyl, or very low fruity hop-derived esters are acceptable, but need not be present. | AD10: Gold to deep gold color. Brilliant to very clear clarity. Dense, long-lasting, creamy white head. | AE10: Rich, complex, bready maltiness combined with a pronounced yet soft and rounded bitterness and floral and spicy hop flavor. Malt and hop flavors are medium to medium-high, and the malt may contain a slight impression of caramel. Bitterness is prominent but never harsh. The long finish can be balanced towards hops or malt but is never aggressively tilted either way. Light to moderate diacetyl and low hop-derived esters are acceptable, but need not be present. | AF10: Medium body. Moderate to low carbonation. | AG10: Generally a group of pivo Plzeňského typu, or Pilsner-type beers. This style is a combination of the Czech styles světlý ležák (11–12.9 °P) and světlé speciální pivo (13–14.9 °P). In the Czech Republic, only Pilsner Urquell is called a Pilsner, despite how widely adopted this name is worldwide. Kvasnicové (“yeast beer”) versions are popular in the Czech Republic, and may be either kräusened with yeasted wort or given a fresh dose of pure yeast after fermentation. These beers are sometimes cloudy, with subtle yeastiness and enhanced hop character. Modern examples vary in their malt to hop balance and many are not as hop-forward as Pilsner Urquell. | AH10: Commonly associated with Pilsner Urquell, which was first brewed in 1842 after construction of a new brewhouse by burghers dissatisfied with the standard of beer brewed in Plzeň. Bavarian brewer Josef Groll is credited with first brewing the beer. | AI10: Soft water with low sulfate and carbonate content, Saazer-type hops, Czech malt, Czech lager yeast. Low ion water provides a distinctively soft, rounded hop profile despite high hopping rates. The bitterness level of some larger commercial examples has dropped in recent years, although not as much as in many contemporary German examples. | AJ10: More color, malt richness, and body than a German Pils, with a fuller finish and a cleaner, softer impression. Stronger than a Czech Pale Lager. | AK10: Bernard Sváteční ležák, Gambrinus Premium, Kout na Šumavě Koutská 12°, Pilsner Urquell, Pivovar Jihlava Ježek 11°, Primátor Premium, Únětická 12°
